Workbook

Sheet CHANGE_LOG
G1: CHANGE LOG
N2: Indique les changements entre chaque version
B3: V 1.1
D4: OK | E4: Création de la feuille de personnage imprimable : INFORMATIONS GENERALES
D5: OK | E5: Création de la feuille de personnage imprimable : CONTACTS, ALLIES, FOURNISSEURS, OPPOSANTS ET ENNEMIS
D6: OK | E6: Création de la feuille de personnage imprimable : AVANTAGES, MUTATIONS, POLARIS & IMPLANTS
D7: OK | E7: Création de la feuille de personnage imprimable : ATTRIBUTS & COMPETENCES (2 pages)
D8: OK | E8: Création de la feuille de personnage imprimable : ACTIONS & COMBAT
D9: OK | E9: Macro de RAZ pour ces feuilles
G12: CHECK LIST
N13: Indique l'avancée du développement
B14: V 1.00 | E14: LIVRE DE BASE + ERRATA ECRAN DU MAîTRE
C15: ATTRIBUTS
D16: OK | E16: Prise en compte de l'ambiance pour les points d'attributs
D17: OK | E17: Répartition des points d'attributs dans la valeur de base des attributs principaux
D18: OK | E18: Insertion de la règle optionnelle pour les personnages féminins
D19: OK | E19: Prise en compte du type génétique pour les attributs principaux et PC
D20: OK | E20: Choix du nombre de PC aloué aux attributs principaux
D21: OK | E21: Gestion des coûts des augmentations des attributs
D22: OK | E22: Répartition des points d'attributs obtenus avec les PC en tant que modificateurs aux attributs principaux
D23: OK | E23: Calcul de l'âge en fonction des études, de l'expérience professionnelles, et de l'avantage Formation
D24: OK | E24: Prise en compte des effets de l'âge sur les attributs principaux
D25: OK | E25: Insertion de la règle optionnelle pour les personnages jeunes
D26: OK | E26: Prise en compte des mutations pour les attributs principaux
D27: OK | E27: Prise en compte des avantages professionnels pour les attributs principaux
D28: OK | E28: Calcul des attributs secondaires et optionnels
D29: OK | E29: Prise en compte des mutations pour les attributs secondaires et optionnels
D30: OK | E30: Prise en compte des avantages/désavantages pour les attributs secondaires et optionnels
D31: OK | E31: Calcul du poids transportable
D32: OK | E32: Calcul de la vitesse de déplacement y compris sous l'eau
D33: OK | E33: Calcul final des attributs principaux, secondaires et optionnels
D34: OK | E34: Calcul des modificateurs d'aptitudes naturelles
D35: OK | E35: Bouton RAZ pour la répartition des valeurs de base des attributs
D36: OK | E36: Bouton RAZ pour la répartition des points de création aux attributs
D37: OK | E37: Bouton RAZ pour la page entière
C38: TYPE GENETIQUE
D39: OK | E39: Table des avantages/désavantages des types génétiques consultable
C40: CAPACITES SPECIALES
D41: OK | E41: Table des mutations consultable
D42: OK | E42: Choix des mutations (jusqu'à 6)
D43: OK | E43: Choix des mutations à coût réduit pour les mutations Caractère géné. Animal
D44: OK | E44: Choix des mutations gratuites (1 à 4) pour les mutations Parasites et Symbiotes
D45: OK | E45: Insertion de la règle optionnelle des mutations aléatoires (PC = 0)
D46: OK | E46: Prise en compte de la mutation Empathie offerte via un avantage professionnel aléatoire
D47: OK | E47: Gestion de la Force Polaris avec tirages automatiques et achetables
D48: OK | E48: Gestion du coût en PC
D49: OK | E49: Bouton RAZ pour la page entière
C50: EXPERIENCE PRELIMINAIRE
D51: OK | E51: Choix du nombre de PC aloué à l'expérience professionnelle
D52: OK | E52: Choix de l'origine géographique
D53: OK | E53: Choix de l'origine sociale + sélection spécialités pour certaines
D54: OK | E54: Choix de la formation de base + sélection spécialités pour certaines
D55: OK | E55: Choix des études supérieures (jusqu'à 4) + sélection spécialités pour certaines
D56: OK | E56: Choix des professions et nombre d'années pour chacunes d'elles
D57: OK | E57: Insertion de la règle optionelle des compétences naturelles
D58: OK | E58: Valeurs de base pour les compétences naturelles Langue maternelle et Connaissance d'une nation (Pays d'origine)
D59: OK | E59: Prise en compte de l'avantage Bilingue
D60: OK | E60: Répartition des points de la formation de base Autodidacte
D61: OK | E61: Gestion des coûts des augmentations des compétences
D62: OK | E62: Gestion des compétences de classe/hors classe (choix perso : certains "ou" disparaîssent)
D63: OK | E63: Gestion des compétences de classe des Prêtres du Trident en fonction des années de service
D64: OK | E64: Gestion de la compétence Hybride en fonction du type génétique et de l'avantage Amphibie
D65: OK | E65: Gestion des compétences de classe dues aux formations d'origines
D66: OK | E66: Gestion des compétences de classe dues aux mutations
D67: OK | E67: Gestion des compétences de classe dues aux avantages professionnels aléatoires (Formation et Ordonnateurs)
D68: OK | E68: Ajout manuel de modificateurs de compétences naturelles pour la première profession (si niv. maîtrise <= 5)
D69: OK | E69: Répartition des points de compétences en tant que modificateurs pour les compétences de la première profession
D70: OK | E70: Ajout manuel de modificateurs de compétences naturelles pour la seconde profession (si niv. maîtrise <= 5)
D71: OK | E71: Répartition des points de compétences en tant que modificateurs pour les compétences de la seconde profession
D72: OK | E72: Ajout manuel de modificateurs de compétences naturelles pour la troisième profession (si niv. maîtrise <= 5)
D73: OK | E73: Répartition des points de compétences en tant que modificateurs pour les compétences de la troisième profession
D74: OK | E74: Ajout manuel de modificateurs de compétences naturelles pour la quatrième profession (si niv. maîtrise <= 5)
D75: OK | E75: Répartition des points de compétences en tant que modificateurs pour les compétences de la quatrième profession
D76: OK | E76: Prise en compte des bonus de mutations
D77: OK | E77: Gestion des points fournis par l'avantage Formation
D78: OK | E78: Gestion des points fournis par les avantages professionnels aléatoires
D79: OK | E79: Gestion des choix des compétences de classes pour certaines professions (connaissances, langues etc…)
D80: OK | E80: Insertion de la règle optionnelle du niveau maximum des compétences
D81: OK | E81: Calcul final du degré de maîtrise des compétences
D82: OK | E82: Prise en compte des aptitudes naturelles
D83: OK | E83: Calcul final des compétences
D84: OK | E84: Bouton RAZ pour les origines/formations
D85: OK | E85: Bouton RAZ pour les études supérieures
D86: OK | E86: Bouton RAZ pour les professions
D87: OK | E87: Bouton RAZ pour la répartition des points d'Autodidacte
D88: OK | E88: Bouton RAZ pour la répartition des bonus de compétences naturelles x4
D89: OK | E89: Bouton RAZ pour la répartition des bonus de compétences des professions x4
D90: OK | E90: Bouton RAZ pour la répartition des bonus de compétences de l'avantage Formation
D91: OK | E91: Bouton RAZ pour la page entière
C92: AVANTAGES PROFESSIONNELS
D93: OK | E93: Calcul des économies par rapport aux années passées dans chaque profession
D94: OK | E94: Prise en compte d'un refus de revers sur les économies
D95: OK | E95: Prise en compte des bonus économiques annuels et pluri-annuels des avantages professionnels aléatoires
D96: OK | E96: Prise en compte de l'avantage Argent supplémentaire
D97: OK | E97: Prise en compte de l'avantage Fausse identité (vu avec Cyrull)
D98: OK | E98: Gestion spécifique des économies et titres pour les officiers sortis des rangs, et passant des forces régulières à élites
D99: OK | E99: Gestion des dettes (vu avec Cyrull)
D100: OK | E100: Calcul des points d'avantages pro. par rapport aux années passées dans chaque profession
D101: OK | E101: Modification des points d'avantages pro. si choix d'un avantage pro. aléatoire (tout les 5 ans dans la profession), et si résultat = 10
D102: OK | E102: Modification des points d'avantages pro. si choix d'un revers, et si refus de ce revers
D103: OK | E103: Insertion de la règle optionnelle des revers automatiques pour personnages expérimentés
D104: OK | E104: Gestion des coûts des augmentations de Célébrité (coûts attributs) et de d'autres avantages (coûts compétences)
D105: OK | E105: Prise en compte des années d'études supérieures sur les points de Célébrité
D106: OK | E106: Gestion des avantages professionnels de classe
D107: OK | E107: Répartition des points d'avantages pro.
D108: OK | E108: Transformation d'Opposants en Ennemis
D109: OK | E109: Répartition des points de Relations
D110: OK | E110: Prise en compte des bonus des avantages pro. aléatoires
D111: OK | E111: Prise en compte des bonus des avantages/désavantages
D112: OK | E112: Calcul final des avantages professionnels
D113: OK | E113: Boutons RAZ
C114: AVANTAGES/DESAVANTAGES
D115: OK | E115: Table des avantages/désavantages consultable
D116: OK | E116: Ajout de l'avantage Unité pour la profession Ouvrier/Docker (vu avec Cyrull)
D117: OK | E117: Choix des avantages/désavantages (jusqu'à 6 de chacun)
D118: OK | E118: Gestion du coût en PC
D119: OK | E119: Bouton RAZ pour la page entière
G122: PROJECT
N123: Défini les prochains ajouts souhaités
C124: REVERS ?
E125: Gestion des revers, avec impact sur salaire, relations, santé et attributs ?
C126: EQUIPEMENTS
E127: Gestion des économies (coût des équipements à rentrer manuellement)
E128: Gestion du poids pour les équipements transportés (poids des équipements à rentrer manuellement)
E129: Prise en compte des effets permanents d'équipement (type implants) pour les attributs
E130: Coût gratuit de certains équipements en fonction des professions (à rentrer manuellement)
E131: Indication des valeurs de dégâts, voire des autres caractéristiques (à rentrer manuellement)
C132: AUTRE(S) ONGLET(S) ?
E133: Feuille de personnage simplifiée pour PNJ ?
C135: V 2.0 | E135: Ajout des éléments de création de personnage du livre Guide Technique
C136: V 3.0 | E136: Ajout des éléments de création de personnage du livre Univers
N139: Patrice "Estheral" Piron
N140: Merci à la communauté active du forum officiel, et particulièrement à Cyrull, alias Philippe Tessier, pour la création de cet univers et sa disponibilité

Sheet ATTRIBUTS
I2: << Légende _
AA3: Ambiance | AB3: Points | AC3: Chance
A4: TROISIEME EDITION | K4: Cellules à compléter / Sélection à faire dans le menu déroulant | AA4: Réaliste | AB4: 30 | AC4: 11 | AD4: Oui
AA5: Intermédiaire | AB5: 38 | AC5: 13 | AD5: Non
K6: Passer la souris au dessus de ce symbole pour afficher un commentaire | AA6: Héroïque | AB6: 46 | AC6: 15
BN9: Allure | BT9: Allure sous l'eau
H10: Attributs principaux | BG10: CON ou | BY10: Humain | BZ10: Humain | CA10: Humain | CB10: Humain | CC10: Techno-H | CD10: Techno-H | CE10: Techno-H | CF10: Techno-H | CG10: Hybride | CH10: Hybride | CI10: Hybride | CJ10: Hybride
B11: Sexe | D11: Femme | I11: Force | K11: Constitution | M11: Coordination | O11: Adaptation | Q11: Perception | S11: Intelligence | U11: Volonté | W11: Présence | AA11: lvl | AB11: Coût | AC11: Sexe | AE11: Type génétique | AF11: Force | AG11: Constitution | AH11: Coordinaton | AI11: Adaptation | AJ11: Perception | AK11: Intelligence | AL11: Volonté | AM11: Présence | AN11: PC | AO11: lvl | AP11: Apt. Nat. | AR11: Age | AS11: Total | AT11: Force | AU11: Constitution | AV11: Coordinaton | AW11: Adaptation | AX11: Perception | AY11: Intelligence | AZ11: Volonté | BA11: Présence | BC11: FOR | BD11: Modif CAC | BE11: FOR+CON | BF11: Resist DOM | BG11: (CON+VOL)/2 | BH11: Resist NAT | BJ11: FOR | BL11: Poids | BN11: COO/Athlétisme | BO11: Lente | BP11: Moyenne | BQ11: Rapide | BR11: Max | BT11: COO/Athlétisme | BU11: Lente | BV11: Moyenne | BW11: Rapide | BX11: Max | BY11: Lente | BZ11: Moyenne | CA11: Rapide | CB11: Max | CC11: Lente | CD11: Moyenne | CE11: Rapide | CF11: Max | CG11: Lente | CH11: Moyenne | CI11: Rapide | CJ11: Max
B12: Type génétique | D12: Humain | H12: Valeur de base | I12: 7 | J12: =VLOOKUP(I12,$AA$12:$AB$32,2,) -> 0 | K12: 7 | L12: =VLOOKUP(K12,$AA$12:$AB$32,2,) -> 0 | M12: 7 | N12: =VLOOKUP(M12,$AA$12:$AB$32,2,) -> 0 | O12: 7 | P12: =VLOOKUP(O12,$AA$12:$AB$32,2,) -> 0 | Q12: 7 | R12: =VLOOKUP(Q12,$AA$12:$AB$32,2,) -> 0 | S12: 7 | T12: =VLOOKUP(S12,$AA$12:$AB$32,2,) -> 0 | U12: 7 | V12: =VLOOKUP(U12,$AA$12:$AB$32,2,) -> 0 | W12: 7 | X12: =VLOOKUP(W12,$AA$12:$AB$32,2,) -> 0 | Y12: =J12+L12+N12+P12+R12+T12+V12+X12 -> 0 | AA12: 0 | AB12: -7 | AC12: Homme | AE12: Humain | AF12: 0 | AG12: 0 | AH12: 0 | AI12: 0 | AJ12: 0 | AK12: 0 | AL12: 0 | AM12: 0 | AN12: 0 | AO12: 0 | AP12: Injouable | AQ12: 0 | AR12: 16 | AS12: -5 | AT12: -3 | AU12: 0 | AV12: 0 | AW12: 0 | AX12: 0 | AY12: 0 | AZ12: 0 | BA12: -2 | BC12: 1 | BD12: -6 | BE12: 2 | BF12: 6 | BG12: 1 | BH12: 6 | BJ12: 1 | BK12: 5 | BL12: =BJ12*5 -> 5 | BN12: 0 | BO12: 0 | BP12: 0 | BQ12: 0 | BR12: 0 | BT12: 0 | BU12: 0 | BV12: 0 | BW12: 0 | BX12: 0 | BY12: 0 | BZ12: 0 | CA12: 0 | CB12: 0 | CC12: 0 | CD12: 0 | CE12: 0 | CF12: 0 | CG12: 0 | CH12: 0 | CI12: 0 | CJ12: 0
H13: Modif. Sexe | I13: =IF(AND(D11="Femme",D15="Oui"),-2,0) -> 0 | K13: 0 | M13: =IF(AND(D11="Femme",D15="Oui"),2-W13,0) -> 0 | O13: 0 | Q13: 0 | S13: 0 | U13: 0 | W13: 0 | AA13: 1 | AB13: -6 | AC13: Femme | AE13: Néo-hybride (hybride naturel) | AF13: 1 | AG13: 2 | AH13: 2 | AI13: 1 | AJ13: 0 | AK13: -2 | AL13: 0 | AM13: 0 | AN13: 5 | AO13: 1 | AP13: Injouable | AQ13: -1 | AR13: 17 | AS13: -5 | AT13: -3 | AU13: 0 | AV13: 0 | AW13: 0 | AX13: 0 | AY13: 0 | AZ13: 0 | BA13: -2 | BC13: 2 | BD13: -6 | BE13: 3 | BF13: 6 | BG13: 2 | BH13: 6 | BJ13: 2 | BK13: 5 | BL13: =BL12+BK13 -> 10 | BN13: 1 | BO13: =BP13/2 -> 3 | BP13: 6 | BQ13: =BP13*2 -> 12 | BR13: 24 | BT13: 1 | BU13: =IF($D$12="Humain",BY13,IF($D$12="Néo-hybride (hybride naturel)",CG13,IF($D$12="Géno-hybride",CG13,CC13))) -> 0.5 | BV13: =IF($D$12="Humain",BZ13,IF($D$12="Néo-hybride (hybride naturel)",CH13,IF($D$12="Géno-hybride",CH13,CD13))) -> 1 | BW13: 2 | BX13: 3 | BY13: =BZ13/2 -> 0.5 | BZ13: 1 | CA13: =BZ13*2 -> 2 | CB13: =BZ13*3 -> 3 | CC13: =CD13/2 -> 2 | CD13: 4 | CE13: =CD13*2 -> 8 | CF13: =CD13*4 -> 16 | CG13: =CH13/2 -> 3 | CH13: 6 | CI13: =CH13*2 -> 12 | CJ13: 24
H14: Modif. Type Géné. | I14: =VLOOKUP($D$12,$AE$12:$AM$16,2,) -> 0 | J14: =VLOOKUP(I12+I13+I14,$AA$12:$AB$32,2) -> 0 | K14: =VLOOKUP($D$12,$AE$12:$AM$16,3,) -> 0 | L14: =VLOOKUP(K12+K13+K14,$AA$12:$AB$32,2) -> 0 | M14: =VLOOKUP($D$12,$AE$12:$AM$16,4,) -> 0 | N14: =VLOOKUP(M12+M13+M14,$AA$12:$AB$32,2) -> 0 | O14: =VLOOKUP($D$12,$AE$12:$AM$16,5,) -> 0 | P14: =VLOOKUP(O12+O13+O14,$AA$12:$AB$32,2) -> 0 | Q14: =VLOOKUP($D$12,$AE$12:$AM$16,6,) -> 0 | R14: =VLOOKUP(Q12+Q13+Q14,$AA$12:$AB$32,2) -> 0 | S14: =VLOOKUP($D$12,$AE$12:$AM$16,7,) -> 0 | T14: =VLOOKUP(S12+S13+S14,$AA$12:$AB$32,2) -> 0 | U14: =VLOOKUP($D$12,$AE$12:$AM$16,8,) -> 0 | V14: =VLOOKUP(U12+U13+U14,$AA$12:$AB$32,2) -> 0 | W14: =VLOOKUP($D$12,$AE$12:$AM$16,9,) -> 0 | X14: =IF(D15="Oui",VLOOKUP(W12+W13+W14,$AA$12:$AB$32,2),VLOOKUP(W12+W14,$AA$12:$AB$32,2)) -> 0 | AA14: 2 | AB14: -5 | AC14: Androgyne | AE14: Géno-hybride | AF14: 1 | AG14: 1 | AH14: 2 | AI14: 0 | AJ14: 0 | AK14: 0 | AL14: 0 | AM14: -2 | AN14: 5 | AO14: 2 | AP14: Injouable | AQ14: -2 | AR14: 18 | AS14: -3 | AT14: -2 | AU14: 0 | AV14: 0 | AW14: 0 | AX14: 0 | AY14: 0 | AZ14: 0 | BA14: -1 | BC14: 3 | BD14: -4 | BE14: 4 | BF14: 6 | BG14: 3 | BH14: 4 | BJ14: 3 | BK14: 5 | BL14: =BL13+BK14 -> 15 | BN14: 2 | BO14: =BP14/2 -> 3 | BP14: 6 | BQ14: 12 | BR14: 24 | BT14: 2 | BU14: =IF($D$12="Humain",BY14,IF($D$12="Néo-hybride (hybride naturel)",CG14,IF($D$12="Géno-hybride",CG14,CC14))) -> 0.5 | BV14: 1 | BW14: 2 | BX14: 3 | BY14: =BZ14/2 -> 0.5 | BZ14: 1 | CA14: 2 | CB14: =BZ14*3 -> 3 | CC14: =CD14/2 -> 2 | CD14: 4 | CE14: 8 | CF14: =CD14*4 -> 16 | CG14: =CH14/2 -> 3 | CH14: 6 | CI14: 12 | CJ14: 24
C15: Règle optionnelle : Perso. féminin | D15: Non | H15: Modif. Pts Création | I15: 0 | J15: =VLOOKUP(I12+I13+I14+I15,$AA$12:$AB$32,2)-J14 -> 0 | K15: 0 | L15: =VLOOKUP(K12+K13+K14+K15,$AA$12:$AB$32,2)-L14 -> 0 | M15: 0 | N15: =VLOOKUP(M12+M13+M14+M15,$AA$12:$AB$32,2)-N14 -> 0 | O15: 0 | P15: =VLOOKUP(O12+O13+O14+O15,$AA$12:$AB$32,2)-P14 -> 0 | Q15: 0 | R15: =VLOOKUP(Q12+Q13+Q14+Q15,$AA$12:$AB$32,2)-R14 -> 0 | S15: 0 | T15: =VLOOKUP(S12+S13+S14+S15,$AA$12:$AB$32,2)-T14 -> 0 | U15: 0 | V15: =VLOOKUP(U12+U13+U14+U15,$AA$12:$AB$32,2)-V14 -> 0 | W15: 0 | X15: =IF(D15="Oui",VLOOKUP(W12+W13+W14+W15,$AA$12:$AB$32,2)-X14,VLOOKUP(W12+W14+W15,$AA$12:$AB$32,2)-X14) -> 0 | Y15: =J15+L15+N15+P15+R15+T15+V15+X15 -> 0 | AA15: 3 | AB15: -4 | AE15: Techno-hybride | AF15: 2 | AG15: 3 | AH15: 0 | AI15: -2 | AJ15: 0 | AK15: 0 | AL15: 3 | AM15: -6 | AN15: 5 | AO15: 3 | AP15: -4 | AQ15: -3 | AR15: 19 | AS15: -1 | AT15: -1 | AU15: 0 | AV15: 0 | AW15: 0 | AX15: 0 | AY15: 0 | AZ15: 0 | BA15: 0 | BC15: 4 | BD15: -4 | BE15: 5 | BF15: 6 | BG15: 4 | BH15: 4 | BJ15: 4 | BK15: 5 | BL15: 20 | BN15: 3 | BO15: =BP15/2 -> 3 | BP15: 6 | BQ15: 12 | BR15: 24 | BT15: 3 | BU15: =IF($D$12="Humain",BY15,IF($D$12="Néo-hybride (hybride naturel)",CG15,IF($D$12="Géno-hybride",CG15,CC15))) -> 0.5 | BV15: 1 | BW15: 2 | BX15: 3 | BY15: =BZ15/2 -> 0.5 | BZ15: 1 | CA15: 2 | CB15: =BZ15*3 -> 3 | CC15: =CD15/2 -> 2 | CD15: 4 | CE15: 8 | CF15: =CD15*4 -> 16 | CG15: =CH15/2 -> 3 | CH15: 6 | CI15: 12 | CJ15: 24
H16: Modif. Age | I16: =IF(AND(D35="Oui",D37<20),VLOOKUP(D37,AR12:BA15,3,),IF(D37>29,E39,0)) -> 0 | K16: =IF(D37>29,E40,0) -> 0 | M16: =IF(D37>29,E41,0) -> 0 | O16: =IF(D37>29,E42,0) -> 0 | Q16: =IF(D37>29,E43,0) -> 0 | S16: 0 | U16: 0 | W16: =IF(AND(D35="Oui",D37<20),VLOOKUP(D37,AR12:BA15,10,),0) -> 0 | AA16: 4 | AB16: -3 | AE16: Techno-hybride, déserteur | AF16: 2 | AG16: 3 | AH16: 0 | AI16: -2 | AJ16: 0 | AK16: 0 | AL16: 3 | AM16: -6 | AN16: 4 | AO16: 4 | AP16: -3 | AQ16: -4 | AR16: 20 | AS16: 0 | AT16: 0 | AU16: 0 | AV16: 0 | AW16: 0 | AX16: 0 | AY16: 0 | AZ16: 0 | BA16: 0 | BC16: 5 | BD16: -2 | BE16: 6 | BF16: 4 | BG16: 5 | BH16: 2 | BJ16: 5 | BK16: 5 | BL16: 25 | BN16: 4 | BO16: =BP16/2 -> 3 | BP16: 6 | BQ16: 12 | BR16: 24 | BT16: 4 | BU16: =IF($D$12="Humain",BY16,IF($D$12="Néo-hybride (hybride naturel)",CG16,IF($D$12="Géno-hybride",CG16,CC16))) -> 0.5 | BV16: =IF($D$12="Humain",BZ16,IF($D$12="Néo-hybride (hybride naturel)",CH16,IF($D$12="Géno-hybride",CH16,CD16))) -> 1 | BW16: =IF($D$12="Humain",CA16,IF($D$12="Néo-hybride (hybride naturel)",CI16,IF($D$12="Géno-hybride",CI16,CE16))) -> 2 | BX16: =IF($D$12="Humain",CB16,IF($D$12="Néo-hybride (hybride naturel)",CJ16,IF($D$12="Géno-hybride",CJ16,CF16))) -> 3 | BY16: =BZ16/2 -> 0.5 | BZ16: 1 | CA16: 2 | CB16: =BZ16*3 -> 3 | CC16: =CD16/2 -> 2 | CD16: 4 | CE16: 8 | CF16: =CD16*4 -> 16 | CG16: =CH16/2 -> 3 | CH16: 6 | CI16: =CH16*2 -> 12 | CJ16: 24
H17: Modif. Mutations | I17: =CAPACITES_SPECIALES!O142 -> 0 | K17: =CAPACITES_SPECIALES!P142 -> 0 | M17: =CAPACITES_SPECIALES!Q142 -> 0 | O17: 0 | Q17: 0 | S17: 0 | U17: 0 | W17: =CAPACITES_SPECIALES!R142 -> 0 | AA17: 5 | AB17: -2 | AO17: 5 | AP17: -2 | AR17: 21 | AS17: 0 | AT17: 0 | AU17: 0 | AV17: 0 | AW17: 0 | AX17: 0 | AY17: 0 | AZ17: 0 | BA17: 0 | BC17: 6 | BD17: -2 | BE17: 7 | BF17: 4 | BG17: 6 | BH17: 2 | BJ17: 6 | BK17: 5 | BL17: 30 | BN17: 5 | BO17: 3 | BP17: 6 | BQ17: 12 | BR17: 24 | BT17: 5 | BU17: 0.5 | BV17: 1 | BW17: 2 | BX17: 3 | BY17: 0.5 | BZ17: 1 | CA17: 2 | CB17: 3 | CC17: 2 | CD17: 4 | CE17: 8 | CF17: 16 | CG17: 3 | CH17: 6 | CI17: 12 | CJ17: 24
B18: Ambiance | D18: Intermédiaire | H18: Modif. Av. Pro. | I18: =AVANTAGES_PROFESSIONNELS!CG557 -> 0 | J18: =AVANTAGES_PROFESSIONNELS!CH557 -> 0 | K18: =AVANTAGES_PROFESSIONNELS!CH557 -> 0 | L18: =AVANTAGES_PROFESSIONNELS!CJ557 -> 0 | M18: =AVANTAGES_PROFESSIONNELS!CI557 -> 0 | N18: =AVANTAGES_PROFESSIONNELS!CL557 -> 0 | O18: =AVANTAGES_PROFESSIONNELS!CJ557 -> 0 | P18: =AVANTAGES_PROFESSIONNELS!CN557 -> 0 | Q18: =AVANTAGES_PROFESSIONNELS!CK557 -> 0 | R18: =AVANTAGES_PROFESSIONNELS!CP557 -> 0 | S18: =AVANTAGES_PROFESSIONNELS!CL557 -> 0 | T18: =AVANTAGES_PROFESSIONNELS!CR557 -> 0 | U18: =AVANTAGES_PROFESSIONNELS!CM557 -> 0 | V18: =AVANTAGES_PROFESSIONNELS!CT557 -> 0 | W18: =AVANTAGES_PROFESSIONNELS!CN557 -> 0 | AA18: 6 | AB18: -1 | AO18: 6 | AP18: -1 | AR18: 22 | AS18: 0 | AT18: 0 | AU18: 0 | AV18: 0 | AW18: 0 | AX18: 0 | AY18: 0 | AZ18: 0 | BA18: 0 | BC18: 7 | BD18: -1 | BE18: 8 | BF18: 4 | BG18: 7 | BH18: 1 | BJ18: 7 | BK18: 5 | BL18: 35 | BN18: 6 | BO18: 4 | BP18: 8 | BQ18: 16 | BR18: 32 | BT18: 6 | BU18: 1 | BV18: 2 | BW18: 4 | BX18: 6 | BY18: 1 | BZ18: 2 | CA18: 4 | CB18: 6 | CC18: 3 | CD18: 6 | CE18: 12 | CF18: 24 | CG18: 4 | CH18: 8 | CI18: 16 | CJ18: 32
B19: Points disponibles | D19: =VLOOKUP(D18,AA4:AB6,2,) -> 38 | H19: Valeur finale | I19: =IF(SUM(I12:I18)<3,3,SUM(I12:I18)) -> 7 | J19: =IF(SUM(J12:J18)<3,3,SUM(J12:J18)) -> 3 | K19: 7 | L19: 3 | M19: 7 | N19: 3 | O19: 7 | P19: 3 | Q19: 7 | R19: 3 | S19: 7 | T19: 3 | U19: 7 | V19: 3 | W19: =IF(SUM(W12:W18)<3,3,SUM(W12:W18)) -> 7 | AA19: 7 | AB19: 0 | AE19: Athlétisme | AO19: 7 | AP19: -1 | AR19: 23 | AS19: 0 | AT19: 0 | AU19: 0 | AV19: 0 | AW19: 0 | AX19: 0 | AY19: 0 | AZ19: 0 | BA19: 0 | BC19: 8 | BD19: -1 | BE19: 9 | BF19: 4 | BG19: 8 | BH19: 1 | BJ19: 8 | BK19: 5 | BL19: 40 | BN19: 7 | BO19: 4 | BP19: 8 | BQ19: 16 | BR19: 32 | BT19: 7 | BU19: 1 | BV19: 2 | BW19: 4 | BX19: 6 | BY19: 1 | BZ19: 2 | CA19: 4 | CB19: 6 | CC19: 3 | CD19: 6 | CE19: 12 | CF19: 24 | CG19: 4 | CH19: 8 | CI19: 16 | CJ19: 32
B20: Pts restants | D20: =D19-Y12 -> 38 | H20: Apt. Naturelles | I20: =VLOOKUP(I19,$AO$12:$AP$37,2,) -> -1 | K20: =VLOOKUP(K19,$AO$12:$AP$37,2,) -> -1 | M20: =VLOOKUP(M19,$AO$12:$AP$37,2,) -> -1 | O20: =VLOOKUP(O19,$AO$12:$AP$37,2,) -> -1 | Q20: =VLOOKUP(Q19,$AO$12:$AP$37,2,) -> -1 | S20: =VLOOKUP(S19,$AO$12:$AP$37,2,) -> -1 | U20: =VLOOKUP(U19,$AO$12:$AP$37,2,) -> -1 | W20: =VLOOKUP(W19,$AO$12:$AP$37,2,) -> -1 | AA20: 8 | AB20: =AB19+1 -> 1 | AE20: Hybride | AO20: 8 | AP20: 0 | AR20: 24 | AS20: 0 | AT20: 0 | AU20: 0 | AV20: 0 | AW20: 0 | AX20: 0 | AY20: 0 | AZ20: 0 | BA20: 0 | BC20: 9 | BD20: 0 | BE20: 10 | BF20: 2 | BG20: 9 | BH20: 0 | BJ20: 9 | BK20: 5 | BL20: 45 | BN20: 8 | BO20: 4 | BP20: 8 | BQ20: 16 | BR20: 32 | BT20: 8 | BU20: 1 | BV20: 2 | BW20: 4 | BX20: 6 | BY20: 1 | BZ20: 2 | CA20: 4 | CB20: 6 | CC20: 3 | CD20: 6 | CE20: 12 | CF20: 24 | CG20: 4 | CH20: 8 | CI20: 16 | CJ20: 32
D21: =IF(D20<0,"ERREUR","") ->  | I21: =IF((I12+I13)>20,"ERREUR",IF((I12+I13+I14)<3,"ERREUR",IF((I12+I13+I15)>20,"ERREUR",IF((I12+I13+I14+I15+I16)<3,"ERREUR","")))) ->  | K21: =IF((K12+K13)>20,"ERREUR",IF((K12+K13+K14)<3,"ERREUR",IF((K12+K13+K15)>20,"ERREUR",IF((K12+K13+K14+K15+K16)<3,"ERREUR","")))) ->  | M21: =IF((M12+M13)>20,"ERREUR",IF((M12+M13+M14)<3,"ERREUR",IF((M12+M13+M15)>20,"ERREUR",IF((M12+M13+M14+M15+M16)<3,"ERREUR","")))) ->  | O21: =IF((O12+O13)>20,"ERREUR",IF((O12+O13+O14)<3,"ERREUR",IF((O12+O13+O15)>20,"ERREUR",IF((O12+O13+O14+O15+O16)<3,"ERREUR","")))) ->  | Q21: =IF((Q12+Q13)>20,"ERREUR",IF((Q12+Q13+Q14)<3,"ERREUR",IF((Q12+Q13+Q15)>20,"ERREUR",IF((Q12+Q13+Q14+Q15+Q16)<3,"ERREUR","")))) ->  | S21: =IF((S12+S13)>20,"ERREUR",IF((S12+S13+S14)<3,"ERREUR",IF((S12+S13+S15)>20,"ERREUR",IF((S12+S13+S14+S15+S16)<3,"ERREUR","")))) ->  | U21: =IF((U12+U13)>20,"ERREUR",IF((U12+U13+U14)<3,"ERREUR",IF((U12+U13+U15)>20,"ERREUR",IF((U12+U13+U14+U15+U16)<3,"ERREUR","")))) ->  | W21: =IF((W12+W13)>20,"ERREUR",IF((W12+W13+W14)<3,"ERREUR",IF((W12+W13+W15)>20,"ERREUR",IF((W12+W13+W14+W15+W16)<3,"ERREUR","")))) ->  | AA21: 9 | AB21: =AB20+1 -> 2 | AO21: 9 | AP21: 0 | AR21: 25 | AS21: 0 | AT21: 0 | AU21: 0 | AV21: 0 | AW21: 0 | AX21: 0 | AY21: 0 | AZ21: 0 | BA21: 0 | BC21: 10 | BD21: 0 | BE21: 11 | BF21: 2 | BG21: 10 | BH21: 0 | BJ21: 10 | BK21: 5 | BL21: 50 | BN21: 9 | BO21: 4 | BP21: 8 | BQ21: 16 | BR21: 32 | BT21: 9 | BU21: 1 | BV21: 2 | BW21: 4 | BX21: 6 | BY21: 1 | BZ21: 2 | CA21: 4 | CB21: 6 | CC21: 3 | CD21: 6 | CE21: 12 | CF21: 24 | CG21: 4 | CH21: 8 | CI21: 16 | CJ21: 32
AA22: 10 | AB22: 3 | AO22: 10 | AP22: 1 | AR22: 26 | AS22: 0 | AT22: 0 | AU22: 0 | AV22: 0 | AW22: 0 | AX22: 0 | AY22: 0 | AZ22: 0 | BA22: 0 | BC22: 11 | BD22: 0 | BE22: 12 | BF22: 2 | BG22: 11 | BH22: 0 | BJ22: 11 | BK22: 5 | BL22: 55 | BN22: 10 | BO22: 4 | BP22: 8 | BQ22: 16 | BR22: 32 | BT22: 10 | BU22: 1 | BV22: 2 | BW22: 4 | BX22: 6 | BY22: 1 | BZ22: 2 | CA22: 4 | CB22: 6 | CC22: 3 | CD22: 6 | CE22: 12 | CF22: 24 | CG22: 4 | CH22: 8 | CI22: 16 | CJ22: 32
B23: PC base | D23: 20 | H23: Attributs secondaires | AA23: 11 | AB23: 4 | AO23: 11 | AP23: 1 | AR23: 27 | AS23: 0 | AT23: 0 | AU23: 0 | AV23: 0 | AW23: 0 | AX23: 0 | AY23: 0 | AZ23: 0 | BA23: 0 | BC23: 12 | BD23: 1 | BE23: 13 | BF23: 2 | BG23: 12 | BH23: -1 | BJ23: 12 | BK23: 5 | BL23: 60 | BN23: 11 | BO23: 5 | BP23: 10 | BQ23: 20 | BR23: 40 | BT23: 11 | BU23: 1.5 | BV23: 3 | BW23: 6 | BX23: 9 | BY23: 1.5 | BZ23: 3 | CA23: 6 | CB23: 9 | CC23: 4 | CD23: 8 | CE23: 16 | CF23: 32 | CG23: 5 | CH23: 10 | CI23: 20 | CJ23: 40
B24: PC Attributs | D24: 0 | I24: Réaction | K24: Chance | M24: Modif. dommages c.à.c. | Q24: Résistance aux dommages | AA24: 12 | AB24: =AB23+1 -> 5 | AO24: 12 | AP24: 1 | AR24: 28 | AS24: 0 | AT24: 0 | AU24: 0 | AV24: 0 | AW24: 0 | AX24: 0 | AY24: 0 | AZ24: 0 | BA24: 0 | BC24: 13 | BD24: 1 | BE24: 14 | BF24: 1 | BG24: 13 | BH24: -1 | BJ24: 13 | BK24: 5 | BL24: 65 | BN24: 12 | BO24: 5 | BP24: 10 | BQ24: 20 | BR24: 40 | BT24: 12 | BU24: 1.5 | BV24: 3 | BW24: 6 | BX24: 9 | BY24: 1.5 | BZ24: 3 | CA24: 6 | CB24: 9 | CC24: 4 | CD24: 8 | CE24: 16 | CF24: 32 | CG24: 5 | CH24: 10 | CI24: 20 | CJ24: 40
B25: PC Type génétique | D25: =VLOOKUP(D12,AE12:AN16,10,) -> 0 | H25: Valeur calculée | I25: =ROUNDUP(((O19+Q19)/2)-0.5,0) -> 7 | K25: =VLOOKUP(D18,AA4:AC6,3,) -> 13 | M25: =VLOOKUP(I19,BC12:BD36,2,) -> -1 | Q25: =VLOOKUP(I19+K19,BE12:BF60,2,) -> 1 | AA25: 13 | AB25: 6 | AO25: 13 | AP25: 2 | AR25: 29 | AS25: 0 | AT25: 0 | AU25: 0 | AV25: 0 | AW25: 0 | AX25: 0 | AY25: 0 | AZ25: 0 | BA25: 0 | BC25: 14 | BD25: 2 | BE25: 15 | BF25: 1 | BG25: 14 | BH25: -2 | BJ25: 14 | BK25: 5 | BL25: 70 | BN25: 13 | BO25: 5 | BP25: 10 | BQ25: 20 | BR25: 40 | BT25: 13 | BU25: 1.5 | BV25: 3 | BW25: 6 | BX25: 9 | BY25: 1.5 | BZ25: 3 | CA25: 6 | CB25: 9 | CC25: 4 | CD25: 8 | CE25: 16 | CF25: 32 | CG25: 5 | CH25: 10 | CI25: 20 | CJ25: 40
B26: PC Capacités spé. | D26: =CAPACITES_SPECIALES!H37 -> 0 | H26: Modif. Mutations | I26: =CAPACITES_SPECIALES!S142 -> 0 | K26: 0 | M26: 0 | Q26: =CAPACITES_SPECIALES!T142 -> 0 | AA26: 14 | AB26: 7 | AO26: 14 | AP26: 2 | AR26: 30 | AS26: -1 | AT26: =AS26/3 -> -0.3333333333 | AU26: =AS26/3 -> -0.3333333333 | AV26: =AS26/3 -> -0.3333333333 | AW26: 0 | AX26: 0 | AY26: 0 | AZ26: 0 | BA26: 0 | BC26: 15 | BD26: 2 | BE26: 16 | BF26: 1 | BG26: 15 | BH26: -2 | BJ26: 15 | BK26: 5 | BL26: 75 | BN26: 14 | BO26: 5 | BP26: 10 | BQ26: 20 | BR26: 40 | BT26: 14 | BU26: 1.5 | BV26: 3 | BW26: 6 | BX26: 9 | BY26: 1.5 | BZ26: 3 | CA26: 6 | CB26: 9 | CC26: 4 | CD26: 8 | CE26: 16 | CF26: 32 | CG26: 5 | CH26: 10 | CI26: 20 | CJ26: 40
B27: PC Exp. préliminaire | D27: =EXPERIENCE_PRELIMINAIRE!E15 -> 0 | H27: Modif. Av./Desav. | I27: =AVANTAGES_DESAVANTAGES!O126 -> 0 | K27: 0 | M27: 0 | Q27: =AVANTAGES_DESAVANTAGES!P126 -> 0 | AA27: 15 | AB27: 8 | AO27: 15 | AP27: 2 | AR27: 31 | AS27: -1 | AT27: -0.3333333333 | AU27: -0.3333333333 | AV27: -0.3333333333 | AW27: 0 | AX27: 0 | AY27: 0 | AZ27: 0 | BA27: 0 | BC27: 16 | BD27: 3 | BE27: 17 | BF27: 1 | BG27: 16 | BH27: -3 | BJ27: 16 | BK27: 5 | BL27: 80 | BN27: 15 | BO27: 5 | BP27: 10 | BQ27: 20 | BR27: 40 | BT27: 15 | BU27: 1.5 | BV27: 3 | BW27: 6 | BX27: 9 | BY27: 1.5 | BZ27: 3 | CA27: 6 | CB27: 9 | CC27: 4 | CD27: 8 | CE27: 16 | CF27: 32 | CG27: 5 | CH27: 10 | CI27: 20 | CJ27: 40
B28: PC Avantages/Desav. | D28: =AVANTAGES_DESAVANTAGES!H26 -> 0 | H28: Valeur finale | I28: =SUM(I25:I27) -> 7 | K28: =SUM(K25:K27) -> 13 | M28: =SUM(M25:O27) -> -1 | Q28: =SUM(Q25:S27) -> 1 | AA28: 16 | AB28: =AB27+2 -> 10 | AO28: 16 | AP28: 3 | AR28: 32 | AS28: -1 | AT28: -0.3333333333 | AU28: -0.3333333333 | AV28: -0.3333333333 | AW28: 0 | AX28: 0 | AY28: 0 | AZ28: 0 | BA28: 0 | BC28: 17 | BD28: 3 | BE28: 18 | BF28: 0 | BG28: 17 | BH28: -3 | BJ28: 17 | BK28: 5 | BL28: 85 | BN28: 16 | BO28: 6 | BP28: 12 | BQ28: 24 | BR28: 48 | BT28: 16 | BU28: 2 | BV28: 4 | BW28: 8 | BX28: 12 | BY28: 2 | BZ28: 4 | CA28: 8 | CB28: 12 | CC28: 5 | CD28: 10 | CE28: 20 | CF28: 40 | CG28: 6 | CH28: 12 | CI28: 24 | CJ28: 48
B29: PC restants | D29: =D23-D24-D25-D26-D27-D28 -> 20 | AA29: 17 | AB29: =AB28+2 -> 12 | AO29: 17 | AP29: 3 | AR29: 33 | AS29: -1 | AT29: -0.3333333333 | AU29: -0.3333333333 | AV29: -0.3333333333 | AW29: 0 | AX29: 0 | AY29: 0 | AZ29: 0 | BA29: 0 | BC29: 18 | BD29: 4 | BE29: 19 | BF29: 0 | BG29: 18 | BH29: -4 | BJ29: 18 | BK29: 5 | BL29: 90 | BN29: 17 | BO29: 6 | BP29: 12 | BQ29: 24 | BR29: 48 | BT29: 17 | BU29: 2 | BV29: 4 | BW29: 8 | BX29: 12 | BY29: 2 | BZ29: 4 | CA29: 8 | CB29: 12 | CC29: 5 | CD29: 10 | CE29: 20 | CF29: 40 | CG29: 6 | CH29: 12 | CI29: 24 | CJ29: 48
D30: =IF(D29<0,"ERREUR","") ->  | I30: Résistance aux poisons | M30: Résistance aux maladies | Q30: Résistance aux radiations | U30: Résistance aux drogues | AA30: 18 | AB30: =AB29+2 -> 14 | AO30: 18 | AP30: 3 | AR30: 34 | AS30: -1 | AT30: -0.3333333333 | AU30: -0.3333333333 | AV30: -0.3333333333 | AW30: 0 | AX30: 0 | AY30: 0 | AZ30: 0 | BA30: 0 | BC30: 19 | BD30: 4 | BE30: 20 | BF30: 0 | BG30: 19 | BH30: -4 | BJ30: 19 | BK30: 5 | BL30: 95 | BN30: 18 | BO30: 6 | BP30: 12 | BQ30: 24 | BR30: 48 | BT30: 18 | BU30: 2 | BV30: 4 | BW30: 8 | BX30: 12 | BY30: 2 | BZ30: 4 | CA30: 8 | CB30: 12 | CC30: 5 | CD30: 10 | CE30: 20 | CF30: 40 | CG30: 6 | CH30: 12 | CI30: 24 | CJ30: 48
B31: Bonus Att. disponibles | D31: =D24*2 -> 0 | H31: Valeur calculée | I31: =VLOOKUP(K19,BG12:BH36,2,) -> 1 | M31: =VLOOKUP(K19,BG12:BH36,2,) -> 1 | Q31: =VLOOKUP(K19,BG12:BH36,2,) -> 1 | U31: =VLOOKUP(ROUNDUP(((K19+U19)/2)-0.5,0),BG12:BH36,2,) -> 1 | AA31: 19 | AB31: =AB30+3 -> 17 | AO31: 19 | AP31: 4 | AR31: 35 | AS31: -1 | AT31: -0.3333333333 | AU31: -0.3333333333 | AV31: -0.3333333333 | AW31: 0 | AX31: 0 | AY31: 0 | AZ31: 0 | BA31: 0 | BC31: 20 | BD31: 5 | BE31: 21 | BF31: 0 | BG31: 20 | BH31: -5 | BJ31: 20 | BK31: 5 | BL31: 100 | BN31: 19 | BO31: 6 | BP31: 12 | BQ31: 24 | BR31: 48 | BT31: 19 | BU31: 2 | BV31: 4 | BW31: 8 | BX31: 12 | BY31: 2 | BZ31: 4 | CA31: 8 | CB31: 12 | CC31: 5 | CD31: 10 | CE31: 20 | CF31: 40 | CG31: 6 | CH31: 12 | CI31: 24 | CJ31: 48
B32: Pts restants | D32: =D31-Y15 -> 0 | H32: Modif. Mutations | I32: =CAPACITES_SPECIALES!W142 -> 0 | M32: =CAPACITES_SPECIALES!V142 -> 0 | Q32: =CAPACITES_SPECIALES!X142 -> 0 | U32: =CAPACITES_SPECIALES!U142 -> 0 | AA32: 20 | AB32: =AB31+3 -> 20 | AO32: 20 | AP32: 4 | AR32: 36 | AS32: -2 | AT32: -0.6666666667 | AU32: -0.6666666667 | AV32: -0.6666666667 | AW32: 0 | AX32: 0 | AY32: 0 | AZ32: 0 | BA32: 0 | BC32: 21 | BD32: 5 | BE32: 22 | BF32: -1 | BG32: 21 | BH32: -5 | BJ32: 21 | BK32: 10 | BL32: 110 | BN32: 20 | BO32: 6 | BP32: 12 | BQ32: 24 | BR32: 48 | BT32: 20 | BU32: 2 | BV32: 4 | BW32: 8 | BX32: 12 | BY32: 2 | BZ32: 4 | CA32: 8 | CB32: 12 | CC32: 5 | CD32: 10 | CE32: 20 | CF32: 40 | CG32: 6 | CH32: 12 | CI32: 24 | CJ32: 48
D33: =IF(D32<0,"ERREUR","") ->  | H33: Modif. Av./Desav. | I33: =AVANTAGES_DESAVANTAGES!S126 -> 0 | M33: =AVANTAGES_DESAVANTAGES!R126 -> 0 | Q33: =AVANTAGES_DESAVANTAGES!T126 -> 0 | U33: =AVANTAGES_DESAVANTAGES!Q126 -> 0 | AO33: 21 | AP33: 4 | AR33: 37 | AS33: -2 | AT33: -0.6666666667 | AU33: -0.6666666667 | AV33: -0.6666666667 | AW33: 0 | AX33: 0 | AY33: 0 | AZ33: 0 | BA33: 0 | BC33: 22 | BD33: 6 | BE33: 23 | BF33: -1 | BG33: 22 | BH33: -6 | BJ33: 22 | BK33: 10 | BL33: 120 | BN33: 21 | BO33: 7 | BP33: 14 | BQ33: =BP33*2 -> 28 | BR33: 56 | BT33: 21 | BU33: 2.5 | BV33: 5 | BW33: 10 | BX33: 15 | BY33: 2.5 | BZ33: 5 | CA33: 10 | CB33: 15 | CC33: 6 | CD33: 12 | CE33: 24 | CF33: 48 | CG33: 7 | CH33: 14 | CI33: 28 | CJ33: 56
H34: Valeur finale | I34: =SUM(I31:K33) -> 1 | M34: =SUM(M31:O33) -> 1 | Q34: =SUM(Q31:S33) -> 1 | U34: =SUM(U31:W33) -> 1 | AO34: 22 | AP34: 5 | AR34: 38 | AS34: -2 | AT34: -0.6666666667 | AU34: -0.6666666667 | AV34: -0.6666666667 | AW34: 0 | AX34: 0 | AY34: 0 | AZ34: 0 | BA34: 0 | BC34: 23 | BD34: 6 | BE34: 24 | BF34: -1 | BG34: 23 | BH34: -6 | BJ34: 23 | BK34: 10 | BL34: 130 | BN34: 22 | BO34: 7 | BP34: 14 | BQ34: 28 | BR34: 56 | BT34: 22 | BU34: 2.5 | BV34: 5 | BW34: 10 | BX34: 15 | BY34: 2.5 | BZ34: 5 | CA34: 10 | CB34: 15 | CC34: 6 | CD34: 12 | CE34: 24 | CF34: 48 | CG34: 7 | CH34: 14 | CI34: 28 | CJ34: 56
C35: Règle optionnelle : Perso. très jeunes | D35: Non | AO35: 23 | AP35: 5 | AR35: 39 | AS35: -2 | AT35: -0.6666666667 | AU35: -0.6666666667 | AV35: -0.6666666667 | AW35: 0 | AX35: 0 | AY35: 0 | AZ35: 0 | BA35: 0 | BC35: 24 | BD35: 7 | BE35: 25 | BF35: -1 | BG35: 24 | BH35: -7 | BJ35: 24 | BK35: 10 | BL35: 140 | BN35: 23 | BO35: 7 | BP35: 14 | BQ35: 28 | BR35: 56 | BT35: 23 | BU35: 2.5 | BV35: 5 | BW35: 10 | BX35: 15 | BY35: 2.5 | BZ35: 5 | CA35: 10 | CB35: 15 | CC35: 6 | CD35: 12 | CE35: 24 | CF35: 48 | CG35: 7 | CH35: 14 | CI35: 28 | CJ35: 56
AO36: 24 | AP36: 5 | AR36: 40 | AS36: -2 | AT36: -0.6666666667 | AU36: -0.6666666667 | AV36: -0.6666666667 | AW36: 0 | AX36: 0 | AY36: 0 | AZ36: 0 | BA36: 0 | BC36: 25 | BD36: 7 | BE36: 26 | BF36: -2 | BG36: 25 | BH36: -7 | BJ36: 25 | BK36: 10 | BL36: 150 | BN36: 24 | BO36: 7 | BP36: 14 | BQ36: 28 | BR36: 56 | BT36: 24 | BU36: 2.5 | BV36: 5 | BW36: 10 | BX36: 15 | BY36: 2.5 | BZ36: 5 | CA36: 10 | CB36: 15 | CC36: 6 | CD36: 12 | CE36: 24 | CF36: 48 | CG36: 7 | CH36: 14 | CI36: =CH36*2 -> 28 | CJ36: 56
B37: Age | D37: =16+EXPERIENCE_PRELIMINAIRE!T16 -> 16 | H37: Attributs optionnels | AO37: 25 | AP37: 6 | AR37: 41 | AS37: -3 | AT37: =AS37/5 -> -0.6 | AU37: =AS37/5 -> -0.6 | AV37: =AS37/5 -> -0.6 | AW37: =AS37/5 -> -0.6 | AX37: =AS37/5 -> -0.6 | AY37: 0 | AZ37: 0 | BA37: 0 | BE37: 27 | BF37: -2 | BJ37: 26 | BK37: 10 | BL37: 160 | BN37: 25 | BO37: 7 | BP37: 14 | BQ37: 28 | BR37: 56 | BT37: 25 | BU37: 2.5 | BV37: 5 | BW37: 10 | BX37: 15 | BY37: 2.5 | BZ37: 5 | CA37: 10 | CB37: 15 | CC37: 6 | CD37: 12 | CE37: 24 | CF37: 48 | CG37: 7 | CH37: 14 | CI37: 28 | CJ37: 56
B38: Malus à répartir | D38: =IF(D37>19,VLOOKUP(D37,AR16:BA46,2,),0) -> 0 | I38: Résistance aux chocs | Q38: Souffle | AR38: 42 | AS38: -3 | AT38: -0.6 | AU38: -0.6 | AV38: -0.6 | AW38: -0.6 | AX38: -0.6 | AY38: 0 | AZ38: 0 | BA38: 0 | BE38: 28 | BF38: -2 | BJ38: 27 | BK38: 10 | BL38: 170 | BN38: 26 | BO38: 8 | BP38: 16 | BQ38: 32 | BR38: 64 | BT38: 26 | BU38: 3 | BV38: 6 | BW38: 12 | BX38: 18 | BY38: 3 | BZ38: 6 | CA38: 12 | CB38: 18 | CC38: 7 | CD38: 14 | CE38: 28 | CF38: 56 | CG38: 8 | CH38: 16 | CI38: 32 | CJ38: 64
C39: 30 ans et + | D39: FOR | E39: 0 | I39: Seuil d'étourdissement | M39: Seuil d'inconscience | AR39: 43 | AS39: -3 | AT39: -0.6 | AU39: -0.6 | AV39: -0.6 | AW39: -0.6 | AX39: -0.6 | AY39: 0 | AZ39: 0 | BA39: 0 | BE39: 29 | BF39: -2 | BJ39: 28 | BK39: 10 | BL39: 180 | BN39: 27 | BO39: 8 | BP39: 16 | BQ39: 32 | BR39: 64 | BT39: 27 | BU39: 3 | BV39: 6 | BW39: 12 | BX39: 18 | BY39: 3 | BZ39: 6 | CA39: 12 | CB39: 18 | CC39: 7 | CD39: 14 | CE39: 28 | CF39: 56 | CG39: 8 | CH39: 16 | CI39: 32 | CJ39: 64
C40: 30 ans et + | D40: CON | E40: 0 | H40: Valeur calculée | I40: =ROUNDUP(((I19+K19+U19)/3)-0.5,0) -> 7 | M40: =I40+10 -> 17 | Q40: =ROUNDUP(((K19+U19)/2)-0.5,0) -> 7 | AR40: 44 | AS40: -3 | AT40: -0.6 | AU40: -0.6 | AV40: -0.6 | AW40: -0.6 | AX40: -0.6 | AY40: 0 | AZ40: 0 | BA40: 0 | BE40: 30 | BF40: -3 | BJ40: 29 | BK40: 10 | BL40: 190 | BN40: 28 | BO40: 8 | BP40: 16 | BQ40: 32 | BR40: 64 | BT40: 28 | BU40: 3 | BV40: 6 | BW40: 12 | BX40: 18 | BY40: 3 | BZ40: 6 | CA40: 12 | CB40: 18 | CC40: 7 | CD40: 14 | CE40: 28 | CF40: 56 | CG40: 8 | CH40: 16 | CI40: 32 | CJ40: 64
C41: 30 ans et + | D41: COO | E41: 0 | H41: Modif. Mutations | I41: =CAPACITES_SPECIALES!Y142 -> 0 | Q41: 0 | AR41: 45 | AS41: -3 | AT41: -0.6 | AU41: -0.6 | AV41: -0.6 | AW41: -0.6 | AX41: -0.6 | AY41: 0 | AZ41: 0 | BA41: 0 | BE41: 31 | BF41: -3 | BJ41: 30 | BK41: 10 | BL41: 200 | BN41: 29 | BO41: 8 | BP41: 16 | BQ41: 32 | BR41: 64 | BT41: 29 | BU41: 3 | BV41: 6 | BW41: 12 | BX41: 18 | BY41: 3 | BZ41: 6 | CA41: 12 | CB41: 18 | CC41: 7 | CD41: 14 | CE41: 28 | CF41: 56 | CG41: 8 | CH41: 16 | CI41: 32 | CJ41: 64
C42: 41 ans et + | D42: ADA | E42: 0 | H42: Modif. Av./Desav. | I42: =AVANTAGES_DESAVANTAGES!U126 -> 0 | Q42: =AVANTAGES_DESAVANTAGES!V126 -> 0 | AR42: 46 | AS42: -4 | AT42: -0.8 | AU42: -0.8 | AV42: -0.8 | AW42: -0.8 | AX42: -0.8 | AY42: 0 | AZ42: 0 | BA42: 0 | BE42: 32 | BF42: -3 | BN42: 30 | BO42: 8 | BP42: 16 | BQ42: 32 | BR42: 64 | BT42: 30 | BU42: 3 | BV42: 6 | BW42: 12 | BX42: 18 | BY42: 3 | BZ42: 6 | CA42: 12 | CB42: 18 | CC42: 7 | CD42: 14 | CE42: 28 | CF42: 56 | CG42: 8 | CH42: 16 | CI42: 32 | CJ42: 64
C43: 41 ans et + | D43: PER | E43: 0 | H43: Valeur finale | I43: =SUM(I40:K42) -> 7 | M43: =I43+10 -> 17 | Q43: =SUM(Q40:S42) -> 7 | AR43: 47 | AS43: -4 | AT43: -0.8 | AU43: -0.8 | AV43: -0.8 | AW43: -0.8 | AX43: -0.8 | AY43: 0 | AZ43: 0 | BA43: 0 | BE43: 33 | BF43: -3 | BN43: 31 | BO43: 9 | BP43: 18 | BQ43: 36 | BR43: 72 | BT43: 31 | BU43: 3.5 | BV43: 7 | BW43: 14 | BX43: 21 | BY43: 3.5 | BZ43: 7 | CA43: 14 | CB43: 21 | CC43: 8 | CD43: 16 | CE43: 32 | CF43: 64 | CG43: 9 | CH43: 18 | CI43: 36 | CJ43: 72
E44: =IF((D38-E39-E40-E41-E42-E43)>0,"ERREUR","") ->  | AR44: 48 | AS44: -4 | AT44: -0.8 | AU44: -0.8 | AV44: -0.8 | AW44: -0.8 | AX44: -0.8 | AY44: 0 | AZ44: 0 | BA44: 0 | BE44: 34 | BF44: -4 | BN44: 32 | BO44: 9 | BP44: 18 | BQ44: 36 | BR44: 72 | BT44: 32 | BU44: 3.5 | BV44: 7 | BW44: 14 | BX44: 21 | BY44: 3.5 | BZ44: 7 | CA44: 14 | CB44: 21 | CC44: 8 | CD44: 16 | CE44: 32 | CF44: 64 | CG44: 9 | CH44: 18 | CI44: 36 | CJ44: 72
AR45: 49 | AS45: -4 | AT45: -0.8 | AU45: -0.8 | AV45: -0.8 | AW45: -0.8 | AX45: -0.8 | AY45: 0 | AZ45: 0 | BA45: 0 | BE45: 35 | BF45: -4 | BN45: 33 | BO45: 9 | BP45: 18 | BQ45: 36 | BR45: 72 | BT45: 33 | BU45: 3.5 | BV45: 7 | BW45: 14 | BX45: 21 | BY45: 3.5 | BZ45: 7 | CA45: =BZ45*2 -> 14 | CB45: 21 | CC45: 8 | CD45: 16 | CE45: =CD45*2 -> 32 | CF45: 64 | CG45: 9 | CH45: 18 | CI45: 36 | CJ45: 72
H46: Autres caractéristiques du personnage | AR46: 50 | AS46: -4 | AT46: -0.8 | AU46: -0.8 | AV46: -0.8 | AW46: -0.8 | AX46: -0.8 | AY46: 0 | AZ46: 0 | BA46: 0 | BE46: 36 | BF46: -4 | BN46: 34 | BO46: 9 | BP46: 18 | BQ46: 36 | BR46: 72 | BT46: 34 | BU46: 3.5 | BV46: 7 | BW46: 14 | BX46: 21 | BY46: 3.5 | BZ46: 7 | CA46: 14 | CB46: 21 | CC46: 8 | CD46: 16 | CE46: 32 | CF46: 64 | CG46: 9 | CH46: 18 | CI46: 36 | CJ46: 72
BE47: 37 | BF47: -4 | BN47: 35 | BO47: 9 | BP47: 18 | BQ47: 36 | BR47: 72 | BT47: 35 | BU47: 3.5 | BV47: 7 | BW47: 14 | BX47: 21 | BY47: 3.5 | BZ47: 7 | CA47: 14 | CB47: 21 | CC47: 8 | CD47: 16 | CE47: 32 | CF47: 64 | CG47: 9 | CH47: 18 | CI47: 36 | CJ47: 72
H48: Poids | BE48: 38 | BF48: -5 | BN48: 36 | BO48: 10 | BP48: 20 | BQ48: 40 | BR48: 80 | BT48: 36 | BU48: 4 | BV48: 8 | BW48: 16 | BX48: 24 | BY48: 4 | BZ48: 8 | CA48: 16 | CB48: 24 | CC48: 9 | CD48: 18 | CE48: 36 | CF48: 72 | CG48: 10 | CH48: 20 | CI48: 40 | CJ48: 80
H49: FOR | I49: Poids soulevable | BE49: 39 | BF49: -5 | BN49: 37 | BO49: 10 | BP49: 20 | BQ49: 40 | BR49: 80 | BT49: 37 | BU49: 4 | BV49: 8 | BW49: 16 | BX49: 24 | BY49: 4 | BZ49: 8 | CA49: 16 | CB49: 24 | CC49: 9 | CD49: 18 | CE49: 36 | CF49: 72 | CG49: 10 | CH49: 20 | CI49: 40 | CJ49: 80
H50: =I19 -> 7 | I50: =VLOOKUP(H50,BJ12:BL41,3,) -> 35 | M50: kg | BE50: 40 | BF50: -5 | BN50: 38 | BO50: 10 | BP50: 20 | BQ50: 40 | BR50: 80 | BT50: 38 | BU50: 4 | BV50: 8 | BW50: 16 | BX50: 24 | BY50: 4 | BZ50: 8 | CA50: 16 | CB50: 24 | CC50: 9 | CD50: 18 | CE50: 36 | CF50: 72 | CG50: 10 | CH50: 20 | CI50: 40 | CJ50: 80
BE51: 41 | BF51: -5 | BN51: 39 | BO51: 10 | BP51: 20 | BQ51: 40 | BR51: 80 | BT51: 39 | BU51: 4 | BV51: 8 | BW51: 16 | BX51: 24 | BY51: 4 | BZ51: 8 | CA51: 16 | CB51: 24 | CC51: 9 | CD51: 18 | CE51: 36 | CF51: 72 | CG51: 10 | CH51: 20 | CI51: 40 | CJ51: 80
H52: Allure | BE52: 42 | BF52: -6 | BN52: 40 | BO52: 10 | BP52: 20 | BQ52: 40 | BR52: 80 | BT52: 40 | BU52: 4 | BV52: 8 | BW52: 16 | BX52: 24 | BY52: 4 | BZ52: 8 | CA52: 16 | CB52: 24 | CC52: 9 | CD52: 18 | CE52: 36 | CF52: 72 | CG52: 10 | CH52: 20 | CI52: 40 | CJ52: 80
H53: COO | I53: Lente | M53: Moyenne | Q53: Rapide | BE53: 43 | BF53: -6 | BN53: 41 | BO53: 11 | BP53: 22 | BQ53: =BP53*2 -> 44 | BR53: 88 | BT53: 41 | BU53: 4.5 | BV53: 9 | BW53: 18 | BX53: 27 | BY53: 4.5 | BZ53: 9 | CA53: 18 | CB53: 27 | CC53: 10 | CD53: 20 | CE53: 40 | CF53: 80 | CG53: 11 | CH53: 22 | CI53: 44 | CJ53: 88
H54: =M19 -> 7 | I54: =VLOOKUP(H54,$BN$12:$BR$62,2,) -> 4 | M54: =VLOOKUP(H54,$BN$12:$BR$62,3,) -> 8 | Q54: =VLOOKUP(H54,$BN$12:$BR$62,4,) -> 16 | U54: m | BE54: 44 | BF54: -6 | BN54: 42 | BO54: 11 | BP54: 22 | BQ54: 44 | BR54: 88 | BT54: 42 | BU54: 4.5 | BV54: 9 | BW54: 18 | BX54: 27 | BY54: 4.5 | BZ54: 9 | CA54: 18 | CB54: 27 | CC54: 10 | CD54: 20 | CE54: 40 | CF54: 80 | CG54: 11 | CH54: 22 | CI54: 44 | CJ54: 88
H55: Athlétisme | I55: Max | BE55: 45 | BF55: -6 | BN55: 43 | BO55: 11 | BP55: 22 | BQ55: 44 | BR55: 88 | BT55: 43 | BU55: 4.5 | BV55: 9 | BW55: 18 | BX55: 27 | BY55: 4.5 | BZ55: 9 | CA55: 18 | CB55: 27 | CC55: 10 | CD55: 20 | CE55: 40 | CF55: 80 | CG55: 11 | CH55: 22 | CI55: 44 | CJ55: 88
H56: =EXPERIENCE_PRELIMINAIRE!W20 -> -2 | I56: =IF(H56<H54,VLOOKUP(H54,$BN$12:$BR$62,5,),VLOOKUP(H56,$BN$12:$BR$62,5,)) -> 32 | M56: m | BE56: 46 | BF56: -7 | BN56: 44 | BO56: 11 | BP56: 22 | BQ56: 44 | BR56: 88 | BT56: 44 | BU56: 4.5 | BV56: 9 | BW56: 18 | BX56: 27 | BY56: 4.5 | BZ56: 9 | CA56: 18 | CB56: 27 | CC56: 10 | CD56: 20 | CE56: 40 | CF56: 80 | CG56: 11 | CH56: 22 | CI56: =CH56*2 -> 44 | CJ56: 88
BE57: 47 | BF57: -7 | BN57: 45 | BO57: 11 | BP57: 22 | BQ57: 44 | BR57: 88 | BT57: 45 | BU57: 4.5 | BV57: 9 | BW57: 18 | BX57: 27 | BY57: 4.5 | BZ57: 9 | CA57: 18 | CB57: 27 | CC57: 10 | CD57: 20 | CE57: 40 | CF57: 80 | CG57: 11 | CH57: 22 | CI57: 44 | CJ57: 88
D58: Hybride naturel | H58: Allure sous l'eau | BE58: 48 | BF58: -7 | BN58: 46 | BO58: 12 | BP58: 24 | BQ58: 48 | BR58: 96 | BT58: 46 | BU58: 5 | BV58: 10 | BW58: 20 | BX58: 30 | BY58: 5 | BZ58: 10 | CA58: 20 | CB58: 30 | CC58: 11 | CD58: 22 | CE58: 44 | CF58: 88 | CG58: 12 | CH58: 24 | CI58: 48 | CJ58: 96
C59: Compétence utilisée sous l'eau | D59: Athlétisme | F59: =IF(AND(D12<>"Néo-hybride (hybride naturel)",D59="Hybride"),"ERREUR"," ") ->  | H59: COO | I59: Lente | M59: Moyenne | Q59: Rapide | BE59: 49 | BF59: -7 | BN59: 47 | BO59: 12 | BP59: 24 | BQ59: 48 | BR59: 96 | BT59: 47 | BU59: 5 | BV59: 10 | BW59: 20 | BX59: 30 | BY59: 5 | BZ59: 10 | CA59: 20 | CB59: 30 | CC59: 11 | CD59: 22 | CE59: 44 | CF59: 88 | CG59: 12 | CH59: 24 | CI59: 48 | CJ59: 96
H60: =M19 -> 7 | I60: =VLOOKUP(H60,$BT$12:$BX$62,2,) -> 1 | M60: =VLOOKUP(H60,$BT$12:$BX$62,3,) -> 2 | Q60: =VLOOKUP(H60,$BT$12:$BX$62,4,) -> 4 | U60: m | BE60: 50 | BF60: -8 | BN60: 48 | BO60: 12 | BP60: 24 | BQ60: 48 | BR60: 96 | BT60: 48 | BU60: 5 | BV60: 10 | BW60: 20 | BX60: 30 | BY60: 5 | BZ60: 10 | CA60: 20 | CB60: 30 | CC60: 11 | CD60: 22 | CE60: 44 | CF60: 88 | CG60: 12 | CH60: 24 | CI60: 48 | CJ60: 96
H61: =D59 -> Athlétisme | I61: Max | BN61: 49 | BO61: 12 | BP61: 24 | BQ61: 48 | BR61: 96 | BT61: 49 | BU61: 5 | BV61: 10 | BW61: 20 | BX61: 30 | BY61: 5 | BZ61: 10 | CA61: 20 | CB61: 30 | CC61: 11 | CD61: 22 | CE61: 44 | CF61: 88 | CG61: 12 | CH61: 24 | CI61: 48 | CJ61: 96
H62: =IF(D59="Athlétisme",EXPERIENCE_PRELIMINAIRE!W20,EXPERIENCE_PRELIMINAIRE!W247) -> -2 | I62: =IF(H62="X",VLOOKUP(H60,$BT$12:$BX$62,5,),IF(H62<H60,VLOOKUP(H60,$BT$12:$BX$62,5,),VLOOKUP(H62,$BT$12:$BX$62,5,))) -> 6 | M62: m | BN62: 50 | BO62: 12 | BP62: 24 | BQ62: 48 | BR62: 96 | BT62: 50 | BU62: 5 | BV62: 10 | BW62: 20 | BX62: 30 | BY62: 5 | BZ62: 10 | CA62: 20 | CB62: 30 | CC62: 11 | CD62: 22 | CE62: 44 | CF62: 88 | CG62: 12 | CH62: 24 | CI62: 48 | CJ62: 96

Sheet TYPE_GENETIQUE
J2: << Légende _
A4: TROISIEME EDITION | K4: Cellules à compléter / Sélection à faire dans le menu déroulant
K6: Passer la souris au dessus de ce symbole pour afficher un commentaire
U10: Néo-hybride (hybride naturel) | V10: Géno-hybride | W10: Techno-hybride | X10: Techno-hybride, déserteur | Y10: Humain | Z10: 1
B11: Type génétique | D11: =ATTRIBUTS!D12 -> Humain | J11: Compétence spéciale Hybride | L11: Niveau de maîtrise initial | P11: =HLOOKUP($D$11,$U$10:$Y$39,Z11,) -> X | U11: 3 | V11: 0 | W11: 0 | X11: 0 | Y11: =IF(CAPACITES_SPECIALES!AD142>0,-3,"X") -> X | Z11: 2 | AA11: Niv maîtrise | AF11: Géno-hybride | AG11: Techno-hybride | AH11: Techno-hybride, déserteur
L12: Développement à un coût | P12: =HLOOKUP($D$11,$U$10:$Y$39,Z12,) -> impossible | U12: normal | V12: =IF(AF16=1,"normal","doublé") -> doublé | W12: =IF(AG16=1,"normal","doublé") -> doublé | X12: =IF(AH16=1,"normal","doublé") -> doublé | Y12: =IF(Y11=-3,"doublé","impossible") -> impossible | Z12: 3 | AA12: =EXPERIENCE_PRELIMINAIRE!V247 -> -3 | AF12: =IF(EXPERIENCE_PRELIMINAIRE!E152="Hybride du Trident (Membre du GSI)",1,0) -> 0 | AG12: =IF(EXPERIENCE_PRELIMINAIRE!E152="Techno-Hybride",1,0) -> 0 | AH12: =IF(EXPERIENCE_PRELIMINAIRE!E152="Techno-Hybride",1,0) -> 0
B13: PC base | D13: =ATTRIBUTS!D23 -> 20 | L13: Peut être utilisé à la place de Manœuvres sous-marines ou d'Athlétisme | Z13: 4 | AF13: =IF(EXPERIENCE_PRELIMINAIRE!E171="Hybride du Trident (Membre du GSI)",1,0) -> 0 | AG13: =IF(EXPERIENCE_PRELIMINAIRE!E171="Techno-Hybride",1,0) -> 0 | AH13: =IF(EXPERIENCE_PRELIMINAIRE!E171="Techno-Hybride",1,0) -> 0
B14: PC Attributs | D14: =ATTRIBUTS!D24 -> 0 | L14: Profondeur maximale | P14: =HLOOKUP($D$11,$U$10:$Y$39,Z14,) -> 100 | Q14: m | U14: =IF(EXPERIENCE_PRELIMINAIRE!$W$247="X",100,IF(EXPERIENCE_PRELIMINAIRE!$W$247<1,100,EXPERIENCE_PRELIMINAIRE!$W$247*1000)) -> 100 | V14: =IF(EXPERIENCE_PRELIMINAIRE!$W$247="X",100,IF(EXPERIENCE_PRELIMINAIRE!$W$247<1,100,EXPERIENCE_PRELIMINAIRE!$W$247/2*1500)) -> 100 | W14: =IF(EXPERIENCE_PRELIMINAIRE!$W$247="X",100,IF(EXPERIENCE_PRELIMINAIRE!$W$247<1,100,EXPERIENCE_PRELIMINAIRE!$W$247/2*1500)) -> 100 | X14: =IF(EXPERIENCE_PRELIMINAIRE!$W$247="X",100,IF(EXPERIENCE_PRELIMINAIRE!$W$247<1,100,EXPERIENCE_PRELIMINAIRE!$W$247/2*1500)) -> 100 | Y14: =IF(Y11="X",100,IF(EXPERIENCE_PRELIMINAIRE!$W$247="X",100,IF(EXPERIENCE_PRELIMINAIRE!$W$247<1,100,EXPERIENCE_PRELIMINAIRE!$W$247*500))) -> 100 | Z14: 5 | AA14: Niv | AB14: modif | AF14: =IF(EXPERIENCE_PRELIMINAIRE!E190="Hybride du Trident (Membre du GSI)",1,0) -> 0 | AG14: =IF(EXPERIENCE_PRELIMINAIRE!E190="Techno-Hybride",1,0) -> 0 | AH14: =IF(EXPERIENCE_PRELIMINAIRE!E190="Techno-Hybride",1,0) -> 0
B15: PC Type génétique | D15: =ATTRIBUTS!D25 -> 0 | Z15: 6 | AA15: -5 | AB15: 0 | AC15: 0 | AD15: 0 | AF15: =IF(EXPERIENCE_PRELIMINAIRE!E209="Hybride du Trident (Membre du GSI)",1,0) -> 0 | AG15: =IF(EXPERIENCE_PRELIMINAIRE!E1209="Techno-Hybride",1,0) -> 0 | AH15: =IF(EXPERIENCE_PRELIMINAIRE!E1209="Techno-Hybride",1,0) -> 0
B16: PC Capacités spé. | D16: =ATTRIBUTS!D26 -> 0 | J16: Mutation évolutive | L16: Résistance aux dommages physiques au sec | P16: =HLOOKUP($D$11,$U$10:$Y$39,Z16,) -> 0 | U16: =VLOOKUP($AA$12,$AA$15:$AD$45,2,) -> 0 | V16: =VLOOKUP($AA$12,$AA$15:$AD$45,3,) -> 0 | W16: 0 | X16: 0 | Y16: 0 | Z16: 7 | AA16: -4 | AB16: 0 | AC16: 0 | AD16: 0 | AF16: =IF((AF12+AF13+AF14+AF15)>0,1,0) -> 0 | AG16: =IF((AG12+AG13+AG14+AG15)>0,1,0) -> 0 | AH16: =IF((AH12+AH13+AH14+AH15)>0,1,0) -> 0
B17: PC Exp. préliminaire | D17: =ATTRIBUTS!D27 -> 0 | L17: Résistance aux dommages physiques sous l'eau | P17: =HLOOKUP($D$11,$U$10:$Y$39,Z17,) -> 0 | U17: =VLOOKUP($AA$12,$AA$15:$AD$45,2,)*(-1) -> 0 | V17: =VLOOKUP($AA$12,$AA$15:$AD$45,3,)*(-1) -> 0 | W17: 0 | X17: 0 | Y17: 0 | Z17: 8 | AA17: -3 | AB17: 0 | AC17: 0 | AD17: 0
B18: PC Avantages/Desav. | D18: =ATTRIBUTS!D28 -> 0 | L18: Perception visuelle au sec | P18: =HLOOKUP($D$11,$U$10:$Y$39,Z18,) -> 0 | U18: =VLOOKUP($AA$12,$AA$15:$AD$45,2,)*(-1) -> 0 | V18: =VLOOKUP($AA$12,$AA$15:$AD$45,3,)*(-1) -> 0 | W18: 0 | X18: 0 | Y18: 0 | Z18: 9 | AA18: -2 | AB18: 0 | AC18: 0 | AD18: 0
B19: PC restants | D19: =D13-D14-D15-D16-D17-D18 -> 20 | L19: Perception visuelle sous l'eau | P19: =HLOOKUP($D$11,$U$10:$Y$39,Z19,) -> 0 | U19: =VLOOKUP($AA$12,$AA$15:$AD$45,2,) -> 0 | V19: =VLOOKUP($AA$12,$AA$15:$AD$45,3,) -> 0 | W19: 0 | X19: 0 | Y19: 0 | Z19: 10 | AA19: -1 | AB19: 0 | AC19: 0 | AD19: 0
Z20: 11 | AA20: 0 | AB20: 0 | AC20: 0 | AD20: 0
J21: Adaptation aquatique | L21: Comp. physiques limitées par Manœuvres sous-marines | P21: =HLOOKUP($D$11,$U$10:$Y$39,Z21,) -> Oui | U21: Non | V21: Oui | W21: Oui | X21: Oui | Y21: Oui | Z21: 12 | AA21: 1 | AB21: 0 | AC21: 0 | AD21: 0
Z22: 13 | AA22: 2 | AB22: 0 | AC22: 0 | AD22: 0
J23: Immunité au froid | L23: Dans l'eau, pénalité à cause du froid | P23: =HLOOKUP($D$11,$U$10:$Y$39,Z23,) -> Oui | U23: Non | V23: Non | W23: Non | X23: Non | Y23: Oui | Z23: 14 | AA23: 3 | AB23: 0 | AC23: 0 | AD23: 0
Z24: 15 | AA24: 4 | AB24: 0 | AC24: 0 | AD24: 0
J25: Sensibilité à la chaleur | L25: Dommages dus au feu ou à la chaleur augmentée de | P25: =HLOOKUP($D$11,$U$10:$Y$39,Z25,) -> 0 | U25: 3 | V25: 2 | W25: 2 | X25: 2 | Y25: 0 | Z25: 16 | AA25: 5 | AB25: 1 | AC25: 1 | AD25: 0
L26: Environnement chaud, Test de Fatigue avec un malus de | P26: =HLOOKUP($D$11,$U$10:$Y$39,Z26,) -> 0 | Q26: toutes les | R26: =HLOOKUP($D$11,$U$10:$Y$39,Z27,) -> 0 | S26: h | U26: -3 | V26: 0 | W26: 0 | X26: 0 | Y26: 0 | Z26: 17 | AA26: 6 | AB26: 1 | AC26: 1 | AD26: 0
U27: 2 | V27: 0 | W27: 0 | X27: 0 | Y27: 0 | Z27: 18 | AA27: 7 | AB27: 2 | AC27: 1 | AD27: 0
J28: Dépendance au milieu aquatique | L28: Test de Volonté après durée hors de l'eau égal à | P28: =HLOOKUP($D$11,$U$10:$Y$39,Z28,) -> 0 | Q28: h | U28: =ATTRIBUTS!$U$19 -> 7 | V28: =ATTRIBUTS!$U$19 -> 7 | W28: =ATTRIBUTS!$U$19 -> 7 | X28: =ATTRIBUTS!$U$19 -> 7 | Y28: 0 | Z28: 19 | AA28: 8 | AB28: 2 | AC28: 1 | AD28: 0
L29: Nouveau test avec malus cumulatif de | P29: =HLOOKUP($D$11,$U$10:$Y$39,Z29,) -> 0 | Q29: toutes les | R29: =HLOOKUP($D$11,$U$10:$Y$39,Z30,) -> 0 | S29: h | U29: =IF($AA$12>6,-3,-2) -> -2 | V29: =IF($AA$12>9,-3,-2) -> -2 | W29: -2 | X29: -2 | Y29: 0 | Z29: 20 | AA29: 9 | AB29: 2 | AC29: 1 | AD29: 0
L30: Si échec, -1 en Force et -1 aux tests d'actions physiques*, cumulatifs | U30: 1 | V30: 2 | W30: 10 | X30: 10 | Y30: 0 | Z30: 21 | AA30: 10 | AB30: 3 | AC30: 2 | AD30: 0
L31: * y compris tests de Résistance à la Fatigue | Z31: 22 | AA31: 11 | AB31: 3 | AC31: 2 | AD31: 0
L32: A 50% de Force, doit se baigner. Récupère ses capacités en 2D6 minutes | Z32: 23 | AA32: 12 | AB32: 3 | AC32: 2 | AD32: 0
L33: Une tenue hydratante apporte toujours un bonus de +10 lors du test de Volonté | Z33: 24 | AA33: 13 | AB33: 4 | AC33: 2 | AD33: 0
Z34: 25 | AA34: 14 | AB34: 4 | AC34: 2 | AD34: 0
J35: Claustrophobie | L35: Dans lieu étroit ou bondé pénalité aux test de | P35: =HLOOKUP($D$11,$U$10:$Y$39,Z35,) -> 0 | U35: -3 | V35: -3 | W35: -3 | X35: -3 | Y35: 0 | Z35: 26 | AA35: 15 | AB35: 5 | AC35: 3 | AD35: 0
L36: Dans armure pénalité aux tests de | P36: =HLOOKUP($D$11,$U$10:$Y$39,Z36,) -> 0 | U36: -2 | V36: -2 | W36: -2 | X36: -2 | Y36: 0 | Z36: 27 | AA36: 16 | AB36: 5 | AC36: 3 | AD36: 0
L37: Test de Volonté pour ne pas ôte armure avec malus de | P37: =HLOOKUP($D$11,$U$10:$Y$39,Z37,) -> 0 | Q37: toutes les | R37: =HLOOKUP($D$11,$U$10:$Y$39,Z38,) -> 0 | S37: h | U37: -2 | V37: -2 | W37: -2 | X37: -2 | Y37: 0 | Z37: 28 | AA37: 17 | AB37: 5 | AC37: 3 | AD37: 0
U38: 1 | V38: 1 | W38: 1 | X38: 1 | Y38: 0 | Z38: 29 | AA38: 18 | AB38: 5 | AC38: 3 | AD38: 0
J39: Blocage du Trident | L39: Test de Volonté pour nuire au Culte avec malus de | P39: =HLOOKUP($D$11,$U$10:$Y$39,Z39,) -> 0 | U39: -5 | V39: -7 | W39: 0 | X39: 0 | Y39: 0 | Z39: 30 | AA39: 19 | AB39: 5 | AC39: 3 | AD39: 0
AA40: 20 | AB40: 5 | AC40: 3 | AD40: 0
AA41: 21 | AB41: 5 | AC41: 3 | AD41: 0
AA42: 22 | AB42: 5 | AC42: 3 | AD42: 0
AA43: 23 | AB43: 5 | AC43: 3 | AD43: 0
AA44: 24 | AB44: 5 | AC44: 3 | AD44: 0
AA45: 25 | AB45: 5 | AC45: 3 | AD45: 0

Sheet CAPACITES_SPECIALES
J2: << Légende _
A4: TROISIEME EDITION | K4: Cellules à compléter / Sélection à faire dans le menu déroulant
K6: Passer la souris au dessus de ce symbole pour afficher un commentaire
B11: PC base | D11: =ATTRIBUTS!D23 -> 20
B12: PC Attributs | D12: =ATTRIBUTS!D24 -> 0
B13: PC Type génétique | D13: =ATTRIBUTS!D25 -> 0
B14: PC Capacités spé. | D14: =ATTRIBUTS!D26 -> 0
B15: PC Exp. préliminaire | D15: =ATTRIBUTS!D27 -> 0
B16: PC Avantages/Desav. | D16: =ATTRIBUTS!D28 -> 0
B17: PC restants | D17: =D11-D12-D13-D14-D15-D16 -> 20
D18: =IF(D17<0,"ERREUR","") -> 
H19: PC | M19: Parasite(s) et Symbiote(s)
B20: Mutation 1 | H20: =VLOOKUP(D20,$B$41:$F$118,5,) -> 0 | K20: 1D4 = | L20: 4 | Q20: PC | U20: 1D20= | V20: 20 | X20: Règle optionnelle : Mutation aléatoire | AB20: Non | AN20: Parasite(s) | AO20: Symbiote(s) | AP20: Symbiote(s) | AQ20: Symbiote(s) | AR20: Symbiote(s)
B21: Mutation 2 | H21: 0 | L21: Muta. 1 | Q21: 0 | Y21: =VLOOKUP(AW47,AW51:AX654,2,) -> Adaptation extérieure | AN21: Resist DOM | AO21: Resist DRO | AP21: Resist MAL | AQ21: Resist POI | AR21: Resist RAD
B22: Mutation 3 | H22: 0 | L22: =IF(L20=1,"","Muta. 2") -> Muta. 2 | Q22: 0 | S22: =IF(AND(SUM(AO24:AR24)<0,$M$20<>"Symbiote(s)"),"ERREUR","") ->  | V22: Muta. 1 | W22: 1D100= | X22: 1 | Y22: =IF(AB20="Oui",Y21," ") ->  | AN22: =IF(AND(M20="Parasite(s)",M26="Parasite(s)"),ROUND(((L20+L26)/2)-0.5,0),IF(M20="Parasite(s)",ROUND((L20/2)-0.5,0),IF(M26="Parasite(s)",ROUND((L26/2)-0.5,0),0))) -> 0 | AO22: =SUM(AO23:AO33) -> 0 | AP22: =SUM(AP23:AP33) -> 0 | AQ22: =SUM(AQ23:AQ33) -> 0 | AR22: =SUM(AR23:AR33) -> 0 | BD22: =IF(D20=" ","",CONCATENATE(" : ",VLOOKUP(D20,$B$42:$N$118,7,))) ->  | BF22: =IF(M21=" ","",CONCATENATE(" : ",VLOOKUP(M21,$B$42:$N$118,7,))) -> 
B23: Mutation 4 | H23: 0 | L23: =IF(L20=1,"",IF(L20=2,"","Muta. 3")) -> Muta. 3 | Q23: 0 | S23: =IF(AND(SUM(AO25:AR25)<0,$M$20<>"Symbiote(s)"),"ERREUR","") ->  | V23: Organe sensoriel/Résistance naturelle | W23: 1D6= | X23: 1 | Y23: Refus | Z23: Non | AA23: PC | AB23: =IF(AB20="Oui",IF(Z23="Non",0,IF(VLOOKUP(Y22,$B$41:$F$114,5)>0,0,1)),0) -> 0 | BF23: =IF(M22=" ","",CONCATENATE(" : ",VLOOKUP(M22,$B$42:$N$118,7,))) -> 
B24: Mutation 5 | H24: 0 | L24: =IF(L20=4,"Muta. 4","") -> Muta. 4 | Q24: 0 | S24: =IF(AND(SUM(AO26:AR26)<0,$M$20<>"Symbiote(s)"),"ERREUR","") ->  | V24: Caractère génétique animal | W24: ou 1D4 | AO24: =IF($M21=$AP$47,-2,0) -> 0 | AP24: =IF($M21=$AP$48,-2,0) -> 0 | AQ24: =IF($M21=$AP$49,-2,0) -> 0 | AR24: =IF($M21=$AP$50,-2,0) -> 0 | BF24: =IF(M23=" ","",CONCATENATE(" : ",VLOOKUP(M23,$B$42:$N$118,7,))) -> 
B25: Mutation 6 | H25: 0 | S25: =IF(AND(SUM(AO27:AR27)<0,$M$20<>"Symbiote(s)"),"ERREUR","") ->  | Y25: =IF(VLOOKUP(AW48,AW51:AX654,2,)=Y22,IF(VLOOKUP(Y22,B41:G114,6)="Non","Relancer !",CONCATENATE(Y22,"I")),VLOOKUP(AW48,AW51:AX654,2,)) -> Adaptation extérieure | AO25: =IF($M22=$AP$47,-2,0) -> 0 | AP25: =IF($M22=$AP$48,-2,0) -> 0 | AQ25: =IF($M22=$AP$49,-2,0) -> 0 | AR25: =IF($M22=$AP$50,-2,0) -> 0 | BF25: =IF(M24=" ","",CONCATENATE(" : ",VLOOKUP(M24,$B$42:$N$118,7,))) -> 
K26: 1D4 = | L26: 4 | Q26: PC | V26: =IF(V20>15,"Muta. 2","") -> Muta. 2 | W26: 1D100= | X26: 1 | Y26: =IF(AB20="Oui",IF(V20>15,Y25," ")," ") ->  | AO26: =IF($M23=$AP$47,-2,0) -> 0 | AP26: =IF($M23=$AP$48,-2,0) -> 0 | AQ26: =IF($M23=$AP$49,-2,0) -> 0 | AR26: =IF($M23=$AP$50,-2,0) -> 0
C27: Caractère géné. animal : félin | H27: =VLOOKUP(D27,AN46:AO48,2,) -> 0 | L27: Muta. 1 | Q27: 0 | V27: =IF(V20>15,"Organe sensoriel/Résistance naturelle","") -> Organe sensoriel/Résistance naturelle | W27: 1D6= | X27: 1 | Y27: Refus | Z27: Non | AA27: PC | AB27: =IF(V20>15,IF(Z27="Non",0,IF(VLOOKUP(Y26,$B$41:$F$114,5)>0,0,1)),0) -> 0 | AO27: =IF($M24=$AP$47,-2,0) -> 0 | AP27: =IF($M24=$AP$48,-2,0) -> 0 | AQ27: =IF($M24=$AP$49,-2,0) -> 0 | AR27: =IF($M24=$AP$50,-2,0) -> 0 | BF27: =IF(M27=" ","",CONCATENATE(" : ",VLOOKUP(M27,$B$42:$N$118,7,))) -> 
C28: Caractère géné. animal : canin | H28: 0 | L28: =IF(L26=1,"","Muta. 2") -> Muta. 2 | Q28: 0 | S28: =IF(AND(SUM(AO30:AR30)<0,$M$26<>"Symbiote(s)"),"ERREUR","") ->  | V28: =IF(V20>15,"Caractère génétique animal","") -> Caractère génétique animal | W28: ou 1D4 | BF28: =IF(M28=" ","",CONCATENATE(" : ",VLOOKUP(M28,$B$42:$N$118,7,))) -> 
C29: Caractère géné. animal : simiesque | H29: 0 | L29: =IF(L26=1,"",IF(L26=2,"","Muta. 3")) -> Muta. 3 | Q29: 0 | S29: =IF(AND(SUM(AO31:AR31)<0,$M$26<>"Symbiote(s)"),"ERREUR","") ->  | Y29: =IF(CONCATENATE(VLOOKUP(AW49,AW51:AX654,2,),"I")=Y26,IF(VLOOKUP(Y26,B41:G114,6)="Non","Relancer !",CONCATENATE(Y26,"I")),IF(VLOOKUP(AW49,AW51:AX654,2,)=Y22,IF(VLOOKUP(Y22,B41:G114,6)="Non","Relancer !",CONCATENATE(Y22,"I")),IF(VLOOKUP(AW49,AW51:AX654,2,)=Y26,IF(VLOOKUP(Y26,B41:G114,6)="Non","Relancer !",CONCATENATE(Y26,"I")),VLOOKUP(AW49,AW51:AX654,2,)))) -> Adaptation extérieure | BD29: =IF(D27=" ","",CONCATENATE(" : ",VLOOKUP(D27,$B$42:$N$118,7,))) ->  | BF29: =IF(M29=" ","",CONCATENATE(" : ",VLOOKUP(M29,$B$42:$N$118,7,))) -> 
L30: =IF(L26=4,"Muta. 4","") -> Muta. 4 | Q30: 0 | S30: =IF(AND(SUM(AO32:AR32)<0,$M$26<>"Symbiote(s)"),"ERREUR","") ->  | V30: =IF(V20=20,"Muta. 3","") -> Muta. 3 | W30: 1D100= | X30: 1 | Y30: =IF(AB20="Oui",IF(V20=20,Y29," ")," ") ->  | AO30: =IF($M27=$AP$47,-2,0) -> 0 | AP30: =IF($M27=$AP$48,-2,0) -> 0 | AQ30: =IF($M27=$AP$49,-2,0) -> 0 | AR30: =IF($M27=$AP$50,-2,0) -> 0 | BD30: =IF(D28=" ","",CONCATENATE(" : ",VLOOKUP(D28,$B$42:$N$118,7,))) ->  | BF30: =IF(M30=" ","",CONCATENATE(" : ",VLOOKUP(M30,$B$42:$N$118,7,))) -> 
S31: =IF(AND(SUM(AO33:AR33)<0,$M$26<>"Symbiote(s)"),"ERREUR","") ->  | V31: =IF(V20=20,"Organe sensoriel/Résistance naturelle","") -> Organe sensoriel/Résistance naturelle | W31: 1D6= | X31: 1 | Y31: Refus | Z31: Non | AA31: PC | AB31: =IF(V20=20,IF(Z31="Non",0,IF(VLOOKUP(Y30,$B$41:$F$114,5)>0,0,1)),0) -> 0 | AO31: =IF($M28=$AP$47,-2,0) -> 0 | AP31: =IF($M28=$AP$48,-2,0) -> 0 | AQ31: =IF($M28=$AP$49,-2,0) -> 0 | AR31: =IF($M28=$AP$50,-2,0) -> 0 | BD31: =IF(D29=" ","",CONCATENATE(" : ",VLOOKUP(D29,$B$42:$N$118,7,))) -> 
B32: Force Polaris | H32: =VLOOKUP(D32,AT42:AU45,2,) -> 0 | V32: =IF(V20=20,"Caractère génétique animal","") -> Caractère génétique animal | W32: ou 1D4 | AO32: =IF($M29=$AP$47,-2,0) -> 0 | AP32: =IF($M29=$AP$48,-2,0) -> 0 | AQ32: =IF($M29=$AP$49,-2,0) -> 0 | AR32: =IF($M29=$AP$50,-2,0) -> 0 | BF32: =IF(M36=" ","",CONCATENATE(" : ",VLOOKUP(M36,$B$42:$N$118,7,))) -> 
B33: =HLOOKUP($D$32,$AV$41:$AZ$45,2,) ->  | H33: =IF(D33=" ",0,IF(D32="Polaris non maîtrisé",1,0)) -> 0 | I33: =IF(AND(D33<>" ",B33=" "),"ERREUR","") ->  | AO33: =IF($M30=$AP$47,-2,0) -> 0 | AP33: =IF($M30=$AP$48,-2,0) -> 0 | AQ33: =IF($M30=$AP$49,-2,0) -> 0 | AR33: =IF($M30=$AP$50,-2,0) -> 0
B34: =HLOOKUP($D$32,$AV$41:$AZ$45,3,) ->  | H34: =IF(D34=" ",0,1) -> 0 | I34: =IF(AND(D34<>" ",B34=" "),"ERREUR","") -> 
B35: =HLOOKUP($D$32,$AV$41:$AZ$45,4,) ->  | H35: =IF(D35=" ",0,1) -> 0 | I35: =IF(AND(D35<>" ",B35=" "),"ERREUR","") ->  | M35: Avantage professionnel aléatoire
B36: =HLOOKUP($D$32,$AV$41:$AZ$45,5,) ->  | H36: =IF(D36=" ",0,1) -> 0 | I36: =IF(AND(D36<>" ",B36=" "),"ERREUR","") ->  | L36: Mutation Cultivateur/Eleveur | M36: =IF(AVANTAGES_PROFESSIONNELS!DP557>0,"Empathie"," ") ->  | Q36: 0
H37: =H20+H21+H22+H23+H24+H25+H27+H28+H29+H32+H33+H34+H35+H36+AB23+AB27+AB31 -> 0
B39: Mutations | F39: PC | G39: Cumulable | H39: Bonus non permanents / Descriptions succintes si besoin | O39: Bonus permanents | AN39: 1 | AP39: Oui
O40: FOR | P40: CON | Q40: COO | R40: PRE | S40: REA | T40: Resist DOM | U40: Resist DRO | V40: Resist MAL | W40: Resist POI | X40: Resist RAD | Y40: Resist CHOC | Z40: Tests Acrobatie | AA40: Tests Evasion | AB40: Tests Escalade | AC40: Adaptation extérieure | AD40: Hybride | AE40: Contagion | AF40: Empathie | AG40: Contrôle moléculaire | AH40: Métamorphose | AI40: Purulance | AJ40: Agilité caudale | AK40: Radiations | AL40: Sonar | AN40: 2 | AP40: Non
F41: 0 | AN41: 3 | AP41: Parasites/Symbiotes | AT41: Polaris | AW41: Polaris | AX41: Polaris latent | AY41: Polaris non maîtrisé
B42: Adaptation extérieure | F42: 3 | G42: Non | H42: Accès à la compétence spéciale Adaptation extérieure (CON/CON, -3, coût normal) | AC42: 1 | AN42: 4 | AU42: 0 | AW42: Pouvoir obtenu | AY42: Pouvoir supp. (1 tirage)
B43: Amphibie | F43: 2 | G43: Non | H43: Accès à la compétence spéciale Hybride (CON/COO, -3, +0 max) | AD43: 1 | AP43: Parasite(s) | AT43: Polaris | AU43: 5 | AW43: Pouvoir supp. (1 tirage) | AY43: Pouvoir supp. (1 tirage)
B44: Androgyne | F44: 0 | G44: Non | H44: . | AN44: Caract. géné animal | AP44: Symbiote(s) | AT44: Polaris latent | AU44: 3 | AW44: Pouvoir supp. (2 tirages)
B45: Asexué | F45: 0 | G45: Non | H45: . | AT45: Polaris non maîtrisé | AU45: 3 | AW45: Pouvoir supp. (3 tirages)
B46: Autofécondation | F46: 0 | G46: Non | H46: . | AO46: 0
B47: Caractère génétique animal : félin | F47: 2 | G47: Non | H47: Immunité au vertige, Mutations Griffes et Vision nocture ne coûtent que 1 PC | Q47: 2 | Z47: 3 | AN47: Griffes | AO47: 1 | AP47: Symbiote uniquement : +2 Résist. aux drogues | AW47: =CONCATENATE(X22," ",X23) -> 1 1
B48: Caractère génétique animal : canin | F48: 2 | G48: Non | H48: +3 aux tests de Perception si odorat sollicité, Mutation Crocs gratuit | P48: 1 | AN48: Vision nocturne | AO48: 1 | AP48: Symbiote uniquement : +2 Résist. aux maladies | AT48: Altération temporelle | AW48: =CONCATENATE(X26," ",X27) -> 1 1
B49: Caractère génétique animal : reptilien | F49: 2 | G49: Non | H49: +3 aux tests de Perception si odorat sollicité, se faufile dans espaces étroits | Q49: 1 | AA49: 3 | AP49: Symbiote uniquement : +2 Résist. aux poisons | AT49: Attaque psychique | AW49: =CONCATENATE(X30," ",X31) -> 1 1
B50: Caractère génétique animal : simiesque | F50: 2 | G50: Non | H50: Mutation Queue gratuite | O50: 1 | Q50: 1 | AB50: 3 | AO50: 0 | AP50: Symbiote uniquement : +2 Résist. aux radiations | AT50: Barrière de force
B51: Contact corrosif I | F51: 3 | G51: Oui | H51: Inflige 1D10 de dommages au contact | AN51: Crocs | AO51: 0 | AP51: Adaptation extérieure | AT51: Barrière moléculaire | AV51: 1 | AW51: =CONCATENATE(AV51," 1") -> 1 1 | AX51: Adaptation extérieure | BA51: 1
B52: Contact corrosif II | F52: 3 | G52: Oui | H52: Inflige 3 points de dommages supplémentaires | AP52: Amphibie | AT52: Barrière psychique | AV52: 2 | AW52: =CONCATENATE(AV52," 1") -> 2 1 | AX52: Adaptation extérieure | BA52: 2
B53: Contact corrosif III | F53: 3 | G53: Oui | H53: Inflige 3 points de dommages supplémentaires | AO53: 0 | AP53: Autofécondation | AT53: Bête du Flux | AV53: 3 | AW53: 3 1 | AX53: Adaptation extérieure | BA53: 3
B54: Contagion | F54: 3 | G54: Non | H54: Transmets maladie par contact, compétence Contagion (CON/VOL, X; coût doublé) | AE54: 1 | AN54: Queue | AO54: 0 | AP54: Caractère génétique animal : félin | AT54: Brouillage | AV54: 4 | AW54: 4 1 | AX54: Adaptation extérieure | BA54: 4
B55: Corne | F55: 1 | G55: Non | H55: 1D10 de dommages après saisie, +1D6 si coup à la tête | AP55: Caractère génétique animal : canin | AT55: Cauchemar | AV55: 5 | AW55: 5 1 | AX55: Adaptation extérieure | BA55: 5
B56: Crocs | F56: 1 | G56: Non | H56: 1D10+3+(Mod. DOM c.à.c.) de dommages après saisie | AP56: Caractère génétique animal : reptilien | AT56: Champ de force | AV56: 6 | AW56: 6 1 | AX56: Adaptation extérieure | BA56: 6
B57: Difformité légère I | F57: -1 | G57: Oui | H57: . | R57: -1 | AP57: Caractère génétique animal : simiesque | AT57: Champ moléculaire | AV57: 7 | AW57: 7 1 | AX57: Amphibie
B58: Difformité légère II | F58: -1 | G58: Oui | H58: . | R58: -1 | AP58: Contact corrosif I | AT58: Champ psychique | AV58: 8 | AW58: 8 1 | AX58: Amphibie
B59: Difformité légère III | F59: -1 | G59: Oui | H59: . | R59: -1 | AP59: Contact corrosif II | AT59: Contrôle mental | AV59: 9 | AW59: 9 1 | AX59: Amphibie
B60: Difformité importante I | F60: -3 | G60: Oui | H60: . | R60: -2 | AN60: 1 | AP60: Contact corrosif III | AT60: Dague psychique | AV60: 10 | AW60: 10 1 | AX60: Amphibie
B61: Difformité importante II | F61: -3 | G61: Oui | H61: . | R61: -2 | AN61: 2 | AP61: Contagion | AT61: Déchirure du Flux | AV61: 11 | AW61: 11 1 | AX61: Androgyne
B62: Difformité importante III | F62: -3 | G62: Oui | H62: . | R62: -2 | AN62: 3 | AP62: Empathie | AT62: Désintégration moléculaire | AV62: 12 | AW62: 12 1 | AX62: Androgyne
B63: Empathie | F63: 4 | G63: Non | H63: Accès à la compétence spéciale Empathie (VOL/PRE, -3, coût doublé) | AF63: 1 | AN63: 4 | AP63: Métamorphe | AT63: Déstructuration | AV63: 13 | AW63: 13 1 | AX63: Androgyne
B64: Excroissance osseuse rétractable | F64: 3 | G64: Non | H64: 2D10+(Mod. DOM c.à.c.) points de dommages en combat à mains nues | AN64: 5 | AP64: Organe sensoriel : goût amélioré | AT64: Disruption moléculaire | AV64: 14 | AW64: 14 1 | AX64: Asexué
B65: Griffes | F65: 2 | G65: Non | H65: 1D10+3+(Mod. DOM c.à.c.) en combat à mains nues, +3 Escalade si griffes utilisables | AN65: 6 | AP65: Organe sensoriel : odorat amélioré | AT65: Foudre | AV65: 15 | AW65: 15 1 | AX65: Asexué
B66: Instabilité moléculaire | F66: 4 | G66: Non | H66: Accès à la compétence spéciale Contrôle moléculaire (CON/VOL, coût doublé) | AG66: 1 | AN66: 7 | AP66: Organe sensoriel : toucher amélioré | AT66: Guérison psychique | AV66: 16 | AW66: 16 1 | AX66: Asexué
B67: Métamorphe | F67: 4 | G67: Non | H67: Accès à la compétence spéciale Métamorphose (CON/VOL, -3, coût doublé) | AH67: 1 | AN67: 8 | AP67: Organe sensoriel : oreille supplémentaire | AT67: Guérison moléculaire | AV67: 17 | AW67: 17 1 | AX67: Autofécondation
B68: Organe sensoriel : papilles gustatives atrophiées | F68: 0 | G68: Non | H68: -5 aux tests de Perception nécessitant l'utilisation de ce sens | AN68: 9 | AP68: Organe sensoriel : œil supllémentaire | AT68: Lames d'énergie | AV68: 18 | AW68: 18 1 | AX68: Autofécondation
B69: Organe sensoriel : nez atrophié | F69: -1 | G69: Non | H69: -5 aux tests de Perception nécessitant l'utilisation de ce sens | AN69: 10 | AP69: Peau renforcée I | AT69: Lames psychiques | AV69: 19 | AW69: 19 1 | AX69: Autofécondation
B70: Organe sensoriel : sens du toucher atrophié | F70: -1 | G70: Non | H70: -5 aux tests de Perception nécessitant l'utilisation de ce sens | AN70: 11 | AP70: Peau renforcée II | AT70: Mangeur d'esprit | AV70: 20 | AW70: 20 1 | AX70: Caractère génétique animal : félin
B71: Organe sensoriel : oreille manquante | F71: -2 | G71: Non | H71: -5 aux tests de Perception nécessitant l'utilisation de ce sens | AN71: 12 | AP71: Peau renforcée III | AT71: Masse de destruction | AV71: 21 | AW71: 21 1 | AX71: Caractère génétique animal : félin
B72: Organe sensoriel : œil manquant | F72: -3 | G72: Non | H72: -5 aux tests de Perception nécessitant l'utilisation de ce sens | AN72: 13 | AP72: Purulence I | AT72: Modification de la masse | AV72: 22 | AW72: 22 1 | AX72: Caractère génétique animal : félin
B73: Organe sensoriel : goût amélioré | F73: 0 | G73: Non | H73: +5 aux tests de Perception nécessitant l'utilisation de ce sens | AN73: 14 | AP73: Purulence II | AT73: Modification de la pression | AV73: 23 | AW73: 23 1 | AX73: Caractère génétique animal : félin
B74: Organe sensoriel : odorat amélioré | F74: 1 | G74: Non | H74: +5 aux tests de Perception nécessitant l'utilisation de ce sens | AN74: 15 | AP74: Purulence III | AT74: Modification de la température | AV74: 24 | AW74: 24 1 | AX74: Contact corrosif I
B75: Organe sensoriel : toucher amélioré | F75: 1 | G75: Non | H75: +5 aux tests de Perception nécessitant l'utilisation de ce sens | AN75: 16 | AP75: Radiation I | AT75: Oblitération psychique | AV75: 25 | AW75: 25 1 | AX75: Contact corrosif I
B76: Organe sensoriel : oreille supplémentaire | F76: 2 | G76: Non | H76: +5 aux tests de Perception nécessitant l'utilisation de ce sens | AN76: 17 | AP76: Radiation II | AT76: Ondes de choc | AV76: 26 | AW76: 26 1 | AX76: Contagion
B77: Organe sensoriel : œil supllémentaire | F77: 2 | G77: Non | H77: +5 aux tests de Perception nécessitant l'utilisation de ce sens | AN77: 18 | AP77: Radiation III | AT77: Ondes de choc psychiques | AV77: 27 | AW77: 27 1 | AX77: Contagion
B78: Parasite(s) I | F78: 1 | G78: Oui | H78: 1D4 parasites , baisse Resist. Dom., auto-inflige dommages, octroie d'autres muta. | AN78: 19 | AP78: Régénération I | AT78: Onde Polaris | AV78: 28 | AW78: 28 1 | AX78: Corne
B79: Parasite(s) II | F79: 1 | G79: Oui | H79: 1D4 parasites , baisse Resist. Dom., auto-inflige dommages, octroie d'autres muta. | AN79: 20 | AP79: Régénération II | AT79: Pacification/furie | AV79: 29 | AW79: 29 1 | AX79: Corne
B80: Peau renforcée I | F80: 2 | G80: Oui | H80: . | T80: -3 | AP80: Résistance naturelle : résistance au feu | AT80: Passage | AV80: 30 | AW80: 30 1 | AX80: Corne
B81: Peau renforcée II | F81: 2 | G81: Oui | H81: . | T81: -2 | AP81: Résistance naturelle : résistance au froid | AT81: Perturbation de la réalité | AV81: 31 | AW81: 31 1 | AX81: Crocs
B82: Peau renforcée III | F82: 2 | G82: Oui | H82: . | T82: -2 | AP82: Résistance naturelle : résistance aux drogues I | AT82: Prescience | AV82: 32 | AW82: 32 1 | AX82: Crocs
B83: Purulence I | F83: -2 | G83: Oui | H83: Accès à la compétence spéciale Purulence (CON/VOL, X, coût doublé) | R83: -2 | V83: -3 | AI83: 1 | AP83: Résistance naturelle : résistance aux drogues II | AT83: Prison mentale | AV83: 33 | AW83: 33 1 | AX83: Crocs
B84: Purulence II | F84: -2 | G84: Oui | H84: . | R84: -1 | V84: -2 | AI84: 1 | AP84: Résistance naturelle : résistance aux drogues III | AT84: Pulsion électromagnétique | AV84: 34 | AW84: 34 1 | AX84: Crocs
B85: Purulence III | F85: -2 | G85: Oui | H85: . | R85: -1 | V85: -2 | AI85: 1 | AP85: Résistance naturelle : résistance aux maladies I | AT85: Régénération moléculaire | AV85: 35 | AW85: 35 1 | AX85: Crocs
B86: Queue | F86: 1 | G86: Non | H86: Accès compétence spéciale Agilité caudale (COO/COO, coût normal) 1D10/2+Mod. CAC | AJ86: 1 | AP86: Résistance naturelle : résistance aux maladies II | AT86: Sensibilité psychique | AV86: 36 | AW86: 36 1 | AX86: Difformité légère I
B87: Radiation I | F87: 3 | G87: Oui | H87: Compétence spéciale Radiations (CON/VOL, -3, coût doublé) 2D6 (+3 supp possible) | AK87: 1 | AP87: Résistance naturelle : résistance aux maladies III | AT87: Siphon d'énergie | AV87: 37 | AW87: 37 1 | AX87: Difformité légère I
B88: Radiation II | F88: 3 | G88: Oui | H88: Inflige 3 points de dommages supplémentaires | AK88: 1 | AP88: Résistance naturelle : résistance aux poisons I | AT88: Sonscan | AV88: 38 | AW88: 38 1 | AX88: Difformité légère I
B89: Radiation III | F89: 3 | G89: Oui | H89: Inflige 3 points de dommages supplémentaires | AK89: 1 | AP89: Résistance naturelle : résistance aux poisons II | AT89: Sphère de gravité | AV89: 39 | AW89: 39 1 | AX89: Difformité légère I
B90: Régénération I | F90: 2 | G90: Oui | H90: +2 tests de stabilisation blessures, +3 tests infection, durée guérion /2 | AP90: Résistance naturelle : résistance aux poisons III | AT90: Sphère de répulsion organique | AV90: 40 | AW90: 40 1 | AX90: Difformité légère I
B91: Régénération II | F91: 2 | G91: Oui | H91: +1 supp. sur les deux tests, durée guérison /3 | AP91: Résistance naturelle : résistance aux radiations I | AT91: Sphère temporelle | AV91: 41 | AW91: 41 1 | AX91: Difformité importante I
B92: Résistance naturelle : résistance au feu | F92: 1 | G92: Non | H92: Résist. DOM +3 si dus au feu, modérément insensible à la chaleur | AP92: Résistance naturelle : résistance aux radiations II | AT92: Sphère de terreur | AV92: 42 | AW92: 42 1 | AX92: Difformité importante I
B93: Résistance naturelle : résistance au froid | F93: 1 | G93: Non | H93: Résist. DOM +3 si dus au froid, modérément insensible au froid | AP93: Résistance naturelle : résistance aux radiations III | AT93: Télékinésie | AV93: 43 | AW93: 43 1 | AX93: Difformité importante I
B94: Résistance naturelle : résistance aux drogues I | F94: 1 | G94: Oui | H94: . | U94: -1 | AP94: Sixième sens | AT94: Téléportation | AV94: 44 | AW94: 44 1 | AX94: Empathie
B95: Résistance naturelle : résistance aux drogues II | F95: 1 | G95: Oui | H95: . | U95: -1 | AP95: Sonar | AT95: Tempête du Flux | AV95: 45 | AW95: 45 1 | AX95: Empathie
B96: Résistance naturelle : résistance aux drogues III | F96: 1 | G96: Oui | H96: . | U96: -1 | AP96: Squelette renforcé I | AT96: Tourbillon | AV96: 46 | AW96: 46 1 | AX96: Empathie
B97: Résistance naturelle : résistance aux maladies I | F97: 1 | G97: Oui | H97: . | V97: -1 | AP97: Squelette renforcé II | AT97: Tourbillon de mort | AV97: 47 | AW97: 47 1 | AX97: Excroissance osseuse rétractable
B98: Résistance naturelle : résistance aux maladies II | F98: 1 | G98: Oui | H98: . | V98: -1 | AP98: Squelette renforcé III | AT98: Vortex psychique | AV98: 48 | AW98: 48 1 | AX98: Excroissance osseuse rétractable
B99: Résistance naturelle : résistance aux maladies III | F99: 1 | G99: Oui | H99: . | V99: -1 | AP99: Vision nocturne | AT99: Vortex physique | AV99: 49 | AW99: 49 1 | AX99: Excroissance osseuse rétractable
B100: Résistance naturelle : résistance aux poisons I | F100: 1 | G100: Oui | H100: . | W100: -1 | AV100: 50 | AW100: 50 1 | AX100: Griffes
B101: Résistance naturelle : résistance aux poisons II | F101: 1 | G101: Oui | H101: . | W101: -1 | AV101: 51 | AW101: 51 1 | AX101: Griffes
B102: Résistance naturelle : résistance aux poisons III | F102: 1 | G102: Oui | H102: . | W102: -1 | AV102: 52 | AW102: 52 1 | AX102: Griffes
B103: Résistance naturelle : résistance aux radiations I | F103: 1 | G103: Oui | H103: . | X103: -1 | AV103: 53 | AW103: 53 1 | AX103: Instabilité moléculaire
B104: Résistance naturelle : résistance aux radiations II | F104: 1 | G104: Oui | H104: . | X104: -1 | AV104: 54 | AW104: 54 1 | AX104: Métamorphe
B105: Résistance naturelle : résistance aux radiations III | F105: 1 | G105: Oui | H105: . | X105: -1 | AV105: 55 | AW105: 55 1 | AX105: Métamorphe
B106: Sixième sens | F106: 1 | G106: Non | H106: . | S106: 3 | AV106: 56 | AW106: 56 1 | AX106: Métamorphe
B107: Sonar | F107: 3 | G107: Non | H107: Accès à la compétence spéciale Sonar (PER/PER, coût normal) 2D10 | AL107: 1 | AV107: 57 | AW107: 57 1 | AX107: Organe sensoriel : papilles gustatives atrophiées
B108: Squelette renforcé I | F108: 3 | G108: Oui | H108: . | T108: -2 | Y108: 3 | AV108: 58 | AW108: 58 1 | AX108: Organe sensoriel : papilles gustatives atrophiées
B109: Squelette renforcé II | F109: 3 | G109: Oui | H109: . | T109: -1 | Y109: 1 | AV109: 59 | AW109: 59 1 | AX109: Organe sensoriel : goût amélioré
B110: Squelette renforcé III | F110: 3 | G110: Oui | H110: . | T110: -1 | Y110: 1 | AV110: 60 | AW110: 60 1 | AX110: Organe sensoriel : goût amélioré
B111: Symbiote(s) I | F111: 3 | G111: Oui | H111: 1D4 symbiotes , peut auto-infliger dommages, octroie +2 Resist. Nat. ou autres muta. | AV111: 61 | AW111: 61 1 | AX111: Parasite(s) I
B112: Symbiote(s) II | F112: 3 | G112: Oui | H112: 1D4 symbiotes , peut auto-infliger dommages, octroie +2 Resist. Nat. ou autres muta. | AV112: 62 | AW112: 62 1 | AX112: Peau renforcée I
B113: Tentacule rétractable | F113: 1 | G113: Non | H113: Peut faire jaillir un tentacule utilisable comme nouveau membre | AV113: 63 | AW113: 63 1 | AX113: Peau renforcée I
B114: Vision nocturne | F114: 3 | G114: Non | H114: . | AV114: 64 | AW114: 64 1 | AX114: Peau renforcée I
B115: Symbiote uniquement : +2 Résist. aux drogues | F115: 0 | G115: Oui | H115: . | U115: -2 | AV115: 65 | AW115: 65 1 | AX115: Peau renforcée I
B116: Symbiote uniquement : +2 Résist. aux maladies | F116: 0 | G116: Oui | H116: . | V116: -2 | AV116: 66 | AW116: =CONCATENATE(AV116," 1") -> 66 1 | AX116: Peau renforcée I
B117: Symbiote uniquement : +2 Résist. aux poisons | F117: 0 | G117: Oui | H117: . | W117: -2 | AV117: 67 | AW117: 67 1 | AX117: Purulence I
B118: Symbiote uniquement : +2 Résist. aux radiations | F118: 0 | G118: Oui | H118: . | X118: -2 | AV118: 68 | AW118: 68 1 | AX118: Queue
AV119: 69 | AW119: 69 1 | AX119: Queue
N120: =D20 ->  | O120: =IF($N120=" ",0,VLOOKUP($N120,$B$42:$AB$118,14,)) -> 0 | P120: =IF($N120=" ",0,VLOOKUP($N120,$B$42:$AB$118,15,)) -> 0 | Q120: =IF($N120=" ",0,VLOOKUP($N120,$B$42:$AB$118,16,)) -> 0 | R120: =IF($N120=" ",0,VLOOKUP($N120,$B$42:$AB$118,17,)) -> 0 | S120: =IF($N120=" ",0,VLOOKUP($N120,$B$42:$AB$118,18,)) -> 0 | T120: =IF($N120=" ",0,VLOOKUP($N120,$B$42:$AB$118,19,)) -> 0 | U120: =IF($N120=" ",0,VLOOKUP($N120,$B$42:$AB$118,20,)) -> 0 | V120: =IF($N120=" ",0,VLOOKUP($N120,$B$42:$AB$118,21,)) -> 0 | W120: =IF($N120=" ",0,VLOOKUP($N120,$B$42:$AB$118,22,)) -> 0 | X120: =IF($N120=" ",0,VLOOKUP($N120,$B$42:$AB$118,23,)) -> 0 | Y120: =IF($N120=" ",0,VLOOKUP($N120,$B$42:$AB$118,24,)) -> 0 | Z120: =IF($N120=" ",0,VLOOKUP($N120,$B$42:$AB$118,25,)) -> 0 | AA120: =IF($N120=" ",0,VLOOKUP($N120,$B$42:$AB$118,26,)) -> 0 | AB120: =IF($N120=" ",0,VLOOKUP($N120,$B$42:$AB$118,27,)) -> 0 | AC120: =IF($N120=" ",0,VLOOKUP($N120,$B$42:$AL$118,28,)) -> 0 | AD120: =IF($N120=" ",0,VLOOKUP($N120,$B$42:$AL$118,29,)) -> 0 | AE120: =IF($N120=" ",0,VLOOKUP($N120,$B$42:$AL$118,30,)) -> 0 | AF120: =IF($N120=" ",0,VLOOKUP($N120,$B$42:$AL$118,31,)) -> 0 | AG120: =IF($N120=" ",0,VLOOKUP($N120,$B$42:$AL$118,32,)) -> 0 | AH120: =IF($N120=" ",0,VLOOKUP($N120,$B$42:$AL$118,33,)) -> 0 | AI120: =IF($N120=" ",0,VLOOKUP($N120,$B$42:$AL$118,34,)) -> 0 | AJ120: =IF($N120=" ",0,VLOOKUP($N120,$B$42:$AL$118,35,)) -> 0 | AK120: =IF($N120=" ",0,VLOOKUP($N120,$B$42:$AL$118,36,)) -> 0 | AL120: =IF($N120=" ",0,VLOOKUP($N120,$B$42:$AL$118,37,)) -> 0 | AV120: 70 | AW120: 70 1 | AX120: Queue
O121: =IF($N121=" ",0,VLOOKUP($N121,$B$42:$AB$118,14,)) -> 0 | P121: 0 | Q121: 0 | R121: 0 | S121: 0 | T121: 0 | U121: 0 | V121: 0 | W121: 0 | X121: 0 | Y121: 0 | Z121: 0 | AA121: 0 | AB121: 0 | AC121: =IF($N121=" ",0,VLOOKUP($N121,$B$42:$AL$118,28,)) -> 0 | AD121: =IF($N121=" ",0,VLOOKUP($N121,$B$42:$AL$118,29,)) -> 0 | AE121: =IF($N121=" ",0,VLOOKUP($N121,$B$42:$AL$118,30,)) -> 0 | AF121: =IF($N121=" ",0,VLOOKUP($N121,$B$42:$AL$118,31,)) -> 0 | AG121: =IF($N121=" ",0,VLOOKUP($N121,$B$42:$AL$118,32,)) -> 0 | AH121: =IF($N121=" ",0,VLOOKUP($N121,$B$42:$AL$118,33,)) -> 0 | AI121: =IF($N121=" ",0,VLOOKUP($N121,$B$42:$AL$118,34,)) -> 0 | AJ121: =IF($N121=" ",0,VLOOKUP($N121,$B$42:$AL$118,35,)) -> 0 | AK121: =IF($N121=" ",0,VLOOKUP($N121,$B$42:$AL$118,36,)) -> 0 | AL121: =IF($N121=" ",0,VLOOKUP($N121,$B$42:$AL$118,37,)) -> 0 | AV121: 71 | AW121: 71 1 | AX121: Radiation I
O122: 0 | P122: 0 | Q122: 0 | R122: 0 | S122: 0 | T122: 0 | U122: 0 | V122: 0 | W122: 0 | X122: 0 | Y122: 0 | Z122: 0 | AA122: 0 | AB122: 0 | AC122: 0 | AD122: 0 | AE122: 0 | AF122: 0 | AG122: 0 | AH122: 0 | AI122: 0 | AJ122: 0 | AK122: 0 | AL122: 0 | AV122: 72 | AW122: 72 1 | AX122: Régénération I
O123: 0 | P123: 0 | Q123: 0 | R123: 0 | S123: 0 | T123: 0 | U123: 0 | V123: 0 | W123: 0 | X123: 0 | Y123: 0 | Z123: 0 | AA123: 0 | AB123: 0 | AC123: 0 | AD123: 0 | AE123: 0 | AF123: 0 | AG123: 0 | AH123: 0 | AI123: 0 | AJ123: 0 | AK123: 0 | AL123: 0 | AV123: 73 | AW123: 73 1 | AX123: Régénération I
O124: 0 | P124: 0 | Q124: 0 | R124: 0 | S124: 0 | T124: 0 | U124: 0 | V124: 0 | W124: 0 | X124: 0 | Y124: 0 | Z124: 0 | AA124: 0 | AB124: 0 | AC124: 0 | AD124: 0 | AE124: 0 | AF124: 0 | AG124: 0 | AH124: 0 | AI124: 0 | AJ124: 0 | AK124: 0 | AL124: 0 | AV124: 74 | AW124: 74 1 | AX124: Régénération I
O125: 0 | P125: 0 | Q125: 0 | R125: 0 | S125: 0 | T125: 0 | U125: 0 | V125: 0 | W125: 0 | X125: 0 | Y125: 0 | Z125: 0 | AA125: 0 | AB125: 0 | AC125: 0 | AD125: 0 | AE125: 0 | AF125: 0 | AG125: 0 | AH125: 0 | AI125: 0 | AJ125: 0 | AK125: 0 | AL125: 0 | AV125: 75 | AW125: 75 1 | AX125: Régénération I
N126: =D27 ->  | O126: 0 | P126: 0 | Q126: 0 | R126: 0 | S126: 0 | T126: 0 | U126: 0 | V126: 0 | W126: 0 | X126: 0 | Y126: 0 | Z126: 0 | AA126: 0 | AB126: 0 | AC126: 0 | AD126: 0 | AE126: 0 | AF126: 0 | AG126: 0 | AH126: 0 | AI126: 0 | AJ126: 0 | AK126: 0 | AL126: 0 | AV126: 76 | AW126: 76 1 | AX126: Résistance naturelle : résistance au feu
N127: =D28 ->  | O127: 0 | P127: 0 | Q127: 0 | R127: 0 | S127: 0 | T127: 0 | U127: 0 | V127: 0 | W127: 0 | X127: 0 | Y127: 0 | Z127: 0 | AA127: 0 | AB127: 0 | AC127: 0 | AD127: 0 | AE127: 0 | AF127: 0 | AG127: 0 | AH127: 0 | AI127: 0 | AJ127: 0 | AK127: 0 | AL127: 0 | AV127: 77 | AW127: 77 1 | AX127: Résistance naturelle : résistance au feu
N128: =D29 ->  | O128: 0 | P128: 0 | Q128: 0 | R128: 0 | S128: 0 | T128: 0 | U128: 0 | V128: 0 | W128: 0 | X128: 0 | Y128: 0 | Z128: 0 | AA128: 0 | AB128: 0 | AC128: 0 | AD128: 0 | AE128: 0 | AF128: 0 | AG128: 0 | AH128: 0 | AI128: 0 | AJ128: 0 | AK128: 0 | AL128: 0 | AV128: 78 | AW128: 78 1 | AX128: Résistance naturelle : résistance au feu
N129: =M21 ->  | O129: 0 | P129: 0 | Q129: 0 | R129: 0 | S129: 0 | T129: 0 | U129: 0 | V129: 0 | W129: 0 | X129: 0 | Y129: 0 | Z129: 0 | AA129: 0 | AB129: 0 | AC129: 0 | AD129: 0 | AE129: 0 | AF129: 0 | AG129: 0 | AH129: 0 | AI129: 0 | AJ129: 0 | AK129: 0 | AL129: 0 | AV129: 79 | AW129: 79 1 | AX129: Résistance naturelle : résistance au feu
N130: =M22 ->  | O130: 0 | P130: 0 | Q130: 0 | R130: 0 | S130: 0 | T130: 0 | U130: 0 | V130: 0 | W130: 0 | X130: 0 | Y130: 0 | Z130: 0 | AA130: 0 | AB130: 0 | AC130: 0 | AD130: 0 | AE130: 0 | AF130: 0 | AG130: 0 | AH130: 0 | AI130: 0 | AJ130: 0 | AK130: 0 | AL130: 0 | AV130: 80 | AW130: 80 1 | AX130: Résistance naturelle : résistance au feu
N131: =M23 ->  | O131: 0 | P131: 0 | Q131: 0 | R131: 0 | S131: 0 | T131: 0 | U131: 0 | V131: 0 | W131: 0 | X131: 0 | Y131: 0 | Z131: 0 | AA131: 0 | AB131: 0 | AC131: 0 | AD131: 0 | AE131: 0 | AF131: 0 | AG131: 0 | AH131: 0 | AI131: 0 | AJ131: 0 | AK131: 0 | AL131: 0 | AV131: 81 | AW131: 81 1 | AX131: Sixième sens
N132: =M24 ->  | O132: 0 | P132: 0 | Q132: 0 | R132: 0 | S132: 0 | T132: 0 | U132: 0 | V132: 0 | W132: 0 | X132: 0 | Y132: 0 | Z132: 0 | AA132: 0 | AB132: 0 | AC132: 0 | AD132: 0 | AE132: 0 | AF132: 0 | AG132: 0 | AH132: 0 | AI132: 0 | AJ132: 0 | AK132: 0 | AL132: 0 | AV132: 82 | AW132: 82 1 | AX132: Sixième sens
N133: =M27 ->  | O133: 0 | P133: 0 | Q133: 0 | R133: 0 | S133: 0 | T133: 0 | U133: 0 | V133: 0 | W133: 0 | X133: 0 | Y133: 0 | Z133: 0 | AA133: 0 | AB133: 0 | AC133: 0 | AD133: 0 | AE133: 0 | AF133: 0 | AG133: 0 | AH133: 0 | AI133: 0 | AJ133: 0 | AK133: 0 | AL133: 0 | AV133: 83 | AW133: 83 1 | AX133: Sixième sens
N134: =M28 ->  | O134: 0 | P134: 0 | Q134: 0 | R134: 0 | S134: 0 | T134: 0 | U134: 0 | V134: 0 | W134: 0 | X134: 0 | Y134: 0 | Z134: 0 | AA134: 0 | AB134: 0 | AC134: 0 | AD134: 0 | AE134: 0 | AF134: 0 | AG134: 0 | AH134: 0 | AI134: 0 | AJ134: 0 | AK134: 0 | AL134: 0 | AV134: 84 | AW134: 84 1 | AX134: Sixième sens
N135: =M29 ->  | O135: 0 | P135: 0 | Q135: 0 | R135: 0 | S135: 0 | T135: 0 | U135: 0 | V135: 0 | W135: 0 | X135: 0 | Y135: 0 | Z135: 0 | AA135: 0 | AB135: 0 | AC135: 0 | AD135: 0 | AE135: 0 | AF135: 0 | AG135: 0 | AH135: 0 | AI135: 0 | AJ135: 0 | AK135: 0 | AL135: 0 | AV135: 85 | AW135: 85 1 | AX135: Sixième sens
N136: =M30 ->  | O136: 0 | P136: 0 | Q136: 0 | R136: 0 | S136: 0 | T136: 0 | U136: 0 | V136: 0 | W136: 0 | X136: 0 | Y136: 0 | Z136: 0 | AA136: 0 | AB136: 0 | AC136: 0 | AD136: 0 | AE136: 0 | AF136: 0 | AG136: 0 | AH136: 0 | AI136: 0 | AJ136: 0 | AK136: 0 | AL136: 0 | AV136: 86 | AW136: 86 1 | AX136: Sonar
N137: =Y22 ->  | O137: 0 | P137: 0 | Q137: 0 | R137: 0 | S137: 0 | T137: 0 | U137: 0 | V137: 0 | W137: 0 | X137: 0 | Y137: 0 | Z137: 0 | AA137: 0 | AB137: 0 | AC137: 0 | AD137: 0 | AE137: 0 | AF137: 0 | AG137: 0 | AH137: 0 | AI137: 0 | AJ137: 0 | AK137: 0 | AL137: 0
N138: =IF(Y26="Relancer !"," ",Y26) ->  | O138: 0 | P138: 0 | Q138: 0 | R138: 0 | S138: 0 | T138: 0 | U138: 0 | V138: 0 | W138: 0 | X138: 0 | Y138: 0 | Z138: 0 | AA138: 0 | AB138: 0 | AC138: 0 | AD138: 0 | AE138: 0 | AF138: 0 | AG138: 0 | AH138: 0 | AI138: 0 | AJ138: 0 | AK138: 0 | AL138: 0
N139: =IF(Y30="Relancer !"," ",Y30) ->  | O139: =IF($N139=" ",0,VLOOKUP($N139,$B$42:$AB$118,14,)) -> 0 | P139: 0 | Q139: 0 | R139: 0 | S139: 0 | T139: 0 | U139: 0 | V139: 0 | W139: 0 | X139: 0 | Y139: 0 | Z139: 0 | AA139: 0 | AB139: 0 | AC139: 0 | AD139: 0 | AE139: 0 | AF139: 0 | AG139: 0 | AH139: 0 | AI139: 0 | AJ139: 0 | AK139: 0 | AL139: 0
N140: =M36 ->  | O140: =IF($N140=" ",0,VLOOKUP($N140,$B$42:$AB$118,14,)) -> 0 | P140: 0 | Q140: 0 | R140: 0 | S140: 0 | T140: 0 | U140: 0 | V140: 0 | W140: 0 | X140: 0 | Y140: 0 | Z140: 0 | AA140: 0 | AB140: 0 | AC140: 0 | AD140: 0 | AE140: 0 | AF140: 0 | AG140: 0 | AH140: 0 | AI140: 0 | AJ140: 0 | AK140: 0 | AL140: 0
N141: Malus Parasites | T141: =IF(AND(M20="Parasite(s)",M26="Parasite(s)"),ROUND(((L20+L26)/2)-0.5,0),IF(M20="Parasite(s)",ROUND((L20/2)-0.5,0),IF(M26="Parasite(s)",ROUND((L26/2)-0.5,0),0))) -> 0 | AV141: 87 | AW141: 87 1 | AX141: Sonar
N142: Total | O142: =SUM(O120:O141) -> 0 | P142: =SUM(P120:P141) -> 0 | Q142: 0 | R142: 0 | S142: 0 | T142: =SUM(T120:T141) -> 0 | U142: 0 | V142: 0 | W142: =SUM(W120:W141) -> 0 | X142: 0 | Y142: 0 | Z142: 0 | AA142: 0 | AB142: 0 | AC142: 0 | AD142: 0 | AE142: 0 | AF142: 0 | AG142: 0 | AH142: 0 | AI142: 0 | AJ142: 0 | AK142: 0 | AL142: 0 | AV142: 88 | AW142: 88 1 | AX142: Sonar
AV143: 89 | AW143: 89 1 | AX143: Squelette renforcé I
AV144: 90 | AW144: 90 1 | AX144: Symbiote(s) I
AV145: 91 | AW145: 91 1 | AX145: Symbiote(s) I
AV146: 92 | AW146: 92 1 | AX146: Symbiote(s) I
AV147: 93 | AW147: 93 1 | AX147: Tentacule rétractable
AV148: 94 | AW148: 94 1 | AX148: Tentacule rétractable
AV149: 95 | AW149: 95 1 | AX149: Tentacule rétractable
AV150: 96 | AW150: 96 1 | AX150: Vision nocturne
AV151: 97 | AW151: 97 1 | AX151: Vision nocturne
AV152: 98 | AW152: 98 1 | AX152: Vision nocturne
AV153: 99 | AW153: 99 1 | AX153: Vision nocturne
AV154: 00 | AW154: 00 1 | AX154: Vision nocturne
AW155: =CONCATENATE(AV51," 2") -> 1 2 | AX155: Adaptation extérieure
AW156: =CONCATENATE(AV52," 2") -> 2 2 | AX156: Adaptation extérieure
AW157: 3 2 | AX157: Adaptation extérieure
AW158: 4 2 | AX158: Adaptation extérieure
AW159: 5 2 | AX159: Adaptation extérieure
AW160: 6 2 | AX160: Adaptation extérieure
AW161: 7 2 | AX161: Amphibie
AW162: 8 2 | AX162: Amphibie
AW163: 9 2 | AX163: Amphibie
AW164: 10 2 | AX164: Amphibie
AW165: 11 2 | AX165: Androgyne
AW166: 12 2 | AX166: Androgyne
AW167: 13 2 | AX167: Androgyne
AW168: 14 2 | AX168: Asexué
AW169: 15 2 | AX169: Asexué
AW170: 16 2 | AX170: Asexué
AW171: 17 2 | AX171: Autofécondation
AW172: 18 2 | AX172: Autofécondation
AW173: 19 2 | AX173: Autofécondation
AW174: 20 2 | AX174: Caractère génétique animal : canin
AW175: 21 2 | AX175: Caractère génétique animal : canin
AW176: 22 2 | AX176: Caractère génétique animal : canin
AW177: 23 2 | AX177: Caractère génétique animal : canin
AW178: 24 2 | AX178: Contact corrosif I
AW179: 25 2 | AX179: Contact corrosif I
AW180: 26 2 | AX180: Contagion
AW181: 27 2 | AX181: Contagion
AW182: 28 2 | AX182: Corne
AW183: 29 2 | AX183: Corne
AW184: 30 2 | AX184: Corne
AW185: 31 2 | AX185: Crocs
AW186: 32 2 | AX186: Crocs
AW187: 33 2 | AX187: Crocs
AW188: 34 2 | AX188: Crocs
AW189: 35 2 | AX189: Crocs
AW190: 36 2 | AX190: Difformité légère I
AW191: 37 2 | AX191: Difformité légère I
AW192: 38 2 | AX192: Difformité légère I
AW193: 39 2 | AX193: Difformité légère I
AW194: 40 2 | AX194: Difformité légère I
AW195: 41 2 | AX195: Difformité importante I
AW196: 42 2 | AX196: Difformité importante I
AW197: 43 2 | AX197: Difformité importante I
AW198: 44 2 | AX198: Empathie
AW199: 45 2 | AX199: Empathie
AW200: 46 2 | AX200: Empathie
AW201: 47 2 | AX201: Excroissance osseuse rétractable
AW202: 48 2 | AX202: Excroissance osseuse rétractable
AW203: 49 2 | AX203: Excroissance osseuse rétractable
AW204: 50 2 | AX204: Griffes
AW205: 51 2 | AX205: Griffes
AW206: 52 2 | AX206: Griffes
AW207: 53 2 | AX207: Instabilité moléculaire
AW208: 54 2 | AX208: Métamorphe
... 446 more rows

Sheet EXPERIENCE_PRELIMINAIRE
I2: << Légende _ | U2: TOTAL | Y2: Origines et formations | CE2: Avantage pro aléatoire Formation | CF2: Profession 1 | CQ2: Avantage pro aléatoire Formation | CR2: Profession 2 | DC2: Avantage pro aléatoire Formation | DD2: Profession 3 | DO2: Avantage pro aléatoire Formation | DP2: Profession 4 | EA2: Autre | ER2: Professions | GU2: ATTRIBUTS | GV2: COMP. RES. | GX2: COMP. DIF. | GZ2: COMP. | HC2: Sans profession | HF2: FOR | HG2: CON | HH2: COO | HI2: ADA | HJ2: PER | HK2: INT | HL2: VOL | HM2: PRE
U3: Niveau de base | V3: Niveau de maîtrise | W3: Niveau global | Y3: Départ | Z3: Progression naturelle initiale | AA3: Navire nomade | AB3: Petite station | AC3: Station de taille moyenne | AD3: Grande cité | AE3: =E35 -> Navire nomade | AF3: Bas-fonds | AG3: Milieu ouvrier | AH3: Classes moyennes | AI3: Classes supérieures | AJ3: =E36 -> Bas-fonds | AK3: Délinquance/Criminalité | AL3: Apprentissage technique (Aquaculture) | AM3: Apprentissage technique (Mines) | AN3: Apprentissage technique (Usine/Atelier) | AO3: Education scolaire | AP3: Autodidacte | AQ3: =E39 -> Délinquance/Criminalité | AR3: Commerce/Gestion | AS3: Droit | AT3: Ecole d'ingénieurs | AU3: Ecole militaire | AV3: Ecole navale | AW3: Médecine | AX3: Sciences/Sciences humaines | AY3: Sciences politiques | AZ3: =E51 -> Pas d'étude sup. | BA3: Commerce/Gestion | BB3: Droit | BC3: Ecole d'ingénieurs | BD3: Ecole militaire | BE3: Ecole navale | BF3: Médecine | BG3: Sciences/Sciences humaines | BH3: Sciences politiques | BI3: =E76 -> Pas d'étude sup. | BJ3: Commerce/Gestion | BK3: Droit | BL3: Ecole d'ingénieurs | BM3: Ecole militaire | BN3: Ecole navale | BO3: Médecine | BP3: Sciences/Sciences humaines | BQ3: Sciences politiques | BR3: =E101 -> Pas d'étude sup. | BS3: Commerce/Gestion | BT3: Droit | BU3: Ecole d'ingénieurs | BV3: Ecole militaire | BW3: Ecole navale | BX3: Médecine | BY3: Sciences/Sciences humaines | BZ3: Sciences politiques | CA3: =E126 -> Pas d'étude sup. | CB3: Total formation de base | CC3: Total formation de base | CF3: Progression naturelle 1 | CG3: Total avant Profession 1 | CH3: Total avant Profession 1 | CI3: Compétences origines | CJ3: Compétences professionnelles | CK3: =E152 -> Sans profession | CL3: Lignes du tableau caché | CM3: Total Profession 1 | CN3: Total Profession 1 | CR3: Progression naturelle 2 | CS3: Total avant Profession 2 | CT3: Total avant Profession 2 | CU3: Compétences origines | CV3: Compétences professionnelles | CW3: =E171 -> Sans profession | CX3: Lignes du tableau caché | CY3: Total Profession 2 | CZ3: Total Profession 2 | DD3: Progression naturelle 3 | DE3: Total avant Profession 3 | DF3: Total avant Profession 3 | DG3: Compétences origines | DH3: Compétences professionnelles | DI3: =E190 -> Sans profession | DJ3: Lignes du tableau caché | DK3: Total Profession 3 | DL3: Total Profession 3 | DP3: Progression naturelle 4 | DQ3: Total avant Profession 4 | DR3: Total avant Profession 4 | DS3: Compétences origines | DT3: Compétences professionnelles | DU3: =E209 -> Sans profession | DV3: Lignes du tableau caché | DW3: Total Profession 4 | DX3: Total Profession 4 | EA3: Capacités spéciales | EB3: Total avant Avantage Formation | EC3: Total avant Avantage Formation | ED3: Compétences origines | EE3: Compétences professionnelles | EF3: Avantage Formation | EG3: Lignes du tableau caché | EH3: Total Avantage Formation | EI3: Total Avantage Formation | ER3: Sans profession | ES3: Artisan/Artiste | ET3: Assassin | EU3: Barman | EV3: Chasseur de primes | EW3: Contrebandier | EX3: Cultivateur/Eleveur | EY3: Diplomate | EZ3: Erudit/Archéologue | FA3: Espion | FB3: Hybride du Trident (Membre du GSI) | FC3: Marchand | FD3: Marchand itinérant/Conteur | FE3: Médecin/Chirurgien | FF3: Mercenaire | FG3: Mineur | FH3: Officier naval/Navigateur | FI3: Officier militaire | FJ3: Officier militaire (Spé. Op. Surface) | FK3: Officier militaire (Spé. Op. Souterrains) | FL3: Ouvrier/Docker | FM3: Pilote de chasse (Chasseur atmosphérique) | FN3: Pilote de chasse (Chasseur sous-marin) | FO3: Pirate | FP3: Policier/Enquêteur | FQ3: Prêtre du Trident | FR3: Prostituée | FS3: Scientifique/Ingénieur | FT3: Soldat/Milicien | FU3: Soldat d'élite (Commandos marin) | FV3: Soldat d'élite (Commandos souterrains) | FW3: Soldat d'élite (Commandos de surface) | FX3: Soldat d'élite (Forces spéciales) | FY3: Sous-marinier | FZ3: Technicien/Mécanicien | GA3: Techno-Hybride | GB3: Veilleur | GC3: Voleur/Criminel | GH3: Oui | GI3: Navire nomade | GJ3: Bas-fonds | GK3: Aquaculture/Elevage | GL3: Bureaucratie | GM3: Délinquance/Criminalité | GN3: Navires légers | GO3: Armures sous-marines | GP3: Géographie | GQ3: Administration/Gestion | GR3: Armes de poing | GS3: Droit | GV3: X | GX3: -3 | GZ3: 0 | HC3: Artisan/Artiste | HE3: 0 | HF3: =ATTRIBUTS!I20 -> -1 | HG3: =ATTRIBUTS!K20 -> -1 | HH3: =ATTRIBUTS!M20 -> -1 | HI3: =ATTRIBUTS!O20 -> -1 | HJ3: =ATTRIBUTS!Q20 -> -1 | HK3: =ATTRIBUTS!S20 -> -1 | HL3: =ATTRIBUTS!U20 -> -1 | HM3: =ATTRIBUTS!W20 -> -1
A4: TROISIEME EDITION | J4: Cellules à compléter / Sélection à faire dans le menu déroulant / Compétences professionnelles | GH4: Non | GI4: Petite station | GJ4: Milieu ouvrier | GK4: Mécanique (Générateurs/Systèmes de survie) | GL4: Connaissance de la nation d'origine | GM4: Apprentissage technique (Aquaculture) | GN4: Scooters sous-marins | GO4: Armures externes | GP4: Histoire/Archéologie | GQ4: Economie | GR4: Fusils/Armes d'épaule | GS4: Histoire/Archéologie | GV4: -4 | GW4: 0 | GX4: -3 | GY4: 0 | GZ4: 0 | HA4: 0 | HC4: Assassin
J5: Compétences professionnelles grâce aux origines et formations initiales (jusqu'à un degré de maîtrise de 5) | GH5: 0 | GI5: Station de taille moyenne | GJ5: Classes moyennes | GK5: Mécanique (Machines industrielles) | GM5: Apprentissage technique (Mines) | GN5: Véhicules de sol | GQ5: Pas d'étude sup. | GU5: FOR | GV5: -3 | GW5: =GW4+1 -> 1 | GX5: -2 | GY5: =GY4+1 -> 1 | GZ5: 1 | HA5: =HA4+1 -> 1 | HC5: Barman | HE5: Année | HF5: Limite | HI5: Altération temporelle
J6: Compétences hors profession | GH6: 1 | GI6: Grande cité | GJ6: Classes supérieures | GK6: Mécanique (Navires) | GM6: Apprentissage technique (Usine/Atelier) | GQ6: Commerce/Gestion | GR6: Combat naval | GU6: CON | GV6: -2 | GW6: =GW5+1 -> 2 | GX6: -1 | GY6: 2 | GZ6: 2 | HA6: =HA5+1 -> 2 | HC6: Chasseur de primes | HE6: 0 | HF6: 0 | HI6: Attaque psychique
GH7: 2 | GM7: Education scolaire | GQ7: Droit | GR7: Combat souterrain | GU7: COO | GV7: -1 | GW7: 3 | GX7: 0 | GY7: 3 | GZ7: 3 | HA7: =HA6+1 -> 3 | HC7: Contrebandier | HE7: 1 | HF7: 3 | HI7: Barrière de force
J8: Passer la souris au dessus de ce symbole pour afficher un commentaire | GH8: 3 | GM8: Autodidacte | GQ8: Ecole d'ingénieurs | GR8: Combat terrestre | GU8: ADA | GV8: 0 | GW8: 4 | GX8: 1 | GY8: 4 | GZ8: 4 | HA8: =HA7+1 -> 4 | HC8: Cultivateur/Eleveur | HE8: 2 | HF8: 5 | HI8: Barrière moléculaire
GH9: 4 | GQ9: Ecole militaire | GR9: Opérations commando | GU9: PER | GV9: 1 | GW9: 5 | GX9: 2 | GY9: 5 | GZ9: 5 | HA9: =HA8+1 -> 5 | HC9: Diplomate | HE9: 3 | HF9: 7 | HI9: Barrière psychique
I10: * | J10: Compétence limitative | GH10: 5 | GM10: Armes | GQ10: Ecole navale | GU10: INT | GV10: 2 | GW10: 6 | GX10: 3 | GY10: 6 | GZ10: 6 | HA10: =HA9+2 -> 7 | HC10: Erudit/Archéologue | HE10: 4 | HF10: 7 | HI10: Bête du Flux
C11: PC base | E11: =ATTRIBUTS!D23 -> 20 | I11: PN | J11: Compétence à progresion naturelle | GH11: 6 | GM11: Drogues | GQ11: Médecine | GU11: VOL | GV11: 3 | GW11: 7 | GX11: 4 | GY11: =GY10+1 -> 7 | GZ11: 7 | HA11: =HA10+2 -> 9 | HC11: Espion | HE11: 5 | HF11: 7 | HI11: Brouillage
C12: PC Attributs | E12: =ATTRIBUTS!D24 -> 0 | I12: + | J12: Compétence nécessitant un pré-requis | GH12: 7 | GQ12: Sciences/Sciences humaines | GU12: PRE | GV12: 4 | GW12: =GW11+1 -> 8 | GX12: 5 | GY12: =GY11+1 -> 8 | GZ12: 8 | HA12: =HA11+2 -> 11 | HC12: Hybride du Trident (Membre du GSI) | HE12: 6 | HF12: 10 | HI12: Cauchemar
C13: PC Type génétique | E13: =ATTRIBUTS!D25 -> 0 | I13: -3 | J13: Compétence difficile | GH13: 8 | GM13: Contrebandiers | GQ13: Sciences politiques | GV13: 5 | GW13: =GW12+1 -> 9 | GX13: 6 | GY13: =GY12+2 -> 10 | GZ13: 9 | HA13: =HA12+2 -> 13 | HC13: Marchand | HE13: 7 | HF13: 10 | HI13: Champ de force
C14: PC Capacités spé. | E14: =ATTRIBUTS!D26 -> 0 | I14: X | J14: Compétence réservée | GH14: 9 | GM14: Crime organisé | GV14: 6 | GW14: =GW13+2 -> 11 | GX14: 7 | GY14: =GY13+2 -> 12 | GZ14: 10 | HA14: =HA13+2 -> 15 | HC14: Marchand itinérant/Conteur | HE14: 8 | HF14: 10 | HI14: Champ moléculaire
C15: PC Exp. préliminaire | E15: =E20+E21 -> 0 | GH15: 10 | GM15: Pirates | GU15: Bilingue | GV15: 7 | GW15: =GW14+2 -> 13 | GX15: 8 | GY15: =GY14+2 -> 14 | GZ15: 11 | HA15: =HA14+3 -> 18 | HC15: Médecin/Chirurgien | HE15: 9 | HF15: 10 | HI15: Champ psychique
C16: PC Avantages/Desav. | E16: =ATTRIBUTS!D28 -> 0 | M16: Années d'expérience | T16: =AZ16+BI16+BR16+CA16+CK16+CW16+DI16+DU16+EF16 -> 0 | AR16: 2 | AS16: 2 | AT16: 2 | AU16: 2 | AV16: 2 | AW16: 2 | AX16: 2 | AY16: 2 | AZ16: =IF(AZ3="Pas d'étude sup.",0,2) -> 0 | BA16: 2 | BB16: 2 | BC16: 2 | BD16: 2 | BE16: 2 | BF16: 2 | BG16: 2 | BH16: 2 | BI16: =IF(BI3="Pas d'étude sup.",0,2) -> 0 | BJ16: 2 | BK16: 2 | BL16: 2 | BM16: 2 | BN16: 2 | BO16: 2 | BP16: 2 | BQ16: 2 | BR16: =IF(BR3="Pas d'étude sup.",0,2) -> 0 | BS16: 2 | BT16: 2 | BU16: 2 | BV16: 2 | BW16: 2 | BX16: 2 | BY16: 2 | BZ16: 2 | CA16: =IF(CA3="Pas d'étude sup.",0,2) -> 0 | CK16: =E154 -> 0 | CW16: =E173 -> 0 | DI16: =E192 -> 0 | DU16: =E211 -> 0 | EF16: =AVANTAGES_DESAVANTAGES!$AD$126 -> 0 | GH16: 11 | GU16: 0 | GV16: 8 | GW16: =GW15+2 -> 15 | GX16: 9 | GY16: =GY15+2 -> 16 | GZ16: 12 | HA16: =HA15+5 -> 23 | HC16: Mercenaire | HE16: 10 | HF16: 10 | HI16: Contrôle mental
C17: PC restants | E17: =E11-E12-E13-E14-E15-E16 -> 20 | M17: COMPETENCES | GH17: 12 | GU17: 10 | GV17: 9 | GW17: =GW16+2 -> 17 | GX17: 10 | GY17: =GY16+2 -> 18 | GZ17: 13 | HA17: =HA16+7 -> 30 | HC17: Mineur | HE17: 11 | HF17: 13 | HI17: Dague psychique
E18: =IF(E17<0,"ERREUR","") ->  | M18: Aptitudes physiques | GH18: 13 | GV18: 10 | GW18: =GW17+2 -> 19 | GX18: 11 | GY18: =GY17+3 -> 21 | GZ18: 14 | HA18: =HA17+9 -> 39 | HC18: Officier naval/Navigateur | HE18: 12 | HF18: 13 | HI18: Déchirure du Flux
P19: Acrobatie/Equilibre * | R19: COO | S19: COO | U19: =HLOOKUP(R19,$HE$2:$HM$3,2,)+HLOOKUP(S19,$HE$2:$HM$3,2,) -> -2 | V19: =EI19 -> 0 | W19: =IF(V19="X","X",U19+V19) -> -2 | Y19: =IF(Q19="X",-4,Q19) -> 0 | AE19: =IF($AE$3=$AA$3,AA19,IF($AE$3=$AB$3,AB19,IF($AE$3=$AC$3,AC19,IF($AE$3=$AD$3,AD19,0)))) -> 0 | AJ19: =IF($AJ$3=$AF$3,AF19,IF($AJ$3=$AG$3,AG19,IF($AJ$3=$AH$3,AH19,IF($AJ$3=$AI$3,AI19,0)))) -> 0 | AP19: 0 | AQ19: =IF($AQ$3=$AK$3,AK19,IF($AQ$3=$AL$3,AL19,IF($AQ$3=$AM$3,AM19,IF($AQ$3=$AN$3,AN19,IF($AQ$3=$AO$3,AO19,IF($AQ$3=$AP$3,AP19,0)))))) -> 0 | AZ19: =IF(AZ$3=AR$3,AR19,IF(AZ$3=AS$3,AS19,IF(AZ$3=AT$3,AT19,IF(AZ$3=AU$3,AU19,IF(AZ$3=AV$3,AV19,IF(AZ$3=AW$3,AW19,IF(AZ$3=AX$3,AX19,IF(AZ$3=AY$3,AY19,0)))))))) -> 0 | BI19: =IF(BI$3=BA$3,BA19,IF(BI$3=BB$3,BB19,IF(BI$3=BC$3,BC19,IF(BI$3=BD$3,BD19,IF(BI$3=BE$3,BE19,IF(BI$3=BF$3,BF19,IF(BI$3=BG$3,BG19,IF(BI$3=BH$3,BH19,0)))))))) -> 0 | BR19: =IF(BR$3=BJ$3,BJ19,IF(BR$3=BK$3,BK19,IF(BR$3=BL$3,BL19,IF(BR$3=BM$3,BM19,IF(BR$3=BN$3,BN19,IF(BR$3=BO$3,BO19,IF(BR$3=BP$3,BP19,IF(BR$3=BQ$3,BQ19,0)))))))) -> 0 | CA19: =IF(CA$3=BS$3,BS19,IF(CA$3=BT$3,BT19,IF(CA$3=BU$3,BU19,IF(CA$3=BV$3,BV19,IF(CA$3=BW$3,BW19,IF(CA$3=BX$3,BX19,IF(CA$3=BY$3,BY19,IF(CA$3=BZ$3,BZ19,0)))))))) -> 0 | CB19: =IF(Q19="X",Z19+AE19+AJ19+AQ19+AZ19+BI19+BR19+CA19-4,IF(Q19=-3,Z19+AE19+AJ19+AQ19+AZ19+BI19+BR19+CA19-3,Z19+AE19+AJ19+AQ19+AZ19+BI19+BR19+CA19)) -> 0 | CC19: =IF(CB19=-4,"X",CB19) -> 0 | CE19: =IF($E$233=P19,1,IF($E$234=P19,1,IF($E$235=P19,1,IF($E$236=P19,1,IF($E$237=P19,1,IF($E$238=P19,1,0)))))) -> 0 | CG19: =CB19+CF19 -> 0 | CH19: =IF(CG19=-4,"X",CG19) -> 0 | CI19: =IF(AND(($Z19+$AE19+$AJ19+$AQ19+$AZ19+$BI19+$BR19+$CA19)>0,CM19>4),2,IF(AND(($Z19+$AE19+$AJ19+$AQ19+$AZ19+$BI19+$BR19+$CA19)>0,CG19<5),1,0)) -> 0 | CJ19: =IF(CE19=1,1,(HLOOKUP($CK$3,$ER$3:$GC$262,CL19,))) -> 2 | CK19: 0 | CL19: 17 | CM19: =CG19+CK19 -> 0 | CN19: =IF(CM19=-4,"X",CM19) -> 0 | CO19: =IF(ROUND(CJ19,0)=1,(VLOOKUP(CM19,$GV$4:$GW$28,2,)-(4+$Y19))-(VLOOKUP(CG19,$GV$4:$GW$28,2,)-(4+$Y19)),IF(ROUND(CI19,0)=1,(VLOOKUP(CM19,$GV$4:$GW$28,2,)-(4+$Y19))-(VLOOKUP(CG19,$GV$4:$GW$28,2,)-(4+$Y19)),((VLOOKUP(CM19,$GV$4:$GW$28,2,)-(4+$Y19))-(VLOOKUP(CG19,$GV$4:$GW$28,2,)-(4+$Y19)))*2)) -> 0 | CP19: =IF(CJ19=1,0,IF(CI19=2,IF(AND(($Z19+$AE19+$AJ19+$AQ19+$AZ19+$BI19+$BR19+$CA19)>0,CG19<5),5-CG19,0),0)) -> 0 | CQ19: =IF($E$241=P19,1,IF($E$242=P19,1,IF($E$243=P19,1,IF($E$244=P19,1,IF($E$245=P19,1,IF($E$246=P19,1,0)))))) -> 0 | CS19: =CM19+CR19 -> 0 | CT19: =IF(CS19=-4,"X",CS19) -> 0 | CU19: =IF(AND(($Z19+$AE19+$AJ19+$AQ19+$AZ19+$BI19+$BR19+$CA19)>0,CY19>4),2,IF(AND(($Z19+$AE19+$AJ19+$AQ19+$AZ19+$BI19+$BR19+$CA19)>0,CS19<5),1,0)) -> 0 | CV19: =IF(CQ19=1,1,(HLOOKUP($CW$3,$ER$3:$GC$262,CX19,))) -> 2 | CW19: 0 | CX19: 17 | CY19: =CS19+CW19 -> 0 | CZ19: =IF(CY19=-4,"X",CY19) -> 0 | DA19: =IF(ROUND(CV19,0)=1,(VLOOKUP(CY19,$GV$4:$GW$28,2,)-(4+$Y19))-(VLOOKUP(CS19,$GV$4:$GW$28,2,)-(4+$Y19)),IF(ROUND(CU19,0)=1,(VLOOKUP(CY19,$GV$4:$GW$28,2,)-(4+$Y19))-(VLOOKUP(CS19,$GV$4:$GW$28,2,)-(4+$Y19)),((VLOOKUP(CY19,$GV$4:$GW$28,2,)-(4+$Y19))-(VLOOKUP(CS19,$GV$4:$GW$28,2,)-(4+$Y19)))*2)) -> 0 | DB19: =IF(CV19=1,0,IF(CU19=2,IF(AND(($Z19+$AE19+$AJ19+$AQ19+$AZ19+$BI19+$BR19+$CA19)>0,CS19<5),5-CS19,0),0)) -> 0 | DC19: =IF($E$249=P19,1,IF($E$250=P19,1,IF($E$251=P19,1,IF($E$252=P19,1,IF($E$253=P19,1,IF($E$254=P19,1,0)))))) -> 0 | DE19: =CY19+DD19 -> 0 | DF19: =IF(DE19=-4,"X",DE19) -> 0 | DG19: =IF(AND(($Z19+$AE19+$AJ19+$AQ19+$AZ19+$BI19+$BR19+$CA19)>0,DK19>4),2,IF(AND(($Z19+$AE19+$AJ19+$AQ19+$AZ19+$BI19+$BR19+$CA19)>0,DE19<5),1,0)) -> 0 | DH19: =IF(DC19=1,1,(HLOOKUP($DI$3,$ER$3:$GC$262,DJ19,))) -> 2 | DI19: 0 | DJ19: 17 | DK19: =DE19+DI19 -> 0 | DL19: =IF(DK19=-4,"X",DK19) -> 0 | DM19: =IF(ROUND(DH19,0)=1,(VLOOKUP(DK19,$GV$4:$GW$28,2,)-(4+$Y19))-(VLOOKUP(DE19,$GV$4:$GW$28,2,)-(4+$Y19)),IF(ROUND(DG19,0)=1,(VLOOKUP(DK19,$GV$4:$GW$28,2,)-(4+$Y19))-(VLOOKUP(DE19,$GV$4:$GW$28,2,)-(4+$Y19)),((VLOOKUP(DK19,$GV$4:$GW$28,2,)-(4+$Y19))-(VLOOKUP(DE19,$GV$4:$GW$28,2,)-(4+$Y19)))*2)) -> 0 | DN19: =IF(DH19=1,0,IF(DG19=2,IF(AND(($Z19+$AE19+$AJ19+$AQ19+$AZ19+$BI19+$BR19+$CA19)>0,DE19<5),5-DE19,0),0)) -> 0 | DO19: =IF($E$257=P19,1,IF($E$258=P19,1,IF($E$259=P19,1,IF($E$260=P19,1,IF($E$261=P19,1,IF($E$262=P19,1,0)))))) -> 0 | DQ19: =DK19+DP19 -> 0 | DR19: =IF(DQ19=-4,"X",DQ19) -> 0 | DS19: =IF(AND(($Z19+$AE19+$AJ19+$AQ19+$AZ19+$BI19+$BR19+$CA19)>0,DW19>4),2,IF(AND(($Z19+$AE19+$AJ19+$AQ19+$AZ19+$BI19+$BR19+$CA19)>0,DQ19<5),1,0)) -> 0 | DT19: =IF(DO19=1,1,(HLOOKUP($DU$3,$ER$3:$GC$262,DV19,))) -> 2 | DU19: 0 | DV19: 17 | DW19: =DQ19+DU19 -> 0 | DX19: =IF(DW19=-4,"X",DW19) -> 0 | DY19: =IF(ROUND(DT19,0)=1,(VLOOKUP(DW19,$GV$4:$GW$28,2,)-(4+$Y19))-(VLOOKUP(DQ19,$GV$4:$GW$28,2,)-(4+$Y19)),IF(ROUND(DS19,0)=1,(VLOOKUP(DW19,$GV$4:$GW$28,2,)-(4+$Y19))-(VLOOKUP(DQ19,$GV$4:$GW$28,2,)-(4+$Y19)),((VLOOKUP(DW19,$GV$4:$GW$28,2,)-(4+$Y19))-(VLOOKUP(DQ19,$GV$4:$GW$28,2,)-(4+$Y19)))*2)) -> 0 | DZ19: =IF(DT19=1,0,IF(DS19=2,IF(AND(($Z19+$AE19+$AJ19+$AQ19+$AZ19+$BI19+$BR19+$CA19)>0,DQ19<5),5-DQ19,0),0)) -> 0 | EA19: =CAPACITES_SPECIALES!Z142 -> 0 | EB19: =DW19+EA19 -> 0 | EC19: =IF(EB19=-4,"X",EB19) -> 0 | ED19: 0 | EE19: 1 | EF19: 0 | EG19: 17 | EH19: =EB19+EF19 -> 0 | EI19: =IF(EH19=-4,"X",EH19) -> 0 | EJ19: =IF(ROUND(EE19,0)=1,(VLOOKUP(EH19,$GV$4:$GW$28,2,)-(4+$Y19))-(VLOOKUP(EB19,$GV$4:$GW$28,2,)-(4+$Y19)),IF(ROUND(ED19,0)=1,(VLOOKUP(EH19,$GV$4:$GW$28,2,)-(4+$Y19))-(VLOOKUP(EB19,$GV$4:$GW$28,2,)-(4+$Y19)),((VLOOKUP(EH19,$GV$4:$GW$28,2,)-(4+$Y19))-(VLOOKUP(EB19,$GV$4:$GW$28,2,)-(4+$Y19)))*2)) -> 0 | ER19: 2 | ES19: 2 | ET19: 1 | EU19: 2 | EV19: 2 | EW19: 2 | EX19: 2 | EY19: 2 | EZ19: 2 | FA19: 1 | FB19: 2 | FC19: 2 | FD19: 2 | FE19: 2 | FF19: 2 | FG19: 2 | FH19: 2 | FI19: 2 | FJ19: 2 | FK19: 2 | FL19: 2 | FM19: 2 | FN19: 2 | FO19: 2 | FP19: 2 | FQ19: =IF(AVANTAGES_PROFESSIONNELS!DN557>0,1,2) -> 2 | FR19: 2 | FS19: 2 | FT19: 2 | FU19: 2 | FV19: 2 | FW19: 2 | FX19: 2 | FY19: 2 | FZ19: 2 | GA19: 2 | GB19: 2 | GC19: 1 | GH19: 14 | GV19: 11 | GW19: =GW18+3 -> 22 | GX19: 12 | GY19: =GY18+5 -> 26 | GZ19: 15 | HA19: =HA18+11 -> 50 | HC19: Officier militaire | HE19: 13 | HF19: 13 | HI19: Désintégration moléculaire
C20: PC Etudes supérieures | E20: =J51+J76+J101+J126 -> 0 | P20: Athlétisme | R20: FOR | S20: COO | U20: -2 | V20: 0 | W20: =IF(V20="X","X",U20+V20) -> -2 | Y20: =IF(Q20="X",-4,Q20) -> 0 | AE20: 0 | AJ20: =IF($AJ$3=$AF$3,AF20,IF($AJ$3=$AG$3,AG20,IF($AJ$3=$AH$3,AH20,IF($AJ$3=$AI$3,AI20,0)))) -> 0 | AP20: 0 | AQ20: =IF($AQ$3=$AK$3,AK20,IF($AQ$3=$AL$3,AL20,IF($AQ$3=$AM$3,AM20,IF($AQ$3=$AN$3,AN20,IF($AQ$3=$AO$3,AO20,IF($AQ$3=$AP$3,AP20,0)))))) -> 0 | AZ20: =IF(AZ$3=AR$3,AR20,IF(AZ$3=AS$3,AS20,IF(AZ$3=AT$3,AT20,IF(AZ$3=AU$3,AU20,IF(AZ$3=AV$3,AV20,IF(AZ$3=AW$3,AW20,IF(AZ$3=AX$3,AX20,IF(AZ$3=AY$3,AY20,0)))))))) -> 0 | BI20: =IF(BI$3=BA$3,BA20,IF(BI$3=BB$3,BB20,IF(BI$3=BC$3,BC20,IF(BI$3=BD$3,BD20,IF(BI$3=BE$3,BE20,IF(BI$3=BF$3,BF20,IF(BI$3=BG$3,BG20,IF(BI$3=BH$3,BH20,0)))))))) -> 0 | BR20: =IF(BR$3=BJ$3,BJ20,IF(BR$3=BK$3,BK20,IF(BR$3=BL$3,BL20,IF(BR$3=BM$3,BM20,IF(BR$3=BN$3,BN20,IF(BR$3=BO$3,BO20,IF(BR$3=BP$3,BP20,IF(BR$3=BQ$3,BQ20,0)))))))) -> 0 | CA20: =IF(CA$3=BS$3,BS20,IF(CA$3=BT$3,BT20,IF(CA$3=BU$3,BU20,IF(CA$3=BV$3,BV20,IF(CA$3=BW$3,BW20,IF(CA$3=BX$3,BX20,IF(CA$3=BY$3,BY20,IF(CA$3=BZ$3,BZ20,0)))))))) -> 0 | CB20: =IF(Q20="X",Z20+AE20+AJ20+AQ20+AZ20+BI20+BR20+CA20-4,IF(Q20=-3,Z20+AE20+AJ20+AQ20+AZ20+BI20+BR20+CA20-3,Z20+AE20+AJ20+AQ20+AZ20+BI20+BR20+CA20)) -> 0 | CC20: =IF(CB20=-4,"X",CB20) -> 0 | CE20: 0 | CG20: =CB20+CF20 -> 0 | CH20: =IF(CG20=-4,"X",CG20) -> 0 | CI20: =IF(AND(($Z20+$AE20+$AJ20+$AQ20+$AZ20+$BI20+$BR20+$CA20)>0,CM20>4),2,IF(AND(($Z20+$AE20+$AJ20+$AQ20+$AZ20+$BI20+$BR20+$CA20)>0,CG20<5),1,0)) -> 0 | CJ20: 2 | CK20: 0 | CL20: 18 | CM20: =CG20+CK20 -> 0 | CN20: =IF(CM20=-4,"X",CM20) -> 0 | CO20: 0 | CP20: =IF(CJ20=1,0,IF(CI20=2,IF(AND(($Z20+$AE20+$AJ20+$AQ20+$AZ20+$BI20+$BR20+$CA20)>0,CG20<5),5-CG20,0),0)) -> 0 | CQ20: 0 | CS20: 0 | CT20: =IF(CS20=-4,"X",CS20) -> 0 | CU20: =IF(AND(($Z20+$AE20+$AJ20+$AQ20+$AZ20+$BI20+$BR20+$CA20)>0,CY20>4),2,IF(AND(($Z20+$AE20+$AJ20+$AQ20+$AZ20+$BI20+$BR20+$CA20)>0,CS20<5),1,0)) -> 0 | CV20: 2 | CW20: 0 | CX20: 18 | CY20: =CS20+CW20 -> 0 | CZ20: =IF(CY20=-4,"X",CY20) -> 0 | DA20: 0 | DB20: =IF(CV20=1,0,IF(CU20=2,IF(AND(($Z20+$AE20+$AJ20+$AQ20+$AZ20+$BI20+$BR20+$CA20)>0,CS20<5),5-CS20,0),0)) -> 0 | DC20: 0 | DE20: =CY20+DD20 -> 0 | DF20: =IF(DE20=-4,"X",DE20) -> 0 | DG20: =IF(AND(($Z20+$AE20+$AJ20+$AQ20+$AZ20+$BI20+$BR20+$CA20)>0,DK20>4),2,IF(AND(($Z20+$AE20+$AJ20+$AQ20+$AZ20+$BI20+$BR20+$CA20)>0,DE20<5),1,0)) -> 0 | DH20: 2 | DI20: 0 | DJ20: 18 | DK20: =DE20+DI20 -> 0 | DL20: =IF(DK20=-4,"X",DK20) -> 0 | DM20: 0 | DN20: =IF(DH20=1,0,IF(DG20=2,IF(AND(($Z20+$AE20+$AJ20+$AQ20+$AZ20+$BI20+$BR20+$CA20)>0,DE20<5),5-DE20,0),0)) -> 0 | DO20: 0 | DQ20: =DK20+DP20 -> 0 | DR20: =IF(DQ20=-4,"X",DQ20) -> 0 | DS20: =IF(AND(($Z20+$AE20+$AJ20+$AQ20+$AZ20+$BI20+$BR20+$CA20)>0,DW20>4),2,IF(AND(($Z20+$AE20+$AJ20+$AQ20+$AZ20+$BI20+$BR20+$CA20)>0,DQ20<5),1,0)) -> 0 | DT20: 2 | DU20: 0 | DV20: 18 | DW20: =DQ20+DU20 -> 0 | DX20: =IF(DW20=-4,"X",DW20) -> 0 | DY20: 0 | DZ20: =IF(DT20=1,0,IF(DS20=2,IF(AND(($Z20+$AE20+$AJ20+$AQ20+$AZ20+$BI20+$BR20+$CA20)>0,DQ20<5),5-DQ20,0),0)) -> 0 | EB20: =DW20+EA20 -> 0 | EC20: =IF(EB20=-4,"X",EB20) -> 0 | ED20: 0 | EE20: 1 | EF20: 0 | EG20: 18 | EH20: =EB20+EF20 -> 0 | EI20: =IF(EH20=-4,"X",EH20) -> 0 | EJ20: 0 | ER20: 2 | ES20: 2 | ET20: 1 | EU20: 2 | EV20: 1 | EW20: 2 | EX20: 2 | EY20: 2 | EZ20: 2 | FA20: 1 | FB20: 1 | FC20: 2 | FD20: 2 | FE20: 2 | FF20: 1 | FG20: 2 | FH20: 2 | FI20: 1 | FJ20: 1 | FK20: 1 | FL20: 2 | FM20: 1 | FN20: 1 | FO20: 2 | FP20: 1 | FQ20: 2 | FR20: 2 | FS20: 2 | FT20: 1 | FU20: 1 | FV20: 1 | FW20: 1 | FX20: 1 | FY20: 2 | FZ20: 2 | GA20: 1 | GB20: 1 | GC20: 2 | GH20: 15 | GV20: 12 | GW20: =GW19+5 -> 27 | GX20: 13 | GY20: =GY19+7 -> 33 | GZ20: 16 | HA20: =HA19+13 -> 63 | HC20: Officier militaire (Spé. Op. Surface) | HE20: 14 | HF20: 13 | HI20: Déstructuration
C21: PC Exp. professionnelle | E21: 0 | P21: Endurance * | R21: CON | S21: VOL | U21: -2 | V21: 0 | W21: -2 | Y21: 0 | AE21: 0 | AJ21: 0 | AP21: 0 | AQ21: 0 | AZ21: 0 | BI21: 0 | BR21: 0 | CA21: 0 | CB21: 0 | CC21: 0 | CE21: 0 | CG21: 0 | CH21: 0 | CI21: 0 | CJ21: 2 | CK21: 0 | CL21: 19 | CM21: 0 | CN21: 0 | CO21: 0 | CP21: 0 | CQ21: 0 | CS21: 0 | CT21: 0 | CU21: 0 | CV21: 2 | CW21: 0 | CX21: 19 | CY21: 0 | CZ21: 0 | DA21: 0 | DB21: 0 | DC21: 0 | DE21: 0 | DF21: 0 | DG21: 0 | DH21: 2 | DI21: 0 | DJ21: 19 | DK21: 0 | DL21: 0 | DM21: 0 | DN21: 0 | DO21: 0 | DQ21: 0 | DR21: 0 | DS21: 0 | DT21: 2 | DU21: 0 | DV21: 19 | DW21: 0 | DX21: 0 | DY21: 0 | DZ21: 0 | EB21: 0 | EC21: 0 | ED21: 0 | EE21: 1 | EF21: 0 | EG21: 19 | EH21: 0 | EI21: 0 | EJ21: 0 | ER21: 2 | ES21: 2 | ET21: 1 | EU21: 2 | EV21: 1 | EW21: 2 | EX21: 1 | EY21: 2 | EZ21: 2 | FA21: 2 | FB21: 1 | FC21: 2 | FD21: 2 | FE21: 2 | FF21: 1 | FG21: 1 | FH21: 1 | FI21: 1 | FJ21: 1 | FK21: 1 | FL21: 1 | FM21: 1 | FN21: 1 | FO21: 2 | FP21: 1 | FQ21: 2 | FR21: 2 | FS21: 2 | FT21: 1 | FU21: 1 | FV21: 1 | FW21: 1 | FX21: 1 | FY21: 1 | FZ21: 2 | GA21: 1 | GB21: 1 | GC21: 2 | GH21: 16 | GV21: 13 | GW21: =GW20+7 -> 34 | GX21: 14 | GY21: =GY20+9 -> 42 | GZ21: 17 | HA21: =HA20+15 -> 78 | HC21: Officier militaire (Spé. Op. Souterrains) | HE21: 15 | HF21: 13 | HI21: Disruption moléculaire
C22: Pts Comp. disponibles | E22: =E21*10 -> 0 | P22: Escalade | R22: FOR | S22: COO | U22: -2 | V22: 0 | W22: -2 | Y22: 0 | AE22: 0 | AJ22: 0 | AP22: 0 | AQ22: 0 | AZ22: 0 | BI22: 0 | BR22: 0 | CA22: 0 | CB22: 0 | CC22: 0 | CE22: 0 | CG22: 0 | CH22: 0 | CI22: 0 | CJ22: 2 | CK22: 0 | CL22: 20 | CM22: 0 | CN22: 0 | CO22: 0 | CP22: 0 | CQ22: 0 | CS22: 0 | CT22: 0 | CU22: 0 | CV22: 2 | CW22: 0 | CX22: 20 | CY22: 0 | CZ22: 0 | DA22: 0 | DB22: 0 | DC22: 0 | DE22: 0 | DF22: 0 | DG22: 0 | DH22: 2 | DI22: 0 | DJ22: 20 | DK22: 0 | DL22: 0 | DM22: 0 | DN22: 0 | DO22: 0 | DQ22: 0 | DR22: 0 | DS22: 0 | DT22: 2 | DU22: 0 | DV22: 20 | DW22: 0 | DX22: 0 | DY22: 0 | DZ22: 0 | EA22: =CAPACITES_SPECIALES!AB142 -> 0 | EB22: 0 | EC22: 0 | ED22: 0 | EE22: 1 | EF22: 0 | EG22: 20 | EH22: 0 | EI22: 0 | EJ22: 0 | ER22: 2 | ES22: 2 | ET22: 1 | EU22: 2 | EV22: 2 | EW22: 2 | EX22: 2 | EY22: 2 | EZ22: 2 | FA22: 1 | FB22: 2 | FC22: 2 | FD22: 2 | FE22: 2 | FF22: 2 | FG22: 1 | FH22: 2 | FI22: 2 | FJ22: 2 | FK22: 2 | FL22: 2 | FM22: 2 | FN22: 2 | FO22: 2 | FP22: 2 | FQ22: 2 | FR22: 2 | FS22: 2 | FT22: 1 | FU22: 2 | FV22: 1 | FW22: 1 | FX22: 2 | FY22: 2 | FZ22: 2 | GA22: 2 | GB22: 2 | GC22: 1 | GH22: 17 | GV22: 14 | GW22: =GW21+9 -> 43 | GX22: 15 | GY22: =GY21+11 -> 53 | GZ22: 18 | HA22: =HA21+17 -> 95 | HC22: Ouvrier/Docker | HE22: 16 | HF22: 13 | HI22: Foudre
C23: Pts Comp. restants | E23: =CK265+CW265+DI265+DU265-AVANTAGES_PROFESSIONNELS!CF557 -> 0 | P23: Manœuvres 0G * | R23: COO | S23: ADA | U23: -2 | V23: 0 | W23: -2 | Y23: 0 | AE23: 0 | AJ23: 0 | AP23: 0 | AQ23: 0 | AZ23: 0 | BI23: 0 | BR23: 0 | CA23: 0 | CB23: 0 | CC23: 0 | CE23: 0 | CG23: 0 | CH23: 0 | CI23: 0 | CJ23: 2 | CK23: 0 | CL23: 21 | CM23: 0 | CN23: 0 | CO23: 0 | CP23: 0 | CQ23: 0 | CS23: 0 | CT23: 0 | CU23: 0 | CV23: 2 | CW23: 0 | CX23: 21 | CY23: 0 | CZ23: 0 | DA23: 0 | DB23: 0 | DC23: 0 | DE23: 0 | DF23: 0 | DG23: 0 | DH23: 2 | DI23: 0 | DJ23: 21 | DK23: 0 | DL23: 0 | DM23: 0 | DN23: 0 | DO23: 0 | DQ23: 0 | DR23: 0 | DS23: 0 | DT23: 2 | DU23: 0 | DV23: 21 | DW23: 0 | DX23: 0 | DY23: 0 | DZ23: 0 | EB23: 0 | EC23: 0 | ED23: 0 | EE23: 1 | EF23: 0 | EG23: 21 | EH23: 0 | EI23: 0 | EJ23: 0 | ER23: 2 | ES23: 2 | ET23: 2 | EU23: 2 | EV23: 2 | EW23: 2 | EX23: 2 | EY23: 2 | EZ23: 2 | FA23: 2 | FB23: 2 | FC23: 2 | FD23: 2 | FE23: 2 | FF23: 2 | FG23: 2 | FH23: 2 | FI23: 2 | FJ23: 2 | FK23: 2 | FL23: 2 | FM23: 2 | FN23: 2 | FO23: 2 | FP23: 2 | FQ23: 2 | FR23: 2 | FS23: 2 | FT23: 2 | FU23: 2 | FV23: 2 | FW23: 2 | FX23: 2 | FY23: 2 | FZ23: 2 | GA23: 2 | GB23: 2 | GC23: 2 | GH23: 18 | GV23: 15 | GW23: =GW22+11 -> 54 | GX23: 16 | GY23: =GY22+13 -> 66 | GZ23: 19 | HA23: =HA22+19 -> 114 | HC23: Pilote de chasse (Chasseur atmosphérique) | HE23: 17 | HF23: 13 | HI23: Guérison psychique
E24: =IF(E23<0,"ERREUR","") ->  | P24: Manœuvres sous-marines * | R24: FOR | S24: COO | U24: -2 | V24: 1 | W24: -1 | Y24: 0 | AA24: 1 | AB24: 1 | AC24: 1 | AE24: 1 | AJ24: 0 | AL24: 1 | AP24: 0 | AQ24: 0 | AZ24: 0 | BI24: 0 | BR24: 0 | CA24: 0 | CB24: 1 | CC24: 1 | CE24: 0 | CG24: 1 | CH24: 1 | CI24: 1 | CJ24: 2 | CK24: 0 | CL24: 22 | CM24: =CG24+CK24 -> 1 | CN24: 1 | CO24: 0 | CP24: 0 | CQ24: 0 | CS24: 1 | CT24: 1 | CU24: 1 | CV24: 2 | CW24: 0 | CX24: 22 | CY24: 1 | CZ24: 1 | DA24: 0 | DB24: 0 | DC24: 0 | DE24: 1 | DF24: 1 | DG24: 1 | DH24: 2 | DI24: 0 | DJ24: 22 | DK24: 1 | DL24: 1 | DM24: 0 | DN24: 0 | DO24: 0 | DQ24: 1 | DR24: 1 | DS24: 1 | DT24: 2 | DU24: 0 | DV24: 22 | DW24: 1 | DX24: 1 | DY24: 0 | DZ24: 0 | EB24: 1 | EC24: 1 | ED24: 0 | EE24: 1 | EF24: 0 | EG24: 22 | EH24: 1 | EI24: 1 | EJ24: 0 | ER24: 2 | ES24: 2 | ET24: 2 | EU24: 2 | EV24: 1 | EW24: 2 | EX24: 1 | EY24: 2 | EZ24: 2 | FA24: 2 | FB24: 1 | FC24: 2 | FD24: 2 | FE24: 2 | FF24: 1 | FG24: 1 | FH24: 1 | FI24: 1 | FJ24: 1 | FK24: 1 | FL24: 2 | FM24: 2 | FN24: 2 | FO24: 1 | FP24: 2 | FQ24: 2 | FR24: 2 | FS24: 2 | FT24: 2 | FU24: 1 | FV24: 2 | FW24: 2 | FX24: 2 | FY24: 1 | FZ24: 2 | GA24: 1 | GB24: 2 | GC24: 2 | GH24: 19 | GJ24: Armes de jet | GK24: Armes de jet | GV24: 16 | GW24: =GW23+13 -> 67 | GX24: 17 | GY24: =GY23+15 -> 81 | GZ24: 20 | HA24: =HA23+21 -> 135 | HC24: Pilote de chasse (Chasseur sous-marin) | HE24: 18 | HF24: 13 | HI24: Guérison moléculaire
P25: Respiration FOE | Q25: -3 | R25: CON | S25: VOL | U25: -2 | V25: -3 | W25: -5 | Y25: -3 | AE25: 0 | AJ25: 0 | AP25: 0 | AQ25: 0 | AZ25: 0 | BI25: 0 | BR25: 0 | CA25: 0 | CB25: -3 | CC25: -3 | CE25: 0 | CG25: -3 | CH25: -3 | CI25: 0 | CJ25: 2 | CK25: 0 | CL25: 23 | CM25: -3 | CN25: -3 | CO25: 0 | CP25: 0 | CQ25: 0 | CS25: -3 | CT25: -3 | CU25: 0 | CV25: 2 | CW25: 0 | CX25: 23 | CY25: -3 | CZ25: -3 | DA25: 0 | DB25: 0 | DC25: 0 | DE25: -3 | DF25: -3 | DG25: 0 | DH25: 2 | DI25: 0 | DJ25: 23 | DK25: -3 | DL25: -3 | DM25: 0 | DN25: 0 | DO25: 0 | DQ25: -3 | DR25: -3 | DS25: 0 | DT25: 2 | DU25: 0 | DV25: 23 | DW25: -3 | DX25: -3 | DY25: 0 | DZ25: 0 | EB25: -3 | EC25: -3 | ED25: 0 | EE25: 1 | EF25: 0 | EG25: 23 | EH25: -3 | EI25: -3 | EJ25: 0 | ER25: 2 | ES25: 2 | ET25: 2 | EU25: 2 | EV25: 2 | EW25: 2 | EX25: 2 | EY25: 2 | EZ25: 2 | FA25: 2 | FB25: 2 | FC25: 2 | FD25: 2 | FE25: 2 | FF25: 1 | FG25: 1 | FH25: 2 | FI25: 2 | FJ25: 2 | FK25: 2 | FL25: 1 | FM25: 2 | FN25: 1 | FO25: 2 | FP25: 2 | FQ25: 2 | FR25: 2 | FS25: 2 | FT25: 2 | FU25: 1 | FV25: 2 | FW25: 2 | FX25: 2 | FY25: 2 | FZ25: 2 | GA25: 2 | GB25: 2 | GC25: 2 | GH25: 20 | GJ25: Armes lourdes | GK25: Armes lourdes (tir) | GV25: 17 | GW25: =GW24+15 -> 82 | GX25: 18 | GY25: =GY24+17 -> 98 | HC25: Pirate | HE25: 19 | HF25: 13 | HI25: Lames d'énergie
D26: Règle optionnelle : Niveau max. des compétences | E26: Non | M26: Combat (contact) | AP26: 0 | CB26: 0 | CI26: 0 | CK26: 0 | CL26: 24 | CO26: 0 | CP26: 0 | CU26: 0 | CW26: 0 | CX26: 24 | DA26: 0 | DB26: 0 | DG26: 0 | DI26: 0 | DJ26: 24 | DM26: 0 | DN26: 0 | DS26: 0 | DU26: 0 | DV26: 24 | DY26: 0 | DZ26: 0 | ED26: 0 | EE26: 1 | EF26: 0 | EG26: 24 | EJ26: 0 | GH26: 21 | GJ26: Armes de poing | GK26: Armes de poing | GV26: 18 | GW26: =GW25+17 -> 99 | GX26: 19 | GY26: =GY25+19 -> 117 | HC26: Policier/Enquêteur | HE26: 20 | HF26: 13 | HI26: Lames psychiques
D27: Règle optionnelle : Progression naturelle | E27: Oui | P27: Armes lourdes (contact) | R27: FOR | S27: FOR | U27: =HLOOKUP(R27,$HE$2:$HM$3,2,)+HLOOKUP(S27,$HE$2:$HM$3,2,) -> -2 | V27: =EI27 -> 0 | W27: -2 | Y27: 0 | AE27: 0 | AJ27: 0 | AM27: 2 | AP27: 0 | AQ27: 0 | AZ27: 0 | BI27: 0 | BR27: 0 | CA27: 0 | CB27: 0 | CC27: 0 | CE27: =IF($E$233=P27,1,IF($E$234=P27,1,IF($E$235=P27,1,IF($E$236=P27,1,IF($E$237=P27,1,IF($E$238=P27,1,0)))))) -> 0 | CG27: 0 | CH27: 0 | CI27: 0 | CJ27: =IF(CE27=1,1,(HLOOKUP($CK$3,$ER$3:$GC$262,CL27,))) -> 2 | CK27: 0 | CL27: 25 | CM27: 0 | CN27: 0 | CO27: 0 | CP27: 0 | CQ27: =IF($E$241=P27,1,IF($E$242=P27,1,IF($E$243=P27,1,IF($E$244=P27,1,IF($E$245=P27,1,IF($E$246=P27,1,0)))))) -> 0 | CS27: =CM27+CR27 -> 0 | CT27: 0 | CU27: 0 | CV27: =IF(CQ27=1,1,(HLOOKUP($CW$3,$ER$3:$GC$262,CX27,))) -> 2 | CW27: 0 | CX27: 25 | CY27: 0 | CZ27: 0 | DA27: 0 | DB27: 0 | DC27: =IF($E$249=P27,1,IF($E$250=P27,1,IF($E$251=P27,1,IF($E$252=P27,1,IF($E$253=P27,1,IF($E$254=P27,1,0)))))) -> 0 | DE27: 0 | DF27: 0 | DG27: 0 | DH27: =IF(DC27=1,1,(HLOOKUP($DI$3,$ER$3:$GC$262,DJ27,))) -> 2 | DI27: 0 | DJ27: 25 | DK27: 0 | DL27: 0 | DM27: 0 | DN27: 0 | DO27: =IF($E$257=P27,1,IF($E$258=P27,1,IF($E$259=P27,1,IF($E$260=P27,1,IF($E$261=P27,1,IF($E$262=P27,1,0)))))) -> 0 | DQ27: 0 | DR27: 0 | DS27: 0 | DT27: =IF(DO27=1,1,(HLOOKUP($DU$3,$ER$3:$GC$262,DV27,))) -> 2 | DU27: 0 | DV27: 25 | DW27: 0 | DX27: 0 | DY27: 0 | DZ27: 0 | EB27: =DW27+EA27 -> 0 | EC27: =IF(EB27=-4,"X",EB27) -> 0 | ED27: 0 | EE27: 1 | EF27: 0 | EG27: 25 | EH27: =EB27+EF27 -> 0 | EI27: =IF(EH27=-4,"X",EH27) -> 0 | EJ27: 0 | ER27: 2 | ES27: 2 | ET27: 2 | EU27: 2 | EV27: 2 | EW27: 2 | EX27: 2 | EY27: 2 | EZ27: 2 | FA27: 2 | FB27: 2 | FC27: 2 | FD27: 2 | FE27: 2 | FF27: 2 | FG27: 1 | FH27: 2 | FI27: 2 | FJ27: 2 | FK27: 2 | FL27: 1 | FM27: 2 | FN27: 2 | FO27: 2 | FP27: 2 | FQ27: 2 | FR27: 2 | FS27: 2 | FT27: 2 | FU27: 1 | FV27: 2 | FW27: 2 | FX27: 2 | FY27: 2 | FZ27: 2 | GA27: 1 | GB27: 2 | GC27: 2 | GH27: 22 | GJ27: Armes spéciales (tir) I (FOR/COO) | GK27: =GH58 -> Armes spéciales (tir) I (…....…) | GV27: 19 | GW27: =GW26+19 -> 118 | GX27: 20 | GY27: =GY26+21 -> 138 | HC27: Prêtre du Trident | HE27: 21 | HF27: 15 | HI27: Mangeur d'esprit
P28: Armes spéciales (contact) I (…....…) | R28: FOR | S28: COO | U28: -2 | V28: 0 | W28: -2 | Y28: 0 | AE28: 0 | AJ28: 0 | AP28: 0 | AQ28: 0 | AZ28: 0 | BI28: 0 | BR28: 0 | CA28: 0 | CB28: 0 | CC28: 0 | CE28: 0 | CG28: 0 | CH28: 0 | CI28: 0 | CJ28: 2 | CK28: 0 | CL28: 26 | CM28: 0 | CN28: 0 | CO28: 0 | CP28: 0 | CQ28: 0 | CS28: 0 | CT28: 0 | CU28: 0 | CV28: 2 | CW28: 0 | CX28: 26 | CY28: 0 | CZ28: 0 | DA28: 0 | DB28: 0 | DC28: 0 | DE28: 0 | DF28: 0 | DG28: 0 | DH28: 2 | DI28: 0 | DJ28: 26 | DK28: 0 | DL28: 0 | DM28: 0 | DN28: 0 | DO28: 0 | DQ28: 0 | DR28: 0 | DS28: 0 | DT28: 2 | DU28: 0 | DV28: 26 | DW28: 0 | DX28: 0 | DY28: 0 | DZ28: 0 | EB28: 0 | EC28: 0 | ED28: 0 | EE28: 1 | EF28: 0 | EG28: 26 | EH28: 0 | EI28: 0 | EJ28: 0 | ER28: 2 | ES28: 2 | ET28: 2 | EU28: 2 | EV28: 2 | EW28: 2 | EX28: 2 | EY28: 2 | EZ28: 2 | FA28: 2 | FB28: 2 | FC28: 2 | FD28: 2 | FE28: 2 | FF28: 2 | FG28: 2 | FH28: 2 | FI28: 2 | FJ28: 2 | FK28: 2 | FL28: 2 | FM28: 2 | FN28: 2 | FO28: 2 | FP28: 2 | FQ28: 2 | FR28: 2 | FS28: 2 | FT28: 2 | FU28: 1 | FV28: 1 | FW28: 1 | FX28: 1 | FY28: 2 | FZ28: 2 | GA28: 2 | GB28: 2 | GC28: 2 | GH28: 23 | GJ28: Armes spéciales (tir) II (COO/COO) | GK28: =GH59 -> Armes spéciales (tir) II (…....…) | GV28: 20 | GW28: =GW27+21 -> 139 | HC28: Prostituée | HE28: 22 | HF28: 15 | HI28: Masse de destruction
P29: Armes spéciales (contact) II (…....…) | R29: COO | S29: COO | U29: -2 | V29: 0 | W29: -2 | Y29: 0 | AE29: 0 | AJ29: 0 | AP29: 0 | AQ29: 0 | AZ29: 0 | BI29: 0 | BR29: 0 | CA29: 0 | CB29: 0 | CC29: 0 | CE29: 0 | CG29: 0 | CH29: 0 | CI29: 0 | CJ29: 2 | CK29: 0 | CL29: 27 | CM29: 0 | CN29: 0 | CO29: 0 | CP29: 0 | CQ29: 0 | CS29: 0 | CT29: 0 | CU29: 0 | CV29: 2 | CW29: 0 | CX29: 27 | CY29: 0 | CZ29: 0 | DA29: 0 | DB29: 0 | DC29: 0 | DE29: 0 | DF29: 0 | DG29: 0 | DH29: 2 | DI29: 0 | DJ29: 27 | DK29: 0 | DL29: 0 | DM29: 0 | DN29: 0 | DO29: 0 | DQ29: 0 | DR29: 0 | DS29: 0 | DT29: 2 | DU29: 0 | DV29: 27 | DW29: 0 | DX29: 0 | DY29: 0 | DZ29: 0 | EB29: 0 | EC29: 0 | ED29: 0 | EE29: 1 | EF29: 0 | EG29: 27 | EH29: 0 | EI29: 0 | EJ29: 0 | ER29: 2 | ES29: 2 | ET29: 2 | EU29: 2 | EV29: 2 | EW29: 2 | EX29: 2 | EY29: 2 | EZ29: 2 | FA29: 2 | FB29: 2 | FC29: 2 | FD29: 2 | FE29: 2 | FF29: 2 | FG29: 2 | FH29: 2 | FI29: 2 | FJ29: 2 | FK29: 2 | FL29: 2 | FM29: 2 | FN29: 2 | FO29: 2 | FP29: 2 | FQ29: 2 | FR29: 2 | FS29: 2 | FT29: 2 | FU29: 1 | FV29: 1 | FW29: 1 | FX29: 1 | FY29: 2 | FZ29: 2 | GA29: 2 | GB29: 2 | GC29: 2 | GH29: 24 | GJ29: Armes spéciales (tir) III (X, FOR/COO) | GK29: =GH60 -> Armes spéciales (tir) III (…....…) | HC29: Scientifique/Ingénieur | HE29: 23 | HF29: 15 | HI29: Modification de la masse
C30: Nation d'origine | P30: Armes spéciales (contact) III (…....…) | Q30: X | R30: FOR | S30: COO | U30: -2 | V30: X | W30: X | Y30: -4 | AE30: 0 | AJ30: 0 | AP30: 0 | AQ30: 0 | AZ30: 0 | BI30: 0 | BR30: 0 | CA30: 0 | CB30: -4 | CC30: =IF(CB30=-4,"X",CB30) -> X | CE30: 0 | CG30: -4 | CH30: X | CI30: 0 | CJ30: 2 | CK30: 0 | CL30: 28 | CM30: -4 | CN30: X | CO30: 0 | CP30: 0 | CQ30: 0 | CS30: -4 | CT30: X | CU30: 0 | CV30: 2 | CW30: 0 | CX30: 28 | CY30: -4 | CZ30: X | DA30: 0 | DB30: 0 | DC30: 0 | DE30: -4 | DF30: X | DG30: 0 | DH30: 2 | DI30: 0 | DJ30: 28 | DK30: -4 | DL30: X | DM30: 0 | DN30: 0 | DO30: 0 | DQ30: -4 | DR30: X | DS30: 0 | DT30: 2 | DU30: 0 | DV30: 28 | DW30: -4 | DX30: X | DY30: 0 | DZ30: 0 | EB30: -4 | EC30: X | ED30: 0 | EE30: 1 | EF30: 0 | EG30: 28 | EH30: -4 | EI30: X | EJ30: 0 | ER30: 2 | ES30: 2 | ET30: 2 | EU30: 2 | EV30: 2 | EW30: 2 | EX30: 2 | EY30: 2 | EZ30: 2 | FA30: 2 | FB30: 2 | FC30: 2 | FD30: 2 | FE30: 2 | FF30: 2 | FG30: 2 | FH30: 2 | FI30: 2 | FJ30: 2 | FK30: 2 | FL30: 2 | FM30: 2 | FN30: 2 | FO30: 2 | FP30: 2 | FQ30: 2 | FR30: 2 | FS30: 2 | FT30: 2 | FU30: 1 | FV30: 1 | FW30: 1 | FX30: 1 | FY30: 2 | FZ30: 2 | GA30: 2 | GB30: 2 | GC30: 2 | GH30: 25 | GJ30: Armes spéciales (tir) IV (X, COO/COO) | GK30: =GH61 -> Armes spéciales (tir) IV (…....…) | HC30: Soldat/Milicien | HE30: 24 | HF30: 15 | HI30: Modification de la pression
C31: Langue maternelle | P31: Armes spéciales (contact) IV (…....…) | Q31: X | R31: COO | S31: COO | U31: -2 | V31: X | W31: X | Y31: -4 | AE31: 0 | AJ31: 0 | AP31: 0 | AQ31: 0 | AZ31: 0 | BI31: 0 | BR31: 0 | CA31: 0 | CB31: -4 | CC31: X | CE31: 0 | CG31: -4 | CH31: X | CI31: 0 | CJ31: 2 | CK31: 0 | CL31: 29 | CM31: -4 | CN31: X | CO31: 0 | CP31: 0 | CQ31: 0 | CS31: -4 | CT31: X | CU31: 0 | CV31: 2 | CW31: 0 | CX31: 29 | CY31: -4 | CZ31: X | DA31: 0 | DB31: 0 | DC31: 0 | DE31: -4 | DF31: X | DG31: 0 | DH31: 2 | DI31: 0 | DJ31: 29 | DK31: -4 | DL31: X | DM31: 0 | DN31: 0 | DO31: 0 | DQ31: -4 | DR31: X | DS31: 0 | DT31: 2 | DU31: 0 | DV31: 29 | DW31: -4 | DX31: X | DY31: 0 | DZ31: 0 | EB31: -4 | EC31: X | ED31: 0 | EE31: 1 | EF31: 0 | EG31: 29 | EH31: -4 | EI31: X | EJ31: 0 | ER31: 2 | ES31: 2 | ET31: 2 | EU31: 2 | EV31: 2 | EW31: 2 | EX31: 2 | EY31: 2 | EZ31: 2 | FA31: 2 | FB31: 2 | FC31: 2 | FD31: 2 | FE31: 2 | FF31: 2 | FG31: 2 | FH31: 2 | FI31: 2 | FJ31: 2 | FK31: 2 | FL31: 2 | FM31: 2 | FN31: 2 | FO31: 2 | FP31: 2 | FQ31: 2 | FR31: 2 | FS31: 2 | FT31: 2 | FU31: 1 | FV31: 1 | FW31: 1 | FX31: 1 | FY31: 2 | FZ31: 2 | GA31: 2 | GB31: 2 | GC31: 2 | GH31: 26 | GJ31: Armes de trait | GK31: Armes de trait | HC31: Soldat d'élite (Commandos marin) | HE31: 25 | HF31: 15 | HI31: Modification de la température
C32: Langue mat. (Bilingue) | J32: =IF(AND($E32<>" ",$A$32<>1),"ERREUR"," ") ->  | P32: Arts martiaux (Lutte) * | Q32: -3 | R32: COO | S32: ADA | U32: -2 | V32: -3 | W32: -5 | Y32: -3 | AE32: 0 | AJ32: 0 | AP32: 0 | AQ32: 0 | AZ32: 0 | BI32: 0 | BR32: 0 | CA32: 0 | CB32: -3 | CC32: -3 | CE32: 0 | CG32: -3 | CH32: -3 | CI32: 0 | CJ32: 2 | CK32: 0 | CL32: 30 | CM32: -3 | CN32: -3 | CO32: 0 | CP32: 0 | CQ32: 0 | CS32: -3 | CT32: -3 | CU32: 0 | CV32: 2 | CW32: 0 | CX32: 30 | CY32: -3 | CZ32: -3 | DA32: 0 | DB32: 0 | DC32: 0 | DE32: -3 | DF32: -3 | DG32: 0 | DH32: 2 | DI32: 0 | DJ32: 30 | DK32: -3 | DL32: -3 | DM32: 0 | DN32: 0 | DO32: 0 | DQ32: -3 | DR32: -3 | DS32: 0 | DT32: 2 | DU32: 0 | DV32: 30 | DW32: -3 | DX32: -3 | DY32: 0 | DZ32: 0 | EB32: -3 | EC32: -3 | ED32: 0 | EE32: 1 | EF32: 0 | EG32: 30 | EH32: -3 | EI32: -3 | EJ32: 0 | ER32: 2 | ES32: 2 | ET32: 1 | EU32: 2 | EV32: 1 | EW32: 2 | EX32: 2 | EY32: 2 | EZ32: 2 | FA32: 1 | FB32: 1 | FC32: 2 | FD32: 2 | FE32: 2 | FF32: 1 | FG32: 2 | FH32: 2 | FI32: 1 | FJ32: 1 | FK32: 1 | FL32: 2 | FM32: 2 | FN32: 2 | FO32: 2 | FP32: 1 | FQ32: 2 | FR32: 2 | FS32: 2 | FT32: 1 | FU32: 1 | FV32: 1 | FW32: 1 | FX32: 1 | FY32: 2 | FZ32: 2 | GA32: 1 | GB32: 2 | GC32: 2 | GH32: 27 | GJ32: Fusils/Armes d'épaule | GK32: Fusils/Armes d'épaule | HC32: Soldat d'élite (Commandos souterrains) | HE32: 26 | HF32: 15 | HI32: Oblitération psychique
P33: Arts martiaux (Tech. défensives) * | Q33: -3 | R33: COO | S33: ADA | U33: -2 | V33: -3 | W33: -5 | Y33: -3 | AE33: 0 | AJ33: 0 | AP33: 0 | AQ33: 0 | AZ33: 0 | BI33: 0 | BR33: 0 | CA33: 0 | CB33: -3 | CC33: -3 | CE33: 0 | CG33: -3 | CH33: -3 | CI33: 0 | CJ33: 2 | CK33: 0 | CL33: 31 | CM33: -3 | CN33: -3 | CO33: 0 | CP33: 0 | CQ33: 0 | CS33: -3 | CT33: -3 | CU33: 0 | CV33: 2 | CW33: 0 | CX33: 31 | CY33: -3 | CZ33: -3 | DA33: 0 | DB33: 0 | DC33: 0 | DE33: -3 | DF33: -3 | DG33: 0 | DH33: 2 | DI33: 0 | DJ33: 31 | DK33: -3 | DL33: -3 | DM33: 0 | DN33: 0 | DO33: 0 | DQ33: -3 | DR33: -3 | DS33: 0 | DT33: 2 | DU33: 0 | DV33: 31 | DW33: -3 | DX33: -3 | DY33: 0 | DZ33: 0 | EB33: -3 | EC33: -3 | ED33: 0 | EE33: 1 | EF33: 0 | EG33: 31 | EH33: -3 | EI33: -3 | EJ33: 0 | ER33: 2 | ES33: 2 | ET33: 1 | EU33: 2 | EV33: 1 | EW33: 2 | EX33: 2 | EY33: 2 | EZ33: 2 | FA33: 1 | FB33: 2 | FC33: 2 | FD33: 2 | FE33: 2 | FF33: 2 | FG33: 2 | FH33: 2 | FI33: 1 | FJ33: 1 | FK33: 1 | FL33: 2 | FM33: 2 | FN33: 2 | FO33: 2 | FP33: 1 | FQ33: 2 | FR33: 2 | FS33: 2 | FT33: 1 | FU33: 1 | FV33: 1 | FW33: 1 | FX33: 1 | FY33: 2 | FZ33: 2 | GA33: 2 | GB33: 1 | GC33: 2 | GH33: 28 | GJ33: Tir automatique | GK33: Tir automatique * | HC33: Soldat d'élite (Commandos de surface) | HE33: 27 | HF33: 15 | HI33: Ondes de choc
P34: Arts martiaux (Tech. offensives) * | Q34: -3 | R34: COO | S34: ADA | U34: -2 | V34: -3 | W34: -5 | Y34: -3 | AE34: 0 | AJ34: 0 | AP34: 0 | AQ34: 0 | AZ34: 0 | BI34: 0 | BR34: 0 | CA34: 0 | CB34: -3 | CC34: -3 | CE34: 0 | CG34: -3 | CH34: -3 | CI34: 0 | CJ34: 2 | CK34: 0 | CL34: 32 | CM34: -3 | CN34: -3 | CO34: 0 | CP34: 0 | CQ34: 0 | CS34: -3 | CT34: -3 | CU34: 0 | CV34: 2 | CW34: 0 | CX34: 32 | CY34: -3 | CZ34: -3 | DA34: 0 | DB34: 0 | DC34: 0 | DE34: -3 | DF34: -3 | DG34: 0 | DH34: 2 | DI34: 0 | DJ34: 32 | DK34: -3 | DL34: -3 | DM34: 0 | DN34: 0 | DO34: 0 | DQ34: -3 | DR34: -3 | DS34: 0 | DT34: 2 | DU34: 0 | DV34: 32 | DW34: -3 | DX34: -3 | DY34: 0 | DZ34: 0 | EB34: -3 | EC34: -3 | ED34: 0 | EE34: 1 | EF34: 0 | EG34: 32 | EH34: -3 | EI34: -3 | EJ34: 0 | ER34: 2 | ES34: 2 | ET34: 1 | EU34: 2 | EV34: 1 | EW34: 2 | EX34: 2 | EY34: 2 | EZ34: 2 | FA34: 1 | FB34: 2 | FC34: 2 | FD34: 2 | FE34: 2 | FF34: 1 | FG34: 2 | FH34: 2 | FI34: 1 | FJ34: 1 | FK34: 1 | FL34: 2 | FM34: 2 | FN34: 2 | FO34: 1 | FP34: 2 | FQ34: 2 | FR34: 2 | FS34: 2 | FT34: 1 | FU34: 1 | FV34: 1 | FW34: 1 | FX34: 1 | FY34: 2 | FZ34: 2 | GA34: 2 | GB34: 1 | GC34: 2 | GH34: 29 | GJ34: Tir de précision | GK34: Tir de précision * | HC34: Soldat d'élite (Forces spéciales) | HE34: 28 | HF34: 15 | HI34: Ondes de choc psychiques
C35: Origines géographiques | E35: Navire nomade | P35: Combat armé | R35: FOR | S35: COO | U35: -2 | V35: 2 | W35: 0 | Y35: 0 | AE35: 0 | AF35: 1 | AJ35: 1 | AK35: 1 | AP35: 0 | AQ35: 1 | AZ35: 0 | BI35: 0 | BR35: 0 | CA35: 0 | CB35: 2 | CC35: 2 | CE35: 0 | CG35: 2 | CH35: 2 | CI35: 1 | CJ35: 2 | CK35: 0 | CL35: 33 | CM35: 2 | CN35: 2 | CO35: 0 | CP35: 0 | CQ35: 0 | CS35: 2 | CT35: 2 | CU35: 1 | CV35: 2 | CW35: 0 | CX35: 33 | CY35: 2 | CZ35: 2 | DA35: =IF(CV35=1,(VLOOKUP(CY35,$GV$4:$GW$28,2,)-(4+$Y35))-(VLOOKUP(CS35,$GV$4:$GW$28,2,)-(4+$Y35)),IF(CU35=1,(VLOOKUP(CY35,$GV$4:$GW$28,2,)-(4+$Y35))-(VLOOKUP(CS35,$GV$4:$GW$28,2,)-(4+$Y35)),((VLOOKUP(CY35,$GV$4:$GW$28,2,)-(4+$Y35))-(VLOOKUP(CS35,$GV$4:$GW$28,2,)-(4+$Y35)))*2)) -> 0 | DB35: 0 | DC35: 0 | DE35: 2 | DF35: 2 | DG35: 1 | DH35: 2 | DI35: 0 | DJ35: 33 | DK35: 2 | DL35: 2 | DM35: 0 | DN35: 0 | DO35: 0 | DQ35: 2 | DR35: 2 | DS35: 1 | DT35: 2 | DU35: 0 | DV35: 33 | DW35: 2 | DX35: 2 | DY35: 0 | DZ35: 0 | EB35: 2 | EC35: 2 | ED35: 0 | EE35: 1 | EF35: 0 | EG35: 33 | EH35: 2 | EI35: 2 | EJ35: 0 | ER35: 2 | ES35: 1 | ET35: 1 | EU35: 1 | EV35: 1 | EW35: 1 | EX35: 1 | EY35: 2 | EZ35: 2 | FA35: 1 | FB35: 1 | FC35: 1 | FD35: 1 | FE35: 2 | FF35: 1 | FG35: 1 | FH35: 2 | FI35: 1 | FJ35: 1 | FK35: 1 | FL35: 1 | FM35: 1 | FN35: 1 | FO35: 1 | FP35: 1 | FQ35: 1 | FR35: 1 | FS35: 2 | FT35: 1 | FU35: 1 | FV35: 1 | FW35: 1 | FX35: 1 | FY35: 1 | FZ35: 2 | GA35: 1 | GB35: 1 | GC35: 1 | GH35: 30 | HC35: Sous-marinier | HE35: 29 | HF35: 15 | HI35: Onde Polaris
C36: Origines sociales | E36: Bas-fonds | P36: Combat à mains nues | R36: FOR | S36: COO | U36: -2 | V36: 2 | W36: 0 | Y36: 0 | AE36: 0 | AF36: 1 | AG36: 1 | AJ36: 1 | AK36: 1 | AP36: 0 | AQ36: 1 | AZ36: 0 | BI36: 0 | BR36: 0 | CA36: 0 | CB36: 2 | CC36: 2 | CE36: 0 | CG36: 2 | CH36: 2 | CI36: 1 | CJ36: 2 | CK36: 0 | CL36: 34 | CM36: 2 | CN36: 2 | CO36: 0 | CP36: 0 | CQ36: 0 | CS36: 2 | CT36: 2 | CU36: 1 | CV36: 2 | CW36: 0 | CX36: 34 | CY36: 2 | CZ36: 2 | DA36: =IF(ROUND(CV36,0)=1,(VLOOKUP(CY36,$GV$4:$GW$28,2,)-(4+$Y36))-(VLOOKUP(CS36,$GV$4:$GW$28,2,)-(4+$Y36)),IF(ROUND(CU36,0)=1,(VLOOKUP(CY36,$GV$4:$GW$28,2,)-(4+$Y36))-(VLOOKUP(CS36,$GV$4:$GW$28,2,)-(4+$Y36)),((VLOOKUP(CY36,$GV$4:$GW$28,2,)-(4+$Y36))-(VLOOKUP(CS36,$GV$4:$GW$28,2,)-(4+$Y36)))*2)) -> 0 | DB36: 0 | DC36: 0 | DE36: 2 | DF36: 2 | DG36: 1 | DH36: 2 | DI36: 0 | DJ36: 34 | DK36: 2 | DL36: 2 | DM36: 0 | DN36: 0 | DO36: 0 | DQ36: 2 | DR36: 2 | DS36: 1 | DT36: 2 | DU36: 0 | DV36: 34 | DW36: 2 | DX36: 2 | DY36: 0 | DZ36: 0 | EB36: 2 | EC36: 2 | ED36: 0 | EE36: 1 | EF36: 0 | EG36: 34 | EH36: 2 | EI36: 2 | EJ36: 0 | ER36: 2 | ES36: 2 | ET36: 1 | EU36: 1 | EV36: 1 | EW36: 1 | EX36: 2 | EY36: 2 | EZ36: 2 | FA36: 1 | FB36: 1 | FC36: 2 | FD36: 2 | FE36: 2 | FF36: 1 | FG36: 2 | FH36: 2 | FI36: 1 | FJ36: 1 | FK36: 1 | FL36: 1 | FM36: 1 | FN36: 1 | FO36: 1 | FP36: 1 | FQ36: =IF(AVANTAGES_PROFESSIONNELS!DO557>0,1,2) -> 2 | FR36: 1 | FS36: 2 | FT36: 1 | FU36: 1 | FV36: 1 | FW36: 1 | FX36: 1 | FY36: 1 | FZ36: 2 | GA36: 1 | GB36: 1 | GC36: 1 | HC36: Technicien/Mécanicien | HE36: 30 | HF36: 15 | HI36: Pacification/furie
D37: Milieu ouvrier | J37: =IF(AND($E37<>" ",$E$36<>"Milieu ouvrier"),"ERREUR"," ") ->  | M37: Combat (tir) | AP37: 0 | CB37: 0 | CI37: 0 | CK37: 0 | CL37: 35 | CO37: 0 | CP37: 0 | CU37: 0 | CW37: 0 | CX37: 35 | DA37: =IF(ROUND(CV37,0)=1,(VLOOKUP(CY37,$GV$4:$GW$28,2,)-(4+$Y37))-(VLOOKUP(CS37,$GV$4:$GW$28,2,)-(4+$Y37)),IF(ROUND(CU37,0)=1,(VLOOKUP(CY37,$GV$4:$GW$28,2,)-(4+$Y37))-(VLOOKUP(CS37,$GV$4:$GW$28,2,)-(4+$Y37)),((VLOOKUP(CY37,$GV$4:$GW$28,2,)-(4+$Y37))-(VLOOKUP(CS37,$GV$4:$GW$28,2,)-(4+$Y37)))*2)) -> 0 | DB37: 0 | DG37: 0 | DI37: 0 | DJ37: 35 | DM37: 0 | DN37: 0 | DS37: 0 | DU37: 0 | DV37: 35 | DY37: 0 | DZ37: 0 | ED37: 0 | EE37: 1 | EF37: 0 | EG37: 35 | EJ37: 0 | GH37: =P19 -> Acrobatie/Equilibre * | GJ37: Amazonia | GK37: Connaissance d'une nation (Amazonia) * PN | GP37: Amanéum | GQ37: Langue étrangère (Amanéun) * PN | HC37: Techno-Hybride | HI37: Passage
D38: Classes supérieures | J38: =IF(AND($E38<>" ",$E$36<>"Classes supérieures"),"ERREUR"," ") ->  | P38: Armes de jet | Q38: -3 | R38: COO | S38: PER | U38: =HLOOKUP(R38,$HE$2:$HM$3,2,)+HLOOKUP(S38,$HE$2:$HM$3,2,) -> -2 | V38: =EI38 -> -3 | W38: =IF(V38="X","X",U38+V38) -> -5 | Y38: =IF(Q38="X",-4,Q38) -> -3 | AE38: =IF($AE$3=$AA$3,AA38,IF($AE$3=$AB$3,AB38,IF($AE$3=$AC$3,AC38,IF($AE$3=$AD$3,AD38,0)))) -> 0 | AJ38: =IF($AJ$3=$AF$3,AF38,IF($AJ$3=$AG$3,AG38,IF($AJ$3=$AH$3,AH38,IF($AJ$3=$AI$3,AI38,0)))) -> 0 | AP38: 0 | AQ38: =IF($AQ$3=$AK$3,AK38,IF($AQ$3=$AL$3,AL38,IF($AQ$3=$AM$3,AM38,IF($AQ$3=$AN$3,AN38,IF($AQ$3=$AO$3,AO38,IF($AQ$3=$AP$3,AP38,0)))))) -> 0 | AZ38: =IF(AZ$3=AR$3,AR38,IF(AZ$3=AS$3,AS38,IF(AZ$3=AT$3,AT38,IF(AZ$3=AU$3,AU38,IF(AZ$3=AV$3,AV38,IF(AZ$3=AW$3,AW38,IF(AZ$3=AX$3,AX38,IF(AZ$3=AY$3,AY38,0)))))))) -> 0 | BI38: =IF(BI$3=BA$3,BA38,IF(BI$3=BB$3,BB38,IF(BI$3=BC$3,BC38,IF(BI$3=BD$3,BD38,IF(BI$3=BE$3,BE38,IF(BI$3=BF$3,BF38,IF(BI$3=BG$3,BG38,IF(BI$3=BH$3,BH38,0)))))))) -> 0 | BR38: =IF(BR$3=BJ$3,BJ38,IF(BR$3=BK$3,BK38,IF(BR$3=BL$3,BL38,IF(BR$3=BM$3,BM38,IF(BR$3=BN$3,BN38,IF(BR$3=BO$3,BO38,IF(BR$3=BP$3,BP38,IF(BR$3=BQ$3,BQ38,0)))))))) -> 0 | CA38: =IF(CA$3=BS$3,BS38,IF(CA$3=BT$3,BT38,IF(CA$3=BU$3,BU38,IF(CA$3=BV$3,BV38,IF(CA$3=BW$3,BW38,IF(CA$3=BX$3,BX38,IF(CA$3=BY$3,BY38,IF(CA$3=BZ$3,BZ38,0)))))))) -> 0 | CB38: -3 | CC38: =IF(CB38=-4,"X",CB38) -> -3 | CE38: =IF($E$233=P38,1,IF($E$234=P38,1,IF($E$235=P38,1,IF($E$236=P38,1,IF($E$237=P38,1,IF($E$238=P38,1,0)))))) -> 0 | CG38: =CB38+CF38 -> -3 | CH38: =IF(CG38=-4,"X",CG38) -> -3 | CI38: 0 | CJ38: =IF(CE38=1,1,(HLOOKUP($CK$3,$ER$3:$GC$262,CL38,))) -> 2 | CK38: 0 | CL38: 36 | CM38: =CG38+CK38 -> -3 | CN38: =IF(CM38=-4,"X",CM38) -> -3 | CO38: =IF(ROUND(CJ38,0)=1,(VLOOKUP(CM38,$GV$4:$GW$28,2,)-(4+$Y38))-(VLOOKUP(CG38,$GV$4:$GW$28,2,)-(4+$Y38)),IF(ROUND(CI38,0)=1,(VLOOKUP(CM38,$GV$4:$GW$28,2,)-(4+$Y38))-(VLOOKUP(CG38,$GV$4:$GW$28,2,)-(4+$Y38)),((VLOOKUP(CM38,$GV$4:$GW$28,2,)-(4+$Y38))-(VLOOKUP(CG38,$GV$4:$GW$28,2,)-(4+$Y38)))*2)) -> 0 | CP38: 0 | CQ38: =IF($E$241=P38,1,IF($E$242=P38,1,IF($E$243=P38,1,IF($E$244=P38,1,IF($E$245=P38,1,IF($E$246=P38,1,0)))))) -> 0 | CS38: =CM38+CR38 -> -3 | CT38: =IF(CS38=-4,"X",CS38) -> -3 | CU38: 0 | CV38: =IF(CQ38=1,1,(HLOOKUP($CW$3,$ER$3:$GC$262,CX38,))) -> 2 | CW38: 0 | CX38: 36 | CY38: =CS38+CW38 -> -3 | CZ38: =IF(CY38=-4,"X",CY38) -> -3 | DA38: =IF(ROUND(CV38,0)=1,(VLOOKUP(CY38,$GV$4:$GW$28,2,)-(4+$Y38))-(VLOOKUP(CS38,$GV$4:$GW$28,2,)-(4+$Y38)),IF(ROUND(CU38,0)=1,(VLOOKUP(CY38,$GV$4:$GW$28,2,)-(4+$Y38))-(VLOOKUP(CS38,$GV$4:$GW$28,2,)-(4+$Y38)),((VLOOKUP(CY38,$GV$4:$GW$28,2,)-(4+$Y38))-(VLOOKUP(CS38,$GV$4:$GW$28,2,)-(4+$Y38)))*2)) -> 0 | DB38: 0 | DC38: =IF($E$249=P38,1,IF($E$250=P38,1,IF($E$251=P38,1,IF($E$252=P38,1,IF($E$253=P38,1,IF($E$254=P38,1,0)))))) -> 0 | DE38: =CY38+DD38 -> -3 | DF38: =IF(DE38=-4,"X",DE38) -> -3 | DG38: 0 | DH38: =IF(DC38=1,1,(HLOOKUP($DI$3,$ER$3:$GC$262,DJ38,))) -> 2 | DI38: 0 | DJ38: 36 | DK38: =DE38+DI38 -> -3 | DL38: =IF(DK38=-4,"X",DK38) -> -3 | DM38: =IF(ROUND(DH38,0)=1,(VLOOKUP(DK38,$GV$4:$GW$28,2,)-(4+$Y38))-(VLOOKUP(DE38,$GV$4:$GW$28,2,)-(4+$Y38)),IF(ROUND(DG38,0)=1,(VLOOKUP(DK38,$GV$4:$GW$28,2,)-(4+$Y38))-(VLOOKUP(DE38,$GV$4:$GW$28,2,)-(4+$Y38)),((VLOOKUP(DK38,$GV$4:$GW$28,2,)-(4+$Y38))-(VLOOKUP(DE38,$GV$4:$GW$28,2,)-(4+$Y38)))*2)) -> 0 | DN38: 0 | DO38: =IF($E$257=P38,1,IF($E$258=P38,1,IF($E$259=P38,1,IF($E$260=P38,1,IF($E$261=P38,1,IF($E$262=P38,1,0)))))) -> 0 | DQ38: =DK38+DP38 -> -3 | DR38: =IF(DQ38=-4,"X",DQ38) -> -3 | DS38: 0 | DT38: =IF(DO38=1,1,(HLOOKUP($DU$3,$ER$3:$GC$262,DV38,))) -> 2 | DU38: 0 | DV38: 36 | DW38: =DQ38+DU38 -> -3 | DX38: =IF(DW38=-4,"X",DW38) -> -3 | DY38: =IF(ROUND(DT38,0)=1,(VLOOKUP(DW38,$GV$4:$GW$28,2,)-(4+$Y38))-(VLOOKUP(DQ38,$GV$4:$GW$28,2,)-(4+$Y38)),IF(ROUND(DS38,0)=1,(VLOOKUP(DW38,$GV$4:$GW$28,2,)-(4+$Y38))-(VLOOKUP(DQ38,$GV$4:$GW$28,2,)-(4+$Y38)),((VLOOKUP(DW38,$GV$4:$GW$28,2,)-(4+$Y38))-(VLOOKUP(DQ38,$GV$4:$GW$28,2,)-(4+$Y38)))*2)) -> 0 | DZ38: 0 | EB38: =DW38+EA38 -> -3 | EC38: =IF(EB38=-4,"X",EB38) -> -3 | ED38: 0 | EE38: 1 | EF38: 0 | EG38: 36 | EH38: =EB38+EF38 -> -3 | EI38: =IF(EH38=-4,"X",EH38) -> -3 | EJ38: =IF(ROUND(EE38,0)=1,(VLOOKUP(EH38,$GV$4:$GW$28,2,)-(4+$Y38))-(VLOOKUP(EB38,$GV$4:$GW$28,2,)-(4+$Y38)),IF(ROUND(ED38,0)=1,(VLOOKUP(EH38,$GV$4:$GW$28,2,)-(4+$Y38))-(VLOOKUP(EB38,$GV$4:$GW$28,2,)-(4+$Y38)),((VLOOKUP(EH38,$GV$4:$GW$28,2,)-(4+$Y38))-(VLOOKUP(EB38,$GV$4:$GW$28,2,)-(4+$Y38)))*2)) -> 0 | ER38: 2 | ES38: 2 | ET38: 2 | EU38: 2 | EV38: 2 | EW38: 2 | EX38: 2 | EY38: 2 | EZ38: 2 | FA38: 2 | FB38: =IF(AND($E$152=FB$3,VLOOKUP($E$158,$GJ$23:$GK$34,2,)=$P38),1,IF(AND($E$171=FB$3,VLOOKUP($E$177,$GJ$23:$GK$34,2,)=$P38),1,IF(AND($E$190=FB$3,VLOOKUP($E$196,$GJ$23:$GK$34,2,)=$P38),1,IF(AND($E$209=FB$3,VLOOKUP($E$215,$GJ$23:$GK$34,2,)=$P38),1,2)))) -> 2 | FC38: 2 | FD38: 2 | FE38: 2 | FF38: 2 | FG38: 2 | FH38: 2 | FI38: 2 | FJ38: 2 | FK38: 2 | FL38: 2 | FM38: 2 | FN38: 2 | FO38: 2 | FP38: 2 | FQ38: 2 | FR38: 2 | FS38: 2 | FT38: 2 | FU38: 2 | FV38: 2 | FW38: 2 | FX38: 2 | FY38: 2 | FZ38: 2 | GA38: =IF(AND($E$152=GA$3,VLOOKUP($E$158,$GJ$23:$GK$34,2,)=$P38),1,IF(AND($E$171=GA$3,VLOOKUP($E$177,$GJ$23:$GK$34,2,)=$P38),1,IF(AND($E$190=GA$3,VLOOKUP($E$196,$GJ$23:$GK$34,2,)=$P38),1,IF(AND($E$209=GA$3,VLOOKUP($E$215,$GJ$23:$GK$34,2,)=$P38),1,2)))) -> 2 | GB38: 2 | GC38: 2 | GH38: =P20 -> Athlétisme | GJ38: Alliance Polaire | GK38: Connaissance d'une nation (Alliance Polaire) * PN | GP38: Azran | GQ38: Langue étrangère (Azran) * PN | HC38: Veilleur | HI38: Perturbation de la réalité
C39: Formation de base | E39: Délinquance/Criminalité | P39: Armes lourdes (tir) | Q39: -3 | R39: COO | S39: PER | U39: -2 | V39: -3 | W39: -5 | Y39: -3 | AE39: 0 | AJ39: 0 | AP39: 0 | AQ39: 0 | AZ39: 0 | BI39: 0 | BR39: 0 | CA39: 0 | CB39: -3 | CC39: -3 | CE39: 0 | CG39: -3 | CH39: -3 | CI39: 0 | CJ39: 2 | CK39: 0 | CL39: 37 | CM39: -3 | CN39: -3 | CO39: 0 | CP39: 0 | CQ39: 0 | CS39: -3 | CT39: -3 | CU39: 0 | CV39: 2 | CW39: 0 | CX39: 37 | CY39: -3 | CZ39: -3 | DA39: 0 | DB39: 0 | DC39: 0 | DE39: -3 | DF39: -3 | DG39: 0 | DH39: 2 | DI39: 0 | DJ39: 37 | DK39: -3 | DL39: -3 | DM39: 0 | DN39: 0 | DO39: 0 | DQ39: -3 | DR39: -3 | DS39: 0 | DT39: 2 | DU39: 0 | DV39: 37 | DW39: -3 | DX39: -3 | DY39: 0 | DZ39: 0 | EB39: -3 | EC39: -3 | ED39: 0 | EE39: 1 | EF39: 0 | EG39: 37 | EH39: -3 | EI39: -3 | EJ39: 0 | ER39: 2 | ES39: 2 | ET39: 2 | EU39: 2 | EV39: 2 | EW39: 2 | EX39: 2 | EY39: 2 | EZ39: 2 | FA39: 2 | FB39: =IF(AND($E$152=FB$3,VLOOKUP($E$158,$GJ$23:$GK$34,2,)=$P39),1,IF(AND($E$171=FB$3,VLOOKUP($E$177,$GJ$23:$GK$34,2,)=$P39),1,IF(AND($E$190=FB$3,VLOOKUP($E$196,$GJ$23:$GK$34,2,)=$P39),1,IF(AND($E$209=FB$3,VLOOKUP($E$215,$GJ$23:$GK$34,2,)=$P39),1,2)))) -> 2 | FC39: 2 | FD39: 2 | FE39: 2 | FF39: 1 | FG39: 2 | FH39: 2 | FI39: 1 | FJ39: 1 | FK39: 1 | FL39: 2 | FM39: 2 | FN39: 2 | FO39: 2 | FP39: 2 | FQ39: 2 | FR39: 2 | FS39: 2 | FT39: 1 | FU39: 1 | FV39: 1 | FW39: 1 | FX39: 1 | FY39: 2 | FZ39: 2 | GA39: =IF(AND($E$152=GA$3,VLOOKUP($E$158,$GJ$23:$GK$34,2,)=$P39),1,IF(AND($E$171=GA$3,VLOOKUP($E$177,$GJ$23:$GK$34,2,)=$P39),1,IF(AND($E$190=GA$3,VLOOKUP($E$196,$GJ$23:$GK$34,2,)=$P39),1,IF(AND($E$209=GA$3,VLOOKUP($E$215,$GJ$23:$GK$34,2,)=$P39),1,2)))) -> 2 | GB39: 2 | GC39: 2 | GH39: Endurance * | GJ39: Equinoxe | GK39: Connaissance d'une nation (Equinoxe) * PN | GP39: Gashklar | GQ39: Langue étrangère (Gashklar) * PN | HC39: Voleur/Criminel | HI39: Prescience
D40: Délinquance/criminalité : Commerce | J40: =IF(AND($E40<>" ",$E$39<>"Délinquance/Criminalité"),"ERREUR"," ") ->  | P40: Armes de poing | R40: COO | S40: PER | U40: -2 | V40: 1 | W40: -1 | Y40: 0 | AE40: 0 | AJ40: 0 | AK40: 1 | AP40: 0 | AQ40: 1 | AU40: =IF($E$62="Armes de poing",2,) -> 0 | AZ40: 0 | BD40: =IF($E$87="Armes de poing",2,) -> 0 | BI40: 0 | BM40: =IF($E$112="Armes de poing",2,) -> 0 | BR40: 0 | BV40: =IF($E$137="Armes de poing",2,) -> 0 | CA40: 0 | CB40: 1 | CC40: 1 | CE40: 0 | CG40: 1 | CH40: 1 | CI40: 1 | CJ40: 2 | CK40: 0 | CL40: 38 | CM40: 1 | CN40: 1 | CO40: 0 | CP40: 0 | CQ40: 0 | CS40: 1 | CT40: 1 | CU40: 1 | CV40: 2 | CW40: 0 | CX40: 38 | CY40: 1 | CZ40: 1 | DA40: 0 | DB40: 0 | DC40: 0 | DE40: 1 | DF40: 1 | DG40: 1 | DH40: 2 | DI40: 0 | DJ40: 38 | DK40: 1 | DL40: 1 | DM40: 0 | DN40: 0 | DO40: 0 | DQ40: 1 | DR40: 1 | DS40: 1 | DT40: 2 | DU40: 0 | DV40: 38 | DW40: 1 | DX40: 1 | DY40: 0 | DZ40: 0 | EB40: 1 | EC40: 1 | ED40: 0 | EE40: 1 | EF40: 0 | EG40: 38 | EH40: 1 | EI40: 1 | EJ40: 0 | ER40: 2 | ES40: 2 | ET40: 1 | EU40: 1 | EV40: 1 | EW40: 1 | EX40: 2 | EY40: 1 | EZ40: 2 | FA40: 1 | FB40: 2 | FC40: 2 | FD40: 2 | FE40: 2 | FF40: 1 | FG40: 2 | FH40: 1 | FI40: 1 | FJ40: 1 | FK40: 1 | FL40: 2 | FM40: 1 | FN40: 1 | FO40: 1 | FP40: 1 | FQ40: 2 | FR40: 1 | FS40: 2 | FT40: 1 | FU40: 1 | FV40: 1 | FW40: 1 | FX40: 1 | FY40: 2 | FZ40: 2 | GA40: 2 | GB40: 1 | GC40: 1 | GH40: Escalade | GJ40: Hégémonie | GK40: Connaissance d'une nation (Hégémonie) * PN | GP40: Isitac | GQ40: Langue étrangère (Isitac) * PN | HI40: Prison mentale
D41: Délinquance/criminalité : Organisation | J41: =IF(AND($E41<>" ",$E$39<>"Délinquance/Criminalité"),"ERREUR"," ") ->  | P41: Armes sous-marines | R41: COO | S41: PER | U41: -2 | V41: 0 | W41: -2 | Y41: 0 | AE41: 0 | AJ41: 0 | AL41: 1 | AP41: 0 | AQ41: 0 | AZ41: 0 | BI41: 0 | BR41: 0 | CA41: 0 | CB41: 0 | CC41: 0 | CE41: 0 | CG41: 0 | CH41: 0 | CI41: 0 | CJ41: 2 | CK41: 0 | CL41: 39 | CM41: 0 | CN41: 0 | CO41: 0 | CP41: 0 | CQ41: 0 | CS41: 0 | CT41: 0 | CU41: 0 | CV41: 2 | CW41: 0 | CX41: 39 | CY41: 0 | CZ41: 0 | DA41: 0 | DB41: 0 | DC41: 0 | DE41: 0 | DF41: 0 | DG41: 0 | DH41: 2 | DI41: 0 | DJ41: 39 | DK41: 0 | DL41: 0 | DM41: 0 | DN41: 0 | DO41: 0 | DQ41: 0 | DR41: 0 | DS41: 0 | DT41: 2 | DU41: 0 | DV41: 39 | DW41: 0 | DX41: 0 | DY41: 0 | DZ41: 0 | EB41: 0 | EC41: 0 | ED41: 0 | EE41: 1 | EF41: 0 | EG41: 39 | EH41: 0 | EI41: 0 | EJ41: 0 | ER41: 2 | ES41: 2 | ET41: 2 | EU41: 2 | EV41: 1 | EW41: 2 | EX41: 1 | EY41: 2 | EZ41: 2 | FA41: 2 | FB41: 1 | FC41: 2 | FD41: 2 | FE41: 2 | FF41: 1 | FG41: 2 | FH41: 2 | FI41: 1 | FJ41: 1 | FK41: 1 | FL41: 2 | FM41: 2 | FN41: 1 | FO41: 1 | FP41: 2 | FQ41: 2 | FR41: 2 | FS41: 2 | FT41: 2 | FU41: 1 | FV41: 2 | FW41: 2 | FX41: 2 | FY41: 1 | FZ41: 2 | GA41: 1 | GB41: 2 | GC41: 2 | GH41: Manœuvres 0G * | GJ41: Ligue Rouge | GK41: Connaissance d'une nation (Ligue Rouge) * PN | GP41: Lesarach | GQ41: Langue étrangère (Lesarach) * PN | HI41: Pulsion électromagnétique
A42: =IF(E39="Apprentissage technique (Aquaculture)",1,IF(E39="Apprentissage technique (Usine/Atelier)",1,0)) -> 0 | D42: Aquaculture et Usine/Atelier : Pilotage | J42: =IF(AND($E42<>" ",A42<>1),"ERREUR"," ") ->  | P42: Armes spéciales (tir) I (…....…) | R42: FOR | S42: COO | U42: -2 | V42: 0 | W42: -2 | Y42: 0 | AE42: 0 | AJ42: 0 | AP42: 0 | AQ42: 0 | AZ42: 0 | BI42: 0 | BR42: 0 | CA42: 0 | CB42: 0 | CC42: 0 | CE42: 0 | CG42: 0 | CH42: 0 | CI42: 0 | CJ42: 2 | CK42: 0 | CL42: 40 | CM42: 0 | CN42: 0 | CO42: 0 | CP42: 0 | CQ42: 0 | CS42: 0 | CT42: 0 | CU42: 0 | CV42: 2 | CW42: 0 | CX42: 40 | CY42: 0 | CZ42: 0 | DA42: 0 | DB42: 0 | DC42: 0 | DE42: 0 | DF42: 0 | DG42: 0 | DH42: 2 | DI42: 0 | DJ42: 40 | DK42: 0 | DL42: 0 | DM42: 0 | DN42: 0 | DO42: 0 | DQ42: 0 | DR42: 0 | DS42: 0 | DT42: 2 | DU42: 0 | DV42: 40 | DW42: 0 | DX42: 0 | DY42: 0 | DZ42: 0 | EB42: 0 | EC42: 0 | ED42: 0 | EE42: 1 | EF42: 0 | EG42: 40 | EH42: 0 | EI42: 0 | EJ42: 0 | ER42: 2 | ES42: 2 | ET42: 2 | EU42: 2 | EV42: 2 | EW42: 2 | EX42: 2 | EY42: 2 | EZ42: 2 | FA42: 2 | FB42: 2 | FC42: 2 | FD42: 2 | FE42: 2 | FF42: 2 | FG42: 2 | FH42: 2 | FI42: 2 | FJ42: 2 | FK42: 2 | FL42: 2 | FM42: 2 | FN42: 2 | FO42: 2 | FP42: 2 | FQ42: 2 | FR42: 2 | FS42: 2 | FT42: 2 | FU42: 2 | FV42: 2 | FW42: 2 | FX42: 2 | FY42: 2 | FZ42: 2 | GA42: 2 | GB42: 2 | GC42: 2 | GH42: Manœuvres sous-marines * | GJ42: Nations Pirates | GK42: Connaissance d'une nation (Nations Pirates) * PN | GP42: Léxzion | GQ42: Langue étrangère (Léxzion) * PN | HI42: Régénération moléculaire
A43: =IF(E39="Apprentissage technique (Mines)",1,IF(E39="Apprentissage technique (Usine/Atelier)",1,0)) -> 0 | D43: Mines et Usine/Atelier : Armure | J43: =IF(AND($E43<>" ",A43<>1),"ERREUR"," ") ->  | P43: Armes spéciales (tir) II (…....…) | R43: COO | S43: COO | U43: -2 | V43: 0 | W43: -2 | Y43: 0 | AE43: 0 | AJ43: 0 | AP43: 0 | AQ43: 0 | AZ43: 0 | BI43: 0 | BR43: 0 | CA43: 0 | CB43: 0 | CC43: 0 | CE43: 0 | CG43: 0 | CH43: 0 | CI43: 0 | CJ43: 2 | CK43: 0 | CL43: 41 | CM43: 0 | CN43: 0 | CO43: 0 | CP43: 0 | CQ43: 0 | CS43: 0 | CT43: 0 | CU43: 0 | CV43: 2 | CW43: 0 | CX43: 41 | CY43: 0 | CZ43: 0 | DA43: 0 | DB43: 0 | DC43: 0 | DE43: 0 | DF43: 0 | DG43: 0 | DH43: 2 | DI43: 0 | DJ43: 41 | DK43: 0 | DL43: 0 | DM43: 0 | DN43: 0 | DO43: 0 | DQ43: 0 | DR43: 0 | DS43: 0 | DT43: 2 | DU43: 0 | DV43: 41 | DW43: 0 | DX43: 0 | DY43: 0 | DZ43: 0 | EB43: 0 | EC43: 0 | ED43: 0 | EE43: 1 | EF43: 0 | EG43: 41 | EH43: 0 | EI43: 0 | EJ43: 0 | ER43: 2 | ES43: 2 | ET43: 2 | EU43: 2 | EV43: 2 | EW43: 2 | EX43: 2 | EY43: 2 | EZ43: 2 | FA43: 2 | FB43: 2 | FC43: 2 | FD43: 2 | FE43: 2 | FF43: 2 | FG43: 2 | FH43: 2 | FI43: 2 | FJ43: 2 | FK43: 2 | FL43: 2 | FM43: 2 | FN43: 2 | FO43: 2 | FP43: 2 | FQ43: 2 | FR43: 2 | FS43: 2 | FT43: 2 | FU43: 2 | FV43: 2 | FW43: 2 | FX43: 2 | FY43: 2 | FZ43: 2 | GA43: 2 | GB43: 2 | GC43: 2 | GH43: Respiration FOE | GJ43: République du Corail | GK43: Con. d'une nation (République du Corail) * PN | GP43: Néo-azuran | GQ43: Langue étrangère (Néo-azuran) * PN | HI43: Sensibilité psychique
D44: Usine/Atelier : Mécanique | J44: =IF(AND($E44<>" ",$E$39<>"Apprentissage technique (Usine/Atelier)"),"ERREUR"," ") ->  | P44: Armes spéciales (tir) III (…....…) | Q44: X | R44: FOR | S44: COO | U44: -2 | V44: X | W44: X | Y44: -4 | AE44: 0 | AJ44: 0 | AP44: 0 | AQ44: 0 | AZ44: 0 | BI44: 0 | BR44: 0 | CA44: 0 | CB44: -4 | CC44: X | CE44: 0 | CG44: -4 | CH44: X | CI44: 0 | CJ44: 2 | CK44: 0 | CL44: 42 | CM44: -4 | CN44: X | CO44: 0 | CP44: 0 | CQ44: 0 | CS44: -4 | CT44: X | CU44: 0 | CV44: 2 | CW44: 0 | CX44: 42 | CY44: -4 | CZ44: X | DA44: 0 | DB44: 0 | DC44: 0 | DE44: -4 | DF44: X | DG44: 0 | DH44: 2 | DI44: 0 | DJ44: 42 | DK44: -4 | DL44: X | DM44: 0 | DN44: 0 | DO44: 0 | DQ44: -4 | DR44: X | DS44: 0 | DT44: 2 | DU44: 0 | DV44: 42 | DW44: -4 | DX44: X | DY44: 0 | DZ44: 0 | EB44: -4 | EC44: X | ED44: 0 | EE44: 1 | EF44: 0 | EG44: 42 | EH44: -4 | EI44: X | EJ44: 0 | ER44: 2 | ES44: 2 | ET44: 2 | EU44: 2 | EV44: 2 | EW44: 2 | EX44: 2 | EY44: 2 | EZ44: 2 | FA44: 2 | FB44: 2 | FC44: 2 | FD44: 2 | FE44: 2 | FF44: 2 | FG44: 2 | FH44: 2 | FI44: 2 | FJ44: 2 | FK44: 2 | FL44: 2 | FM44: 2 | FN44: 2 | FO44: 2 | FP44: 2 | FQ44: 2 | FR44: 2 | FS44: 2 | FT44: 2 | FU44: 2 | FV44: 2 | FW44: 2 | FX44: 2 | FY44: 2 | FZ44: 2 | GA44: 2 | GB44: 2 | GC44: 2 | GH44: =P27 -> Armes lourdes (contact) | GJ44: Union Méditerranéenne | GK44: Con. d'une nation (Union Méditerranéenne) * PN | GP44: Nezraïs | GQ44: Langue étrangère (Nezraïs) * PN | HI44: Siphon d'énergie
D45: Usine/Atelier : Pilotage 2 | J45: =IF(AND($E45<>" ",$E$39<>"Apprentissage technique (Usine/Atelier)"),"ERREUR"," ") ->  | P45: Armes spéciales (tir) IV (…....…) | Q45: X | R45: COO | S45: COO | U45: -2 | V45: X | W45: X | Y45: -4 | AE45: 0 | AJ45: 0 | AP45: 0 | AQ45: 0 | AZ45: 0 | BI45: 0 | BR45: 0 | CA45: 0 | CB45: -4 | CC45: X | CE45: 0 | CG45: -4 | CH45: X | CI45: 0 | CJ45: 2 | CK45: 0 | CL45: 43 | CM45: -4 | CN45: X | CO45: 0 | CP45: 0 | CQ45: 0 | CS45: -4 | CT45: X | CU45: 0 | CV45: 2 | CW45: 0 | CX45: 43 | CY45: -4 | CZ45: X | DA45: 0 | DB45: 0 | DC45: 0 | DE45: -4 | DF45: X | DG45: 0 | DH45: 2 | DI45: 0 | DJ45: 43 | DK45: -4 | DL45: X | DM45: 0 | DN45: 0 | DO45: 0 | DQ45: -4 | DR45: X | DS45: 0 | DT45: 2 | DU45: 0 | DV45: 43 | DW45: -4 | DX45: X | DY45: 0 | DZ45: 0 | EB45: -4 | EC45: X | ED45: 0 | EE45: 1 | EF45: 0 | EG45: 43 | EH45: -4 | EI45: X | EJ45: 0 | ER45: 2 | ES45: 2 | ET45: 2 | EU45: 2 | EV45: 2 | EW45: 2 | EX45: 2 | EY45: 2 | EZ45: 2 | FA45: 2 | FB45: 2 | FC45: 2 | FD45: 2 | FE45: 2 | FF45: 2 | FG45: 2 | FH45: 2 | FI45: 2 | FJ45: 2 | FK45: 2 | FL45: 2 | FM45: 2 | FN45: 2 | FO45: 2 | FP45: 2 | FQ45: 2 | FR45: 2 | FS45: 2 | FT45: 2 | FU45: 2 | FV45: 2 | FW45: 2 | FX45: 2 | FY45: 2 | FZ45: 2 | GA45: 2 | GB45: 2 | GC45: 2 | GH45: =P28 -> Armes spéciales (contact) I (…....…) | GJ45: Autre I | GK45: =GH99 -> Connaissance d 'une nation I (……….) * PN | GP45: Océane | GQ45: Langue étrangère (Océane) * PN | HI45: Sonscan
D46: Education scolaire : Langue étrangère | J46: =IF(AND($E46<>" ",$E$39<>"Education scolaire"),"ERREUR"," ") ->  | P46: Armes de trait | Q46: -3 | R46: COO | S46: PER | U46: -2 | V46: -3 | W46: -5 | Y46: -3 | AE46: 0 | AJ46: 0 | AP46: 0 | AQ46: 0 | AZ46: 0 | BI46: 0 | BR46: 0 | CA46: 0 | CB46: -3 | CC46: -3 | CE46: 0 | CG46: -3 | CH46: -3 | CI46: 0 | CJ46: 2 | CK46: 0 | CL46: 44 | CM46: -3 | CN46: -3 | CO46: 0 | CP46: 0 | CQ46: 0 | CS46: -3 | CT46: -3 | CU46: 0 | CV46: 2 | CW46: 0 | CX46: 44 | CY46: -3 | CZ46: -3 | DA46: 0 | DB46: 0 | DC46: 0 | DE46: -3 | DF46: -3 | DG46: 0 | DH46: 2 | DI46: 0 | DJ46: 44 | DK46: -3 | DL46: -3 | DM46: 0 | DN46: 0 | DO46: 0 | DQ46: -3 | DR46: -3 | DS46: 0 | DT46: 2 | DU46: 0 | DV46: 44 | DW46: -3 | DX46: -3 | DY46: 0 | DZ46: 0 | EB46: -3 | EC46: -3 | ED46: 0 | EE46: 1 | EF46: 0 | EG46: 44 | EH46: -3 | EI46: -3 | EJ46: 0 | ER46: 2 | ES46: 2 | ET46: 2 | EU46: 2 | EV46: 2 | EW46: 2 | EX46: 2 | EY46: 2 | EZ46: 2 | FA46: 2 | FB46: 2 | FC46: 2 | FD46: 2 | FE46: 2 | FF46: 2 | FG46: 2 | FH46: 2 | FI46: 2 | FJ46: 2 | FK46: 2 | FL46: 2 | FM46: 2 | FN46: 2 | FO46: 2 | FP46: 2 | FQ46: 2 | FR46: 2 | FS46: 2 | FT46: 2 | FU46: 2 | FV46: 2 | FW46: 2 | FX46: 2 | FY46: 2 | FZ46: 2 | GA46: 2 | GB46: 2 | GC46: 2 | GH46: Armes spéciales (contact) II (…....…) | GJ46: Autre II | GK46: =GH100 -> Connaissance d 'une nation II (……….) * PN | GP46: Olakar | GQ46: Langue étrangère (Olakar) * PN | HI46: Sphère de gravité
D47: Education scolaire : Nation étrangère | J47: =IF(AND($E47<>" ",$E$39<>"Education scolaire"),"ERREUR"," ") ->  | P47: Fusils/Armes d'épaule | R47: COO | S47: PER | U47: -2 | V47: 0 | W47: -2 | Y47: 0 | AE47: 0 | AJ47: 0 | AP47: 0 | AQ47: 0 | AU47: =IF($E$62="Fusils/Armes d'épaule",2,) -> 0 | AZ47: 0 | BD47: =IF($E$87="Fusils/Armes d'épaule",2,) -> 0 | BI47: 0 | BM47: =IF($E$112="Fusils/Armes d'épaule",2,) -> 0 | BR47: 0 | BV47: =IF($E$137="Fusils/Armes d'épaule",2,) -> 0 | CA47: 0 | CB47: 0 | CC47: 0 | CE47: 0 | CG47: 0 | CH47: 0 | CI47: 0 | CJ47: 2 | CK47: 0 | CL47: 45 | CM47: 0 | CN47: 0 | CO47: 0 | CP47: 0 | CQ47: 0 | CS47: 0 | CT47: 0 | CU47: 0 | CV47: 2 | CW47: 0 | CX47: 45 | CY47: 0 | CZ47: 0 | DA47: 0 | DB47: 0 | DC47: 0 | DE47: 0 | DF47: 0 | DG47: 0 | DH47: 2 | DI47: 0 | DJ47: 45 | DK47: 0 | DL47: 0 | DM47: 0 | DN47: 0 | DO47: 0 | DQ47: 0 | DR47: 0 | DS47: 0 | DT47: 2 | DU47: 0 | DV47: 45 | DW47: 0 | DX47: 0 | DY47: 0 | DZ47: 0 | EB47: 0 | EC47: 0 | ED47: 0 | EE47: 1 | EF47: 0 | EG47: 45 | EH47: 0 | EI47: 0 | EJ47: 0 | ER47: 2 | ES47: 2 | ET47: 1 | EU47: 1 | EV47: 1 | EW47: 1 | EX47: 2 | EY47: 2 | EZ47: 2 | FA47: 1 | FB47: 2 | FC47: 2 | FD47: 2 | FE47: 2 | FF47: 1 | FG47: 2 | FH47: 2 | FI47: 1 | FJ47: 1 | FK47: 1 | FL47: 2 | FM47: 2 | FN47: 2 | FO47: 1 | FP47: 1 | FQ47: 2 | FR47: 2 | FS47: 2 | FT47: 1 | FU47: 1 | FV47: 1 | FW47: 1 | FX47: 1 | FY47: 2 | FZ47: 2 | GA47: 2 | GB47: 1 | GC47: 2 | GH47: Armes spéciales (contact) III (…....…) | GP47: Olosak | GQ47: Langue étrangère (Olosak) * PN | HI47: Sphère de répulsion organique
D48: Education scolaire : Sciences | J48: =IF(AND($E48<>" ",$E$39<>"Education scolaire"),"ERREUR"," ") ->  | P48: Tir automatique * | R48: FOR | S48: PER | U48: -2 | V48: 0 | W48: -2 | Y48: 0 | AE48: 0 | AJ48: 0 | AP48: 0 | AQ48: 0 | AZ48: 0 | BI48: 0 | BR48: 0 | CA48: 0 | CB48: 0 | CC48: 0 | CE48: 0 | CG48: 0 | CH48: 0 | CI48: 0 | CJ48: 2 | CK48: 0 | CL48: 46 | CM48: 0 | CN48: 0 | CO48: 0 | CP48: 0 | CQ48: 0 | CS48: 0 | CT48: 0 | CU48: 0 | CV48: 2 | CW48: 0 | CX48: 46 | CY48: 0 | CZ48: 0 | DA48: 0 | DB48: 0 | DC48: 0 | DE48: 0 | DF48: 0 | DG48: 0 | DH48: 2 | DI48: 0 | DJ48: 46 | DK48: 0 | DL48: 0 | DM48: 0 | DN48: 0 | DO48: 0 | DQ48: 0 | DR48: 0 | DS48: 0 | DT48: 2 | DU48: 0 | DV48: 46 | DW48: 0 | DX48: 0 | DY48: 0 | DZ48: 0 | EB48: 0 | EC48: 0 | ED48: 0 | EE48: 1 | EF48: 0 | EG48: 46 | EH48: 0 | EI48: 0 | EJ48: 0 | ER48: 2 | ES48: 2 | ET48: 2 | EU48: 2 | EV48: 2 | EW48: 2 | EX48: 2 | EY48: 2 | EZ48: 2 | FA48: 2 | FB48: 2 | FC48: 2 | FD48: 2 | FE48: 2 | FF48: 1 | FG48: 2 | FH48: 2 | FI48: 2 | FJ48: 2 | FK48: 2 | FL48: 2 | FM48: 2 | FN48: 2 | FO48: 1 | FP48: 2 | FQ48: 2 | FR48: 2 | FS48: 2 | FT48: 1 | FU48: 1 | FV48: 1 | FW48: 1 | FX48: 1 | FY48: 2 | FZ48: 2 | GA48: 2 | GB48: 1 | GC48: 2 | GH48: Armes spéciales (contact) IV (…....…) | GJ48: Amanéum | GK48: Langue étrangère (Amanéun) * PN | GP48: Ossyrien | GQ48: Langue étrangère (Ossyrien) * PN | HI48: Sphère temporelle
P49: Tir de précision * | Q49: -3 | R49: PER | S49: VOL | U49: -2 | V49: -3 | W49: -5 | Y49: -3 | AE49: 0 | AJ49: 0 | AP49: 0 | AQ49: 0 | AZ49: 0 | BI49: 0 | BR49: 0 | CA49: 0 | CB49: -3 | CC49: -3 | CE49: 0 | CG49: -3 | CH49: -3 | CI49: 0 | CJ49: 2 | CK49: 0 | CL49: 47 | CM49: -3 | CN49: -3 | CO49: 0 | CP49: 0 | CQ49: 0 | CS49: -3 | CT49: -3 | CU49: 0 | CV49: 2 | CW49: 0 | CX49: 47 | CY49: -3 | CZ49: -3 | DA49: 0 | DB49: 0 | DC49: 0 | DE49: -3 | DF49: -3 | DG49: 0 | DH49: 2 | DI49: 0 | DJ49: 47 | DK49: -3 | DL49: -3 | DM49: 0 | DN49: 0 | DO49: 0 | DQ49: -3 | DR49: -3 | DS49: 0 | DT49: 2 | DU49: 0 | DV49: 47 | DW49: -3 | DX49: -3 | DY49: 0 | DZ49: 0 | EB49: -3 | EC49: -3 | ED49: 0 | EE49: 1 | EF49: 0 | EG49: 47 | EH49: -3 | EI49: -3 | EJ49: 0 | ER49: 2 | ES49: 2 | ET49: 1 | EU49: 2 | EV49: 2 | EW49: 2 | EX49: 2 | EY49: 2 | EZ49: 2 | FA49: 2 | FB49: 2 | FC49: 2 | FD49: 2 | FE49: 2 | FF49: 2 | FG49: 2 | FH49: 2 | FI49: 2 | FJ49: 2 | FK49: 2 | FL49: 2 | FM49: 2 | FN49: 2 | FO49: 2 | FP49: 2 | FQ49: 2 | FR49: 2 | FS49: 2 | FT49: 2 | FU49: 2 | FV49: 2 | FW49: 1 | FX49: 1 | FY49: 2 | FZ49: 2 | GA49: 2 | GB49: 2 | GC49: 2 | GH49: Arts martiaux (Lutte) * | GJ49: Azran | GK49: Langue étrangère (Azran) * PN | GP49: Rénaréan | GQ49: Langue étrangère (Rénaréan) * PN | HI49: Sphère de terreur
M50: Communication/Relations sociales | AP50: 0 | CB50: 0 | CI50: 0 | CK50: 0 | CL50: 48 | CO50: 0 | CP50: 0 | CU50: 0 | CW50: 0 | CX50: 48 | DA50: 0 | DB50: 0 | DG50: 0 | DI50: 0 | DJ50: 48 | DM50: 0 | DN50: 0 | DS50: 0 | DU50: 0 | DV50: 48 | DY50: 0 | DZ50: 0 | ED50: 0 | EE50: 1 | EF50: 0 | EG50: 48 | EJ50: 0 | GH50: Arts martiaux (Tech. défensives) * | GJ50: Gashklar | GK50: Langue étrangère (Gashklar) * PN | GP50: Ternaset | GQ50: Langue étrangère (Ternaset) * PN | HI50: Télékinésie
C51: Etudes supérieures 1 | E51: Pas d'étude sup. | J51: =IF(E51="Pas d'étude sup.",0,1) -> 0 | P51: Analyse empathique | Q51: -3 | R51: INT | S51: PER | U51: =HLOOKUP(R51,$HE$2:$HM$3,2,)+HLOOKUP(S51,$HE$2:$HM$3,2,) -> -2 | V51: =EI51 -> -3 | W51: =IF(V51="X","X",U51+V51) -> -5 | Y51: =IF(Q51="X",-4,Q51) -> -3 | AE51: =IF($AE$3=$AA$3,AA51,IF($AE$3=$AB$3,AB51,IF($AE$3=$AC$3,AC51,IF($AE$3=$AD$3,AD51,0)))) -> 0 | AJ51: =IF($AJ$3=$AF$3,AF51,IF($AJ$3=$AG$3,AG51,IF($AJ$3=$AH$3,AH51,IF($AJ$3=$AI$3,AI51,0)))) -> 0 | AP51: 0 | AQ51: =IF($AQ$3=$AK$3,AK51,IF($AQ$3=$AL$3,AL51,IF($AQ$3=$AM$3,AM51,IF($AQ$3=$AN$3,AN51,IF($AQ$3=$AO$3,AO51,IF($AQ$3=$AP$3,AP51,0)))))) -> 0 | AW51: 1 | AZ51: =IF(AZ$3=AR$3,AR51,IF(AZ$3=AS$3,AS51,IF(AZ$3=AT$3,AT51,IF(AZ$3=AU$3,AU51,IF(AZ$3=AV$3,AV51,IF(AZ$3=AW$3,AW51,IF(AZ$3=AX$3,AX51,IF(AZ$3=AY$3,AY51,0)))))))) -> 0 | BF51: 1 | BI51: =IF(BI$3=BA$3,BA51,IF(BI$3=BB$3,BB51,IF(BI$3=BC$3,BC51,IF(BI$3=BD$3,BD51,IF(BI$3=BE$3,BE51,IF(BI$3=BF$3,BF51,IF(BI$3=BG$3,BG51,IF(BI$3=BH$3,BH51,0)))))))) -> 0 | BO51: 1 | BR51: =IF(BR$3=BJ$3,BJ51,IF(BR$3=BK$3,BK51,IF(BR$3=BL$3,BL51,IF(BR$3=BM$3,BM51,IF(BR$3=BN$3,BN51,IF(BR$3=BO$3,BO51,IF(BR$3=BP$3,BP51,IF(BR$3=BQ$3,BQ51,0)))))))) -> 0 | BX51: 1 | CA51: =IF(CA$3=BS$3,BS51,IF(CA$3=BT$3,BT51,IF(CA$3=BU$3,BU51,IF(CA$3=BV$3,BV51,IF(CA$3=BW$3,BW51,IF(CA$3=BX$3,BX51,IF(CA$3=BY$3,BY51,IF(CA$3=BZ$3,BZ51,0)))))))) -> 0 | CB51: -3 | CC51: =IF(CB51=-4,"X",CB51) -> -3 | CE51: =IF($E$233=P51,1,IF($E$234=P51,1,IF($E$235=P51,1,IF($E$236=P51,1,IF($E$237=P51,1,IF($E$238=P51,1,0)))))) -> 0 | CG51: =CB51+CF51 -> -3 | CH51: =IF(CG51=-4,"X",CG51) -> -3 | CI51: 0 | CJ51: =IF(CE51=1,1,(HLOOKUP($CK$3,$ER$3:$GC$262,CL51,))) -> 2 | CK51: 0 | CL51: 49 | CM51: =CG51+CK51 -> -3 | CN51: =IF(CM51=-4,"X",CM51) -> -3 | CO51: 0 | CP51: 0 | CQ51: =IF($E$241=P51,1,IF($E$242=P51,1,IF($E$243=P51,1,IF($E$244=P51,1,IF($E$245=P51,1,IF($E$246=P51,1,0)))))) -> 0 | CS51: =CM51+CR51 -> -3 | CT51: =IF(CS51=-4,"X",CS51) -> -3 | CU51: 0 | CV51: =IF(CQ51=1,1,(HLOOKUP($CW$3,$ER$3:$GC$262,CX51,))) -> 2 | CW51: 0 | CX51: 49 | CY51: =CS51+CW51 -> -3 | CZ51: =IF(CY51=-4,"X",CY51) -> -3 | DA51: 0 | DB51: 0 | DC51: =IF($E$249=P51,1,IF($E$250=P51,1,IF($E$251=P51,1,IF($E$252=P51,1,IF($E$253=P51,1,IF($E$254=P51,1,0)))))) -> 0 | DE51: =CY51+DD51 -> -3 | DF51: =IF(DE51=-4,"X",DE51) -> -3 | DG51: 0 | DH51: =IF(DC51=1,1,(HLOOKUP($DI$3,$ER$3:$GC$262,DJ51,))) -> 2 | DI51: 0 | DJ51: 49 | DK51: =DE51+DI51 -> -3 | DL51: =IF(DK51=-4,"X",DK51) -> -3 | DM51: 0 | DN51: 0 | DO51: =IF($E$257=P51,1,IF($E$258=P51,1,IF($E$259=P51,1,IF($E$260=P51,1,IF($E$261=P51,1,IF($E$262=P51,1,0)))))) -> 0 | DQ51: =DK51+DP51 -> -3 | DR51: =IF(DQ51=-4,"X",DQ51) -> -3 | DS51: 0 | DT51: =IF(DO51=1,1,(HLOOKUP($DU$3,$ER$3:$GC$262,DV51,))) -> 2 | DU51: 0 | DV51: 49 | DW51: =DQ51+DU51 -> -3 | DX51: =IF(DW51=-4,"X",DW51) -> -3 | DY51: 0 | DZ51: 0 | EB51: =DW51+EA51 -> -3 | EC51: =IF(EB51=-4,"X",EB51) -> -3 | ED51: 0 | EE51: 1 | EF51: 0 | EG51: 49 | EH51: =EB51+EF51 -> -3 | EI51: =IF(EH51=-4,"X",EH51) -> -3 | EJ51: 0 | ER51: 2 | ES51: 2 | ET51: 2 | EU51: 1 | EV51: 1 | EW51: 2 | EX51: 1 | EY51: 1 | EZ51: 2 | FA51: 1 | FB51: 1 | FC51: 1 | FD51: 1 | FE51: 1 | FF51: 2 | FG51: 2 | FH51: 2 | FI51: 2 | FJ51: 2 | FK51: 2 | FL51: 2 | FM51: 2 | FN51: 2 | FO51: 2 | FP51: 1 | FQ51: 1 | FR51: 1 | FS51: 2 | FT51: 2 | FU51: 2 | FV51: 2 | FW51: 2 | FX51: 2 | FY51: 2 | FZ51: 2 | GA51: 2 | GB51: 2 | GC51: 2 | GH51: Arts martiaux (Tech. offensives) * | GJ51: Isitac | GK51: Langue étrangère (Isitac) * PN | GP51: Trashan | GQ51: Langue étrangère (Trashan) * PN | HI51: Téléportation
D52: Commerce/Gestion : Commerce légal | J52: =IF(AND($E52<>" ",$E$51<>"Commerce/gestion"),"ERREUR"," ") ->  | P52: Commandement | R52: VOL | S52: PRE | U52: -2 | V52: 0 | W52: -2 | Y52: 0 | AE52: 0 | AJ52: 0 | AP52: 0 | AQ52: 0 | AU52: 3 | AV52: 1 | AZ52: 0 | BD52: 3 | BE52: 1 | BI52: 0 | BM52: 3 | BN52: 1 | BR52: 0 | BV52: 3 | BW52: 1 | CA52: 0 | CB52: 0 | CC52: 0 | CE52: 0 | CG52: 0 | CH52: 0 | CI52: 0 | CJ52: 2 | CK52: 0 | CL52: 50 | CM52: 0 | CN52: 0 | CO52: 0 | CP52: 0 | CQ52: 0 | CS52: 0 | CT52: 0 | CU52: 0 | CV52: 2 | CW52: 0 | CX52: 50 | CY52: 0 | CZ52: 0 | DA52: 0 | DB52: 0 | DC52: 0 | DE52: 0 | DF52: 0 | DG52: 0 | DH52: 2 | DI52: 0 | DJ52: 50 | DK52: 0 | DL52: 0 | DM52: 0 | DN52: 0 | DO52: 0 | DQ52: 0 | DR52: 0 | DS52: 0 | DT52: 2 | DU52: 0 | DV52: 50 | DW52: 0 | DX52: 0 | DY52: 0 | DZ52: 0 | EB52: 0 | EC52: 0 | ED52: 0 | EE52: 1 | EF52: 0 | EG52: 50 | EH52: 0 | EI52: 0 | EJ52: 0 | ER52: 2 | ES52: 2 | ET52: 2 | EU52: 2 | EV52: 2 | EW52: 2 | EX52: 2 | EY52: 2 | EZ52: 2 | FA52: 2 | FB52: 2 | FC52: 2 | FD52: 2 | FE52: 2 | FF52: 2 | FG52: 2 | FH52: 1 | FI52: 1 | FJ52: 1 | FK52: 1 | FL52: 2 | FM52: 2 | FN52: 2 | FO52: 2 | FP52: 1 | FQ52: 1 | FR52: 2 | FS52: 2 | FT52: 1 | FU52: 2 | FV52: 2 | FW52: 2 | FX52: 2 | FY52: 2 | FZ52: 2 | GA52: 2 | GB52: 1 | GC52: 2 | GH52: Combat armé | GJ52: Lesarach | GK52: Langue étrangère (Lesarach) * PN | GP52: Etrangère | GQ52: =GH166 -> Langue étrangère (……….) * PN | HI52: Tempête du Flux
D53: Commerce/Gestion : Langue au choix | J53: =IF(AND($E53<>" ",$E$51<>"Commerce/gestion"),"ERREUR"," ") ->  | P53: Eloquence/Persuasion + | R53: INT | S53: PRE | U53: -2 | V53: 0 | W53: -2 | Y53: 0 | AE53: 0 | AJ53: 0 | AP53: 0 | AQ53: 0 | AS53: 1 | AZ53: 0 | BB53: 1 | BI53: 0 | BK53: 1 | BR53: 0 | BT53: 1 | CA53: 0 | CB53: 0 | CC53: 0 | CE53: 0 | CG53: 0 | CH53: 0 | CI53: 0 | CJ53: 2 | CK53: 0 | CL53: 51 | CM53: 0 | CN53: 0 | CO53: 0 | CP53: 0 | CQ53: 0 | CS53: 0 | CT53: 0 | CU53: 0 | CV53: 2 | CW53: 0 | CX53: 51 | CY53: 0 | CZ53: 0 | DA53: 0 | DB53: 0 | DC53: 0 | DE53: 0 | DF53: 0 | DG53: 0 | DH53: 2 | DI53: 0 | DJ53: 51 | DK53: 0 | DL53: 0 | DM53: 0 | DN53: 0 | DO53: 0 | DQ53: 0 | DR53: 0 | DS53: 0 | DT53: 2 | DU53: 0 | DV53: 51 | DW53: 0 | DX53: 0 | DY53: 0 | DZ53: 0 | EB53: 0 | EC53: 0 | ED53: 0 | EE53: 1 | EF53: 0 | EG53: 51 | EH53: 0 | EI53: 0 | EJ53: 0 | ER53: 2 | ES53: 1 | ET53: 2 | EU53: 1 | EV53: 1 | EW53: 1 | EX53: 2 | EY53: 1 | EZ53: 1 | FA53: 1 | FB53: 2 | FC53: 1 | FD53: 1 | FE53: 2 | FF53: 2 | FG53: 2 | FH53: 2 | FI53: 2 | FJ53: 2 | FK53: 2 | FL53: 2 | FM53: 2 | FN53: 2 | FO53: 2 | FP53: 2 | FQ53: 1 | FR53: 1 | FS53: 1 | FT53: 2 | FU53: 2 | FV53: 2 | FW53: 2 | FX53: 2 | FY53: 2 | FZ53: 2 | GA53: 2 | GB53: 1 | GC53: 2 | GH53: Combat à mains nues | GJ53: Léxzion | GK53: Langue étrangère (Léxzion) * PN | GP53: Arkonien | GQ53: Langue ancienne (Arkonien) * | HI53: Tourbillon
D54: Commerce/Gestion : Nation étrangère | J54: =IF(AND($E54<>" ",$E$51<>"Commerce/gestion"),"ERREUR"," ") ->  | M54: Règle perso. | P54: Enseignement + | R54: INT | S54: PER | U54: -2 | V54: 0 | W54: -2 | Y54: 0 | AE54: 0 | AJ54: 0 | AP54: 0 | AQ54: 0 | AZ54: 0 | BI54: 0 | BR54: 0 | CA54: 0 | CB54: 0 | CC54: 0 | CE54: 0 | CG54: 0 | CH54: 0 | CI54: 0 | CJ54: 2 | CK54: 0 | CL54: 52 | CM54: 0 | CN54: 0 | CO54: 0 | CP54: 0 | CQ54: 0 | CS54: 0 | CT54: 0 | CU54: 0 | CV54: 2 | CW54: 0 | CX54: 52 | CY54: 0 | CZ54: 0 | DA54: 0 | DB54: 0 | DC54: 0 | DE54: 0 | DF54: 0 | DG54: 0 | DH54: 2 | DI54: 0 | DJ54: 52 | DK54: 0 | DL54: 0 | DM54: 0 | DN54: 0 | DO54: 0 | DQ54: 0 | DR54: 0 | DS54: 0 | DT54: 2 | DU54: 0 | DV54: 52 | DW54: 0 | DX54: 0 | DY54: 0 | DZ54: 0 | EB54: 0 | EC54: 0 | ED54: 0 | EE54: 1 | EF54: 0 | EG54: 52 | EH54: 0 | EI54: 0 | EJ54: 0 | ER54: 2 | ES54: 1 | ET54: 2 | EU54: 2 | EV54: 2 | EW54: 2 | EX54: 2 | EY54: 1 | EZ54: 1 | FA54: 2 | FB54: 2 | FC54: 2 | FD54: 1 | FE54: 2 | FF54: 2 | FG54: 2 | FH54: 2 | FI54: 2 | FJ54: 2 | FK54: 2 | FL54: 2 | FM54: 2 | FN54: 2 | FO54: 2 | FP54: 2 | FQ54: 1 | FR54: 2 | FS54: 1 | FT54: 2 | FU54: 2 | FV54: 2 | FW54: 2 | FX54: 2 | FY54: 2 | FZ54: 2 | GA54: 2 | GB54: 2 | GC54: 2 | GH54: =P38 -> Armes de jet | GJ54: Néo-azuran | GK54: Langue étrangère (Néo-azuran) * PN | GP54: Azuran | GQ54: Langue ancienne (Azuran) * | HI54: Tourbillon de mort
D55: Commerce/Gestion : Sciences | J55: =IF(AND($E55<>" ",$E$51<>"Commerce/gestion"),"ERREUR"," ") ->  | P55: Entregent/Séduction | R55: PRE | S55: PRE | U55: -2 | V55: 0 | W55: -2 | Y55: 0 | AE55: 0 | AJ55: 0 | AP55: 0 | AQ55: 0 | AZ55: 0 | BI55: 0 | BR55: 0 | CA55: 0 | CB55: 0 | CC55: 0 | CE55: 0 | CG55: 0 | CH55: 0 | CI55: 0 | CJ55: 2 | CK55: 0 | CL55: 53 | CM55: 0 | CN55: 0 | CO55: 0 | CP55: 0 | CQ55: 0 | CS55: 0 | CT55: 0 | CU55: 0 | CV55: 2 | CW55: 0 | CX55: 53 | CY55: 0 | CZ55: 0 | DA55: 0 | DB55: 0 | DC55: 0 | DE55: 0 | DF55: 0 | DG55: 0 | DH55: 2 | DI55: 0 | DJ55: 53 | DK55: 0 | DL55: 0 | DM55: 0 | DN55: 0 | DO55: 0 | DQ55: 0 | DR55: 0 | DS55: 0 | DT55: 2 | DU55: 0 | DV55: 53 | DW55: 0 | DX55: 0 | DY55: 0 | DZ55: 0 | EB55: 0 | EC55: 0 | ED55: 0 | EE55: 1 | EF55: 0 | EG55: 53 | EH55: 0 | EI55: 0 | EJ55: 0 | ER55: 2 | ES55: 1 | ET55: 2 | EU55: 1 | EV55: 2 | EW55: 2 | EX55: 2 | EY55: 1 | EZ55: 2 | FA55: 1 | FB55: 2 | FC55: 1 | FD55: 1 | FE55: 2 | FF55: 2 | FG55: 2 | FH55: 2 | FI55: 2 | FJ55: 2 | FK55: 2 | FL55: 2 | FM55: 2 | FN55: 2 | FO55: 2 | FP55: 2 | FQ55: 2 | FR55: 1 | FS55: 2 | FT55: 2 | FU55: 2 | FV55: 2 | FW55: 2 | FX55: 2 | FY55: 2 | FZ55: 2 | GA55: 2 | GB55: 2 | GC55: 2 | GH55: =P39 -> Armes lourdes (tir) | GJ55: Nezraïs | GK55: Langue étrangère (Nezraïs) * PN | GP55: Azuréen | GQ55: Langue ancienne (Azuréen) * | HI55: Vortex psychique
D56: Droit : Langue au choix | J56: =IF(AND($E56<>" ",$E$51<>"Droit"),"ERREUR"," ") ->  | P56: Expression artistique (Chant) | Q56: -3 | R56: INT | S56: PRE | U56: -2 | V56: -3 | W56: -5 | Y56: -3 | AE56: 0 | AJ56: 0 | AP56: 0 | AQ56: 0 | AZ56: 0 | BI56: 0 | BR56: 0 | CA56: 0 | CB56: -3 | CC56: -3 | CE56: 0 | CG56: -3 | CH56: -3 | CI56: 0 | CJ56: 2 | CK56: 0 | CL56: 54 | CM56: -3 | CN56: -3 | CO56: 0 | CP56: 0 | CQ56: 0 | CS56: -3 | CT56: -3 | CU56: 0 | CV56: 2 | CW56: 0 | CX56: 54 | CY56: -3 | CZ56: -3 | DA56: 0 | DB56: 0 | DC56: 0 | DE56: -3 | DF56: -3 | DG56: 0 | DH56: 2 | DI56: 0 | DJ56: 54 | DK56: -3 | DL56: -3 | DM56: 0 | DN56: 0 | DO56: 0 | DQ56: -3 | DR56: -3 | DS56: 0 | DT56: 2 | DU56: 0 | DV56: 54 | DW56: -3 | DX56: -3 | DY56: 0 | DZ56: 0 | EB56: -3 | EC56: -3 | ED56: 0 | EE56: 1 | EF56: 0 | EG56: 54 | EH56: -3 | EI56: -3 | EJ56: 0 | ER56: 2 | ES56: 2 | ET56: 2 | EU56: 2 | EV56: 2 | EW56: 2 | EX56: 2 | EY56: 2 | EZ56: 2 | FA56: 2 | FB56: 2 | FC56: 2 | FD56: 1 | FE56: 2 | FF56: 2 | FG56: 2 | FH56: 2 | FI56: 2 | FJ56: 2 | FK56: 2 | FL56: 2 | FM56: 2 | FN56: 2 | FO56: 2 | FP56: 2 | FQ56: 2 | FR56: 1 | FS56: 2 | FT56: 2 | FU56: 2 | FV56: 2 | FW56: 2 | FX56: 2 | FY56: 2 | FZ56: 2 | GA56: 2 | GB56: 2 | GC56: 2 | GH56: Armes de poing | GJ56: Océane | GK56: Langue étrangère (Océane) * PN | GP56: Gatéen | GQ56: Langue ancienne (Gatéen) * | HI56: Vortex physique
D57: Droit : Nation étrangère | J57: =IF(AND($E57<>" ",$E$51<>"Droit"),"ERREUR"," ") ->  | P57: Expression artistique (Comédie/Conte) | Q57: -3 | R57: ADA | S57: PRE | U57: -2 | V57: -3 | W57: -5 | Y57: -3 | AE57: 0 | AJ57: 0 | AP57: 0 | AQ57: 0 | AZ57: 0 | BI57: 0 | BR57: 0 | CA57: 0 | CB57: -3 | CC57: -3 | CE57: 0 | CG57: -3 | CH57: -3 | CI57: 0 | CJ57: 2 | CK57: 0 | CL57: 55 | CM57: -3 | CN57: -3 | CO57: 0 | CP57: 0 | CQ57: 0 | CS57: -3 | CT57: -3 | CU57: 0 | CV57: 2 | CW57: 0 | CX57: 55 | CY57: -3 | CZ57: -3 | DA57: 0 | DB57: 0 | DC57: 0 | DE57: -3 | DF57: -3 | DG57: 0 | DH57: 2 | DI57: 0 | DJ57: 55 | DK57: -3 | DL57: -3 | DM57: 0 | DN57: 0 | DO57: 0 | DQ57: -3 | DR57: -3 | DS57: 0 | DT57: 2 | DU57: 0 | DV57: 55 | DW57: -3 | DX57: -3 | DY57: 0 | DZ57: 0 | EB57: -3 | EC57: -3 | ED57: 0 | EE57: 1 | EF57: 0 | EG57: 55 | EH57: -3 | EI57: -3 | EJ57: 0 | ER57: 2 | ES57: 2 | ET57: 2 | EU57: 2 | EV57: 2 | EW57: 2 | EX57: 2 | EY57: 2 | EZ57: 2 | FA57: 2 | FB57: 2 | FC57: 2 | FD57: 1 | FE57: 2 | FF57: 2 | FG57: 2 | FH57: 2 | FI57: 2 | FJ57: 2 | FK57: 2 | FL57: 2 | FM57: 2 | FN57: 2 | FO57: 2 | FP57: 2 | FQ57: 2 | FR57: 1 | FS57: 2 | FT57: 2 | FU57: 2 | FV57: 2 | FW57: 2 | FX57: 2 | FY57: 2 | FZ57: 2 | GA57: 2 | GB57: 2 | GC57: 2 | GH57: Armes sous-marines | GJ57: Olakar | GK57: Langue étrangère (Olakar) * PN | GP57: Ancienne | GQ57: =GH171 -> Langue ancienne (……….) *
D58: Ecole d'ingénieurs : Génie technique | J58: =IF(AND($E58<>" ",$E$51<>"Ecole d'ingénieurs"),"ERREUR"," ") ->  | P58: Expression artistique (Danse) | Q58: -3 | R58: COO | S58: PRE | U58: -2 | V58: -3 | W58: -5 | Y58: -3 | AE58: 0 | AJ58: 0 | AP58: 0 | AQ58: 0 | AZ58: 0 | BI58: 0 | BR58: 0 | CA58: 0 | CB58: -3 | CC58: -3 | CE58: 0 | CG58: -3 | CH58: -3 | CI58: 0 | CJ58: 2 | CK58: 0 | CL58: 56 | CM58: -3 | CN58: -3 | CO58: 0 | CP58: 0 | CQ58: 0 | CS58: -3 | CT58: -3 | CU58: 0 | CV58: 2 | CW58: 0 | CX58: 56 | CY58: -3 | CZ58: -3 | DA58: 0 | DB58: 0 | DC58: 0 | DE58: -3 | DF58: -3 | DG58: 0 | DH58: 2 | DI58: 0 | DJ58: 56 | DK58: -3 | DL58: -3 | DM58: 0 | DN58: 0 | DO58: 0 | DQ58: -3 | DR58: -3 | DS58: 0 | DT58: 2 | DU58: 0 | DV58: 56 | DW58: -3 | DX58: -3 | DY58: 0 | DZ58: 0 | EB58: -3 | EC58: -3 | ED58: 0 | EE58: 1 | EF58: 0 | EG58: 56 | EH58: -3 | EI58: -3 | EJ58: 0 | ER58: 2 | ES58: 2 | ET58: 2 | EU58: 2 | EV58: 2 | EW58: 2 | EX58: 2 | EY58: 2 | EZ58: 2 | FA58: 2 | FB58: 2 | FC58: 2 | FD58: 1 | FE58: 2 | FF58: 2 | FG58: 2 | FH58: 2 | FI58: 2 | FJ58: 2 | FK58: 2 | FL58: 2 | FM58: 2 | FN58: 2 | FO58: 2 | FP58: 2 | FQ58: 2 | FR58: 1 | FS58: 2 | FT58: 2 | FU58: 2 | FV58: 2 | FW58: 2 | FX58: 2 | FY58: 2 | FZ58: 2 | GA58: 2 | GB58: 2 | GC58: 2 | GH58: Armes spéciales (tir) I (…....…) | GJ58: Olosak | GK58: Langue étrangère (Olosak) * PN | GP58: Signes I | GQ58: =GH172 -> Langage des signes I (……….)
D59: Ecole d'ingénieurs : Langue au choix | J59: =IF(AND($E59<>" ",$E$51<>"Ecole d'ingénieurs"),"ERREUR"," ") ->  | P59: Expression artistique (Instr. De musique) | Q59: X | R59: COO | S59: PER | U59: -2 | V59: X | W59: X | Y59: -4 | AE59: 0 | AJ59: 0 | AP59: 0 | AQ59: 0 | AZ59: 0 | BI59: 0 | BR59: 0 | CA59: 0 | CB59: -4 | CC59: X | CE59: 0 | CG59: -4 | CH59: X | CI59: 0 | CJ59: 2 | CK59: 0 | CL59: 57 | CM59: -4 | CN59: X | CO59: 0 | CP59: 0 | CQ59: 0 | CS59: -4 | CT59: X | CU59: 0 | CV59: 2 | CW59: 0 | CX59: 57 | CY59: -4 | CZ59: X | DA59: 0 | DB59: 0 | DC59: 0 | DE59: -4 | DF59: X | DG59: 0 | DH59: 2 | DI59: 0 | DJ59: 57 | DK59: -4 | DL59: X | DM59: 0 | DN59: 0 | DO59: 0 | DQ59: -4 | DR59: X | DS59: 0 | DT59: 2 | DU59: 0 | DV59: 57 | DW59: -4 | DX59: X | DY59: 0 | DZ59: 0 | EB59: -4 | EC59: X | ED59: 0 | EE59: 1 | EF59: 0 | EG59: 57 | EH59: -4 | EI59: X | EJ59: 0 | ER59: 2 | ES59: 2 | ET59: 2 | EU59: 2 | EV59: 2 | EW59: 2 | EX59: 2 | EY59: 2 | EZ59: 2 | FA59: 2 | FB59: 2 | FC59: 2 | FD59: 1 | FE59: 2 | FF59: 2 | FG59: 2 | FH59: 2 | FI59: 2 | FJ59: 2 | FK59: 2 | FL59: 2 | FM59: 2 | FN59: 2 | FO59: 2 | FP59: 2 | FQ59: 2 | FR59: 1 | FS59: 2 | FT59: 2 | FU59: 2 | FV59: 2 | FW59: 2 | FX59: 2 | FY59: 2 | FZ59: 2 | GA59: 2 | GB59: 2 | GC59: 2 | GH59: Armes spéciales (tir) II (…....…) | GJ59: Ossyrien | GK59: Langue étrangère (Ossyrien) * PN | GP59: Signes II | GQ59: =GH173 -> Langage des signes II (……….)
D60: Ecole d'ingénieurs : Mécanique | J60: =IF(AND($E60<>" ",$E$51<>"Ecole d'ingénieurs"),"ERREUR"," ") ->  | P60: Expression artistique I (……….) | Q60: -3 | U60: 0 | V60: -3 | W60: -3 | Y60: -3 | AE60: 0 | AJ60: 0 | AP60: 0 | AQ60: 0 | AZ60: 0 | BI60: 0 | BR60: 0 | CA60: 0 | CB60: -3 | CC60: -3 | CE60: 0 | CG60: -3 | CH60: -3 | CI60: 0 | CJ60: 2 | CK60: 0 | CL60: 58 | CM60: -3 | CN60: -3 | CO60: 0 | CP60: 0 | CQ60: 0 | CS60: -3 | CT60: -3 | CU60: 0 | CV60: 2 | CW60: 0 | CX60: 58 | CY60: -3 | CZ60: -3 | DA60: 0 | DB60: 0 | DC60: 0 | DE60: -3 | DF60: -3 | DG60: 0 | DH60: 2 | DI60: 0 | DJ60: 58 | DK60: -3 | DL60: -3 | DM60: 0 | DN60: 0 | DO60: 0 | DQ60: -3 | DR60: -3 | DS60: 0 | DT60: 2 | DU60: 0 | DV60: 58 | DW60: -3 | DX60: -3 | DY60: 0 | DZ60: 0 | EB60: -3 | EC60: -3 | ED60: 0 | EE60: 1 | EF60: 0 | EG60: 58 | EH60: -3 | EI60: -3 | EJ60: 0 | ER60: 2 | ES60: 2 | ET60: 2 | EU60: 2 | EV60: 2 | EW60: 2 | EX60: 2 | EY60: 2 | EZ60: 2 | FA60: 2 | FB60: 2 | FC60: 2 | FD60: 1 | FE60: 2 | FF60: 2 | FG60: 2 | FH60: 2 | FI60: 2 | FJ60: 2 | FK60: 2 | FL60: 2 | FM60: 2 | FN60: 2 | FO60: 2 | FP60: 2 | FQ60: 2 | FR60: 1 | FS60: 2 | FT60: 2 | FU60: 2 | FV60: 2 | FW60: 2 | FX60: 2 | FY60: 2 | FZ60: 2 | GA60: 2 | GB60: 2 | GC60: 2 | GH60: Armes spéciales (tir) III (…....…) | GJ60: Rénaréan | GK60: Langue étrangère (Rénaréan) * PN | GP60: Signes III | GQ60: =GH174 -> Langage des signes III (……….)
D61: Ecole d'ingénieurs : Nation étrangère | J61: =IF(AND($E61<>" ",$E$51<>"Ecole d'ingénieurs"),"ERREUR"," ") ->  | P61: Expression artistique II (……….) | Q61: X | U61: 0 | V61: X | W61: X | Y61: -4 | AE61: 0 | AJ61: 0 | AP61: 0 | AQ61: 0 | AZ61: 0 | BI61: 0 | BR61: 0 | CA61: 0 | CB61: -4 | CC61: X | CE61: 0 | CG61: -4 | CH61: X | CI61: 0 | CJ61: 2 | CK61: 0 | CL61: 59 | CM61: -4 | CN61: X | CO61: 0 | CP61: 0 | CQ61: 0 | CS61: -4 | CT61: X | CU61: 0 | CV61: 2 | CW61: 0 | CX61: 59 | CY61: -4 | CZ61: X | DA61: 0 | DB61: 0 | DC61: 0 | DE61: -4 | DF61: X | DG61: 0 | DH61: 2 | DI61: 0 | DJ61: 59 | DK61: -4 | DL61: X | DM61: 0 | DN61: 0 | DO61: 0 | DQ61: -4 | DR61: X | DS61: 0 | DT61: 2 | DU61: 0 | DV61: 59 | DW61: -4 | DX61: X | DY61: 0 | DZ61: 0 | EB61: -4 | EC61: X | ED61: 0 | EE61: 1 | EF61: 0 | EG61: 59 | EH61: -4 | EI61: X | EJ61: 0 | ER61: 2 | ES61: 2 | ET61: 2 | EU61: 2 | EV61: 2 | EW61: 2 | EX61: 2 | EY61: 2 | EZ61: 2 | FA61: 2 | FB61: 2 | FC61: 2 | FD61: 1 | FE61: 2 | FF61: 2 | FG61: 2 | FH61: 2 | FI61: 2 | FJ61: 2 | FK61: 2 | FL61: 2 | FM61: 2 | FN61: 2 | FO61: 2 | FP61: 2 | FQ61: 2 | FR61: 1 | FS61: 2 | FT61: 2 | FU61: 2 | FV61: 2 | FW61: 2 | FX61: 2 | FY61: 2 | FZ61: 2 | GA61: 2 | GB61: 2 | GC61: 2 | GH61: Armes spéciales (tir) IV (…....…) | GJ61: Ternaset | GK61: Langue étrangère (Ternaset) * PN | GP61: Absolan | GQ61: Langage spécifique (Absolan) * PN
D62: Ecole militaire : Combat (Tir) | J62: =IF(AND($E62<>" ",$E$51<>"Ecole militaire"),"ERREUR"," ") ->  | P62: Intimidation | R62: VOL | S62: PRE | U62: -2 | V62: 2 | W62: 0 | Y62: 0 | AE62: 0 | AF62: 1 | AJ62: 1 | AK62: 1 | AP62: 0 | AQ62: 1 | AZ62: 0 | BI62: 0 | BR62: 0 | CA62: 0 | CB62: 2 | CC62: 2 | CE62: 0 | CG62: 2 | CH62: 2 | CI62: 1 | CJ62: 2 | CK62: 0 | CL62: 60 | CM62: 2 | CN62: 2 | CO62: 0 | CP62: 0 | CQ62: 0 | CS62: 2 | CT62: 2 | CU62: 1 | CV62: 2 | CW62: 0 | CX62: 60 | CY62: 2 | CZ62: 2 | DA62: 0 | DB62: 0 | DC62: 0 | DE62: 2 | DF62: 2 | DG62: 1 | DH62: 2 | DI62: 0 | DJ62: 60 | DK62: 2 | DL62: 2 | DM62: 0 | DN62: 0 | DO62: 0 | DQ62: 2 | DR62: 2 | DS62: 1 | DT62: 2 | DU62: 0 | DV62: 60 | DW62: 2 | DX62: 2 | DY62: 0 | DZ62: 0 | EB62: 2 | EC62: 2 | ED62: 0 | EE62: 1 | EF62: 0 | EG62: 60 | EH62: 2 | EI62: 2 | EJ62: 0 | ER62: 2 | ES62: 2 | ET62: 2 | EU62: 1 | EV62: 1 | EW62: 1 | EX62: 2 | EY62: 2 | EZ62: 2 | FA62: 1 | FB62: 2 | FC62: 2 | FD62: 2 | FE62: 2 | FF62: 1 | FG62: 2 | FH62: 2 | FI62: 1 | FJ62: 1 | FK62: 1 | FL62: 2 | FM62: 2 | FN62: 2 | FO62: 1 | FP62: 1 | FQ62: 2 | FR62: 2 | FS62: 2 | FT62: 1 | FU62: 2 | FV62: 2 | FW62: 2 | FX62: 2 | FY62: 2 | FZ62: 2 | GA62: 1 | GB62: 1 | GC62: 1 | GH62: Armes de trait | GJ62: Trashan | GK62: Langue étrangère (Trashan) * PN | GP62: Enéfid | GQ62: Langage spécifique (Enéfid) * PN
D63: Ecole militaire : Langue pays allié ou hostile | J63: =IF(AND($E63<>" ",$E$51<>"Ecole militaire"),"ERREUR"," ") ->  | M63: Connaissances | AP63: 0 | CB63: 0 | CI63: 0 | CK63: 0 | CL63: 61 | CO63: 0 | CP63: 0 | CU63: 0 | CW63: 0 | CX63: 61 | DA63: 0 | DB63: 0 | DG63: 0 | DI63: 0 | DJ63: 61 | DM63: 0 | DN63: 0 | DS63: 0 | DU63: 0 | DV63: 61 | DY63: 0 | DZ63: 0 | ED63: 0 | EE63: 1 | EF63: 0 | EG63: 61 | EJ63: 0 | GH63: Fusils/Armes d'épaule | GJ63: Autre | GK63: =GH166 -> Langue étrangère (……….) * PN | GP63: Exon | GQ63: Langage spécifique (Exon) * PN
D64: Ecole militaire : Nation étrangère | J64: =IF(AND($E64<>" ",$E$51<>"Ecole militaire"),"ERREUR"," ") ->  | P64: Bureaucratie + | R64: INT | S64: INT | U64: =HLOOKUP(R64,$HE$2:$HM$3,2,)+HLOOKUP(S64,$HE$2:$HM$3,2,) -> -2 | V64: =EI64 -> 0 | W64: =IF(V64="X","X",U64+V64) -> -2 | Y64: =IF(Q64="X",-4,Q64) -> 0 | AC64: 1 | AD64: 2 | AE64: =IF($AE$3=$AA$3,AA64,IF($AE$3=$AB$3,AB64,IF($AE$3=$AC$3,AC64,IF($AE$3=$AD$3,AD64,0)))) -> 0 | AH64: 1 | AI64: =IF($E$38="Bureaucratie",2,) -> 0 | AJ64: =IF($AJ$3=$AF$3,AF64,IF($AJ$3=$AG$3,AG64,IF($AJ$3=$AH$3,AH64,IF($AJ$3=$AI$3,AI64,0)))) -> 0 | AN64: 1 | AP64: 0 | AQ64: =IF($AQ$3=$AK$3,AK64,IF($AQ$3=$AL$3,AL64,IF($AQ$3=$AM$3,AM64,IF($AQ$3=$AN$3,AN64,IF($AQ$3=$AO$3,AO64,IF($AQ$3=$AP$3,AP64,0)))))) -> 0 | AR64: 3 | AS64: 3 | AW64: 1 | AY64: 1 | AZ64: =IF(AZ$3=AR$3,AR64,IF(AZ$3=AS$3,AS64,IF(AZ$3=AT$3,AT64,IF(AZ$3=AU$3,AU64,IF(AZ$3=AV$3,AV64,IF(AZ$3=AW$3,AW64,IF(AZ$3=AX$3,AX64,IF(AZ$3=AY$3,AY64,0)))))))) -> 0 | BA64: 3 | BB64: 3 | BF64: 1 | BH64: 1 | BI64: =IF(BI$3=BA$3,BA64,IF(BI$3=BB$3,BB64,IF(BI$3=BC$3,BC64,IF(BI$3=BD$3,BD64,IF(BI$3=BE$3,BE64,IF(BI$3=BF$3,BF64,IF(BI$3=BG$3,BG64,IF(BI$3=BH$3,BH64,0)))))))) -> 0 | BJ64: 3 | BK64: 3 | BO64: 1 | BQ64: 1 | BR64: =IF(BR$3=BJ$3,BJ64,IF(BR$3=BK$3,BK64,IF(BR$3=BL$3,BL64,IF(BR$3=BM$3,BM64,IF(BR$3=BN$3,BN64,IF(BR$3=BO$3,BO64,IF(BR$3=BP$3,BP64,IF(BR$3=BQ$3,BQ64,0)))))))) -> 0 | BS64: 3 | BT64: 3 | BX64: 1 | BZ64: 1 | CA64: =IF(CA$3=BS$3,BS64,IF(CA$3=BT$3,BT64,IF(CA$3=BU$3,BU64,IF(CA$3=BV$3,BV64,IF(CA$3=BW$3,BW64,IF(CA$3=BX$3,BX64,IF(CA$3=BY$3,BY64,IF(CA$3=BZ$3,BZ64,0)))))))) -> 0 | CB64: 0 | CC64: =IF(CB64=-4,"X",CB64) -> 0 | CE64: =IF($E$233=P64,1,IF($E$234=P64,1,IF($E$235=P64,1,IF($E$236=P64,1,IF($E$237=P64,1,IF($E$238=P64,1,0)))))) -> 0 | CG64: =CB64+CF64 -> 0 | CH64: =IF(CG64=-4,"X",CG64) -> 0 | CI64: 0 | CJ64: =IF(CE64=1,1,(HLOOKUP($CK$3,$ER$3:$GC$262,CL64,))) -> 2 | CK64: 0 | CL64: 62 | CM64: =CG64+CK64 -> 0 | CN64: =IF(CM64=-4,"X",CM64) -> 0 | CO64: 0 | CP64: 0 | CQ64: =IF($E$241=P64,1,IF($E$242=P64,1,IF($E$243=P64,1,IF($E$244=P64,1,IF($E$245=P64,1,IF($E$246=P64,1,0)))))) -> 0 | CS64: =CM64+CR64 -> 0 | CT64: =IF(CS64=-4,"X",CS64) -> 0 | CU64: 0 | CV64: =IF(CQ64=1,1,(HLOOKUP($CW$3,$ER$3:$GC$262,CX64,))) -> 2 | CW64: 0 | CX64: 62 | CY64: =CS64+CW64 -> 0 | CZ64: =IF(CY64=-4,"X",CY64) -> 0 | DA64: 0 | DB64: 0 | DC64: =IF($E$249=P64,1,IF($E$250=P64,1,IF($E$251=P64,1,IF($E$252=P64,1,IF($E$253=P64,1,IF($E$254=P64,1,0)))))) -> 0 | DE64: =CY64+DD64 -> 0 | DF64: =IF(DE64=-4,"X",DE64) -> 0 | DG64: 0 | DH64: =IF(DC64=1,1,(HLOOKUP($DI$3,$ER$3:$GC$262,DJ64,))) -> 2 | DI64: 0 | DJ64: 62 | DK64: =DE64+DI64 -> 0 | DL64: =IF(DK64=-4,"X",DK64) -> 0 | DM64: 0 | DN64: 0 | DO64: =IF($E$257=P64,1,IF($E$258=P64,1,IF($E$259=P64,1,IF($E$260=P64,1,IF($E$261=P64,1,IF($E$262=P64,1,0)))))) -> 0 | DQ64: =DK64+DP64 -> 0 | DR64: =IF(DQ64=-4,"X",DQ64) -> 0 | DS64: 0 | DT64: =IF(DO64=1,1,(HLOOKUP($DU$3,$ER$3:$GC$262,DV64,))) -> 2 | DU64: 0 | DV64: 62 | DW64: =DQ64+DU64 -> 0 | DX64: =IF(DW64=-4,"X",DW64) -> 0 | DY64: 0 | DZ64: 0 | EB64: =DW64+EA64 -> 0 | EC64: =IF(EB64=-4,"X",EB64) -> 0 | ED64: 0 | EE64: 1 | EF64: 0 | EG64: 62 | EH64: =EB64+EF64 -> 0 | EI64: =IF(EH64=-4,"X",EH64) -> 0 | EJ64: 0 | ER64: 2 | ES64: 2 | ET64: 2 | EU64: 2 | EV64: 1 | EW64: 1 | EX64: 1 | EY64: 1 | EZ64: 2 | FA64: 1 | FB64: 2 | FC64: 1 | FD64: 2 | FE64: 2 | FF64: 2 | FG64: 2 | FH64: 1 | FI64: 1 | FJ64: 1 | FK64: 1 | FL64: 2 | FM64: 2 | FN64: 2 | FO64: 2 | FP64: 1 | FQ64: 2 | FR64: 2 | FS64: 2 | FT64: 2 | FU64: 2 | FV64: 2 | FW64: 2 | FX64: 2 | FY64: 2 | FZ64: 2 | GA64: 2 | GB64: 2 | GC64: 2 | GH64: Tir automatique * | GP64: Foreur | GQ64: Langage spécifique (Foreur) * PN
D65: Ecole militaire : Tactique | J65: =IF(AND($E65<>" ",$E$51<>"Ecole militaire"),"ERREUR"," ") ->  | P65: Cartographie + | Q65: X | R65: INT | S65: INT | U65: =HLOOKUP(R65,$HE$2:$HM$3,2,)+HLOOKUP(S65,$HE$2:$HM$3,2,) -> -2 | V65: =EI65 -> X | W65: X | Y65: -4 | AE65: 0 | AJ65: 0 | AP65: 0 | AQ65: 0 | AV65: 2 | AZ65: 0 | BE65: 2 | BI65: 0 | BN65: 2 | BR65: 0 | BW65: 2 | CA65: 0 | CB65: -4 | CC65: X | CE65: 0 | CG65: -4 | CH65: X | CI65: 0 | CJ65: 2 | CK65: 0 | CL65: 63 | CM65: -4 | CN65: X | CO65: 0 | CP65: 0 | CQ65: 0 | CS65: =CM65+CR65 -> -4 | CT65: X | CU65: 0 | CV65: 2 | CW65: 0 | CX65: 63 | CY65: -4 | CZ65: X | DA65: 0 | DB65: 0 | DC65: 0 | DE65: -4 | DF65: X | DG65: 0 | DH65: 2 | DI65: 0 | DJ65: 63 | DK65: -4 | DL65: X | DM65: 0 | DN65: 0 | DO65: 0 | DQ65: -4 | DR65: X | DS65: 0 | DT65: 2 | DU65: 0 | DV65: 63 | DW65: -4 | DX65: X | DY65: 0 | DZ65: 0 | EB65: =DW65+EA65 -> -4 | EC65: =IF(EB65=-4,"X",EB65) -> X | ED65: 0 | EE65: 1 | EF65: 0 | EG65: 63 | EH65: =EB65+EF65 -> -4 | EI65: =IF(EH65=-4,"X",EH65) -> X | EJ65: 0 | ER65: 2 | ES65: 2 | ET65: 2 | EU65: 2 | EV65: 2 | EW65: 2 | EX65: 2 | EY65: 2 | EZ65: 1 | FA65: 2 | FB65: 2 | FC65: 2 | FD65: 1 | FE65: 2 | FF65: 2 | FG65: 2 | FH65: 1 | FI65: 2 | FJ65: 2 | FK65: 2 | FL65: 2 | FM65: 1 | FN65: 1 | FO65: 2 | FP65: 2 | FQ65: 2 | FR65: 2 | FS65: 2 | FT65: 2 | FU65: 1 | FV65: 1 | FW65: 1 | FX65: 1 | FY65: 2 | FZ65: 2 | GA65: 2 | GB65: 2 | GC65: 2 | GH65: Tir de précision * | GJ65: Exo-armures | GK65: Mécanique (Exo-armures) + | GP65: Inésis | GQ65: Langage spécifique (Inésis) * PN
D66: Ecole navale : Nation étrangère | J66: =IF(AND($E66<>" ",$E$51<>"Ecole navale"),"ERREUR"," ") ->  | P66: Commerce/Trafic (Armes) + | Q66: X | R66: INT | S66: PRE | U66: =HLOOKUP(R66,$HE$2:$HM$3,2,)+HLOOKUP(S66,$HE$2:$HM$3,2,) -> -2 | V66: =EI66 -> X | W66: X | Y66: -4 | AE66: 0 | AJ66: 0 | AK66: =IF($E$40="Armes",1,) -> 0 | AP66: 0 | AQ66: 0 | AZ66: 0 | BI66: 0 | BR66: 0 | CA66: 0 | CB66: -4 | CC66: X | CE66: 0 | CG66: -4 | CH66: X | CI66: 0 | CJ66: 2 | CK66: 0 | CL66: 64 | CM66: -4 | CN66: X | CO66: 0 | CP66: 0 | CQ66: 0 | CS66: =CM66+CR66 -> -4 | CT66: X | CU66: 0 | CV66: 2 | CW66: 0 | CX66: 64 | CY66: -4 | CZ66: X | DA66: 0 | DB66: 0 | DC66: 0 | DE66: -4 | DF66: X | DG66: 0 | DH66: 2 | DI66: 0 | DJ66: 64 | DK66: -4 | DL66: X | DM66: 0 | DN66: 0 | DO66: 0 | DQ66: -4 | DR66: X | DS66: 0 | DT66: 2 | DU66: 0 | DV66: 64 | DW66: -4 | DX66: X | DY66: 0 | DZ66: 0 | EB66: =DW66+EA66 -> -4 | EC66: =IF(EB66=-4,"X",EB66) -> X | ED66: 0 | EE66: 1 | EF66: 0 | EG66: 64 | EH66: =EB66+EF66 -> -4 | EI66: =IF(EH66=-4,"X",EH66) -> X | EJ66: 0 | ER66: 2 | ES66: 2 | ET66: 2 | EU66: 2 | EV66: 2 | EW66: 1 | EX66: 2 | EY66: 2 | EZ66: 2 | FA66: 2 | FB66: 2 | FC66: 1 | FD66: 2 | FE66: 2 | FF66: 2 | FG66: 2 | FH66: 2 | FI66: 2 | FJ66: 2 | FK66: 2 | FL66: 2 | FM66: 2 | FN66: 2 | FO66: 2 | FP66: 2 | FQ66: 2 | FR66: 2 | FS66: 2 | FT66: 2 | FU66: 2 | FV66: 2 | FW66: 2 | FX66: 2 | FY66: 2 | FZ66: 2 | GA66: 2 | GB66: 2 | GC66: 1 | GH66: =P51 -> Analyse empathique | GJ66: Chasseurs atmosphériques | GK66: Mécanique (Chasseurs atmosphériques) + | GP66: Ithraxien | GQ66: Langage spécifique (Ithraxien) * PN
D67: Sciences/Sciences humaines : Langue au choix | J67: =IF(AND($E67<>" ",$E$51<>"Sciences/Sciences humaines"),"ERREUR"," ") ->  | P67: Commerce/Trafic (Artisanat) + | Q67: -3 | R67: INT | S67: PRE | U67: -2 | V67: -3 | W67: -5 | Y67: -3 | AE67: 0 | AJ67: 0 | AP67: 0 | AQ67: 0 | AR67: =IF(VLOOKUP($E$52,$GJ$72:$GK$80,2,)=$P67,2,0) -> 0 | AZ67: 0 | BA67: =IF(VLOOKUP($E$77,$GJ$72:$GK$80,2,)=$P67,2,0) -> 0 | BI67: 0 | BJ67: =IF(VLOOKUP($E$102,$GJ$72:$GK$80,2,)=$P67,2,0) -> 0 | BR67: 0 | BS67: =IF(VLOOKUP($E$127,$GJ$72:$GK$80,2,)=$P67,2,0) -> 0 | CA67: 0 | CB67: -3 | CC67: -3 | CE67: 0 | CG67: -3 | CH67: -3 | CI67: 0 | CJ67: 2 | CK67: 0 | CL67: 65 | CM67: -3 | CN67: -3 | CO67: 0 | CP67: 0 | CQ67: 0 | CS67: -3 | CT67: -3 | CU67: 0 | CV67: 2 | CW67: 0 | CX67: 65 | CY67: -3 | CZ67: -3 | DA67: 0 | DB67: 0 | DC67: 0 | DE67: -3 | DF67: -3 | DG67: 0 | DH67: 2 | DI67: 0 | DJ67: 65 | DK67: -3 | DL67: -3 | DM67: 0 | DN67: 0 | DO67: 0 | DQ67: -3 | DR67: -3 | DS67: 0 | DT67: 2 | DU67: 0 | DV67: 65 | DW67: -3 | DX67: -3 | DY67: 0 | DZ67: 0 | EB67: -3 | EC67: -3 | ED67: 0 | EE67: 1 | EF67: 0 | EG67: 65 | EH67: -3 | EI67: -3 | EJ67: 0 | ER67: 2 | ES67: 1 | ET67: 2 | EU67: 2 | EV67: 2 | EW67: 2 | EX67: 2 | EY67: 2 | EZ67: 2 | FA67: 2 | FB67: 2 | FC67: 1 | FD67: 1 | FE67: 2 | FF67: 2 | FG67: 2 | FH67: 2 | FI67: 2 | FJ67: 2 | FK67: 2 | FL67: 2 | FM67: 2 | FN67: 2 | FO67: 2 | FP67: 2 | FQ67: 2 | FR67: 2 | FS67: 2 | FT67: 2 | FU67: 2 | FV67: 2 | FW67: 2 | FX67: 2 | FY67: 2 | FZ67: 2 | GA67: 2 | GB67: 2 | GC67: 2 | GH67: =P52 -> Commandement | GJ67: Machines industrielles | GK67: Mécanique (Machines industrielles) + | GP67: Klan | GQ67: Langage spécifique (Klan) * PN
D68: Sciences/Sciences humaines : Nation étrangère | J68: =IF(AND($E68<>" ",$E$51<>"Sciences/Sciences humaines"),"ERREUR"," ") ->  | P68: Commerce/Trafic (Denrées alimentaires) + | Q68: -3 | R68: INT | S68: PRE | U68: -2 | V68: -3 | W68: -5 | Y68: -3 | AE68: 0 | AJ68: 0 | AP68: 0 | AQ68: 0 | AR68: =IF(VLOOKUP($E$52,$GJ$72:$GK$80,2,)=$P68,2,0) -> 0 | AZ68: 0 | BA68: =IF(VLOOKUP($E$77,$GJ$72:$GK$80,2,)=$P68,2,0) -> 0 | BI68: 0 | BJ68: =IF(VLOOKUP($E$102,$GJ$72:$GK$80,2,)=$P68,2,0) -> 0 | BR68: 0 | BS68: =IF(VLOOKUP($E$127,$GJ$72:$GK$80,2,)=$P68,2,0) -> 0 | CA68: 0 | CB68: -3 | CC68: -3 | CE68: 0 | CG68: -3 | CH68: -3 | CI68: 0 | CJ68: 2 | CK68: 0 | CL68: 66 | CM68: -3 | CN68: -3 | CO68: 0 | CP68: 0 | CQ68: 0 | CS68: -3 | CT68: -3 | CU68: 0 | CV68: 2 | CW68: 0 | CX68: 66 | CY68: -3 | CZ68: -3 | DA68: 0 | DB68: 0 | DC68: 0 | DE68: -3 | DF68: -3 | DG68: 0 | DH68: 2 | DI68: 0 | DJ68: 66 | DK68: -3 | DL68: -3 | DM68: 0 | DN68: 0 | DO68: 0 | DQ68: -3 | DR68: -3 | DS68: 0 | DT68: 2 | DU68: 0 | DV68: 66 | DW68: -3 | DX68: -3 | DY68: 0 | DZ68: 0 | EB68: -3 | EC68: -3 | ED68: 0 | EE68: 1 | EF68: 0 | EG68: 66 | EH68: -3 | EI68: -3 | EJ68: 0 | ER68: 2 | ES68: 2 | ET68: 2 | EU68: 2 | EV68: 2 | EW68: 2 | EX68: 2 | EY68: 2 | EZ68: 2 | FA68: 2 | FB68: 2 | FC68: 1 | FD68: 1 | FE68: 2 | FF68: 2 | FG68: 2 | FH68: 2 | FI68: 2 | FJ68: 2 | FK68: 2 | FL68: 2 | FM68: 2 | FN68: 2 | FO68: 2 | FP68: 2 | FQ68: 2 | FR68: 2 | FS68: 2 | FT68: 2 | FU68: 2 | FV68: 2 | FW68: 2 | FX68: 2 | FY68: 2 | FZ68: 2 | GA68: 2 | GB68: 2 | GC68: 2 | GH68: Eloquence/Persuasion + | GJ68: Navires/Chasseurs sous-marins | GK68: Mécanique (Navires/Chasseurs sous-marins) + | GP68: Lévéan | GQ68: Langage spécifique (Lévéan) * PN
D69: Sciences/Sciences humaines : Sciences | J69: =IF(AND($E69<>" ",$E$51<>"Sciences/Sciences humaines"),"ERREUR"," ") ->  | P69: Commerce/Trafic (Drogues) + | Q69: X | R69: INT | S69: PRE | U69: -2 | V69: X | W69: X | Y69: -4 | AE69: 0 | AJ69: 0 | AK69: =IF($E$40="Drogues",1,) -> 0 | AP69: 0 | AQ69: 0 | AZ69: 0 | BI69: 0 | BR69: 0 | CA69: 0 | CB69: -4 | CC69: X | CE69: 0 | CG69: -4 | CH69: X | CI69: 0 | CJ69: 2 | CK69: 0 | CL69: 67 | CM69: -4 | CN69: X | CO69: 0 | CP69: 0 | CQ69: 0 | CS69: -4 | CT69: X | CU69: 0 | CV69: 2 | CW69: 0 | CX69: 67 | CY69: -4 | CZ69: X | DA69: 0 | DB69: 0 | DC69: 0 | DE69: -4 | DF69: X | DG69: 0 | DH69: 2 | DI69: 0 | DJ69: 67 | DK69: -4 | DL69: X | DM69: 0 | DN69: 0 | DO69: 0 | DQ69: -4 | DR69: X | DS69: 0 | DT69: 2 | DU69: 0 | DV69: 67 | DW69: -4 | DX69: X | DY69: 0 | DZ69: 0 | EB69: -4 | EC69: X | ED69: 0 | EE69: 1 | EF69: 0 | EG69: 67 | EH69: -4 | EI69: X | EJ69: 0 | ER69: 2 | ES69: 2 | ET69: 2 | EU69: 2 | EV69: 2 | EW69: 1 | EX69: 2 | EY69: 2 | EZ69: 2 | FA69: 2 | FB69: 2 | FC69: 1 | FD69: 2 | FE69: 2 | FF69: 2 | FG69: 2 | FH69: 2 | FI69: 2 | FJ69: 2 | FK69: 2 | FL69: 2 | FM69: 2 | FN69: 2 | FO69: 2 | FP69: 2 | FQ69: 2 | FR69: 2 | FS69: 2 | FT69: 2 | FU69: 2 | FV69: 2 | FW69: 2 | FX69: 2 | FY69: 2 | FZ69: 2 | GA69: 2 | GB69: 2 | GC69: 1 | GH69: Enseignement + | GJ69: Véhicules souterrains | GK69: Mécanique (Véhicules souterrains) + | GP69: Métalan | GQ69: Langage spécifique (Métalan) * PN
D70: Sciences/Sciences humaines : Sciences 2 | J70: =IF(AND($E70<>" ",$E$51<>"Sciences/Sciences humaines"),"ERREUR"," ") ->  | P70: Commerce/Trafic (Informations) + | Q70: -3 | R70: INT | S70: PRE | U70: -2 | V70: -3 | W70: -5 | Y70: -3 | AE70: 0 | AJ70: 0 | AP70: 0 | AQ70: 0 | AZ70: 0 | BI70: 0 | BR70: 0 | CA70: 0 | CB70: -3 | CC70: -3 | CE70: 0 | CG70: -3 | CH70: -3 | CI70: 0 | CJ70: 2 | CK70: 0 | CL70: 68 | CM70: -3 | CN70: -3 | CO70: 0 | CP70: 0 | CQ70: 0 | CS70: -3 | CT70: -3 | CU70: 0 | CV70: 2 | CW70: 0 | CX70: 68 | CY70: -3 | CZ70: -3 | DA70: 0 | DB70: 0 | DC70: 0 | DE70: -3 | DF70: -3 | DG70: 0 | DH70: 2 | DI70: 0 | DJ70: 68 | DK70: -3 | DL70: -3 | DM70: 0 | DN70: 0 | DO70: 0 | DQ70: -3 | DR70: -3 | DS70: 0 | DT70: 2 | DU70: 0 | DV70: 68 | DW70: -3 | DX70: -3 | DY70: 0 | DZ70: 0 | EB70: -3 | EC70: -3 | ED70: 0 | EE70: 1 | EF70: 0 | EG70: 68 | EH70: -3 | EI70: -3 | EJ70: 0 | ER70: 2 | ES70: 2 | ET70: 2 | EU70: 2 | EV70: 2 | EW70: 2 | EX70: 2 | EY70: 2 | EZ70: 2 | FA70: 2 | FB70: 2 | FC70: 1 | FD70: 1 | FE70: 2 | FF70: 2 | FG70: 2 | FH70: 2 | FI70: 2 | FJ70: 2 | FK70: 2 | FL70: 2 | FM70: 2 | FN70: 2 | FO70: 2 | FP70: 2 | FQ70: 2 | FR70: 2 | FS70: 2 | FT70: 2 | FU70: 2 | FV70: 2 | FW70: 2 | FX70: 2 | FY70: 2 | FZ70: 2 | GA70: 2 | GB70: 2 | GC70: 1 | GH70: Entregent/Séduction | GJ70: Véhicules de sol | GK70: Mécanique (Véhicules de sol) + | GP70: Néolan | GQ70: Langage spécifique (Néolan) * PN
D71: Sciences politiques : Langue au choix | J71: =IF(AND($E71<>" ",$E$51<>"Sciences politiques"),"ERREUR"," ") ->  | P71: Commerce/Trafic (Matériel médical) + | Q71: -3 | R71: INT | S71: PRE | U71: -2 | V71: -3 | W71: -5 | Y71: -3 | AE71: 0 | AJ71: 0 | AP71: 0 | AQ71: 0 | AR71: =IF(VLOOKUP($E$52,$GJ$72:$GK$80,2,)=$P71,2,0) -> 0 | AZ71: 0 | BA71: =IF(VLOOKUP($E$77,$GJ$72:$GK$80,2,)=$P71,2,0) -> 0 | BI71: 0 | BJ71: =IF(VLOOKUP($E$102,$GJ$72:$GK$80,2,)=$P71,2,0) -> 0 | BR71: 0 | BS71: =IF(VLOOKUP($E$127,$GJ$72:$GK$80,2,)=$P71,2,0) -> 0 | CA71: 0 | CB71: -3 | CC71: -3 | CE71: 0 | CG71: -3 | CH71: -3 | CI71: 0 | CJ71: 2 | CK71: 0 | CL71: 69 | CM71: -3 | CN71: -3 | CO71: 0 | CP71: 0 | CQ71: 0 | CS71: -3 | CT71: -3 | CU71: 0 | CV71: 2 | CW71: 0 | CX71: 69 | CY71: -3 | CZ71: -3 | DA71: 0 | DB71: 0 | DC71: 0 | DE71: -3 | DF71: -3 | DG71: 0 | DH71: 2 | DI71: 0 | DJ71: 69 | DK71: -3 | DL71: -3 | DM71: 0 | DN71: 0 | DO71: 0 | DQ71: -3 | DR71: -3 | DS71: 0 | DT71: 2 | DU71: 0 | DV71: 69 | DW71: -3 | DX71: -3 | DY71: 0 | DZ71: 0 | EB71: -3 | EC71: -3 | ED71: 0 | EE71: 1 | EF71: 0 | EG71: 69 | EH71: -3 | EI71: -3 | EJ71: 0 | ER71: 2 | ES71: 2 | ET71: 2 | EU71: 2 | EV71: 2 | EW71: 2 | EX71: 2 | EY71: 2 | EZ71: 2 | FA71: 2 | FB71: 2 | FC71: 1 | FD71: 1 | FE71: 2 | FF71: 2 | FG71: 2 | FH71: 2 | FI71: 2 | FJ71: 2 | FK71: 2 | FL71: 2 | FM71: 2 | FN71: 2 | FO71: 2 | FP71: 2 | FQ71: 2 | FR71: 2 | FS71: 2 | FT71: 2 | FU71: 2 | FV71: 2 | FW71: 2 | FX71: 2 | FY71: 2 | FZ71: 2 | GA71: 2 | GB71: 2 | GC71: 2 | GH71: Expression artistique (Chant) | GJ71: Autre | GK71: =GH242 -> Mécanique (……….) + | GP71: Sirs | GQ71: Langage spécifique (Sirs) * PN
D72: Sciences politiques : Nation étrangère | J72: =IF(AND($E72<>" ",$E$51<>"Sciences politiques"),"ERREUR"," ") ->  | P72: Commerce/Trafic (Matières premières) + | Q72: -3 | R72: INT | S72: PRE | U72: -2 | V72: -3 | W72: -5 | Y72: -3 | AE72: 0 | AJ72: 0 | AP72: 0 | AQ72: 0 | AR72: 0 | AZ72: 0 | BA72: 0 | BI72: 0 | BJ72: 0 | BR72: 0 | BS72: 0 | CA72: 0 | CB72: -3 | CC72: -3 | CE72: 0 | CG72: -3 | CH72: -3 | CI72: 0 | CJ72: 2 | CK72: 0 | CL72: 70 | CM72: -3 | CN72: -3 | CO72: 0 | CP72: 0 | CQ72: 0 | CS72: -3 | CT72: -3 | CU72: 0 | CV72: 2 | CW72: 0 | CX72: 70 | CY72: -3 | CZ72: -3 | DA72: 0 | DB72: 0 | DC72: 0 | DE72: -3 | DF72: -3 | DG72: 0 | DH72: 2 | DI72: 0 | DJ72: 70 | DK72: -3 | DL72: -3 | DM72: 0 | DN72: 0 | DO72: 0 | DQ72: -3 | DR72: -3 | DS72: 0 | DT72: 2 | DU72: 0 | DV72: 70 | DW72: -3 | DX72: -3 | DY72: 0 | DZ72: 0 | EB72: -3 | EC72: -3 | ED72: 0 | EE72: 1 | EF72: 0 | EG72: 70 | EH72: -3 | EI72: -3 | EJ72: 0 | ER72: 2 | ES72: 2 | ET72: 2 | EU72: 2 | EV72: 2 | EW72: 2 | EX72: 2 | EY72: 2 | EZ72: 2 | FA72: 2 | FB72: 2 | FC72: 1 | FD72: 1 | FE72: 2 | FF72: 2 | FG72: 2 | FH72: 2 | FI72: 2 | FJ72: 2 | FK72: 2 | FL72: 2 | FM72: 2 | FN72: 2 | FO72: 2 | FP72: 2 | FQ72: 2 | FR72: 2 | FS72: 2 | FT72: 2 | FU72: 2 | FV72: 2 | FW72: 2 | FX72: 2 | FY72: 2 | FZ72: 2 | GA72: 2 | GB72: 2 | GC72: 2 | GH72: Expression artistique (Comédie/Conte) | GP72: Soléen | GQ72: Langage spécifique (Soléen) * PN
D73: Sciences politiques : Nation étrangère 2 | J73: =IF(AND($E73<>" ",$E$51<>"Sciences politiques"),"ERREUR"," ") ->  | P73: Commerce/Trafic (Oeuvres d'art) + | Q73: X | R73: INT | S73: PRE | U73: -2 | V73: X | W73: X | Y73: -4 | AE73: 0 | AJ73: 0 | AP73: 0 | AQ73: 0 | AR73: 0 | AZ73: 0 | BA73: 0 | BI73: 0 | BJ73: 0 | BR73: 0 | BS73: 0 | CA73: 0 | CB73: -4 | CC73: X | CE73: 0 | CG73: -4 | CH73: X | CI73: 0 | CJ73: 2 | CK73: 0 | CL73: 71 | CM73: -4 | CN73: X | CO73: 0 | CP73: 0 | CQ73: 0 | CS73: -4 | CT73: X | CU73: 0 | CV73: 2 | CW73: 0 | CX73: 71 | CY73: -4 | CZ73: X | DA73: 0 | DB73: 0 | DC73: 0 | DE73: -4 | DF73: X | DG73: 0 | DH73: 2 | DI73: 0 | DJ73: 71 | DK73: -4 | DL73: X | DM73: 0 | DN73: 0 | DO73: 0 | DQ73: -4 | DR73: X | DS73: 0 | DT73: 2 | DU73: 0 | DV73: 71 | DW73: -4 | DX73: X | DY73: 0 | DZ73: 0 | EB73: -4 | EC73: X | ED73: 0 | EE73: 1 | EF73: 0 | EG73: 71 | EH73: -4 | EI73: X | EJ73: 0 | ER73: 2 | ES73: 1 | ET73: 2 | EU73: 2 | EV73: 2 | EW73: 1 | EX73: 2 | EY73: 2 | EZ73: 2 | FA73: 2 | FB73: 2 | FC73: 1 | FD73: 2 | FE73: 2 | FF73: 2 | FG73: 2 | FH73: 2 | FI73: 2 | FJ73: 2 | FK73: 2 | FL73: 2 | FM73: 2 | FN73: 2 | FO73: 2 | FP73: 2 | FQ73: 2 | FR73: 2 | FS73: 2 | FT73: 2 | FU73: 2 | FV73: 2 | FW73: 2 | FX73: 2 | FY73: 2 | FZ73: 2 | GA73: 2 | GB73: 2 | GC73: 1 | GH73: Expression artistique (Danse) | GJ73: Artisanat | GK73: Commerce/Trafic (Artisanat) + | GP73: Spécifique | GQ73: =GH187 -> Langage spécifique (……….) * PN
D74: Sciences politiques : Sciences | J74: =IF(AND($E74<>" ",$E$51<>"Sciences politiques"),"ERREUR"," ") ->  | P74: Commerce/Trafic (véhicules) + | Q74: -3 | R74: INT | S74: PRE | U74: -2 | V74: -3 | W74: -5 | Y74: -3 | AE74: 0 | AJ74: 0 | AP74: 0 | AQ74: 0 | AR74: 0 | AZ74: 0 | BA74: 0 | BI74: 0 | BJ74: 0 | BR74: 0 | BS74: 0 | CA74: 0 | CB74: -3 | CC74: -3 | CE74: 0 | CG74: -3 | CH74: -3 | CI74: 0 | CJ74: 2 | CK74: 0 | CL74: 72 | CM74: -3 | CN74: -3 | CO74: 0 | CP74: 0 | CQ74: 0 | CS74: -3 | CT74: -3 | CU74: 0 | CV74: 2 | CW74: 0 | CX74: 72 | CY74: -3 | CZ74: -3 | DA74: 0 | DB74: 0 | DC74: 0 | DE74: -3 | DF74: -3 | DG74: 0 | DH74: 2 | DI74: 0 | DJ74: 72 | DK74: -3 | DL74: -3 | DM74: 0 | DN74: 0 | DO74: 0 | DQ74: -3 | DR74: -3 | DS74: 0 | DT74: 2 | DU74: 0 | DV74: 72 | DW74: -3 | DX74: -3 | DY74: 0 | DZ74: 0 | EB74: -3 | EC74: -3 | ED74: 0 | EE74: 1 | EF74: 0 | EG74: 72 | EH74: -3 | EI74: -3 | EJ74: 0 | ER74: 2 | ES74: 2 | ET74: 2 | EU74: 2 | EV74: 2 | EW74: 2 | EX74: 2 | EY74: 2 | EZ74: 2 | FA74: 2 | FB74: 2 | FC74: 1 | FD74: 1 | FE74: 2 | FF74: 2 | FG74: 2 | FH74: 2 | FI74: 2 | FJ74: 2 | FK74: 2 | FL74: 2 | FM74: 2 | FN74: 2 | FO74: 2 | FP74: 2 | FQ74: 2 | FR74: 2 | FS74: 2 | FT74: 2 | FU74: 2 | FV74: 2 | FW74: 2 | FX74: 2 | FY74: 2 | FZ74: 2 | GA74: 2 | GB74: 2 | GC74: 2 | GH74: Expression artistique (Instr. De musique) | GJ74: Denrées alimentaires | GK74: Commerce/Trafic (Denrées alimentaires) +
P75: Commerce/Trafic I (……….) + | Q75: -3 | R75: INT | S75: PRE | U75: -2 | V75: -3 | W75: -5 | Y75: -3 | AE75: 0 | AJ75: 0 | AP75: 0 | AQ75: 0 | AR75: 0 | AZ75: 0 | BA75: 0 | BI75: 0 | BJ75: 0 | BR75: 0 | BS75: 0 | CA75: 0 | CB75: -3 | CC75: -3 | CE75: 0 | CG75: -3 | CH75: -3 | CI75: 0 | CJ75: 2 | CK75: 0 | CL75: 73 | CM75: -3 | CN75: -3 | CO75: 0 | CP75: 0 | CQ75: 0 | CS75: -3 | CT75: -3 | CU75: 0 | CV75: 2 | CW75: 0 | CX75: 73 | CY75: -3 | CZ75: -3 | DA75: 0 | DB75: 0 | DC75: 0 | DE75: -3 | DF75: -3 | DG75: 0 | DH75: 2 | DI75: 0 | DJ75: 73 | DK75: -3 | DL75: -3 | DM75: 0 | DN75: 0 | DO75: 0 | DQ75: -3 | DR75: -3 | DS75: 0 | DT75: 2 | DU75: 0 | DV75: 73 | DW75: -3 | DX75: -3 | DY75: 0 | DZ75: 0 | EB75: -3 | EC75: -3 | ED75: 0 | EE75: 1 | EF75: 0 | EG75: 73 | EH75: -3 | EI75: -3 | EJ75: 0 | ER75: 2 | ES75: 2 | ET75: 2 | EU75: 2 | EV75: 2 | EW75: 2 | EX75: 2 | EY75: 2 | EZ75: 2 | FA75: 2 | FB75: 2 | FC75: 1 | FD75: 1 | FE75: 2 | FF75: 2 | FG75: 2 | FH75: 2 | FI75: 2 | FJ75: 2 | FK75: 2 | FL75: 2 | FM75: 2 | FN75: 2 | FO75: 2 | FP75: 2 | FQ75: 2 | FR75: 2 | FS75: 2 | FT75: 2 | FU75: 2 | FV75: 2 | FW75: 2 | FX75: 2 | FY75: 2 | FZ75: 2 | GA75: 2 | GB75: 2 | GC75: 2 | GH75: Expression artistique I (……….) | GJ75: Matériel médical | GK75: Commerce/Trafic (Matériel médical) + | GP75: Administration/Gestion | GQ75: Sci./Con. Spéc. (Administration/Gestion) +
C76: Etudes supérieures 2 | E76: Pas d'étude sup. | J76: =IF(E76="Pas d'étude sup.",0,1) -> 0 | P76: Commerce/Trafic II (……….) + | Q76: X | R76: INT | S76: PRE | U76: -2 | V76: X | W76: X | Y76: -4 | AE76: 0 | AJ76: 0 | AP76: 0 | AQ76: 0 | AR76: 0 | AZ76: 0 | BA76: 0 | BI76: 0 | BJ76: 0 | BR76: 0 | BS76: 0 | CA76: 0 | CB76: -4 | CC76: X | CE76: 0 | CG76: -4 | CH76: X | CI76: 0 | CJ76: 2 | CK76: 0 | CL76: 74 | CM76: -4 | CN76: X | CO76: 0 | CP76: 0 | CQ76: 0 | CS76: -4 | CT76: X | CU76: 0 | CV76: 2 | CW76: 0 | CX76: 74 | CY76: -4 | CZ76: X | DA76: 0 | DB76: 0 | DC76: 0 | DE76: -4 | DF76: X | DG76: 0 | DH76: 2 | DI76: 0 | DJ76: 74 | DK76: -4 | DL76: X | DM76: 0 | DN76: 0 | DO76: 0 | DQ76: -4 | DR76: X | DS76: 0 | DT76: 2 | DU76: 0 | DV76: 74 | DW76: -4 | DX76: X | DY76: 0 | DZ76: 0 | EB76: -4 | EC76: X | ED76: 0 | EE76: 1 | EF76: 0 | EG76: 74 | EH76: -4 | EI76: X | EJ76: 0 | ER76: 2 | ES76: 2 | ET76: 2 | EU76: 2 | EV76: 2 | EW76: 1 | EX76: 2 | EY76: 2 | EZ76: 2 | FA76: 2 | FB76: 2 | FC76: 1 | FD76: 2 | FE76: 2 | FF76: 2 | FG76: 2 | FH76: 2 | FI76: 2 | FJ76: 2 | FK76: 2 | FL76: 2 | FM76: 2 | FN76: 2 | FO76: 2 | FP76: 2 | FQ76: 2 | FR76: 2 | FS76: 2 | FT76: 2 | FU76: 2 | FV76: 2 | FW76: 2 | FX76: 2 | FY76: 2 | FZ76: 2 | GA76: 2 | GB76: 2 | GC76: 1 | GH76: Expression artistique II (……….) | GJ76: Matières premières | GK76: Commerce/Trafic (Matières premières) + | GP76: Armes/Syst. d'armement | GQ76: Sci./Con. Spéc. (Armes/Syst. d'armement) +
D77: Commerce/Gestion : Commerce légal | J77: =IF(AND($E77<>" ",$E$76<>"Commerce/gestion"),"ERREUR"," ") ->  | P77: Connaissance d'une nation (Amazonia) * PN | R77: INT | S77: INT | U77: -2 | V77: 0 | W77: -2 | Y77: 0 | Z77: =IF($E$27="Oui",IF(VLOOKUP($E$30,$GJ$36:$GK$46,2,)=$P77,5,0),0) -> 0 | AC77: =IF(VLOOKUP($E$30,$GJ$36:$GK$46,2,)=$P77,2,0) -> 0 | AD77: =IF(VLOOKUP($E$30,$GJ$36:$GK$46,2,)=$P77,3,0) -> 0 | AE77: 0 | AH77: =IF(VLOOKUP($E$30,$GJ$36:$GK$46,2,)=$P77,2,0) -> 0 | AI77: =IF($E$38="Connaissance de la nation d'origine",IF(VLOOKUP($E$30,$GJ$36:$GK$46,2,)=$P77,2,0),0) -> 0 | AJ77: 0 | AO77: =IF(VLOOKUP($E$47,$GJ$36:$GK$46,2,)=$P77,2,0) -> 0 | AP77: 0 | AQ77: 0 | AR77: =IF(VLOOKUP($E$54,$GJ$36:$GK$46,2,)=$P77,1,0) -> 0 | AS77: =IF(VLOOKUP($E$57,$GJ$36:$GK$46,2,)=$P77,2,0) -> 0 | AT77: =IF(VLOOKUP($E$61,$GJ$36:$GK$46,2,)=$P77,1,0) -> 0 | AU77: =IF(VLOOKUP($E$64,$GJ$36:$GK$46,2,)=$P77,2,0) -> 0 | AV77: =IF(VLOOKUP($E$66,$GJ$36:$GK$46,2,)=$P77,2,0) -> 0 | AX77: =IF(VLOOKUP($E$68,$GJ$36:$GK$46,2,)=$P77,1,0) -> 0 | AY77: =IF($P77=VLOOKUP($E$72,$GJ$36:$GK$46,2,),3,IF($P77=VLOOKUP($E$73,$GJ$36:$GK$46,2,),2,0)) -> 0 | AZ77: 0 | BA77: =IF(VLOOKUP($E$79,$GJ$36:$GK$46,2,)=$P77,1,0) -> 0 | BB77: =IF(VLOOKUP($E$82,$GJ$36:$GK$46,2,)=$P77,2,0) -> 0 | BC77: =IF(VLOOKUP($E$86,$GJ$36:$GK$46,2,)=$P77,1,0) -> 0 | BD77: =IF(VLOOKUP($E$89,$GJ$36:$GK$46,2,)=$P77,2,0) -> 0 | BE77: =IF(VLOOKUP($E$91,$GJ$36:$GK$46,2,)=$P77,2,0) -> 0 | BG77: =IF(VLOOKUP($E$93,$GJ$36:$GK$46,2,)=$P77,1,0) -> 0 | BH77: =IF($P77=VLOOKUP($E$97,$GJ$36:$GK$46,2,),3,IF($P77=VLOOKUP($E$98,$GJ$36:$GK$46,2,),2,0)) -> 0 | BI77: 0 | BJ77: =IF(VLOOKUP($E$104,$GJ$36:$GK$46,2,)=$P77,1,0) -> 0 | BK77: =IF(VLOOKUP($E$107,$GJ$36:$GK$46,2,)=$P77,2,0) -> 0 | BL77: =IF(VLOOKUP($E$111,$GJ$36:$GK$46,2,)=$P77,1,0) -> 0 | BM77: =IF(VLOOKUP($E$114,$GJ$36:$GK$46,2,)=$P77,2,0) -> 0 | BN77: =IF(VLOOKUP($E$116,$GJ$36:$GK$46,2,)=$P77,2,0) -> 0 | BP77: =IF(VLOOKUP($E$118,$GJ$36:$GK$46,2,)=$P77,1,0) -> 0 | BQ77: =IF($P77=VLOOKUP($E$122,$GJ$36:$GK$46,2,),3,IF($P77=VLOOKUP($E$123,$GJ$36:$GK$46,2,),2,0)) -> 0 | BR77: 0 | BS77: =IF(VLOOKUP($E$129,$GJ$36:$GK$46,2,)=$P77,1,0) -> 0 | BT77: =IF(VLOOKUP($E$132,$GJ$36:$GK$46,2,)=$P77,2,0) -> 0 | BU77: =IF(VLOOKUP($E$136,$GJ$36:$GK$46,2,)=$P77,1,0) -> 0 | BV77: =IF(VLOOKUP($E$139,$GJ$36:$GK$46,2,)=$P77,2,0) -> 0 | BW77: =IF(VLOOKUP($E$141,$GJ$36:$GK$46,2,)=$P77,2,0) -> 0 | BY77: =IF(VLOOKUP($E$143,$GJ$36:$GK$46,2,)=$P77,1,0) -> 0 | BZ77: =IF($P77=VLOOKUP($E$147,$GJ$36:$GK$46,2,),3,IF($P77=VLOOKUP($E$98,$GJ$36:$GK$46,2,),2,0)) -> 0 | CA77: 0 | CB77: 0 | CC77: 0 | CE77: 0 | CF77: 0 | CG77: 0 | CH77: 0 | CI77: 0 | CJ77: 2 | CK77: 0 | CL77: 75 | CM77: 0 | CN77: 0 | CO77: 0 | CP77: 0 | CQ77: 0 | CR77: 0 | CS77: 0 | CT77: 0 | CU77: 0 | CV77: 2 | CW77: 0 | CX77: 75 | CY77: 0 | CZ77: 0 | DA77: 0 | DB77: 0 | DC77: 0 | DD77: 0 | DE77: 0 | DF77: 0 | DG77: 0 | DH77: 2 | DI77: 0 | DJ77: 75 | DK77: 0 | DL77: 0 | DM77: 0 | DN77: 0 | DO77: 0 | DP77: 0 | DQ77: 0 | DR77: 0 | DS77: 0 | DT77: 2 | DU77: 0 | DV77: 75 | DW77: 0 | DX77: 0 | DY77: 0 | DZ77: 0 | EB77: 0 | EC77: 0 | ED77: 0 | EE77: 1 | EF77: 0 | EG77: 75 | EH77: 0 | EI77: 0 | EJ77: 0 | ER77: =ER369 -> 2 | ES77: =ES369 -> 2 | ET77: 2 | EU77: 2 | EV77: 2 | EW77: 2 | EX77: 2 | EY77: 2 | EZ77: 2 | FA77: 2 | FB77: 2 | FC77: 2 | FD77: 2 | FE77: 2 | FF77: 2 | FG77: 2 | FH77: 2 | FI77: 2 | FJ77: 2 | FK77: 2 | FL77: 2 | FM77: 2 | FN77: 2 | FO77: 2 | FP77: 2 | FQ77: 2 | FR77: 2 | FS77: 2 | FT77: 2 | FU77: 2 | FV77: 2 | FW77: 2 | FX77: 2 | FY77: 2 | FZ77: 2 | GA77: 2 | GB77: 2 | GC77: 2 | GH77: Intimidation | GJ77: Oeuvres d'art | GK77: Commerce/Trafic (Oeuvres d'art) + | GP77: Astrophysique/Astronomie | GQ77: Sci./Con. Spéc. (Astrophysique/Astronomie) +
D78: Commerce/Gestion : Langue au choix | J78: =IF(AND($E78<>" ",$E$76<>"Commerce/gestion"),"ERREUR"," ") ->  | P78: Connaissance d'une nation (Alliance Polaire) * PN | R78: INT | S78: INT | U78: -2 | V78: 0 | W78: -2 | Y78: 0 | Z78: =IF($E$27="Oui",IF(VLOOKUP($E$30,$GJ$36:$GK$46,2,)=$P78,5,0),0) -> 0 | AC78: =IF(VLOOKUP($E$30,$GJ$36:$GK$46,2,)=$P78,2,0) -> 0 | AD78: =IF(VLOOKUP($E$30,$GJ$36:$GK$46,2,)=$P78,3,0) -> 0 | AE78: 0 | AH78: =IF(VLOOKUP($E$30,$GJ$36:$GK$46,2,)=$P78,2,0) -> 0 | AI78: =IF($E$38="Connaissance de la nation d'origine",IF(VLOOKUP($E$30,$GJ$36:$GK$46,2,)=$P78,2,0),0) -> 0 | AJ78: 0 | AO78: =IF(VLOOKUP($E$47,$GJ$36:$GK$46,2,)=$P78,2,0) -> 0 | AP78: 0 | AQ78: 0 | AR78: =IF(VLOOKUP($E$54,$GJ$36:$GK$46,2,)=$P78,1,0) -> 0 | AS78: =IF(VLOOKUP($E$57,$GJ$36:$GK$46,2,)=$P78,2,0) -> 0 | AT78: =IF(VLOOKUP($E$61,$GJ$36:$GK$46,2,)=$P78,1,0) -> 0 | AU78: =IF(VLOOKUP($E$64,$GJ$36:$GK$46,2,)=$P78,2,0) -> 0 | AV78: =IF(VLOOKUP($E$66,$GJ$36:$GK$46,2,)=$P78,2,0) -> 0 | AX78: =IF(VLOOKUP($E$68,$GJ$36:$GK$46,2,)=$P78,1,0) -> 0 | AY78: =IF($P78=VLOOKUP($E$72,$GJ$36:$GK$46,2,),3,IF($P78=VLOOKUP($E$73,$GJ$36:$GK$46,2,),2,0)) -> 0 | AZ78: 0 | BA78: =IF(VLOOKUP($E$79,$GJ$36:$GK$46,2,)=$P78,1,0) -> 0 | BB78: =IF(VLOOKUP($E$82,$GJ$36:$GK$46,2,)=$P78,2,0) -> 0 | BC78: =IF(VLOOKUP($E$86,$GJ$36:$GK$46,2,)=$P78,1,0) -> 0 | BD78: =IF(VLOOKUP($E$89,$GJ$36:$GK$46,2,)=$P78,2,0) -> 0 | BE78: =IF(VLOOKUP($E$91,$GJ$36:$GK$46,2,)=$P78,2,0) -> 0 | BG78: =IF(VLOOKUP($E$93,$GJ$36:$GK$46,2,)=$P78,1,0) -> 0 | BH78: =IF($P78=VLOOKUP($E$97,$GJ$36:$GK$46,2,),3,IF($P78=VLOOKUP($E$98,$GJ$36:$GK$46,2,),2,0)) -> 0 | BI78: 0 | BJ78: =IF(VLOOKUP($E$104,$GJ$36:$GK$46,2,)=$P78,1,0) -> 0 | BK78: =IF(VLOOKUP($E$107,$GJ$36:$GK$46,2,)=$P78,2,0) -> 0 | BL78: =IF(VLOOKUP($E$111,$GJ$36:$GK$46,2,)=$P78,1,0) -> 0 | BM78: =IF(VLOOKUP($E$114,$GJ$36:$GK$46,2,)=$P78,2,0) -> 0 | BN78: =IF(VLOOKUP($E$116,$GJ$36:$GK$46,2,)=$P78,2,0) -> 0 | BP78: =IF(VLOOKUP($E$118,$GJ$36:$GK$46,2,)=$P78,1,0) -> 0 | BQ78: =IF($P78=VLOOKUP($E$122,$GJ$36:$GK$46,2,),3,IF($P78=VLOOKUP($E$123,$GJ$36:$GK$46,2,),2,0)) -> 0 | BR78: 0 | BS78: =IF(VLOOKUP($E$129,$GJ$36:$GK$46,2,)=$P78,1,0) -> 0 | BT78: =IF(VLOOKUP($E$132,$GJ$36:$GK$46,2,)=$P78,2,0) -> 0 | BU78: =IF(VLOOKUP($E$136,$GJ$36:$GK$46,2,)=$P78,1,0) -> 0 | BV78: =IF(VLOOKUP($E$139,$GJ$36:$GK$46,2,)=$P78,2,0) -> 0 | BW78: =IF(VLOOKUP($E$141,$GJ$36:$GK$46,2,)=$P78,2,0) -> 0 | BY78: =IF(VLOOKUP($E$143,$GJ$36:$GK$46,2,)=$P78,1,0) -> 0 | BZ78: =IF($P78=VLOOKUP($E$147,$GJ$36:$GK$46,2,),3,IF($P78=VLOOKUP($E$98,$GJ$36:$GK$46,2,),2,0)) -> 0 | CA78: 0 | CB78: 0 | CC78: 0 | CE78: 0 | CF78: 0 | CG78: 0 | CH78: 0 | CI78: 0 | CJ78: 2 | CK78: 0 | CL78: 76 | CM78: 0 | CN78: 0 | CO78: 0 | CP78: 0 | CQ78: 0 | CR78: 0 | CS78: 0 | CT78: 0 | CU78: 0 | CV78: 2 | CW78: 0 | CX78: 76 | CY78: 0 | CZ78: 0 | DA78: 0 | DB78: 0 | DC78: 0 | DD78: 0 | DE78: 0 | DF78: 0 | DG78: 0 | DH78: 2 | DI78: 0 | DJ78: 76 | DK78: 0 | DL78: 0 | DM78: 0 | DN78: 0 | DO78: 0 | DP78: 0 | DQ78: 0 | DR78: 0 | DS78: 0 | DT78: 2 | DU78: 0 | DV78: 76 | DW78: 0 | DX78: 0 | DY78: 0 | DZ78: 0 | EB78: 0 | EC78: 0 | ED78: 0 | EE78: 1 | EF78: 0 | EG78: 76 | EH78: 0 | EI78: 0 | EJ78: 0 | ER78: =ER370 -> 2 | ES78: 2 | ET78: 2 | EU78: 2 | EV78: 2 | EW78: 2 | EX78: 2 | EY78: 2 | EZ78: 2 | FA78: 2 | FB78: 2 | FC78: 2 | FD78: 2 | FE78: 2 | FF78: 2 | FG78: 2 | FH78: 2 | FI78: 2 | FJ78: 2 | FK78: 2 | FL78: 2 | FM78: 2 | FN78: 2 | FO78: 2 | FP78: 2 | FQ78: 2 | FR78: 2 | FS78: 2 | FT78: 2 | FU78: 2 | FV78: 2 | FW78: 2 | FX78: 2 | FY78: 2 | FZ78: 2 | GA78: 2 | GB78: 2 | GC78: 2 | GH78: =P64 -> Bureaucratie + | GJ78: Véhicules | GK78: Commerce/Trafic (Véhicules) + | GP78: Biologie/Physiologie | GQ78: Sci./Con. Spéc. (Biologie/Physiologie) +
D79: Commerce/Gestion : Nation étrangère | J79: =IF(AND($E79<>" ",$E$76<>"Commerce/gestion"),"ERREUR"," ") ->  | P79: Connaissance d'une nation (Equinoxe) * PN | R79: INT | S79: INT | U79: -2 | V79: 0 | W79: -2 | Y79: 0 | Z79: 0 | AC79: 0 | AD79: 0 | AE79: 0 | AH79: 0 | AI79: 0 | AJ79: 0 | AO79: 0 | AP79: 0 | AQ79: 0 | AR79: 0 | AS79: 0 | AT79: 0 | AU79: 0 | AV79: 0 | AX79: 0 | AY79: 0 | AZ79: 0 | BA79: 0 | BB79: 0 | BC79: 0 | BD79: 0 | BE79: 0 | BG79: 0 | BH79: 0 | BI79: 0 | BJ79: 0 | BK79: 0 | BL79: 0 | BM79: 0 | BN79: 0 | BP79: 0 | BQ79: 0 | BR79: 0 | BS79: 0 | BT79: 0 | BU79: 0 | BV79: 0 | BW79: 0 | BY79: 0 | BZ79: 0 | CA79: 0 | CB79: 0 | CC79: 0 | CE79: 0 | CF79: 0 | CG79: 0 | CH79: 0 | CI79: 0 | CJ79: 2 | CK79: 0 | CL79: 77 | CM79: 0 | CN79: 0 | CO79: 0 | CP79: 0 | CQ79: 0 | CR79: 0 | CS79: 0 | CT79: 0 | CU79: 0 | CV79: 2 | CW79: 0 | CX79: 77 | CY79: 0 | CZ79: 0 | DA79: 0 | DB79: 0 | DC79: 0 | DD79: 0 | DE79: 0 | DF79: 0 | DG79: 0 | DH79: 2 | DI79: 0 | DJ79: 77 | DK79: 0 | DL79: 0 | DM79: 0 | DN79: 0 | DO79: 0 | DP79: 0 | DQ79: 0 | DR79: 0 | DS79: 0 | DT79: 2 | DU79: 0 | DV79: 77 | DW79: 0 | DX79: 0 | DY79: 0 | DZ79: 0 | EB79: 0 | EC79: 0 | ED79: 0 | EE79: 1 | EF79: 0 | EG79: 77 | EH79: 0 | EI79: 0 | EJ79: 0 | ER79: =ER371 -> 2 | ES79: 2 | ET79: 2 | EU79: 2 | EV79: 2 | EW79: 2 | EX79: 2 | EY79: 2 | EZ79: 2 | FA79: 2 | FB79: 2 | FC79: 1 | FD79: 2 | FE79: 2 | FF79: 2 | FG79: 2 | FH79: 2 | FI79: 2 | FJ79: 2 | FK79: 2 | FL79: 2 | FM79: 2 | FN79: 2 | FO79: 2 | FP79: 2 | FQ79: 1 | FR79: 2 | FS79: 2 | FT79: 2 | FU79: 2 | FV79: 2 | FW79: 2 | FX79: 2 | FY79: 2 | FZ79: 2 | GA79: 2 | GB79: 1 | GC79: 2 | GH79: =P65 -> Cartographie + | GJ79: Autre I | GK79: =GH89 -> Commerce/Trafic I (……….) + | GP79: Botanique | GQ79: Sci./Con. Spéc. (Botanique) +
D80: Commerce/Gestion : Sciences | J80: =IF(AND($E80<>" ",$E$76<>"Commerce/gestion"),"ERREUR"," ") ->  | P80: Connaissance d'une nation (Hégémonie) * PN | R80: INT | S80: INT | U80: -2 | V80: 0 | W80: -2 | Y80: 0 | Z80: 0 | AC80: 0 | AD80: 0 | AE80: 0 | AH80: 0 | AI80: 0 | AJ80: 0 | AO80: 0 | AP80: 0 | AQ80: 0 | AR80: 0 | AS80: 0 | AT80: 0 | AU80: 0 | AV80: 0 | AX80: 0 | AY80: 0 | AZ80: 0 | BA80: 0 | BB80: 0 | BC80: 0 | BD80: 0 | BE80: 0 | BG80: 0 | BH80: 0 | BI80: 0 | BJ80: 0 | BK80: 0 | BL80: 0 | BM80: 0 | BN80: 0 | BP80: 0 | BQ80: 0 | BR80: 0 | BS80: 0 | BT80: 0 | BU80: 0 | BV80: 0 | BW80: 0 | BY80: 0 | BZ80: 0 | CA80: 0 | CB80: 0 | CC80: 0 | CE80: 0 | CF80: 0 | CG80: 0 | CH80: 0 | CI80: 0 | CJ80: 2 | CK80: 0 | CL80: 78 | CM80: 0 | CN80: 0 | CO80: 0 | CP80: 0 | CQ80: 0 | CR80: 0 | CS80: 0 | CT80: 0 | CU80: 0 | CV80: 2 | CW80: 0 | CX80: 78 | CY80: 0 | CZ80: 0 | DA80: 0 | DB80: 0 | DC80: 0 | DD80: 0 | DE80: 0 | DF80: 0 | DG80: 0 | DH80: 2 | DI80: 0 | DJ80: 78 | DK80: 0 | DL80: 0 | DM80: 0 | DN80: 0 | DO80: 0 | DP80: 0 | DQ80: 0 | DR80: 0 | DS80: 0 | DT80: 2 | DU80: 0 | DV80: 78 | DW80: 0 | DX80: 0 | DY80: 0 | DZ80: 0 | EB80: 0 | EC80: 0 | ED80: 0 | EE80: 1 | EF80: 0 | EG80: 78 | EH80: 0 | EI80: 0 | EJ80: 0 | ER80: =ER372 -> 2 | ES80: 2 | ET80: 2 | EU80: 2 | EV80: 2 | EW80: 2 | EX80: 2 | EY80: 2 | EZ80: 2 | FA80: 2 | FB80: 2 | FC80: 2 | FD80: 2 | FE80: 2 | FF80: 2 | FG80: 2 | FH80: 2 | FI80: 2 | FJ80: 2 | FK80: 2 | FL80: 2 | FM80: 2 | FN80: 2 | FO80: 2 | FP80: 2 | FQ80: 2 | FR80: 2 | FS80: 2 | FT80: 2 | FU80: 2 | FV80: 2 | FW80: 2 | FX80: 2 | FY80: 2 | FZ80: 2 | GA80: 1 | GB80: 2 | GC80: 2 | GH80: Commerce/Trafic (Armes) + | GJ80: Autre II | GK80: =GH90 -> Commerce/Trafic II (……….) + | GP80: Connaissance des drogues | GQ80: Sci./Con. Spéc. (Connaissance des drogues) +
D81: Droit : Langue au choix | J81: =IF(AND($E81<>" ",$E$76<>"Droit"),"ERREUR"," ") ->  | P81: Connaissance d'une nation (Ligue Rouge) * PN | R81: INT | S81: INT | U81: -2 | V81: 0 | W81: -2 | Y81: 0 | Z81: 0 | AC81: 0 | AD81: 0 | AE81: 0 | AH81: 0 | AI81: 0 | AJ81: 0 | AO81: 0 | AP81: 0 | AQ81: 0 | AR81: 0 | AS81: 0 | AT81: 0 | AU81: 0 | AV81: 0 | AX81: 0 | AY81: 0 | AZ81: 0 | BA81: 0 | BB81: 0 | BC81: 0 | BD81: 0 | BE81: 0 | BG81: 0 | BH81: 0 | BI81: 0 | BJ81: 0 | BK81: 0 | BL81: 0 | BM81: 0 | BN81: 0 | BP81: 0 | BQ81: 0 | BR81: 0 | BS81: 0 | BT81: 0 | BU81: 0 | BV81: 0 | BW81: 0 | BY81: 0 | BZ81: 0 | CA81: 0 | CB81: 0 | CC81: 0 | CE81: 0 | CF81: 0 | CG81: 0 | CH81: 0 | CI81: 0 | CJ81: 2 | CK81: 0 | CL81: 79 | CM81: 0 | CN81: 0 | CO81: 0 | CP81: 0 | CQ81: 0 | CR81: 0 | CS81: 0 | CT81: 0 | CU81: 0 | CV81: 2 | CW81: 0 | CX81: 79 | CY81: 0 | CZ81: 0 | DA81: 0 | DB81: 0 | DC81: 0 | DD81: 0 | DE81: 0 | DF81: 0 | DG81: 0 | DH81: 2 | DI81: 0 | DJ81: 79 | DK81: 0 | DL81: 0 | DM81: 0 | DN81: 0 | DO81: 0 | DP81: 0 | DQ81: 0 | DR81: 0 | DS81: 0 | DT81: 2 | DU81: 0 | DV81: 79 | DW81: 0 | DX81: 0 | DY81: 0 | DZ81: 0 | EB81: 0 | EC81: 0 | ED81: 0 | EE81: 1 | EF81: 0 | EG81: 79 | EH81: 0 | EI81: 0 | EJ81: 0 | ER81: =ER373 -> 2 | ES81: 2 | ET81: 2 | EU81: 2 | EV81: 2 | EW81: 2 | EX81: 2 | EY81: 2 | EZ81: 2 | FA81: 2 | FB81: 2 | FC81: 2 | FD81: 2 | FE81: 2 | FF81: 2 | FG81: 2 | FH81: 2 | FI81: 2 | FJ81: 2 | FK81: 2 | FL81: 2 | FM81: 2 | FN81: 2 | FO81: 2 | FP81: 2 | FQ81: 2 | FR81: 2 | FS81: 2 | FT81: 2 | FU81: 2 | FV81: 2 | FW81: 2 | FX81: 2 | FY81: 2 | FZ81: 2 | GA81: 2 | GB81: 2 | GC81: 2 | GH81: Commerce/Trafic (Artisanat) + | GP81: Connaissance des poisons | GQ81: Sci./Con. Spéc. (Connaissance des poisons) +
D82: Droit : Nation étrangère | J82: =IF(AND($E82<>" ",$E$76<>"Droit"),"ERREUR"," ") ->  | P82: Connaissance d'une nation (Nations Pirates) * PN | R82: INT | S82: INT | U82: -2 | V82: 0 | W82: -2 | Y82: 0 | Z82: 0 | AC82: 0 | AD82: 0 | AE82: 0 | AH82: 0 | AI82: 0 | AJ82: 0 | AO82: 0 | AP82: 0 | AQ82: 0 | AR82: 0 | AS82: 0 | AT82: 0 | AU82: 0 | AV82: 0 | AX82: 0 | AY82: 0 | AZ82: 0 | BA82: 0 | BB82: 0 | BC82: 0 | BD82: 0 | BE82: 0 | BG82: 0 | BH82: 0 | BI82: 0 | BJ82: 0 | BK82: 0 | BL82: 0 | BM82: 0 | BN82: 0 | BP82: 0 | BQ82: 0 | BR82: 0 | BS82: 0 | BT82: 0 | BU82: 0 | BV82: 0 | BW82: 0 | BY82: 0 | BZ82: 0 | CA82: 0 | CB82: 0 | CC82: 0 | CE82: 0 | CF82: 0 | CG82: 0 | CH82: 0 | CI82: 0 | CJ82: 2 | CK82: 0 | CL82: 80 | CM82: 0 | CN82: 0 | CO82: 0 | CP82: 0 | CQ82: 0 | CR82: 0 | CS82: 0 | CT82: 0 | CU82: 0 | CV82: 2 | CW82: 0 | CX82: 80 | CY82: 0 | CZ82: 0 | DA82: 0 | DB82: 0 | DC82: 0 | DD82: 0 | DE82: 0 | DF82: 0 | DG82: 0 | DH82: 2 | DI82: 0 | DJ82: 80 | DK82: 0 | DL82: 0 | DM82: 0 | DN82: 0 | DO82: 0 | DP82: 0 | DQ82: 0 | DR82: 0 | DS82: 0 | DT82: 2 | DU82: 0 | DV82: 80 | DW82: 0 | DX82: 0 | DY82: 0 | DZ82: 0 | EB82: 0 | EC82: 0 | ED82: 0 | EE82: 1 | EF82: 0 | EG82: 80 | EH82: 0 | EI82: 0 | EJ82: 0 | ER82: =ER374 -> 2 | ES82: 2 | ET82: 2 | EU82: 2 | EV82: 2 | EW82: 2 | EX82: 2 | EY82: 2 | EZ82: 2 | FA82: 2 | FB82: 2 | FC82: 2 | FD82: 2 | FE82: 2 | FF82: 2 | FG82: 2 | FH82: 2 | FI82: 2 | FJ82: 2 | FK82: 2 | FL82: 2 | FM82: 2 | FN82: 2 | FO82: 1 | FP82: 2 | FQ82: 2 | FR82: 2 | FS82: 2 | FT82: 2 | FU82: 2 | FV82: 2 | FW82: 2 | FX82: 2 | FY82: 2 | FZ82: 2 | GA82: 2 | GB82: 2 | GC82: 2 | GH82: Commerce/Trafic (Denrées alimentaires) + | GJ82: Exo-armures | GK82: Mécanique (Exo-armures) + | GP82: Criminalistique | GQ82: Sci./Con. Spéc. (Criminalistique) +
D83: Ecole d'ingénieurs : Génie technique | J83: =IF(AND($E83<>" ",$E$76<>"Ecole d'ingénieurs"),"ERREUR"," ") ->  | P83: Con. d'une nation (République du Corail) * PN | R83: INT | S83: INT | U83: -2 | V83: 0 | W83: -2 | Y83: 0 | Z83: 0 | AC83: 0 | AD83: 0 | AE83: 0 | AH83: 0 | AI83: 0 | AJ83: 0 | AO83: 0 | AP83: 0 | AQ83: 0 | AR83: 0 | AS83: 0 | AT83: 0 | AU83: 0 | AV83: 0 | AX83: 0 | AY83: 0 | AZ83: 0 | BA83: 0 | BB83: 0 | BC83: 0 | BD83: 0 | BE83: 0 | BG83: 0 | BH83: 0 | BI83: 0 | BJ83: 0 | BK83: 0 | BL83: 0 | BM83: 0 | BN83: 0 | BP83: 0 | BQ83: 0 | BR83: 0 | BS83: 0 | BT83: 0 | BU83: 0 | BV83: 0 | BW83: 0 | BY83: 0 | BZ83: 0 | CA83: 0 | CB83: 0 | CC83: 0 | CE83: 0 | CF83: 0 | CG83: 0 | CH83: 0 | CI83: 0 | CJ83: 2 | CK83: 0 | CL83: 81 | CM83: 0 | CN83: 0 | CO83: 0 | CP83: 0 | CQ83: 0 | CR83: 0 | CS83: 0 | CT83: 0 | CU83: 0 | CV83: 2 | CW83: 0 | CX83: 81 | CY83: 0 | CZ83: 0 | DA83: 0 | DB83: =IF(CV83=1,0,IF(CU83=2,IF(AND(($Z83+$AE83+$AJ83+$AQ83+$AZ83+$BI83+$BR83+$CA83)>0,CS83<5),5-CS83,0),0)) -> 0 | DC83: 0 | DD83: 0 | DE83: 0 | DF83: 0 | DG83: 0 | DH83: 2 | DI83: 0 | DJ83: 81 | DK83: 0 | DL83: 0 | DM83: 0 | DN83: 0 | DO83: 0 | DP83: 0 | DQ83: 0 | DR83: 0 | DS83: 0 | DT83: 2 | DU83: 0 | DV83: 81 | DW83: 0 | DX83: 0 | DY83: 0 | DZ83: 0 | EB83: 0 | EC83: 0 | ED83: 0 | EE83: 1 | EF83: 0 | EG83: 81 | EH83: 0 | EI83: 0 | EJ83: 0 | ER83: =ER375 -> 2 | ES83: 2 | ET83: 2 | EU83: 2 | EV83: 2 | EW83: 2 | EX83: 2 | EY83: 2 | EZ83: 2 | FA83: 2 | FB83: 2 | FC83: 2 | FD83: 2 | FE83: 2 | FF83: 2 | FG83: 2 | FH83: 2 | FI83: 2 | FJ83: 2 | FK83: 2 | FL83: 2 | FM83: 2 | FN83: 2 | FO83: 2 | FP83: 2 | FQ83: 2 | FR83: 2 | FS83: 2 | FT83: 2 | FU83: 2 | FV83: 2 | FW83: 2 | FX83: 2 | FY83: 2 | FZ83: 2 | GA83: 2 | GB83: 2 | GC83: 2 | GH83: Commerce/Trafic (Drogues) + | GJ83: Chasseurs atmosphériques | GK83: Mécanique (Chasseurs atmosphériques) + | GP83: Droit/Législations | GQ83: Sci./Con. Spéc. (Droit/Législations) +
D84: Ecole d'ingénieurs : Langue au choix | J84: =IF(AND($E84<>" ",$E$76<>"Ecole d'ingénieurs"),"ERREUR"," ") ->  | P84: Con. d'une nation (Union Méditerranéenne) * PN | R84: INT | S84: INT | U84: -2 | V84: 0 | W84: -2 | Y84: 0 | Z84: 0 | AC84: 0 | AD84: 0 | AE84: 0 | AH84: 0 | AI84: 0 | AJ84: 0 | AO84: 0 | AP84: 0 | AQ84: 0 | AR84: 0 | AS84: 0 | AT84: 0 | AU84: 0 | AV84: 0 | AX84: 0 | AY84: 0 | AZ84: 0 | BA84: 0 | BB84: 0 | BC84: 0 | BD84: 0 | BE84: 0 | BG84: 0 | BH84: 0 | BI84: 0 | BJ84: 0 | BK84: 0 | BL84: 0 | BM84: 0 | BN84: 0 | BP84: 0 | BQ84: 0 | BR84: 0 | BS84: 0 | BT84: 0 | BU84: 0 | BV84: 0 | BW84: 0 | BY84: 0 | BZ84: 0 | CA84: 0 | CB84: =IF(Q84="X",Z84+AE84+AJ84+AQ84+AZ84+BI84+BR84+CA84-4,IF(Q84=-3,Z84+AE84+AJ84+AQ84+AZ84+BI84+BR84+CA84-3,Z84+AE84+AJ84+AQ84+AZ84+BI84+BR84+CA84)) -> 0 | CC84: 0 | CE84: 0 | CF84: 0 | CG84: 0 | CH84: 0 | CI84: =IF(AND(($Z84+$AE84+$AJ84+$AQ84+$AZ84+$BI84+$BR84+$CA84)>0,CM84>4),2,IF(AND(($Z84+$AE84+$AJ84+$AQ84+$AZ84+$BI84+$BR84+$CA84)>0,CG84<5),1,0)) -> 0 | CJ84: 2 | CK84: 0 | CL84: 82 | CM84: 0 | CN84: 0 | CO84: 0 | CP84: =IF(CJ84=1,0,IF(CI84=2,IF(AND(($Z84+$AE84+$AJ84+$AQ84+$AZ84+$BI84+$BR84+$CA84)>0,CG84<5),5-CG84,0),0)) -> 0 | CQ84: 0 | CR84: 0 | CS84: 0 | CT84: 0 | CU84: =IF(AND(($Z84+$AE84+$AJ84+$AQ84+$AZ84+$BI84+$BR84+$CA84)>0,CY84>4),2,IF(AND(($Z84+$AE84+$AJ84+$AQ84+$AZ84+$BI84+$BR84+$CA84)>0,CS84<5),1,0)) -> 0 | CV84: 2 | CW84: 0 | CX84: 82 | CY84: 0 | CZ84: 0 | DA84: 0 | DB84: 0 | DC84: 0 | DD84: 0 | DE84: 0 | DF84: 0 | DG84: =IF(AND(($Z84+$AE84+$AJ84+$AQ84+$AZ84+$BI84+$BR84+$CA84)>0,DK84>4),2,IF(AND(($Z84+$AE84+$AJ84+$AQ84+$AZ84+$BI84+$BR84+$CA84)>0,DE84<5),1,0)) -> 0 | DH84: 2 | DI84: 0 | DJ84: 82 | DK84: 0 | DL84: 0 | DM84: 0 | DN84: =IF(DH84=1,0,IF(DG84=2,IF(AND(($Z84+$AE84+$AJ84+$AQ84+$AZ84+$BI84+$BR84+$CA84)>0,DE84<5),5-DE84,0),0)) -> 0 | DO84: 0 | DP84: 0 | DQ84: 0 | DR84: 0 | DS84: =IF(AND(($Z84+$AE84+$AJ84+$AQ84+$AZ84+$BI84+$BR84+$CA84)>0,DW84>4),2,IF(AND(($Z84+$AE84+$AJ84+$AQ84+$AZ84+$BI84+$BR84+$CA84)>0,DQ84<5),1,0)) -> 0 | DT84: 2 | DU84: 0 | DV84: 82 | DW84: 0 | DX84: 0 | DY84: 0 | DZ84: =IF(DT84=1,0,IF(DS84=2,IF(AND(($Z84+$AE84+$AJ84+$AQ84+$AZ84+$BI84+$BR84+$CA84)>0,DQ84<5),5-DQ84,0),0)) -> 0 | EB84: 0 | EC84: 0 | ED84: 0 | EE84: 1 | EF84: 0 | EG84: 82 | EH84: 0 | EI84: 0 | EJ84: 0 | ER84: =ER376 -> 2 | ES84: 2 | ET84: 2 | EU84: 2 | EV84: 2 | EW84: 2 | EX84: 2 | EY84: 2 | EZ84: 2 | FA84: 2 | FB84: 2 | FC84: 2 | FD84: 2 | FE84: 2 | FF84: 2 | FG84: 2 | FH84: 2 | FI84: 2 | FJ84: 2 | FK84: 2 | FL84: 2 | FM84: 2 | FN84: 2 | FO84: 2 | FP84: 2 | FQ84: 2 | FR84: 2 | FS84: 2 | FT84: 2 | FU84: 2 | FV84: 2 | FW84: 2 | FX84: 2 | FY84: 2 | FZ84: 2 | GA84: 2 | GB84: 2 | GC84: 2 | GH84: Commerce/Trafic (Informations) + | GJ84: Générateurs/Systèmes de survie | GK84: Mécanique (Générateurs/Systèmes de survie) + | GP84: Economie | GQ84: Sci./Con. Spéc. (Economie) +
D85: Ecole d'ingénieurs : Mécanique | J85: =IF(AND($E85<>" ",$E$76<>"Ecole d'ingénieurs"),"ERREUR"," ") ->  | P85: Connaissance d 'une nation I (……….) * PN | R85: INT | S85: INT | U85: -2 | V85: 0 | W85: -2 | Y85: 0 | Z85: 0 | AC85: 0 | AD85: 0 | AE85: 0 | AH85: 0 | AI85: 0 | AJ85: 0 | AO85: 0 | AP85: 0 | AQ85: 0 | AR85: 0 | AS85: 0 | AT85: 0 | AU85: 0 | AV85: 0 | AX85: 0 | AY85: 0 | AZ85: 0 | BA85: 0 | BB85: 0 | BC85: 0 | BD85: 0 | BE85: 0 | BG85: 0 | BH85: 0 | BI85: 0 | BJ85: 0 | BK85: 0 | BL85: 0 | BM85: 0 | BN85: 0 | BP85: 0 | BQ85: 0 | BR85: 0 | BS85: 0 | BT85: 0 | BU85: 0 | BV85: 0 | BW85: 0 | BY85: 0 | BZ85: 0 | CA85: 0 | CB85: 0 | CC85: 0 | CE85: 0 | CF85: 0 | CG85: 0 | CH85: 0 | CI85: 0 | CJ85: 2 | CK85: 0 | CL85: 83 | CM85: 0 | CN85: 0 | CO85: 0 | CP85: 0 | CQ85: 0 | CR85: 0 | CS85: 0 | CT85: 0 | CU85: 0 | CV85: 2 | CW85: 0 | CX85: 83 | CY85: 0 | CZ85: 0 | DA85: 0 | DB85: 0 | DC85: 0 | DD85: 0 | DE85: 0 | DF85: 0 | DG85: 0 | DH85: 2 | DI85: 0 | DJ85: 83 | DK85: 0 | DL85: 0 | DM85: 0 | DN85: 0 | DO85: 0 | DP85: 0 | DQ85: 0 | DR85: 0 | DS85: 0 | DT85: 2 | DU85: 0 | DV85: 83 | DW85: 0 | DX85: 0 | DY85: 0 | DZ85: 0 | EB85: 0 | EC85: 0 | ED85: 0 | EE85: 1 | EF85: 0 | EG85: 83 | EH85: 0 | EI85: 0 | EJ85: 0 | ER85: =ER377 -> 2 | ES85: 2 | ET85: 2 | EU85: 2 | EV85: 2 | EW85: 2 | EX85: 2 | EY85: 2 | EZ85: 2 | FA85: 2 | FB85: 2 | FC85: 2 | FD85: 2 | FE85: 2 | FF85: 2 | FG85: 2 | FH85: 2 | FI85: 2 | FJ85: 2 | FK85: 2 | FL85: 2 | FM85: 2 | FN85: 2 | FO85: 2 | FP85: 2 | FQ85: 2 | FR85: 2 | FS85: 2 | FT85: 2 | FU85: 2 | FV85: 2 | FW85: 2 | FX85: 2 | FY85: 2 | FZ85: 2 | GA85: 2 | GB85: 2 | GC85: 2 | GH85: Commerce/Trafic (Matériel médical) + | GJ85: Machines industrielles | GK85: Mécanique (Machines industrielles) + | GP85: Finances | GQ85: Sci./Con. Spéc. (Finances) +
D86: Ecole d'ingénieurs : Nation étrangère | J86: =IF(AND($E86<>" ",$E$76<>"Ecole d'ingénieurs"),"ERREUR"," ") ->  | P86: Connaissance d 'une nation II (……….) * PN | R86: INT | S86: INT | U86: -2 | V86: 0 | W86: -2 | Y86: 0 | Z86: 0 | AC86: 0 | AD86: 0 | AE86: 0 | AH86: 0 | AI86: 0 | AJ86: 0 | AO86: 0 | AP86: 0 | AQ86: 0 | AR86: 0 | AS86: 0 | AT86: 0 | AU86: 0 | AV86: 0 | AX86: 0 | AY86: 0 | AZ86: 0 | BA86: 0 | BB86: 0 | BC86: 0 | BD86: 0 | BE86: 0 | BG86: 0 | BH86: 0 | BI86: 0 | BJ86: 0 | BK86: 0 | BL86: 0 | BM86: 0 | BN86: 0 | BP86: 0 | BQ86: 0 | BR86: 0 | BS86: 0 | BT86: 0 | BU86: 0 | BV86: 0 | BW86: 0 | BY86: 0 | BZ86: 0 | CA86: 0 | CB86: 0 | CC86: 0 | CE86: 0 | CF86: 0 | CG86: 0 | CH86: 0 | CI86: 0 | CJ86: 2 | CK86: 0 | CL86: 84 | CM86: 0 | CN86: 0 | CO86: 0 | CP86: 0 | CQ86: 0 | CR86: 0 | CS86: 0 | CT86: 0 | CU86: 0 | CV86: 2 | CW86: 0 | CX86: 84 | CY86: 0 | CZ86: 0 | DA86: 0 | DB86: 0 | DC86: 0 | DD86: 0 | DE86: 0 | DF86: 0 | DG86: 0 | DH86: 2 | DI86: 0 | DJ86: 84 | DK86: 0 | DL86: 0 | DM86: 0 | DN86: 0 | DO86: 0 | DP86: 0 | DQ86: 0 | DR86: 0 | DS86: 0 | DT86: 2 | DU86: 0 | DV86: 84 | DW86: 0 | DX86: 0 | DY86: 0 | DZ86: 0 | EB86: 0 | EC86: 0 | ED86: 0 | EE86: 1 | EF86: 0 | EG86: 84 | EH86: 0 | EI86: 0 | EJ86: 0 | ER86: =ER378 -> 2 | ES86: 2 | ET86: 2 | EU86: 2 | EV86: 2 | EW86: 2 | EX86: 2 | EY86: 2 | EZ86: 2 | FA86: 2 | FB86: 2 | FC86: 2 | FD86: 2 | FE86: 2 | FF86: 2 | FG86: 2 | FH86: 2 | FI86: 2 | FJ86: 2 | FK86: 2 | FL86: 2 | FM86: 2 | FN86: 2 | FO86: 2 | FP86: 2 | FQ86: 2 | FR86: 2 | FS86: 2 | FT86: 2 | FU86: 2 | FV86: 2 | FW86: 2 | FX86: 2 | FY86: 2 | FZ86: 2 | GA86: 2 | GB86: 2 | GC86: 2 | GH86: Commerce/Trafic (Matières premières) + | GJ86: Navires/Chasseurs sous-marins | GK86: Mécanique (Navires/Chasseurs sous-marins) + | GP86: Géologie | GQ86: Sci./Con. Spéc. (Géologie) +
D87: Ecole militaire : Combat (Tir) | J87: =IF(AND($E87<>" ",$E$76<>"Ecole militaire"),"ERREUR"," ") ->  | P87: Connaissance d'une organisation (Armée) * PN | R87: INT | S87: INT | U87: -2 | V87: 0 | W87: -2 | Y87: 0 | AE87: 0 | AJ87: 0 | AP87: 0 | AQ87: 0 | AZ87: 0 | BI87: 0 | BR87: 0 | CA87: 0 | CB87: 0 | CC87: 0 | CE87: 0 | CF87: 0 | CG87: 0 | CH87: 0 | CI87: 0 | CJ87: 2 | CK87: 0 | CL87: 85 | CM87: 0 | CN87: 0 | CO87: 0 | CP87: 0 | CQ87: 0 | CR87: 0 | CS87: 0 | CT87: 0 | CU87: 0 | CV87: 2 | CW87: 0 | CX87: 85 | CY87: 0 | CZ87: 0 | DA87: 0 | DB87: 0 | DC87: 0 | DD87: 0 | DE87: 0 | DF87: 0 | DG87: 0 | DH87: 2 | DI87: 0 | DJ87: 85 | DK87: 0 | DL87: 0 | DM87: 0 | DN87: 0 | DO87: 0 | DP87: 0 | DQ87: 0 | DR87: 0 | DS87: 0 | DT87: 2 | DU87: 0 | DV87: 85 | DW87: 0 | DX87: 0 | DY87: 0 | DZ87: 0 | EB87: 0 | EC87: 0 | ED87: 0 | EE87: 1 | EF87: 0 | EG87: 85 | EH87: 0 | EI87: 0 | EJ87: 0 | ER87: 2 | ES87: 2 | ET87: 2 | EU87: 2 | EV87: 2 | EW87: 2 | EX87: 2 | EY87: 2 | EZ87: 2 | FA87: =IF(AND($E$152=FA$3,VLOOKUP($E$163,$GJ$101:$GK$123,2,)=$P87),1,IF(AND($E$171=FA$3,VLOOKUP($E$182,$GJ$101:$GK$123,2,)=$P87),1,IF(AND($E$190=FA$3,VLOOKUP($E$201,$GJ$101:$GK$123,2,)=$P87),1,IF(AND($E$209=FA$3,VLOOKUP($E$220,$GJ$101:$GK$123,2,)=$P87),1,2)))) -> 2 | FB87: 2 | FC87: 2 | FD87: =IF(AND($E$152=FD$3,VLOOKUP($E$163,$GJ$101:$GK$123,2,)=$P87),1,IF(AND($E$171=FD$3,VLOOKUP($E$182,$GJ$101:$GK$123,2,)=$P87),1,IF(AND($E$190=FD$3,VLOOKUP($E$201,$GJ$101:$GK$123,2,)=$P87),1,IF(AND($E$209=FD$3,VLOOKUP($E$220,$GJ$101:$GK$123,2,)=$P87),1,2)))) -> 2 | FE87: 2 | FF87: 2 | FG87: 2 | FH87: =IF(AND($E$152=FH$3,VLOOKUP($E$163,$GJ$101:$GK$123,2,)=$P87),1,IF(AND($E$171=FH$3,VLOOKUP($E$182,$GJ$101:$GK$123,2,)=$P87),1,IF(AND($E$190=FH$3,VLOOKUP($E$201,$GJ$101:$GK$123,2,)=$P87),1,IF(AND($E$209=FH$3,VLOOKUP($E$220,$GJ$101:$GK$123,2,)=$P87),1,2)))) -> 2 | FI87: 1 | FJ87: 1 | FK87: 1 | FL87: 2 | FM87: 2 | FN87: 2 | FO87: 2 | FP87: 2 | FQ87: 2 | FR87: 2 | FS87: =IF(AND($E$152=FS$3,VLOOKUP($E$163,$GJ$101:$GK$123,2,)=$P87),1,IF(AND($E$171=FS$3,VLOOKUP($E$182,$GJ$101:$GK$123,2,)=$P87),1,IF(AND($E$190=FS$3,VLOOKUP($E$201,$GJ$101:$GK$123,2,)=$P87),1,IF(AND($E$209=FS$3,VLOOKUP($E$220,$GJ$101:$GK$123,2,)=$P87),1,2)))) -> 2 | FT87: 2 | FU87: 1 | FV87: 1 | FW87: 1 | FX87: 1 | FY87: 2 | FZ87: 2 | GA87: 1 | GB87: 2 | GC87: 2 | GH87: Commerce/Trafic (Oeuvres d'art) + | GJ87: Véhicules souterrains | GK87: Mécanique (Véhicules souterrains) + | GP87: Géographie | GQ87: Sci./Con. Spéc. (Géographie) +
D88: Ecole militaire : Langue pays allié ou hostile | J88: =IF(AND($E88<>" ",$E$76<>"Ecole militaire"),"ERREUR"," ") ->  | P88: Con. d'une organisation (Contrebandiers) * PN | R88: INT | S88: INT | U88: -2 | V88: 0 | W88: -2 | Y88: 0 | AE88: 0 | AJ88: 0 | AK88: =IF($E$41="Contrebandiers",2,) -> 0 | AP88: 0 | AQ88: 0 | AZ88: 0 | BI88: 0 | BR88: 0 | CA88: 0 | CB88: 0 | CC88: 0 | CE88: 0 | CF88: 0 | CG88: 0 | CH88: 0 | CI88: 0 | CJ88: 2 | CK88: 0 | CL88: 86 | CM88: 0 | CN88: 0 | CO88: 0 | CP88: 0 | CQ88: 0 | CR88: 0 | CS88: 0 | CT88: 0 | CU88: 0 | CV88: 2 | CW88: 0 | CX88: 86 | CY88: 0 | CZ88: 0 | DA88: 0 | DB88: 0 | DC88: 0 | DD88: 0 | DE88: 0 | DF88: 0 | DG88: 0 | DH88: 2 | DI88: 0 | DJ88: 86 | DK88: 0 | DL88: 0 | DM88: 0 | DN88: 0 | DO88: 0 | DP88: 0 | DQ88: 0 | DR88: 0 | DS88: 0 | DT88: 2 | DU88: 0 | DV88: 86 | DW88: 0 | DX88: 0 | DY88: 0 | DZ88: 0 | EB88: 0 | EC88: 0 | ED88: 0 | EE88: 1 | EF88: 0 | EG88: 86 | EH88: 0 | EI88: 0 | EJ88: 0 | ER88: 2 | ES88: 2 | ET88: 1 | EU88: 1 | EV88: 1 | EW88: 1 | EX88: 2 | EY88: 2 | EZ88: 2 | FA88: =IF(AND($E$152=FA$3,VLOOKUP($E$163,$GJ$101:$GK$123,2,)=$P88),1,IF(AND($E$171=FA$3,VLOOKUP($E$182,$GJ$101:$GK$123,2,)=$P88),1,IF(AND($E$190=FA$3,VLOOKUP($E$201,$GJ$101:$GK$123,2,)=$P88),1,IF(AND($E$209=FA$3,VLOOKUP($E$220,$GJ$101:$GK$123,2,)=$P88),1,2)))) -> 2 | FB88: 2 | FC88: 1 | FD88: =IF(AND($E$152=FD$3,VLOOKUP($E$163,$GJ$101:$GK$123,2,)=$P88),1,IF(AND($E$171=FD$3,VLOOKUP($E$182,$GJ$101:$GK$123,2,)=$P88),1,IF(AND($E$190=FD$3,VLOOKUP($E$201,$GJ$101:$GK$123,2,)=$P88),1,IF(AND($E$209=FD$3,VLOOKUP($E$220,$GJ$101:$GK$123,2,)=$P88),1,2)))) -> 2 | FE88: 2 | FF88: 2 | FG88: 2 | FH88: =IF(AND($E$152=FH$3,VLOOKUP($E$163,$GJ$101:$GK$123,2,)=$P88),1,IF(AND($E$171=FH$3,VLOOKUP($E$182,$GJ$101:$GK$123,2,)=$P88),1,IF(AND($E$190=FH$3,VLOOKUP($E$201,$GJ$101:$GK$123,2,)=$P88),1,IF(AND($E$209=FH$3,VLOOKUP($E$220,$GJ$101:$GK$123,2,)=$P88),1,2)))) -> 2 | FI88: 2 | FJ88: 2 | FK88: 2 | FL88: 2 | FM88: 2 | FN88: 2 | FO88: 2 | FP88: 2 | FQ88: 2 | FR88: 2 | FS88: =IF(AND($E$152=FS$3,VLOOKUP($E$163,$GJ$101:$GK$123,2,)=$P88),1,IF(AND($E$171=FS$3,VLOOKUP($E$182,$GJ$101:$GK$123,2,)=$P88),1,IF(AND($E$190=FS$3,VLOOKUP($E$201,$GJ$101:$GK$123,2,)=$P88),1,IF(AND($E$209=FS$3,VLOOKUP($E$220,$GJ$101:$GK$123,2,)=$P88),1,2)))) -> 2 | FT88: 2 | FU88: 2 | FV88: 2 | FW88: 2 | FX88: 2 | FY88: 2 | FZ88: 2 | GA88: 2 | GB88: 2 | GC88: 1 | GH88: Commerce/Trafic (véhicules) + | GJ88: Véhicules de sol | GK88: Mécanique (Véhicules de sol) + | GP88: Histoire/Archéologie | GQ88: Sci./Con. Spéc. (Histoire/Archéologie) +
D89: Ecole militaire : Nation étrangère | J89: =IF(AND($E89<>" ",$E$76<>"Ecole militaire"),"ERREUR"," ") ->  | P89: Con. d'une organisation (Crime organisé) * PN | R89: INT | S89: INT | U89: -2 | V89: 0 | W89: -2 | Y89: 0 | AE89: 0 | AJ89: 0 | AK89: =IF($E$41="Crime organisé",2,) -> 0 | AP89: 0 | AQ89: 0 | AZ89: 0 | BI89: 0 | BR89: 0 | CA89: 0 | CB89: 0 | CC89: 0 | CE89: 0 | CF89: 0 | CG89: 0 | CH89: 0 | CI89: 0 | CJ89: 2 | CK89: 0 | CL89: 87 | CM89: 0 | CN89: 0 | CO89: 0 | CP89: 0 | CQ89: 0 | CR89: 0 | CS89: 0 | CT89: 0 | CU89: 0 | CV89: 2 | CW89: 0 | CX89: 87 | CY89: 0 | CZ89: 0 | DA89: 0 | DB89: 0 | DC89: 0 | DD89: 0 | DE89: 0 | DF89: 0 | DG89: 0 | DH89: 2 | DI89: 0 | DJ89: 87 | DK89: 0 | DL89: 0 | DM89: 0 | DN89: 0 | DO89: 0 | DP89: 0 | DQ89: 0 | DR89: 0 | DS89: 0 | DT89: 2 | DU89: 0 | DV89: 87 | DW89: 0 | DX89: 0 | DY89: 0 | DZ89: 0 | EB89: 0 | EC89: 0 | ED89: 0 | EE89: 1 | EF89: 0 | EG89: 87 | EH89: 0 | EI89: 0 | EJ89: 0 | ER89: 2 | ES89: 2 | ET89: 1 | EU89: 1 | EV89: 1 | EW89: 1 | EX89: 2 | EY89: 2 | EZ89: 2 | FA89: 2 | FB89: 2 | FC89: 2 | FD89: 2 | FE89: 2 | FF89: 2 | FG89: 2 | FH89: 2 | FI89: 2 | FJ89: 2 | FK89: 2 | FL89: 2 | FM89: 2 | FN89: 2 | FO89: 2 | FP89: 1 | FQ89: 2 | FR89: 2 | FS89: 2 | FT89: 2 | FU89: 2 | FV89: 2 | FW89: 2 | FX89: 2 | FY89: 2 | FZ89: 2 | GA89: 2 | GB89: 2 | GC89: 1 | GH89: Commerce/Trafic I (……….) + | GJ89: Autre | GK89: =GH242 -> Mécanique (……….) + | GP89: Médecine | GQ89: Sci./Con. Spéc. (Médecine) +
D90: Ecole militaire : Tactique | J90: =IF(AND($E90<>" ",$E$76<>"Ecole militaire"),"ERREUR"," ") ->  | P90: Con. d'une organisation (Culte du Trident) * PN | R90: INT | S90: INT | U90: -2 | V90: 0 | W90: -2 | Y90: 0 | AE90: 0 | AJ90: 0 | AP90: 0 | AQ90: 0 | AZ90: 0 | BI90: 0 | BR90: 0 | CA90: 0 | CB90: 0 | CC90: 0 | CE90: 0 | CF90: 0 | CG90: 0 | CH90: 0 | CI90: 0 | CJ90: 2 | CK90: 0 | CL90: 88 | CM90: 0 | CN90: 0 | CO90: 0 | CP90: 0 | CQ90: 0 | CR90: 0 | CS90: 0 | CT90: 0 | CU90: 0 | CV90: 2 | CW90: 0 | CX90: 88 | CY90: 0 | CZ90: 0 | DA90: 0 | DB90: 0 | DC90: 0 | DD90: 0 | DE90: 0 | DF90: 0 | DG90: 0 | DH90: 2 | DI90: 0 | DJ90: 88 | DK90: 0 | DL90: 0 | DM90: 0 | DN90: 0 | DO90: 0 | DP90: 0 | DQ90: 0 | DR90: 0 | DS90: 0 | DT90: 2 | DU90: 0 | DV90: 88 | DW90: 0 | DX90: 0 | DY90: 0 | DZ90: 0 | EB90: 0 | EC90: 0 | ED90: 0 | EE90: 1 | EF90: 0 | EG90: 88 | EH90: 0 | EI90: 0 | EJ90: 0 | ER90: 2 | ES90: 2 | ET90: 2 | EU90: 2 | EV90: 2 | EW90: 2 | EX90: 2 | EY90: 2 | EZ90: 2 | FA90: 2 | FB90: 1 | FC90: 2 | FD90: 2 | FE90: 2 | FF90: 2 | FG90: 2 | FH90: 2 | FI90: 2 | FJ90: 2 | FK90: 2 | FL90: 2 | FM90: 2 | FN90: 2 | FO90: 2 | FP90: 2 | FQ90: 1 | FR90: 2 | FS90: 2 | FT90: 2 | FU90: 2 | FV90: 2 | FW90: 2 | FX90: 2 | FY90: 2 | FZ90: 2 | GA90: 2 | GB90: 1 | GC90: 2 | GH90: Commerce/Trafic II (……….) + | GP90: Pharmacologie | GQ90: Sci./Con. Spéc. (Pharmacologie) +
D91: Ecole navale : Nation étrangère | J91: =IF(AND($E91<>" ",$E$76<>"Ecole navale"),"ERREUR"," ") ->  | P91: Con. d'une organisation (Mercenaires) * PN | R91: INT | S91: INT | U91: -2 | V91: 0 | W91: -2 | Y91: 0 | AE91: 0 | AJ91: 0 | AP91: 0 | AQ91: 0 | AZ91: 0 | BI91: 0 | BR91: 0 | CA91: 0 | CB91: 0 | CC91: 0 | CE91: 0 | CF91: 0 | CG91: 0 | CH91: 0 | CI91: 0 | CJ91: 2 | CK91: 0 | CL91: 89 | CM91: 0 | CN91: 0 | CO91: 0 | CP91: 0 | CQ91: 0 | CR91: 0 | CS91: 0 | CT91: 0 | CU91: 0 | CV91: 2 | CW91: 0 | CX91: 89 | CY91: 0 | CZ91: 0 | DA91: 0 | DB91: 0 | DC91: 0 | DD91: 0 | DE91: 0 | DF91: 0 | DG91: 0 | DH91: 2 | DI91: 0 | DJ91: 89 | DK91: 0 | DL91: 0 | DM91: 0 | DN91: 0 | DO91: 0 | DP91: 0 | DQ91: 0 | DR91: 0 | DS91: 0 | DT91: 2 | DU91: 0 | DV91: 89 | DW91: 0 | DX91: 0 | DY91: 0 | DZ91: 0 | EB91: 0 | EC91: 0 | ED91: 0 | EE91: 1 | EF91: 0 | EG91: 89 | EH91: 0 | EI91: 0 | EJ91: 0 | ER91: 2 | ES91: 2 | ET91: 1 | EU91: 1 | EV91: 2 | EW91: 2 | EX91: 2 | EY91: 2 | EZ91: 2 | FA91: 2 | FB91: 2 | FC91: 2 | FD91: 2 | FE91: 2 | FF91: 1 | FG91: 2 | FH91: 2 | FI91: 2 | FJ91: 2 | FK91: 2 | FL91: 2 | FM91: 2 | FN91: 2 | FO91: 2 | FP91: 2 | FQ91: 2 | FR91: 2 | FS91: 2 | FT91: 2 | FU91: 2 | FV91: 2 | FW91: 2 | FX91: 2 | FY91: 2 | FZ91: 2 | GA91: 2 | GB91: 2 | GC91: 2 | GH91: Connaissance d'une nation (Amazonia) * PN | GJ91: Architecture/Génie civil | GK91: Génie technique (Architecture/Génie civil) + | GP91: Physique/Chimie | GQ91: Sci./Con. Spéc. (Physique/Chimie) +
D92: Sciences/Sciences humaines : Langue au choix | J92: =IF(AND($E92<>" ",$E$76<>"Sciences/Sciences humaines"),"ERREUR"," ") ->  | P92: Con. Orga. (Milieu politique nation origine) * PN | R92: INT | S92: INT | U92: -2 | V92: 0 | W92: -2 | Y92: 0 | AE92: 0 | AJ92: 0 | AP92: 0 | AQ92: 0 | AZ92: 0 | BI92: 0 | BR92: 0 | CA92: 0 | CB92: 0 | CC92: 0 | CE92: 0 | CF92: 0 | CG92: 0 | CH92: 0 | CI92: 0 | CJ92: 2 | CK92: 0 | CL92: 90 | CM92: 0 | CN92: 0 | CO92: 0 | CP92: 0 | CQ92: 0 | CR92: 0 | CS92: 0 | CT92: 0 | CU92: 0 | CV92: 2 | CW92: 0 | CX92: 90 | CY92: 0 | CZ92: 0 | DA92: 0 | DB92: 0 | DC92: 0 | DD92: 0 | DE92: 0 | DF92: 0 | DG92: 0 | DH92: 2 | DI92: 0 | DJ92: 90 | DK92: 0 | DL92: 0 | DM92: 0 | DN92: 0 | DO92: 0 | DP92: 0 | DQ92: 0 | DR92: 0 | DS92: 0 | DT92: 2 | DU92: 0 | DV92: 90 | DW92: 0 | DX92: 0 | DY92: 0 | DZ92: 0 | EB92: 0 | EC92: 0 | ED92: 0 | EE92: 1 | EF92: 0 | EG92: 90 | EH92: 0 | EI92: 0 | EJ92: 0 | ER92: 2 | ES92: 2 | ET92: 2 | EU92: 2 | EV92: 2 | EW92: 2 | EX92: 2 | EY92: 1 | EZ92: 2 | FA92: 2 | FB92: 2 | FC92: 2 | FD92: 2 | FE92: 2 | FF92: 2 | FG92: 2 | FH92: 2 | FI92: 2 | FJ92: 2 | FK92: 2 | FL92: 2 | FM92: 2 | FN92: 2 | FO92: 2 | FP92: 2 | FQ92: 2 | FR92: 2 | FS92: 2 | FT92: 2 | FU92: 2 | FV92: 2 | FW92: 2 | FX92: 2 | FY92: 2 | FZ92: 2 | GA92: 2 | GB92: 2 | GC92: 2 | GH92: Connaissance d'une nation (Alliance Polaire) * PN | GJ92: Architecture navale | GK92: Génie technique (Architecture navale) + | GP92: Psychologie | GQ92: Sci./Con. Spéc. (Psychologie) +
D93: Sciences/Sciences humaines : Nation étrangère | J93: =IF(AND($E93<>" ",$E$76<>"Sciences/Sciences humaines"),"ERREUR"," ") ->  | P93: Connaissance d'une organisation (Pirates) * PN | R93: INT | S93: INT | U93: -2 | V93: 0 | W93: -2 | Y93: 0 | AE93: 0 | AJ93: 0 | AK93: =IF($E$41="Pirates",2,) -> 0 | AP93: 0 | AQ93: 0 | AZ93: 0 | BI93: 0 | BR93: 0 | CA93: 0 | CB93: 0 | CC93: 0 | CE93: 0 | CF93: 0 | CG93: 0 | CH93: 0 | CI93: 0 | CJ93: 2 | CK93: 0 | CL93: 91 | CM93: 0 | CN93: 0 | CO93: 0 | CP93: 0 | CQ93: 0 | CR93: 0 | CS93: 0 | CT93: 0 | CU93: 0 | CV93: 2 | CW93: 0 | CX93: 91 | CY93: 0 | CZ93: 0 | DA93: 0 | DB93: 0 | DC93: 0 | DD93: 0 | DE93: 0 | DF93: 0 | DG93: 0 | DH93: 2 | DI93: 0 | DJ93: 91 | DK93: 0 | DL93: 0 | DM93: 0 | DN93: 0 | DO93: 0 | DP93: 0 | DQ93: 0 | DR93: 0 | DS93: 0 | DT93: 2 | DU93: 0 | DV93: 91 | DW93: 0 | DX93: 0 | DY93: 0 | DZ93: 0 | EB93: 0 | EC93: 0 | ED93: 0 | EE93: 1 | EF93: 0 | EG93: 91 | EH93: 0 | EI93: 0 | EJ93: 0 | ER93: 2 | ES93: 2 | ET93: 1 | EU93: 1 | EV93: 1 | EW93: 1 | EX93: 2 | EY93: 2 | EZ93: 2 | FA93: 2 | FB93: 2 | FC93: 2 | FD93: 2 | FE93: 2 | FF93: 2 | FG93: 2 | FH93: 2 | FI93: 2 | FJ93: 2 | FK93: 2 | FL93: 2 | FM93: 2 | FN93: 2 | FO93: 2 | FP93: 2 | FQ93: 2 | FR93: 2 | FS93: 2 | FT93: 2 | FU93: 2 | FV93: 2 | FW93: 2 | FX93: 2 | FY93: 2 | FZ93: 2 | GA93: 2 | GB93: 2 | GC93: 2 | GH93: Connaissance d'une nation (Equinoxe) * PN | GJ93: Bionique/Cybertechnologie | GK93: Génie tech. (Bionique/Cybertechnologie) + | GP93: Sociologie | GQ93: Sci./Con. Spéc. (Sociologie) +
D94: Sciences/Sciences humaines : Sciences | J94: =IF(AND($E94<>" ",$E$76<>"Sciences/Sciences humaines"),"ERREUR"," ") ->  | P94: Connaissance d'une organisation (Police) * PN | R94: INT | S94: INT | U94: -2 | V94: 0 | W94: -2 | Y94: 0 | AE94: 0 | AJ94: 0 | AP94: 0 | AQ94: 0 | AZ94: 0 | BI94: 0 | BR94: 0 | CA94: 0 | CB94: 0 | CC94: 0 | CE94: 0 | CF94: 0 | CG94: 0 | CH94: 0 | CI94: 0 | CJ94: 2 | CK94: 0 | CL94: 92 | CM94: 0 | CN94: 0 | CO94: 0 | CP94: 0 | CQ94: 0 | CR94: 0 | CS94: 0 | CT94: 0 | CU94: 0 | CV94: 2 | CW94: 0 | CX94: 92 | CY94: 0 | CZ94: 0 | DA94: 0 | DB94: 0 | DC94: 0 | DD94: 0 | DE94: 0 | DF94: 0 | DG94: 0 | DH94: 2 | DI94: 0 | DJ94: 92 | DK94: 0 | DL94: 0 | DM94: 0 | DN94: 0 | DO94: 0 | DP94: 0 | DQ94: 0 | DR94: 0 | DS94: 0 | DT94: 2 | DU94: 0 | DV94: 92 | DW94: 0 | DX94: 0 | DY94: 0 | DZ94: 0 | EB94: 0 | EC94: 0 | ED94: 0 | EE94: 1 | EF94: 0 | EG94: 92 | EH94: 0 | EI94: 0 | EJ94: 0 | ER94: 2 | ES94: 2 | ET94: 2 | EU94: 2 | EV94: 1 | EW94: 2 | EX94: 2 | EY94: 2 | EZ94: 2 | FA94: 2 | FB94: 2 | FC94: 2 | FD94: 2 | FE94: 2 | FF94: 2 | FG94: 2 | FH94: 2 | FI94: 2 | FJ94: 2 | FK94: 2 | FL94: 2 | FM94: 2 | FN94: 2 | FO94: 2 | FP94: 1 | FQ94: 2 | FR94: 2 | FS94: 2 | FT94: 2 | FU94: 2 | FV94: 2 | FW94: 2 | FX94: 2 | FY94: 2 | FZ94: 2 | GA94: 2 | GB94: 2 | GC94: 2 | GH94: Connaissance d'une nation (Hégémonie) * PN | GJ94: Biotechnologie/Génétique | GK94: Génie technique (Biotechnologie/Génétique) + | GP94: Zoologie | GQ94: Sci./Con. Spéc. (Zoologie) +
D95: Sciences/Sciences humaines : Sciences 2 | J95: =IF(AND($E95<>" ",$E$76<>"Sciences/Sciences humaines"),"ERREUR"," ") ->  | P95: Con. organisation (Ports commerciaux) * PN | R95: INT | S95: INT | U95: -2 | V95: 0 | W95: -2 | Y95: 0 | AE95: 0 | AJ95: 0 | AP95: 0 | AQ95: 0 | AZ95: 0 | BI95: 0 | BR95: 0 | CA95: 0 | CB95: 0 | CC95: 0 | CE95: 0 | CF95: 0 | CG95: 0 | CH95: 0 | CI95: 0 | CJ95: 2 | CK95: 0 | CL95: 93 | CM95: 0 | CN95: 0 | CO95: 0 | CP95: 0 | CQ95: 0 | CR95: 0 | CS95: 0 | CT95: 0 | CU95: 0 | CV95: 2 | CW95: 0 | CX95: 93 | CY95: 0 | CZ95: 0 | DA95: 0 | DB95: 0 | DC95: 0 | DD95: 0 | DE95: 0 | DF95: 0 | DG95: 0 | DH95: 2 | DI95: 0 | DJ95: 93 | DK95: 0 | DL95: 0 | DM95: 0 | DN95: 0 | DO95: 0 | DP95: 0 | DQ95: 0 | DR95: 0 | DS95: 0 | DT95: 2 | DU95: 0 | DV95: 93 | DW95: 0 | DX95: 0 | DY95: 0 | DZ95: 0 | EB95: 0 | EC95: 0 | ED95: 0 | EE95: 1 | EF95: 0 | EG95: 93 | EH95: 0 | EI95: 0 | EJ95: 0 | ER95: 2 | ES95: 2 | ET95: 2 | EU95: 2 | EV95: 2 | EW95: 2 | EX95: 2 | EY95: 2 | EZ95: 2 | FA95: 2 | FB95: 2 | FC95: 2 | FD95: 2 | FE95: 2 | FF95: 2 | FG95: 2 | FH95: 2 | FI95: 2 | FJ95: 2 | FK95: 2 | FL95: 1 | FM95: 2 | FN95: 2 | FO95: 2 | FP95: 2 | FQ95: 2 | FR95: 2 | FS95: 2 | FT95: 2 | FU95: 2 | FV95: 2 | FW95: 2 | FX95: 2 | FY95: 1 | FZ95: 2 | GA95: 2 | GB95: 2 | GC95: 2 | GH95: Connaissance d'une nation (Ligue Rouge) * PN | GJ95: Electronique/Informatique | GK95: Génie technique (Electronique/Informatique) + | GP95: Autre | GQ95: =GH139 -> Sci./Con. Spéc. (……….) +
D96: Sciences politiques : Langue au choix | J96: =IF(AND($E96<>" ",$E$76<>"Sciences politiques"),"ERREUR"," ") ->  | P96: Connaissance d'une organisation (Veilleurs) * PN | R96: INT | S96: INT | U96: -2 | V96: 0 | W96: =IF(V96="X","X",U96+V96) -> -2 | Y96: =IF(Q96="X",-4,Q96) -> 0 | AE96: =IF($AE$3=$AA$3,AA96,IF($AE$3=$AB$3,AB96,IF($AE$3=$AC$3,AC96,IF($AE$3=$AD$3,AD96,0)))) -> 0 | AJ96: =IF($AJ$3=$AF$3,AF96,IF($AJ$3=$AG$3,AG96,IF($AJ$3=$AH$3,AH96,IF($AJ$3=$AI$3,AI96,0)))) -> 0 | AP96: 0 | AQ96: =IF($AQ$3=$AK$3,AK96,IF($AQ$3=$AL$3,AL96,IF($AQ$3=$AM$3,AM96,IF($AQ$3=$AN$3,AN96,IF($AQ$3=$AO$3,AO96,IF($AQ$3=$AP$3,AP96,0)))))) -> 0 | AZ96: =IF(AZ$3=AR$3,AR96,IF(AZ$3=AS$3,AS96,IF(AZ$3=AT$3,AT96,IF(AZ$3=AU$3,AU96,IF(AZ$3=AV$3,AV96,IF(AZ$3=AW$3,AW96,IF(AZ$3=AX$3,AX96,IF(AZ$3=AY$3,AY96,0)))))))) -> 0 | BI96: =IF(BI$3=BA$3,BA96,IF(BI$3=BB$3,BB96,IF(BI$3=BC$3,BC96,IF(BI$3=BD$3,BD96,IF(BI$3=BE$3,BE96,IF(BI$3=BF$3,BF96,IF(BI$3=BG$3,BG96,IF(BI$3=BH$3,BH96,0)))))))) -> 0 | BR96: =IF(BR$3=BJ$3,BJ96,IF(BR$3=BK$3,BK96,IF(BR$3=BL$3,BL96,IF(BR$3=BM$3,BM96,IF(BR$3=BN$3,BN96,IF(BR$3=BO$3,BO96,IF(BR$3=BP$3,BP96,IF(BR$3=BQ$3,BQ96,0)))))))) -> 0 | CA96: =IF(CA$3=BS$3,BS96,IF(CA$3=BT$3,BT96,IF(CA$3=BU$3,BU96,IF(CA$3=BV$3,BV96,IF(CA$3=BW$3,BW96,IF(CA$3=BX$3,BX96,IF(CA$3=BY$3,BY96,IF(CA$3=BZ$3,BZ96,0)))))))) -> 0 | CB96: 0 | CC96: =IF(CB96=-4,"X",CB96) -> 0 | CE96: =IF($E$233=P96,1,IF($E$234=P96,1,IF($E$235=P96,1,IF($E$236=P96,1,IF($E$237=P96,1,IF($E$238=P96,1,0)))))) -> 0 | CF96: 0 | CG96: =CB96+CF96 -> 0 | CH96: =IF(CG96=-4,"X",CG96) -> 0 | CI96: 0 | CJ96: =IF(CE96=1,1,(HLOOKUP($CK$3,$ER$3:$GC$262,CL96,))) -> 2 | CK96: 0 | CL96: 94 | CM96: =CG96+CK96 -> 0 | CN96: =IF(CM96=-4,"X",CM96) -> 0 | CO96: 0 | CP96: 0 | CQ96: =IF($E$241=P96,1,IF($E$242=P96,1,IF($E$243=P96,1,IF($E$244=P96,1,IF($E$245=P96,1,IF($E$246=P96,1,0)))))) -> 0 | CR96: 0 | CS96: 0 | CT96: =IF(CS96=-4,"X",CS96) -> 0 | CU96: 0 | CV96: =IF(CQ96=1,1,(HLOOKUP($CW$3,$ER$3:$GC$262,CX96,))) -> 2 | CW96: 0 | CX96: 94 | CY96: =CS96+CW96 -> 0 | CZ96: =IF(CY96=-4,"X",CY96) -> 0 | DA96: 0 | DB96: 0 | DC96: =IF($E$249=P96,1,IF($E$250=P96,1,IF($E$251=P96,1,IF($E$252=P96,1,IF($E$253=P96,1,IF($E$254=P96,1,0)))))) -> 0 | DD96: 0 | DE96: =CY96+DD96 -> 0 | DF96: =IF(DE96=-4,"X",DE96) -> 0 | DG96: 0 | DH96: =IF(DC96=1,1,(HLOOKUP($DI$3,$ER$3:$GC$262,DJ96,))) -> 2 | DI96: 0 | DJ96: 94 | DK96: =DE96+DI96 -> 0 | DL96: =IF(DK96=-4,"X",DK96) -> 0 | DM96: 0 | DN96: 0 | DO96: =IF($E$257=P96,1,IF($E$258=P96,1,IF($E$259=P96,1,IF($E$260=P96,1,IF($E$261=P96,1,IF($E$262=P96,1,0)))))) -> 0 | DP96: 0 | DQ96: =DK96+DP96 -> 0 | DR96: =IF(DQ96=-4,"X",DQ96) -> 0 | DS96: 0 | DT96: =IF(DO96=1,1,(HLOOKUP($DU$3,$ER$3:$GC$262,DV96,))) -> 2 | DU96: 0 | DV96: 94 | DW96: =DQ96+DU96 -> 0 | DX96: =IF(DW96=-4,"X",DW96) -> 0 | DY96: 0 | DZ96: 0 | EB96: 0 | EC96: 0 | ED96: 0 | EE96: 1 | EF96: 0 | EG96: 94 | EH96: 0 | EI96: 0 | EJ96: 0 | ER96: 2 | ES96: 2 | ET96: 2 | EU96: 2 | EV96: 2 | EW96: 2 | EX96: 2 | EY96: 2 | EZ96: 2 | FA96: 2 | FB96: 1 | FC96: 2 | FD96: 2 | FE96: 2 | FF96: 2 | FG96: 2 | FH96: 2 | FI96: 2 | FJ96: 2 | FK96: 2 | FL96: 2 | FM96: 2 | FN96: 2 | FO96: 2 | FP96: 2 | FQ96: 2 | FR96: 2 | FS96: 2 | FT96: 2 | FU96: 2 | FV96: 2 | FW96: 2 | FX96: 2 | FY96: 2 | FZ96: 2 | GA96: 2 | GB96: 1 | GC96: 2 | GH96: Connaissance d'une nation (Nations Pirates) * PN | GJ96: Logiciels | GK96: Génie technique (Logiciels) +
D97: Sciences politiques : Nation étrangère | J97: =IF(AND($E97<>" ",$E$76<>"Sciences politiques"),"ERREUR"," ") ->  | P97: Connaissance d'une organisation I (……….) * PN | R97: INT | S97: INT | U97: -2 | V97: 0 | W97: -2 | Y97: 0 | AE97: 0 | AJ97: 0 | AP97: 0 | AQ97: 0 | AZ97: 0 | BI97: 0 | BR97: 0 | CA97: 0 | CB97: 0 | CC97: 0 | CE97: 0 | CF97: 0 | CG97: 0 | CH97: 0 | CI97: 0 | CJ97: 2 | CK97: 0 | CL97: 95 | CM97: 0 | CN97: 0 | CO97: 0 | CP97: 0 | CQ97: 0 | CR97: 0 | CS97: 0 | CT97: 0 | CU97: 0 | CV97: 2 | CW97: 0 | CX97: 95 | CY97: 0 | CZ97: 0 | DA97: 0 | DB97: 0 | DC97: 0 | DD97: 0 | DE97: 0 | DF97: 0 | DG97: 0 | DH97: 2 | DI97: 0 | DJ97: 95 | DK97: 0 | DL97: 0 | DM97: 0 | DN97: 0 | DO97: 0 | DP97: 0 | DQ97: 0 | DR97: 0 | DS97: 0 | DT97: 2 | DU97: 0 | DV97: 95 | DW97: 0 | DX97: 0 | DY97: 0 | DZ97: 0 | EB97: 0 | EC97: 0 | ED97: 0 | EE97: 1 | EF97: 0 | EG97: 95 | EH97: 0 | EI97: 0 | EJ97: 0 | ER97: 2 | ES97: 2 | ET97: 2 | EU97: 2 | EV97: 2 | EW97: 2 | EX97: 2 | EY97: 2 | EZ97: 2 | FA97: 2 | FB97: 2 | FC97: 2 | FD97: 2 | FE97: 2 | FF97: 2 | FG97: 2 | FH97: 2 | FI97: 2 | FJ97: 2 | FK97: 2 | FL97: 2 | FM97: 2 | FN97: 2 | FO97: 2 | FP97: 2 | FQ97: 2 | FR97: 2 | FS97: 2 | FT97: 2 | FU97: 2 | FV97: 2 | FW97: 2 | FX97: 2 | FY97: 2 | FZ97: 2 | GA97: 2 | GB97: 2 | GC97: 2 | GH97: Con. d'une nation (République du Corail) * PN | GJ97: Nanotechnologie | GK97: Génie technique (Nanotechnologie) + | GP97: Armes/Syst. d'armement | GQ97: Sci./Con. Spéc. (Armes/Syst. d'armement) +
D98: Sciences politiques : Nation étrangère 2 | J98: =IF(AND($E98<>" ",$E$76<>"Sciences politiques"),"ERREUR"," ") ->  | P98: Connaissance d'une organisation II (……….) * PN | R98: INT | S98: INT | U98: =HLOOKUP(R98,$HE$2:$HM$3,2,)+HLOOKUP(S98,$HE$2:$HM$3,2,) -> -2 | V98: =EI98 -> 0 | W98: -2 | Y98: 0 | AE98: 0 | AJ98: 0 | AP98: 0 | AQ98: 0 | AZ98: 0 | BI98: 0 | BR98: 0 | CA98: 0 | CB98: 0 | CC98: 0 | CE98: 0 | CF98: 0 | CG98: 0 | CH98: 0 | CI98: 0 | CJ98: 2 | CK98: 0 | CL98: 96 | CM98: 0 | CN98: 0 | CO98: 0 | CP98: 0 | CQ98: 0 | CR98: 0 | CS98: =CM98+CR98 -> 0 | CT98: 0 | CU98: 0 | CV98: 2 | CW98: 0 | CX98: 96 | CY98: 0 | CZ98: 0 | DA98: 0 | DB98: 0 | DC98: 0 | DD98: 0 | DE98: 0 | DF98: 0 | DG98: 0 | DH98: 2 | DI98: 0 | DJ98: 96 | DK98: 0 | DL98: 0 | DM98: 0 | DN98: 0 | DO98: 0 | DP98: 0 | DQ98: 0 | DR98: 0 | DS98: 0 | DT98: 2 | DU98: 0 | DV98: 96 | DW98: 0 | DX98: 0 | DY98: 0 | DZ98: 0 | EB98: =DW98+EA98 -> 0 | EC98: =IF(EB98=-4,"X",EB98) -> 0 | ED98: 0 | EE98: 1 | EF98: 0 | EG98: 96 | EH98: =EB98+EF98 -> 0 | EI98: =IF(EH98=-4,"X",EH98) -> 0 | EJ98: 0 | ER98: 2 | ES98: 2 | ET98: 2 | EU98: 2 | EV98: 2 | EW98: 2 | EX98: 2 | EY98: 2 | EZ98: 2 | FA98: 2 | FB98: 2 | FC98: 2 | FD98: 2 | FE98: 2 | FF98: 2 | FG98: 2 | FH98: 2 | FI98: 2 | FJ98: 2 | FK98: 2 | FL98: 2 | FM98: 2 | FN98: 2 | FO98: 2 | FP98: 2 | FQ98: 2 | FR98: 2 | FS98: 2 | FT98: 2 | FU98: 2 | FV98: 2 | FW98: 2 | FX98: 2 | FY98: 2 | FZ98: 2 | GA98: 2 | GB98: 2 | GC98: 2 | GH98: Con. d'une nation (Union Méditerranéenne) * PN | GJ98: Robotique | GK98: Génie technique (Robotique) + | GP98: Astrophysique/Astronomie | GQ98: Sci./Con. Spéc. (Astrophysique/Astronomie) +
D99: Sciences politiques : Sciences | J99: =IF(AND($E99<>" ",$E$76<>"Sciences politiques"),"ERREUR"," ") ->  | P99: Cryptographie + | Q99: X | R99: INT | S99: INT | U99: -2 | V99: X | W99: X | Y99: -4 | AE99: 0 | AJ99: 0 | AP99: 0 | AQ99: 0 | AZ99: 0 | BI99: 0 | BR99: 0 | CA99: 0 | CB99: -4 | CC99: X | CE99: 0 | CG99: -4 | CH99: X | CI99: 0 | CJ99: 2 | CK99: 0 | CL99: 97 | CM99: -4 | CN99: X | CO99: 0 | CP99: 0 | CQ99: 0 | CS99: -4 | CT99: X | CU99: 0 | CV99: 2 | CW99: 0 | CX99: 97 | CY99: -4 | CZ99: X | DA99: 0 | DB99: 0 | DC99: 0 | DE99: -4 | DF99: X | DG99: 0 | DH99: 2 | DI99: 0 | DJ99: 97 | DK99: -4 | DL99: X | DM99: 0 | DN99: 0 | DO99: 0 | DQ99: -4 | DR99: X | DS99: 0 | DT99: 2 | DU99: 0 | DV99: 97 | DW99: -4 | DX99: X | DY99: 0 | DZ99: 0 | EB99: -4 | EC99: X | ED99: 0 | EE99: 1 | EF99: 0 | EG99: 97 | EH99: -4 | EI99: X | EJ99: 0 | ER99: 2 | ES99: 2 | ET99: 2 | EU99: 2 | EV99: 2 | EW99: 2 | EX99: 2 | EY99: 2 | EZ99: 1 | FA99: 1 | FB99: 2 | FC99: 2 | FD99: 2 | FE99: 2 | FF99: 2 | FG99: 2 | FH99: 2 | FI99: 2 | FJ99: 2 | FK99: 2 | FL99: 2 | FM99: 2 | FN99: 2 | FO99: 2 | FP99: 2 | FQ99: 2 | FR99: 2 | FS99: 1 | FT99: 2 | FU99: 2 | FV99: 2 | FW99: 2 | FX99: 2 | FY99: 2 | FZ99: 1 | GA99: 2 | GB99: 2 | GC99: 2 | GH99: Connaissance d 'une nation I (……….) * PN | GJ99: Télécommunications | GK99: Génie technique (Télécommunications) + | GP99: Biologie/Physiologie | GQ99: Sci./Con. Spéc. (Biologie/Physiologie) +
P100: Education/Culture générale | Q100: -3 | R100: INT | S100: INT | U100: -2 | V100: -3 | W100: -5 | Y100: -3 | AD100: 2 | AE100: 0 | AG100: 1 | AH100: 2 | AI100: 3 | AJ100: 0 | AL100: 1 | AN100: 1 | AO100: 4 | AP100: 0 | AQ100: 0 | AR100: 3 | AS100: 3 | AT100: 3 | AU100: 3 | AV100: 3 | AW100: 3 | AX100: 3 | AY100: 3 | AZ100: 0 | BA100: 3 | BB100: 3 | BC100: 3 | BD100: 3 | BE100: 3 | BF100: 3 | BG100: 3 | BH100: 3 | BI100: 0 | BJ100: 3 | BK100: 3 | BL100: 3 | BM100: 3 | BN100: 3 | BO100: 3 | BP100: 3 | BQ100: 3 | BR100: 0 | BS100: 3 | BT100: 3 | BU100: 3 | BV100: 3 | BW100: 3 | BX100: 3 | BY100: 3 | BZ100: 3 | CA100: 0 | CB100: -3 | CC100: -3 | CE100: 0 | CG100: -3 | CH100: -3 | CI100: 0 | CJ100: 2 | CK100: 0 | CL100: 98 | CM100: -3 | CN100: -3 | CO100: 0 | CP100: 0 | CQ100: 0 | CS100: -3 | CT100: -3 | CU100: 0 | CV100: 2 | CW100: 0 | CX100: 98 | CY100: -3 | CZ100: -3 | DA100: 0 | DB100: 0 | DC100: 0 | DE100: -3 | DF100: -3 | DG100: 0 | DH100: 2 | DI100: 0 | DJ100: 98 | DK100: -3 | DL100: -3 | DM100: 0 | DN100: 0 | DO100: 0 | DQ100: -3 | DR100: -3 | DS100: 0 | DT100: 2 | DU100: 0 | DV100: 98 | DW100: -3 | DX100: -3 | DY100: 0 | DZ100: 0 | EB100: -3 | EC100: -3 | ED100: 0 | EE100: 1 | EF100: 0 | EG100: 98 | EH100: -3 | EI100: -3 | EJ100: 0 | ER100: 2 | ES100: 1 | ET100: 2 | EU100: 2 | EV100: 2 | EW100: 2 | EX100: 2 | EY100: 1 | EZ100: 1 | FA100: 1 | FB100: 2 | FC100: 1 | FD100: 1 | FE100: 1 | FF100: 2 | FG100: 2 | FH100: 1 | FI100: 1 | FJ100: 1 | FK100: 1 | FL100: 2 | FM100: 1 | FN100: 1 | FO100: 2 | FP100: 1 | FQ100: 1 | FR100: 1 | FS100: 1 | FT100: 2 | FU100: 2 | FV100: 2 | FW100: 2 | FX100: 2 | FY100: 2 | FZ100: 1 | GA100: 2 | GB100: 1 | GC100: 2 | GH100: Connaissance d 'une nation II (……….) * PN | GJ100: Autre | GK100: =GH233 -> Génie technique (……….) + | GP100: Botanique | GQ100: Sci./Con. Spéc. (Botanique) +
C101: Etudes supérieures 3 | E101: Pas d'étude sup. | J101: =IF(E101="Pas d'étude sup.",0,1) -> 0 | P101: Jeu | R101: INT | S101: VOL | U101: -2 | V101: 0 | W101: -2 | Y101: 0 | AE101: 0 | AJ101: 0 | AP101: 0 | AQ101: 0 | AZ101: 0 | BI101: 0 | BR101: 0 | CA101: 0 | CB101: 0 | CC101: 0 | CE101: 0 | CG101: 0 | CH101: 0 | CI101: 0 | CJ101: 2 | CK101: 0 | CL101: 99 | CM101: 0 | CN101: 0 | CO101: 0 | CP101: 0 | CQ101: 0 | CS101: 0 | CT101: 0 | CU101: 0 | CV101: 2 | CW101: 0 | CX101: 99 | CY101: 0 | CZ101: 0 | DA101: 0 | DB101: 0 | DC101: 0 | DE101: 0 | DF101: 0 | DG101: 0 | DH101: 2 | DI101: 0 | DJ101: 99 | DK101: 0 | DL101: 0 | DM101: 0 | DN101: 0 | DO101: 0 | DQ101: 0 | DR101: 0 | DS101: 0 | DT101: 2 | DU101: 0 | DV101: 99 | DW101: 0 | DX101: 0 | DY101: 0 | DZ101: 0 | EB101: 0 | EC101: 0 | ED101: 0 | EE101: 1 | EF101: 0 | EG101: 99 | EH101: 0 | EI101: 0 | EJ101: 0 | ER101: 2 | ES101: 2 | ET101: 2 | EU101: 1 | EV101: 2 | EW101: 2 | EX101: 2 | EY101: 2 | EZ101: 2 | FA101: 2 | FB101: 2 | FC101: 2 | FD101: 2 | FE101: 2 | FF101: 2 | FG101: 2 | FH101: 2 | FI101: 2 | FJ101: 2 | FK101: 2 | FL101: 2 | FM101: 2 | FN101: 2 | FO101: 1 | FP101: 2 | FQ101: 2 | FR101: 2 | FS101: 2 | FT101: 2 | FU101: 2 | FV101: 2 | FW101: 2 | FX101: 2 | FY101: 1 | FZ101: 2 | GA101: 2 | GB101: 2 | GC101: 1 | GH101: Connaissance d'une organisation (Armée) * PN | GP101: Connaissance des drogues | GQ101: Sci./Con. Spéc. (Connaissance des drogues) +
D102: Commerce/Gestion : Commerce légal | J102: =IF(AND($E102<>" ",$E$101<>"Commerce/gestion"),"ERREUR"," ") ->  | P102: Navigation + | Q102: X | R102: INT | S102: INT | U102: -2 | V102: X | W102: X | Y102: -4 | AE102: 0 | AJ102: 0 | AP102: 0 | AQ102: 0 | AV102: 2 | AZ102: 0 | BE102: 2 | BI102: 0 | BN102: 2 | BR102: 0 | BW102: 2 | CA102: 0 | CB102: -4 | CC102: X | CE102: 0 | CG102: -4 | CH102: X | CI102: 0 | CJ102: 2 | CK102: 0 | CL102: 100 | CM102: -4 | CN102: X | CO102: =IF(ROUND(CJ102,0)=1,(VLOOKUP(CM102,$GV$4:$GW$28,2,)-(4+$Y102))-(VLOOKUP(CG102,$GV$4:$GW$28,2,)-(4+$Y102)),IF(ROUND(CI102,0)=1,(VLOOKUP(CM102,$GV$4:$GW$28,2,)-(4+$Y102))-(VLOOKUP(CG102,$GV$4:$GW$28,2,)-(4+$Y102)),((VLOOKUP(CM102,$GV$4:$GW$28,2,)-(4+$Y102))-(VLOOKUP(CG102,$GV$4:$GW$28,2,)-(4+$Y102)))*2)) -> 0 | CP102: 0 | CQ102: 0 | CS102: -4 | CT102: X | CU102: 0 | CV102: 2 | CW102: 0 | CX102: 100 | CY102: -4 | CZ102: X | DA102: =IF(ROUND(CV102,0)=1,(VLOOKUP(CY102,$GV$4:$GW$28,2,)-(4+$Y102))-(VLOOKUP(CS102,$GV$4:$GW$28,2,)-(4+$Y102)),IF(ROUND(CU102,0)=1,(VLOOKUP(CY102,$GV$4:$GW$28,2,)-(4+$Y102))-(VLOOKUP(CS102,$GV$4:$GW$28,2,)-(4+$Y102)),((VLOOKUP(CY102,$GV$4:$GW$28,2,)-(4+$Y102))-(VLOOKUP(CS102,$GV$4:$GW$28,2,)-(4+$Y102)))*2)) -> 0 | DB102: 0 | DC102: 0 | DE102: -4 | DF102: X | DG102: 0 | DH102: 2 | DI102: 0 | DJ102: 100 | DK102: -4 | DL102: X | DM102: =IF(ROUND(DH102,0)=1,(VLOOKUP(DK102,$GV$4:$GW$28,2,)-(4+$Y102))-(VLOOKUP(DE102,$GV$4:$GW$28,2,)-(4+$Y102)),IF(ROUND(DG102,0)=1,(VLOOKUP(DK102,$GV$4:$GW$28,2,)-(4+$Y102))-(VLOOKUP(DE102,$GV$4:$GW$28,2,)-(4+$Y102)),((VLOOKUP(DK102,$GV$4:$GW$28,2,)-(4+$Y102))-(VLOOKUP(DE102,$GV$4:$GW$28,2,)-(4+$Y102)))*2)) -> 0 | DN102: 0 | DO102: 0 | DQ102: -4 | DR102: X | DS102: 0 | DT102: 2 | DU102: 0 | DV102: 100 | DW102: -4 | DX102: X | DY102: =IF(ROUND(DT102,0)=1,(VLOOKUP(DW102,$GV$4:$GW$28,2,)-(4+$Y102))-(VLOOKUP(DQ102,$GV$4:$GW$28,2,)-(4+$Y102)),IF(ROUND(DS102,0)=1,(VLOOKUP(DW102,$GV$4:$GW$28,2,)-(4+$Y102))-(VLOOKUP(DQ102,$GV$4:$GW$28,2,)-(4+$Y102)),((VLOOKUP(DW102,$GV$4:$GW$28,2,)-(4+$Y102))-(VLOOKUP(DQ102,$GV$4:$GW$28,2,)-(4+$Y102)))*2)) -> 0 | DZ102: 0 | EB102: -4 | EC102: X | ED102: 0 | EE102: 1 | EF102: 0 | EG102: 100 | EH102: -4 | EI102: X | EJ102: =IF(ROUND(EE102,0)=1,(VLOOKUP(EH102,$GV$4:$GW$28,2,)-(4+$Y102))-(VLOOKUP(EB102,$GV$4:$GW$28,2,)-(4+$Y102)),IF(ROUND(ED102,0)=1,(VLOOKUP(EH102,$GV$4:$GW$28,2,)-(4+$Y102))-(VLOOKUP(EB102,$GV$4:$GW$28,2,)-(4+$Y102)),((VLOOKUP(EH102,$GV$4:$GW$28,2,)-(4+$Y102))-(VLOOKUP(EB102,$GV$4:$GW$28,2,)-(4+$Y102)))*2)) -> 0 | ER102: 2 | ES102: 2 | ET102: 2 | EU102: 2 | EV102: 1 | EW102: 1 | EX102: 2 | EY102: 2 | EZ102: 1 | FA102: 2 | FB102: 2 | FC102: 2 | FD102: 1 | FE102: 2 | FF102: 1 | FG102: 2 | FH102: 1 | FI102: 2 | FJ102: 2 | FK102: 2 | FL102: 2 | FM102: 1 | FN102: 1 | FO102: 2 | FP102: 2 | FQ102: 2 | FR102: 2 | FS102: 2 | FT102: 2 | FU102: 2 | FV102: 2 | FW102: 2 | FX102: 2 | FY102: 1 | FZ102: 2 | GA102: 2 | GB102: 2 | GC102: 2 | GH102: Con. d'une organisation (Contrebandiers) * PN | GJ102: Amazonia | GK102: Connaissance d'une nation (Amazonia) * PN | GP102: Connaissance des poisons | GQ102: Sci./Con. Spéc. (Connaissance des poisons) +
D103: Commerce/Gestion : Langue au choix | J103: =IF(AND($E103<>" ",$E$101<>"Commerce/gestion"),"ERREUR"," ") ->  | P103: Recherches d'informations + | Q103: -3 | R103: INT | S103: INT | U103: -2 | V103: -3 | W103: -5 | Y103: -3 | AE103: 0 | AJ103: 0 | AP103: 0 | AQ103: 0 | AR103: 1 | AS103: 1 | AT103: 1 | AX103: 1 | AZ103: 0 | BA103: 1 | BB103: 1 | BC103: 1 | BG103: 1 | BI103: 0 | BJ103: 1 | BK103: 1 | BL103: 1 | BP103: 1 | BR103: 0 | BS103: 1 | BT103: 1 | BU103: 1 | BY103: 1 | CA103: 0 | CB103: -3 | CC103: -3 | CE103: 0 | CG103: -3 | CH103: -3 | CI103: 0 | CJ103: 2 | CK103: 0 | CL103: 101 | CM103: -3 | CN103: -3 | CO103: 0 | CP103: 0 | CQ103: 0 | CS103: -3 | CT103: -3 | CU103: 0 | CV103: 2 | CW103: 0 | CX103: 101 | CY103: -3 | CZ103: -3 | DA103: 0 | DB103: 0 | DC103: 0 | DE103: -3 | DF103: -3 | DG103: 0 | DH103: 2 | DI103: 0 | DJ103: 101 | DK103: -3 | DL103: -3 | DM103: 0 | DN103: 0 | DO103: 0 | DQ103: -3 | DR103: -3 | DS103: 0 | DT103: 2 | DU103: 0 | DV103: 101 | DW103: -3 | DX103: -3 | DY103: 0 | DZ103: 0 | EB103: -3 | EC103: -3 | ED103: 0 | EE103: 1 | EF103: 0 | EG103: 101 | EH103: -3 | EI103: -3 | EJ103: 0 | ER103: 2 | ES103: 2 | ET103: 1 | EU103: 2 | EV103: 1 | EW103: 2 | EX103: 2 | EY103: 1 | EZ103: 1 | FA103: 1 | FB103: 2 | FC103: 1 | FD103: 2 | FE103: 1 | FF103: 2 | FG103: 2 | FH103: 2 | FI103: 2 | FJ103: 2 | FK103: 2 | FL103: 2 | FM103: 2 | FN103: 2 | FO103: 2 | FP103: 1 | FQ103: 2 | FR103: 2 | FS103: 1 | FT103: 2 | FU103: 2 | FV103: 2 | FW103: 2 | FX103: 2 | FY103: 2 | FZ103: 2 | GA103: 2 | GB103: 2 | GC103: 2 | GH103: Con. d'une organisation (Crime organisé) * PN | GJ103: Alliance Polaire | GK103: Connaissance d'une nation (Alliance Polaire) * PN | GP103: Géologie | GQ103: Sci./Con. Spéc. (Géologie) +
D104: Commerce/Gestion : Nation étrangère | J104: =IF(AND($E104<>" ",$E$101<>"Commerce/gestion"),"ERREUR"," ") ->  | P104: Sci./Con. Spéc. (Administration/Gestion) + | Q104: X | R104: INT | S104: INT | U104: -2 | V104: X | W104: X | Y104: -4 | AE104: 0 | AJ104: 0 | AP104: 0 | AQ104: 0 | AR104: =IF($E$55="Administration/Gestion",2,) -> 0 | AX104: =IF($P104=VLOOKUP($E$69,$GP$74:$GQ$95,2,),3,IF($P104=VLOOKUP($E$70,$GP$74:$GQ$95,2,),3,0)) -> 0 | AZ104: 0 | BA104: =IF($E$80="Administration/Gestion",2,) -> 0 | BG104: =IF($P104=VLOOKUP($E$94,$GP$74:$GQ$95,2,),3,IF($P104=VLOOKUP($E$95,$GP$74:$GQ$95,2,),3,0)) -> 0 | BI104: 0 | BJ104: =IF($E$105="Administration/Gestion",2,) -> 0 | BP104: =IF($P104=VLOOKUP($E$119,$GP$74:$GQ$95,2,),3,IF($P104=VLOOKUP($E$120,$GP$74:$GQ$95,2,),3,0)) -> 0 | BR104: 0 | BS104: =IF($E$130="Administration/Gestion",2,) -> 0 | BY104: =IF($P104=VLOOKUP($E$144,$GP$74:$GQ$95,2,),3,IF($P104=VLOOKUP($E$145,$GP$74:$GQ$95,2,),3,0)) -> 0 | CA104: 0 | CB104: -4 | CC104: X | CE104: 0 | CG104: -4 | CH104: X | CI104: 0 | CJ104: 2 | CK104: 0 | CL104: 102 | CM104: -4 | CN104: X | CO104: 0 | CP104: 0 | CQ104: 0 | CS104: -4 | CT104: X | CU104: 0 | CV104: 2 | CW104: 0 | CX104: 102 | CY104: -4 | CZ104: X | DA104: 0 | DB104: 0 | DC104: 0 | DE104: -4 | DF104: X | DG104: 0 | DH104: 2 | DI104: 0 | DJ104: 102 | DK104: -4 | DL104: X | DM104: 0 | DN104: 0 | DO104: 0 | DQ104: -4 | DR104: X | DS104: 0 | DT104: 2 | DU104: 0 | DV104: 102 | DW104: -4 | DX104: X | DY104: 0 | DZ104: 0 | EB104: -4 | EC104: X | ED104: 0 | EE104: 1 | EF104: 0 | EG104: 102 | EH104: -4 | EI104: X | EJ104: 0 | ER104: 2 | ES104: 2 | ET104: 2 | EU104: 1 | EV104: 2 | EW104: 2 | EX104: 2 | EY104: 2 | EZ104: 2 | FA104: 2 | FB104: 2 | FC104: 1 | FD104: 2 | FE104: 2 | FF104: 2 | FG104: 2 | FH104: 2 | FI104: 2 | FJ104: 2 | FK104: 2 | FL104: 2 | FM104: 2 | FN104: 2 | FO104: 2 | FP104: 2 | FQ104: 1 | FR104: 2 | FS104: 2 | FT104: 2 | FU104: 2 | FV104: 2 | FW104: 2 | FX104: 2 | FY104: 2 | FZ104: 2 | GA104: 2 | GB104: 2 | GC104: 2 | GH104: Con. d'une organisation (Culte du Trident) * PN | GJ104: Equinoxe | GK104: Connaissance d'une nation (Equinoxe) * PN | GP104: Géographie | GQ104: Sci./Con. Spéc. (Géographie) +
D105: Commerce/Gestion : Sciences | J105: =IF(AND($E105<>" ",$E$101<>"Commerce/gestion"),"ERREUR"," ") ->  | P105: Sci./Con. Spéc. (Armes/Syst. d'armement) + | Q105: X | R105: INT | S105: INT | U105: -2 | V105: X | W105: X | Y105: -4 | AE105: 0 | AJ105: 0 | AP105: 0 | AQ105: 0 | AX105: =IF($P105=VLOOKUP($E$69,$GP$74:$GQ$95,2,),3,IF($P105=VLOOKUP($E$70,$GP$74:$GQ$95,2,),3,0)) -> 0 | AZ105: 0 | BG105: =IF($P105=VLOOKUP($E$94,$GP$74:$GQ$95,2,),3,IF($P105=VLOOKUP($E$95,$GP$74:$GQ$95,2,),3,0)) -> 0 | BI105: 0 | BP105: =IF($P105=VLOOKUP($E$119,$GP$74:$GQ$95,2,),3,IF($P105=VLOOKUP($E$120,$GP$74:$GQ$95,2,),3,0)) -> 0 | BR105: 0 | BY105: =IF($P105=VLOOKUP($E$144,$GP$74:$GQ$95,2,),3,IF($P105=VLOOKUP($E$145,$GP$74:$GQ$95,2,),3,0)) -> 0 | CA105: 0 | CB105: -4 | CC105: X | CE105: 0 | CG105: -4 | CH105: X | CI105: 0 | CJ105: 2 | CK105: 0 | CL105: 103 | CM105: -4 | CN105: X | CO105: 0 | CP105: 0 | CQ105: 0 | CS105: -4 | CT105: X | CU105: 0 | CV105: 2 | CW105: 0 | CX105: 103 | CY105: -4 | CZ105: X | DA105: 0 | DB105: 0 | DC105: 0 | DE105: -4 | DF105: X | DG105: 0 | DH105: 2 | DI105: 0 | DJ105: 103 | DK105: -4 | DL105: X | DM105: 0 | DN105: 0 | DO105: 0 | DQ105: -4 | DR105: X | DS105: 0 | DT105: 2 | DU105: 0 | DV105: 103 | DW105: -4 | DX105: X | DY105: 0 | DZ105: 0 | EB105: -4 | EC105: X | ED105: 0 | EE105: 1 | EF105: 0 | EG105: 103 | EH105: -4 | EI105: X | EJ105: 0 | ER105: 2 | ES105: 2 | ET105: 2 | EU105: 2 | EV105: 2 | EW105: 2 | EX105: 2 | EY105: 2 | EZ105: 2 | FA105: 2 | FB105: 2 | FC105: =FC424 -> 2 | FD105: 2 | FE105: 2 | FF105: 2 | FG105: 2 | FH105: 2 | FI105: 2 | FJ105: 2 | FK105: 2 | FL105: 2 | FM105: 2 | FN105: 2 | FO105: 2 | FP105: 2 | FQ105: 2 | FR105: 2 | FS105: 1 | FT105: 2 | FU105: 2 | FV105: 2 | FW105: 2 | FX105: 2 | FY105: 2 | FZ105: 1 | GA105: 2 | GB105: 2 | GC105: 2 | GH105: Con. d'une organisation (Mercenaires) * PN | GJ105: Hégémonie | GK105: Connaissance d'une nation (Hégémonie) * PN | GP105: Histoire/Archéologie | GQ105: Sci./Con. Spéc. (Histoire/Archéologie) +
D106: Droit : Langue au choix | J106: =IF(AND($E106<>" ",$E$101<>"Droit"),"ERREUR"," ") ->  | P106: Sci./Con. Spéc. (Astrophysique/Astronomie) + | Q106: X | R106: INT | S106: INT | U106: -2 | V106: X | W106: X | Y106: -4 | AE106: 0 | AJ106: 0 | AP106: 0 | AQ106: 0 | AX106: 0 | AZ106: 0 | BG106: 0 | BI106: 0 | BP106: 0 | BR106: 0 | BY106: 0 | CA106: 0 | CB106: -4 | CC106: X | CE106: 0 | CG106: -4 | CH106: X | CI106: 0 | CJ106: 2 | CK106: 0 | CL106: 104 | CM106: -4 | CN106: X | CO106: 0 | CP106: 0 | CQ106: 0 | CS106: -4 | CT106: X | CU106: 0 | CV106: 2 | CW106: 0 | CX106: 104 | CY106: -4 | CZ106: X | DA106: 0 | DB106: 0 | DC106: 0 | DE106: -4 | DF106: X | DG106: 0 | DH106: 2 | DI106: 0 | DJ106: 104 | DK106: -4 | DL106: X | DM106: 0 | DN106: 0 | DO106: 0 | DQ106: -4 | DR106: X | DS106: 0 | DT106: 2 | DU106: 0 | DV106: 104 | DW106: -4 | DX106: X | DY106: 0 | DZ106: 0 | EB106: -4 | EC106: X | ED106: 0 | EE106: 1 | EF106: 0 | EG106: 104 | EH106: -4 | EI106: X | EJ106: 0 | ER106: 2 | ES106: 2 | ET106: 2 | EU106: 2 | EV106: 2 | EW106: 2 | EX106: 2 | EY106: 2 | EZ106: 2 | FA106: 2 | FB106: 2 | FC106: =FC425 -> 2 | FD106: 2 | FE106: 2 | FF106: 2 | FG106: 2 | FH106: 2 | FI106: 2 | FJ106: 2 | FK106: 2 | FL106: 2 | FM106: 2 | FN106: 2 | FO106: 2 | FP106: 2 | FQ106: 2 | FR106: 2 | FS106: 1 | FT106: 2 | FU106: 2 | FV106: 2 | FW106: 2 | FX106: 2 | FY106: 2 | FZ106: 1 | GA106: 2 | GB106: 2 | GC106: 2 | GH106: Con. Orga. (Milieu politique nation origine) * PN | GJ106: Ligue Rouge | GK106: Connaissance d'une nation (Ligue Rouge) * PN | GP106: Médecine | GQ106: Sci./Con. Spéc. (Médecine) +
D107: Droit : Nation étrangère | J107: =IF(AND($E107<>" ",$E$101<>"Droit"),"ERREUR"," ") ->  | P107: Sci./Con. Spéc. (Biologie/Physiologie) + | Q107: X | R107: INT | S107: INT | U107: -2 | V107: X | W107: X | Y107: -4 | AE107: 0 | AJ107: 0 | AP107: 0 | AQ107: 0 | AW107: 3 | AX107: 0 | AZ107: 0 | BF107: 3 | BG107: 0 | BI107: 0 | BO107: 3 | BP107: 0 | BR107: 0 | BX107: 3 | BY107: 0 | CA107: 0 | CB107: -4 | CC107: X | CE107: 0 | CG107: -4 | CH107: X | CI107: 0 | CJ107: 2 | CK107: 0 | CL107: 105 | CM107: -4 | CN107: X | CO107: 0 | CP107: 0 | CQ107: 0 | CS107: -4 | CT107: X | CU107: 0 | CV107: 2 | CW107: 0 | CX107: 105 | CY107: -4 | CZ107: X | DA107: 0 | DB107: 0 | DC107: 0 | DE107: -4 | DF107: X | DG107: 0 | DH107: 2 | DI107: 0 | DJ107: 105 | DK107: -4 | DL107: X | DM107: 0 | DN107: 0 | DO107: 0 | DQ107: -4 | DR107: X | DS107: 0 | DT107: 2 | DU107: 0 | DV107: 105 | DW107: -4 | DX107: X | DY107: 0 | DZ107: 0 | EB107: -4 | EC107: X | ED107: 0 | EE107: 1 | EF107: 0 | EG107: 105 | EH107: -4 | EI107: X | EJ107: 0 | ER107: 2 | ES107: 2 | ET107: 2 | EU107: 2 | EV107: 2 | EW107: 2 | EX107: 1 | EY107: 2 | EZ107: 2 | FA107: 2 | FB107: 2 | FC107: 2 | FD107: 2 | FE107: 1 | FF107: 2 | FG107: 2 | FH107: 2 | FI107: 2 | FJ107: 2 | FK107: 2 | FL107: 2 | FM107: 2 | FN107: 2 | FO107: 2 | FP107: 2 | FQ107: 2 | FR107: 2 | FS107: 1 | FT107: 2 | FU107: 2 | FV107: 2 | FW107: 2 | FX107: 2 | FY107: 2 | FZ107: 2 | GA107: 2 | GB107: 2 | GC107: 2 | GH107: Connaissance d'une organisation (Pirates) * PN | GJ107: Nations pirates | GK107: Connaissance d'une nation (Nations Pirates) * PN | GP107: Pharmacologie | GQ107: Sci./Con. Spéc. (Pharmacologie) +
D108: Ecole d'ingénieurs : Génie technique | J108: =IF(AND($E108<>" ",$E$101<>"Ecole d'ingénieurs"),"ERREUR"," ") ->  | P108: Sci./Con. Spéc. (Botanique) + | Q108: X | R108: INT | S108: INT | U108: -2 | V108: X | W108: X | Y108: -4 | AE108: 0 | AJ108: 0 | AP108: 0 | AQ108: 0 | AX108: 0 | AZ108: 0 | BG108: 0 | BI108: 0 | BP108: 0 | BR108: 0 | BY108: 0 | CA108: 0 | CB108: -4 | CC108: X | CE108: 0 | CG108: -4 | CH108: X | CI108: 0 | CJ108: 2 | CK108: 0 | CL108: 106 | CM108: -4 | CN108: X | CO108: 0 | CP108: 0 | CQ108: 0 | CS108: -4 | CT108: X | CU108: 0 | CV108: 2 | CW108: 0 | CX108: 106 | CY108: -4 | CZ108: X | DA108: 0 | DB108: 0 | DC108: 0 | DE108: -4 | DF108: X | DG108: 0 | DH108: 2 | DI108: 0 | DJ108: 106 | DK108: -4 | DL108: X | DM108: 0 | DN108: 0 | DO108: 0 | DQ108: -4 | DR108: X | DS108: 0 | DT108: 2 | DU108: 0 | DV108: 106 | DW108: -4 | DX108: X | DY108: 0 | DZ108: 0 | EB108: -4 | EC108: X | ED108: 0 | EE108: 1 | EF108: 0 | EG108: 106 | EH108: -4 | EI108: X | EJ108: 0 | ER108: 2 | ES108: 1 | ET108: 2 | EU108: 2 | EV108: 2 | EW108: 2 | EX108: 1 | EY108: 2 | EZ108: 2 | FA108: 2 | FB108: 2 | FC108: 2 | FD108: 2 | FE108: 1 | FF108: 2 | FG108: 2 | FH108: 2 | FI108: 2 | FJ108: 2 | FK108: 2 | FL108: 2 | FM108: 2 | FN108: 2 | FO108: 2 | FP108: 2 | FQ108: 2 | FR108: 2 | FS108: 1 | FT108: 2 | FU108: 2 | FV108: 2 | FW108: 2 | FX108: 2 | FY108: 2 | FZ108: 2 | GA108: 2 | GB108: 2 | GC108: 2 | GH108: Connaissance d'une organisation (Police) * PN | GJ108: République du Corail | GK108: Con. d'une nation (République du Corail) * PN | GP108: Physique/Chimie | GQ108: Sci./Con. Spéc. (Physique/Chimie) +
D109: Ecole d'ingénieurs : Langue au choix | J109: =IF(AND($E109<>" ",$E$101<>"Ecole d'ingénieurs"),"ERREUR"," ") ->  | P109: Sci./Con. Spéc. (Connaissance des drogues) + | Q109: X | R109: INT | S109: INT | U109: -2 | V109: X | W109: X | Y109: -4 | AE109: 0 | AJ109: 0 | AP109: 0 | AQ109: 0 | AX109: 0 | AZ109: 0 | BG109: 0 | BI109: 0 | BP109: 0 | BR109: 0 | BY109: 0 | CA109: 0 | CB109: -4 | CC109: X | CE109: 0 | CG109: -4 | CH109: X | CI109: 0 | CJ109: 2 | CK109: 0 | CL109: 107 | CM109: -4 | CN109: X | CO109: 0 | CP109: 0 | CQ109: 0 | CS109: -4 | CT109: X | CU109: 0 | CV109: 2 | CW109: 0 | CX109: 107 | CY109: -4 | CZ109: X | DA109: 0 | DB109: 0 | DC109: 0 | DE109: -4 | DF109: X | DG109: 0 | DH109: 2 | DI109: 0 | DJ109: 107 | DK109: -4 | DL109: X | DM109: 0 | DN109: 0 | DO109: 0 | DQ109: -4 | DR109: X | DS109: 0 | DT109: 2 | DU109: 0 | DV109: 107 | DW109: -4 | DX109: X | DY109: 0 | DZ109: 0 | EB109: -4 | EC109: X | ED109: 0 | EE109: 1 | EF109: 0 | EG109: 107 | EH109: -4 | EI109: X | EJ109: 0 | ER109: 2 | ES109: 2 | ET109: 2 | EU109: 2 | EV109: 2 | EW109: 2 | EX109: 2 | EY109: 2 | EZ109: 2 | FA109: 2 | FB109: 2 | FC109: 2 | FD109: 2 | FE109: 2 | FF109: 2 | FG109: 2 | FH109: 2 | FI109: 2 | FJ109: 2 | FK109: 2 | FL109: 2 | FM109: 2 | FN109: 2 | FO109: 2 | FP109: 1 | FQ109: 2 | FR109: 1 | FS109: 2 | FT109: 2 | FU109: 2 | FV109: 2 | FW109: 2 | FX109: 2 | FY109: 2 | FZ109: 2 | GA109: 2 | GB109: 2 | GC109: 2 | GH109: Con. organisation (Ports commerciaux) * PN | GJ109: Union Méditerranéenne | GK109: Con. d'une nation (Union Méditerranéenne) * PN | GP109: Zoologie | GQ109: Sci./Con. Spéc. (Zoologie) +
D110: Ecole d'ingénieurs : Mécanique | J110: =IF(AND($E110<>" ",$E$101<>"Ecole d'ingénieurs"),"ERREUR"," ") ->  | P110: Sci./Con. Spéc. (Connaissance des poisons) + | Q110: X | R110: INT | S110: INT | U110: -2 | V110: X | W110: X | Y110: -4 | AE110: 0 | AJ110: 0 | AP110: 0 | AQ110: 0 | AX110: 0 | AZ110: 0 | BG110: 0 | BI110: 0 | BP110: 0 | BR110: 0 | BY110: 0 | CA110: 0 | CB110: -4 | CC110: X | CE110: 0 | CG110: -4 | CH110: X | CI110: 0 | CJ110: 2 | CK110: 0 | CL110: 108 | CM110: -4 | CN110: X | CO110: 0 | CP110: 0 | CQ110: 0 | CS110: -4 | CT110: X | CU110: 0 | CV110: 2 | CW110: 0 | CX110: 108 | CY110: -4 | CZ110: X | DA110: 0 | DB110: 0 | DC110: 0 | DE110: -4 | DF110: X | DG110: 0 | DH110: 2 | DI110: 0 | DJ110: 108 | DK110: -4 | DL110: X | DM110: 0 | DN110: 0 | DO110: 0 | DQ110: -4 | DR110: X | DS110: 0 | DT110: 2 | DU110: 0 | DV110: 108 | DW110: -4 | DX110: X | DY110: 0 | DZ110: 0 | EB110: -4 | EC110: X | ED110: 0 | EE110: 1 | EF110: 0 | EG110: 108 | EH110: -4 | EI110: X | EJ110: 0 | ER110: 2 | ES110: 2 | ET110: 1 | EU110: 2 | EV110: 2 | EW110: 2 | EX110: 2 | EY110: 2 | EZ110: 2 | FA110: 2 | FB110: 2 | FC110: 2 | FD110: 2 | FE110: 1 | FF110: 2 | FG110: 2 | FH110: 2 | FI110: 2 | FJ110: 2 | FK110: 2 | FL110: 2 | FM110: 2 | FN110: 2 | FO110: 2 | FP110: 2 | FQ110: 2 | FR110: 2 | FS110: 2 | FT110: 2 | FU110: 2 | FV110: 2 | FW110: 2 | FX110: 2 | FY110: 2 | FZ110: 2 | GA110: 2 | GB110: 2 | GC110: 1 | GH110: Connaissance d'une organisation (Veilleurs) * PN | GJ110: Autre nation I | GK110: =GH99 -> Connaissance d 'une nation I (……….) * PN | GP110: Autre | GQ110: =GH139 -> Sci./Con. Spéc. (……….) +
D111: Ecole d'ingénieurs : Nation étrangère | J111: =IF(AND($E111<>" ",$E$101<>"Ecole d'ingénieurs"),"ERREUR"," ") ->  | P111: Sci./Con. Spéc. (Criminalistique) + | Q111: X | R111: INT | S111: INT | U111: -2 | V111: X | W111: X | Y111: -4 | AE111: 0 | AJ111: 0 | AP111: 0 | AQ111: 0 | AX111: 0 | AZ111: 0 | BG111: 0 | BI111: 0 | BP111: 0 | BR111: 0 | BY111: 0 | CA111: 0 | CB111: -4 | CC111: X | CE111: 0 | CG111: -4 | CH111: X | CI111: 0 | CJ111: 2 | CK111: 0 | CL111: 109 | CM111: -4 | CN111: X | CO111: 0 | CP111: 0 | CQ111: 0 | CS111: -4 | CT111: X | CU111: 0 | CV111: 2 | CW111: 0 | CX111: 109 | CY111: -4 | CZ111: X | DA111: 0 | DB111: 0 | DC111: 0 | DE111: -4 | DF111: X | DG111: 0 | DH111: 2 | DI111: 0 | DJ111: 109 | DK111: -4 | DL111: X | DM111: 0 | DN111: 0 | DO111: 0 | DQ111: -4 | DR111: X | DS111: 0 | DT111: 2 | DU111: 0 | DV111: 109 | DW111: -4 | DX111: X | DY111: 0 | DZ111: 0 | EB111: -4 | EC111: X | ED111: 0 | EE111: 1 | EF111: 0 | EG111: 109 | EH111: -4 | EI111: X | EJ111: 0 | ER111: 2 | ES111: 2 | ET111: 2 | EU111: 2 | EV111: 2 | EW111: 2 | EX111: 2 | EY111: 2 | EZ111: 2 | FA111: 2 | FB111: 2 | FC111: 2 | FD111: 2 | FE111: 2 | FF111: 2 | FG111: 2 | FH111: 2 | FI111: 2 | FJ111: 2 | FK111: 2 | FL111: 2 | FM111: 2 | FN111: 2 | FO111: 2 | FP111: 2 | FQ111: 2 | FR111: 2 | FS111: 2 | FT111: 2 | FU111: 2 | FV111: 2 | FW111: 2 | FX111: 2 | FY111: 2 | FZ111: 2 | GA111: 2 | GB111: 2 | GC111: 2 | GH111: Connaissance d'une organisation I (……….) * PN | GJ111: Autre nation II | GK111: =GH100 -> Connaissance d 'une nation II (……….) * PN
D112: Ecole militaire : Combat (Tir) | J112: =IF(AND($E112<>" ",$E$101<>"Ecole militaire"),"ERREUR"," ") ->  | P112: Sci./Con. Spéc. (Droit/Législations) + | Q112: X | R112: INT | S112: INT | U112: -2 | V112: X | W112: X | Y112: -4 | AE112: 0 | AJ112: 0 | AP112: 0 | AQ112: 0 | AS112: 3 | AX112: 0 | AY112: =IF($E$74="Droit",1,) -> 0 | AZ112: 0 | BB112: 3 | BG112: 0 | BH112: =IF($E$99="Droit",1,) -> 0 | BI112: 0 | BK112: 3 | BP112: 0 | BQ112: =IF($E$124="Droit",1,) -> 0 | BR112: 0 | BT112: 3 | BY112: 0 | BZ112: =IF($E$149="Droit",1,) -> 0 | CA112: 0 | CB112: -4 | CC112: X | CE112: 0 | CG112: -4 | CH112: X | CI112: 0 | CJ112: 2 | CK112: 0 | CL112: 110 | CM112: -4 | CN112: X | CO112: 0 | CP112: 0 | CQ112: 0 | CS112: -4 | CT112: X | CU112: 0 | CV112: 2 | CW112: 0 | CX112: 110 | CY112: -4 | CZ112: X | DA112: 0 | DB112: 0 | DC112: 0 | DE112: -4 | DF112: X | DG112: 0 | DH112: 2 | DI112: 0 | DJ112: 110 | DK112: -4 | DL112: X | DM112: 0 | DN112: 0 | DO112: 0 | DQ112: -4 | DR112: X | DS112: 0 | DT112: 2 | DU112: 0 | DV112: 110 | DW112: -4 | DX112: X | DY112: 0 | DZ112: 0 | EB112: -4 | EC112: X | ED112: 0 | EE112: 1 | EF112: 0 | EG112: 110 | EH112: -4 | EI112: X | EJ112: 0 | ER112: 2 | ES112: 2 | ET112: 2 | EU112: 2 | EV112: 2 | EW112: 2 | EX112: 2 | EY112: 2 | EZ112: 2 | FA112: 2 | FB112: 2 | FC112: 2 | FD112: 2 | FE112: 2 | FF112: 2 | FG112: 2 | FH112: 2 | FI112: 2 | FJ112: 2 | FK112: 2 | FL112: 2 | FM112: 2 | FN112: 2 | FO112: 2 | FP112: 1 | FQ112: 2 | FR112: 2 | FS112: 2 | FT112: 2 | FU112: 2 | FV112: 2 | FW112: 2 | FX112: 2 | FY112: 2 | FZ112: 2 | GA112: 2 | GB112: 2 | GC112: 2 | GH112: Connaissance d'une organisation II (……….) * PN | GJ112: Armée | GK112: Connaissance d'une organisation (Armée) * PN
D113: Ecole militaire : Langue pays allié ou hostile | J113: =IF(AND($E113<>" ",$E$101<>"Ecole militaire"),"ERREUR"," ") ->  | P113: Sci./Con. Spéc. (Economie) + | Q113: X | R113: INT | S113: INT | U113: -2 | V113: X | W113: X | Y113: -4 | AE113: 0 | AJ113: 0 | AP113: 0 | AQ113: 0 | AR113: =IF($E$55="Economie",2,) -> 0 | AX113: 0 | AZ113: 0 | BA113: =IF($E$80="Economie",2,) -> 0 | BG113: 0 | BI113: 0 | BJ113: =IF($E$105="Economie",2,) -> 0 | BP113: 0 | BR113: 0 | BS113: =IF($E$130="Economie",2,) -> 0 | BY113: 0 | CA113: 0 | CB113: -4 | CC113: X | CE113: 0 | CG113: -4 | CH113: X | CI113: 0 | CJ113: 2 | CK113: 0 | CL113: 111 | CM113: -4 | CN113: X | CO113: 0 | CP113: 0 | CQ113: 0 | CS113: -4 | CT113: X | CU113: 0 | CV113: 2 | CW113: 0 | CX113: 111 | CY113: -4 | CZ113: X | DA113: 0 | DB113: 0 | DC113: 0 | DE113: -4 | DF113: X | DG113: 0 | DH113: 2 | DI113: 0 | DJ113: 111 | DK113: -4 | DL113: X | DM113: 0 | DN113: 0 | DO113: 0 | DQ113: -4 | DR113: X | DS113: 0 | DT113: 2 | DU113: 0 | DV113: 111 | DW113: -4 | DX113: X | DY113: 0 | DZ113: 0 | EB113: -4 | EC113: X | ED113: 0 | EE113: 1 | EF113: 0 | EG113: 111 | EH113: -4 | EI113: X | EJ113: 0 | ER113: 2 | ES113: 2 | ET113: 2 | EU113: 2 | EV113: 2 | EW113: 2 | EX113: 2 | EY113: 2 | EZ113: 2 | FA113: 2 | FB113: 2 | FC113: 1 | FD113: 2 | FE113: 2 | FF113: 2 | FG113: 2 | FH113: 2 | FI113: 2 | FJ113: 2 | FK113: 2 | FL113: 2 | FM113: 2 | FN113: 2 | FO113: 2 | FP113: 2 | FQ113: 2 | FR113: 2 | FS113: 2 | FT113: 2 | FU113: 2 | FV113: 2 | FW113: 2 | FX113: 2 | FY113: 2 | FZ113: 2 | GA113: 2 | GB113: 2 | GC113: 2 | GH113: Cryptographie + | GJ113: Contrebandiers | GK113: Con. d'une organisation (Contrebandiers) * PN
D114: Ecole militaire : Nation étrangère | J114: =IF(AND($E114<>" ",$E$101<>"Ecole militaire"),"ERREUR"," ") ->  | P114: Sci./Con. Spéc. (Finances) + | Q114: X | R114: INT | S114: INT | U114: -2 | V114: X | W114: X | Y114: -4 | AE114: 0 | AJ114: 0 | AP114: 0 | AQ114: 0 | AX114: 0 | AZ114: 0 | BG114: 0 | BI114: 0 | BP114: 0 | BR114: 0 | BY114: 0 | CA114: 0 | CB114: -4 | CC114: X | CE114: 0 | CG114: -4 | CH114: X | CI114: 0 | CJ114: 2 | CK114: 0 | CL114: 112 | CM114: -4 | CN114: X | CO114: 0 | CP114: 0 | CQ114: 0 | CS114: -4 | CT114: X | CU114: 0 | CV114: 2 | CW114: 0 | CX114: 112 | CY114: -4 | CZ114: X | DA114: 0 | DB114: 0 | DC114: 0 | DE114: -4 | DF114: X | DG114: 0 | DH114: 2 | DI114: 0 | DJ114: 112 | DK114: -4 | DL114: X | DM114: 0 | DN114: 0 | DO114: 0 | DQ114: -4 | DR114: X | DS114: 0 | DT114: 2 | DU114: 0 | DV114: 112 | DW114: -4 | DX114: X | DY114: 0 | DZ114: 0 | EB114: -4 | EC114: X | ED114: 0 | EE114: 1 | EF114: 0 | EG114: 112 | EH114: -4 | EI114: X | EJ114: 0 | ER114: 2 | ES114: 2 | ET114: 2 | EU114: 2 | EV114: 2 | EW114: 2 | EX114: 2 | EY114: 2 | EZ114: 2 | FA114: 2 | FB114: 2 | FC114: 2 | FD114: 2 | FE114: 2 | FF114: 2 | FG114: 2 | FH114: 2 | FI114: 2 | FJ114: 2 | FK114: 2 | FL114: 2 | FM114: 2 | FN114: 2 | FO114: 2 | FP114: 2 | FQ114: 2 | FR114: 2 | FS114: 2 | FT114: 2 | FU114: 2 | FV114: 2 | FW114: 2 | FX114: 2 | FY114: 2 | FZ114: 2 | GA114: 2 | GB114: 2 | GC114: 2 | GH114: Education/Culture générale | GJ114: Crime organisé | GK114: Con. d'une organisation (Crime organisé) * PN
D115: Ecole militaire : Tactique | J115: =IF(AND($E115<>" ",$E$101<>"Ecole militaire"),"ERREUR"," ") ->  | P115: Sci./Con. Spéc. (Géologie) + | Q115: X | R115: INT | S115: INT | U115: -2 | V115: X | W115: X | Y115: -4 | AE115: 0 | AJ115: 0 | AP115: 0 | AQ115: 0 | AX115: 0 | AZ115: 0 | BG115: 0 | BI115: 0 | BP115: 0 | BR115: 0 | BY115: 0 | CA115: 0 | CB115: -4 | CC115: X | CE115: 0 | CG115: -4 | CH115: X | CI115: 0 | CJ115: 2 | CK115: 0 | CL115: 113 | CM115: -4 | CN115: X | CO115: 0 | CP115: 0 | CQ115: 0 | CS115: -4 | CT115: X | CU115: 0 | CV115: 2 | CW115: 0 | CX115: 113 | CY115: -4 | CZ115: X | DA115: 0 | DB115: 0 | DC115: 0 | DE115: -4 | DF115: X | DG115: 0 | DH115: 2 | DI115: 0 | DJ115: 113 | DK115: -4 | DL115: X | DM115: 0 | DN115: 0 | DO115: 0 | DQ115: -4 | DR115: X | DS115: 0 | DT115: 2 | DU115: 0 | DV115: 113 | DW115: -4 | DX115: X | DY115: 0 | DZ115: 0 | EB115: -4 | EC115: X | ED115: 0 | EE115: 1 | EF115: 0 | EG115: 113 | EH115: -4 | EI115: X | EJ115: 0 | ER115: 2 | ES115: 2 | ET115: 2 | EU115: 2 | EV115: 2 | EW115: 2 | EX115: 2 | EY115: 2 | EZ115: 2 | FA115: 2 | FB115: 2 | FC115: 2 | FD115: 2 | FE115: 2 | FF115: 2 | FG115: 2 | FH115: 2 | FI115: 2 | FJ115: 2 | FK115: 2 | FL115: 2 | FM115: 2 | FN115: 2 | FO115: 2 | FP115: 2 | FQ115: 2 | FR115: 2 | FS115: 1 | FT115: 2 | FU115: 2 | FV115: 2 | FW115: 2 | FX115: 2 | FY115: 2 | FZ115: 1 | GA115: 2 | GB115: 2 | GC115: 2 | GH115: Jeu | GJ115: Culte du Trident | GK115: Con. d'une organisation (Culte du Trident) * PN
D116: Ecole navale : Nation étrangère | J116: =IF(AND($E116<>" ",$E$101<>"Ecole navale"),"ERREUR"," ") ->  | P116: Sci./Con. Spéc. (Géographie) + | Q116: X | R116: INT | S116: INT | U116: =HLOOKUP(R116,$HE$2:$HM$3,2,)+HLOOKUP(S116,$HE$2:$HM$3,2,) -> -2 | V116: =EI116 -> X | W116: X | Y116: -4 | AE116: 0 | AJ116: 0 | AO116: =IF($E$48="Géographie",2,) -> 0 | AP116: 0 | AQ116: 0 | AX116: 0 | AY116: 1 | AZ116: 0 | BG116: 0 | BH116: 1 | BI116: 0 | BP116: 0 | BQ116: 1 | BR116: 0 | BY116: 0 | BZ116: 1 | CA116: 0 | CB116: -4 | CC116: X | CE116: 0 | CG116: -4 | CH116: X | CI116: 0 | CJ116: 2 | CK116: 0 | CL116: 114 | CM116: -4 | CN116: X | CO116: 0 | CP116: 0 | CQ116: 0 | CS116: =CM116+CR116 -> -4 | CT116: X | CU116: 0 | CV116: 2 | CW116: 0 | CX116: 114 | CY116: -4 | CZ116: X | DA116: 0 | DB116: 0 | DC116: 0 | DE116: -4 | DF116: X | DG116: 0 | DH116: 2 | DI116: 0 | DJ116: 114 | DK116: -4 | DL116: X | DM116: 0 | DN116: 0 | DO116: 0 | DQ116: -4 | DR116: X | DS116: 0 | DT116: 2 | DU116: 0 | DV116: 114 | DW116: -4 | DX116: X | DY116: 0 | DZ116: 0 | EB116: =DW116+EA116 -> -4 | EC116: =IF(EB116=-4,"X",EB116) -> X | ED116: 0 | EE116: 1 | EF116: 0 | EG116: 114 | EH116: =EB116+EF116 -> -4 | EI116: =IF(EH116=-4,"X",EH116) -> X | EJ116: 0 | ER116: 2 | ES116: 2 | ET116: 2 | EU116: 2 | EV116: 2 | EW116: 2 | EX116: 2 | EY116: 2 | EZ116: 1 | FA116: 2 | FB116: 2 | FC116: 2 | FD116: 2 | FE116: 2 | FF116: 2 | FG116: 2 | FH116: 2 | FI116: 2 | FJ116: 2 | FK116: 2 | FL116: 2 | FM116: 2 | FN116: 2 | FO116: 2 | FP116: 2 | FQ116: 2 | FR116: 2 | FS116: 2 | FT116: 2 | FU116: 2 | FV116: 2 | FW116: 2 | FX116: 2 | FY116: 2 | FZ116: 2 | GA116: 2 | GB116: 2 | GC116: 2 | GH116: Navigation + | GJ116: Mercenaires | GK116: Con. d'une organisation (Mercenaires) * PN
D117: Sciences/Sciences humaines : Langue au choix | J117: =IF(AND($E117<>" ",$E$101<>"Sciences/Sciences humaines"),"ERREUR"," ") ->  | P117: Sci./Con. Spéc. (Histoire/Archéologie) + | Q117: X | R117: INT | S117: INT | U117: -2 | V117: X | W117: X | Y117: -4 | AE117: 0 | AJ117: 0 | AO117: =IF($E$48="Histoire/Archéologie",2,) -> 0 | AP117: 0 | AQ117: 0 | AX117: 0 | AY117: =IF($E$74="Histoire/Archéologie",1,) -> 0 | AZ117: 0 | BG117: 0 | BH117: =IF($E$99="Histoire/Archéologie",1,) -> 0 | BI117: 0 | BP117: 0 | BQ117: =IF($E$124="Histoire/Archéologie",1,) -> 0 | BR117: 0 | BY117: 0 | BZ117: =IF($E$149="Histoire/Archéologie",1,) -> 0 | CA117: 0 | CB117: -4 | CC117: X | CE117: 0 | CG117: -4 | CH117: X | CI117: 0 | CJ117: 2 | CK117: 0 | CL117: 115 | CM117: -4 | CN117: X | CO117: 0 | CP117: 0 | CQ117: 0 | CS117: -4 | CT117: X | CU117: 0 | CV117: 2 | CW117: 0 | CX117: 115 | CY117: -4 | CZ117: X | DA117: 0 | DB117: 0 | DC117: 0 | DE117: -4 | DF117: X | DG117: 0 | DH117: 2 | DI117: 0 | DJ117: 115 | DK117: -4 | DL117: X | DM117: 0 | DN117: 0 | DO117: 0 | DQ117: -4 | DR117: X | DS117: 0 | DT117: 2 | DU117: 0 | DV117: 115 | DW117: -4 | DX117: X | DY117: 0 | DZ117: 0 | EB117: -4 | EC117: X | ED117: 0 | EE117: 1 | EF117: 0 | EG117: 115 | EH117: -4 | EI117: X | EJ117: 0 | ER117: 2 | ES117: 2 | ET117: 2 | EU117: 2 | EV117: 2 | EW117: 2 | EX117: 2 | EY117: 2 | EZ117: 1 | FA117: 2 | FB117: 2 | FC117: 2 | FD117: 2 | FE117: 2 | FF117: 2 | FG117: 2 | FH117: 2 | FI117: 2 | FJ117: 2 | FK117: 2 | FL117: 2 | FM117: 2 | FN117: 2 | FO117: 2 | FP117: 2 | FQ117: 2 | FR117: 2 | FS117: 2 | FT117: 2 | FU117: 2 | FV117: 2 | FW117: 2 | FX117: 2 | FY117: 2 | FZ117: 2 | GA117: 2 | GB117: 2 | GC117: 2 | GH117: Recherches d'informations + | GJ117: Milieu politique nation origine | GK117: Con. Orga. (Milieu politique nation origine) * PN
D118: Sciences/Sciences humaines : Nation étrangère | J118: =IF(AND($E118<>" ",$E$101<>"Sciences/Sciences humaines"),"ERREUR"," ") ->  | P118: Sci./Con. Spéc. (Médecine) + | Q118: X | R118: INT | S118: INT | U118: -2 | V118: X | W118: X | Y118: -4 | AE118: 0 | AJ118: 0 | AP118: 0 | AQ118: 0 | AW118: 3 | AX118: 0 | AZ118: 0 | BF118: 3 | BG118: 0 | BI118: 0 | BO118: 3 | BP118: 0 | BR118: 0 | BX118: 3 | BY118: 0 | CA118: 0 | CB118: -4 | CC118: X | CE118: 0 | CG118: -4 | CH118: X | CI118: 0 | CJ118: 2 | CK118: 0 | CL118: 116 | CM118: -4 | CN118: X | CO118: 0 | CP118: 0 | CQ118: 0 | CS118: -4 | CT118: X | CU118: 0 | CV118: 2 | CW118: 0 | CX118: 116 | CY118: -4 | CZ118: X | DA118: 0 | DB118: 0 | DC118: 0 | DE118: -4 | DF118: X | DG118: 0 | DH118: 2 | DI118: 0 | DJ118: 116 | DK118: -4 | DL118: X | DM118: 0 | DN118: 0 | DO118: 0 | DQ118: -4 | DR118: X | DS118: 0 | DT118: 2 | DU118: 0 | DV118: 116 | DW118: -4 | DX118: X | DY118: 0 | DZ118: 0 | EB118: -4 | EC118: X | ED118: 0 | EE118: 1 | EF118: 0 | EG118: 116 | EH118: -4 | EI118: X | EJ118: 0 | ER118: 2 | ES118: 2 | ET118: 2 | EU118: 2 | EV118: 2 | EW118: 2 | EX118: 2 | EY118: 2 | EZ118: 2 | FA118: 2 | FB118: 2 | FC118: 2 | FD118: 2 | FE118: 1 | FF118: 2 | FG118: 2 | FH118: 2 | FI118: 2 | FJ118: 2 | FK118: 2 | FL118: 2 | FM118: 2 | FN118: 2 | FO118: 2 | FP118: 2 | FQ118: 1 | FR118: 2 | FS118: 1 | FT118: 2 | FU118: 2 | FV118: 2 | FW118: 2 | FX118: 2 | FY118: 2 | FZ118: 2 | GA118: 2 | GB118: 2 | GC118: 2 | GH118: Sci./Con. Spéc. (Administration/Gestion) + | GJ118: Pirates | GK118: Connaissance d'une organisation (Pirates) * PN
D119: Sciences/Sciences humaines : Sciences | J119: =IF(AND($E119<>" ",$E$101<>"Sciences/Sciences humaines"),"ERREUR"," ") ->  | P119: Sci./Con. Spéc. (Pharmacologie) + | Q119: X | R119: INT | S119: INT | U119: -2 | V119: X | W119: X | Y119: -4 | AE119: 0 | AJ119: 0 | AP119: 0 | AQ119: 0 | AW119: 1 | AX119: 0 | AZ119: 0 | BF119: 1 | BG119: 0 | BI119: 0 | BO119: 1 | BP119: 0 | BR119: 0 | BX119: 1 | BY119: 0 | CA119: 0 | CB119: -4 | CC119: X | CE119: 0 | CG119: -4 | CH119: X | CI119: 0 | CJ119: 2 | CK119: 0 | CL119: 117 | CM119: -4 | CN119: X | CO119: 0 | CP119: 0 | CQ119: 0 | CS119: -4 | CT119: X | CU119: 0 | CV119: 2 | CW119: 0 | CX119: 117 | CY119: -4 | CZ119: X | DA119: 0 | DB119: 0 | DC119: 0 | DE119: -4 | DF119: X | DG119: 0 | DH119: 2 | DI119: 0 | DJ119: 117 | DK119: -4 | DL119: X | DM119: 0 | DN119: 0 | DO119: 0 | DQ119: -4 | DR119: X | DS119: 0 | DT119: 2 | DU119: 0 | DV119: 117 | DW119: -4 | DX119: X | DY119: 0 | DZ119: 0 | EB119: -4 | EC119: X | ED119: 0 | EE119: 1 | EF119: 0 | EG119: 117 | EH119: -4 | EI119: X | EJ119: 0 | ER119: 2 | ES119: 2 | ET119: 2 | EU119: 2 | EV119: 2 | EW119: 2 | EX119: 2 | EY119: 2 | EZ119: 2 | FA119: 2 | FB119: 2 | FC119: 2 | FD119: 2 | FE119: 1 | FF119: 2 | FG119: 2 | FH119: 2 | FI119: 2 | FJ119: 2 | FK119: 2 | FL119: 2 | FM119: 2 | FN119: 2 | FO119: 2 | FP119: 2 | FQ119: 2 | FR119: 2 | FS119: 1 | FT119: 2 | FU119: 2 | FV119: 2 | FW119: 2 | FX119: 2 | FY119: 2 | FZ119: 2 | GA119: 2 | GB119: 2 | GC119: 2 | GH119: Sci./Con. Spéc. (Armes/Syst. d'armement) + | GJ119: Police | GK119: Connaissance d'une organisation (Police) * PN
D120: Sciences/Sciences humaines : Sciences 2 | J120: =IF(AND($E120<>" ",$E$101<>"Sciences/Sciences humaines"),"ERREUR"," ") ->  | P120: Sci./Con. Spéc. (Physique/Chimie) + | Q120: X | R120: INT | S120: INT | U120: -2 | V120: X | W120: X | Y120: -4 | AE120: 0 | AJ120: 0 | AP120: 0 | AQ120: 0 | AX120: 0 | AZ120: 0 | BG120: 0 | BI120: 0 | BP120: 0 | BR120: 0 | BY120: 0 | CA120: 0 | CB120: -4 | CC120: X | CE120: 0 | CG120: -4 | CH120: X | CI120: 0 | CJ120: 2 | CK120: 0 | CL120: 118 | CM120: -4 | CN120: X | CO120: 0 | CP120: 0 | CQ120: 0 | CS120: -4 | CT120: X | CU120: 0 | CV120: 2 | CW120: 0 | CX120: 118 | CY120: -4 | CZ120: X | DA120: 0 | DB120: 0 | DC120: 0 | DE120: -4 | DF120: X | DG120: 0 | DH120: 2 | DI120: 0 | DJ120: 118 | DK120: -4 | DL120: X | DM120: 0 | DN120: 0 | DO120: 0 | DQ120: -4 | DR120: X | DS120: 0 | DT120: 2 | DU120: 0 | DV120: 118 | DW120: -4 | DX120: X | DY120: 0 | DZ120: 0 | EB120: -4 | EC120: X | ED120: 0 | EE120: 1 | EF120: 0 | EG120: 118 | EH120: -4 | EI120: X | EJ120: 0 | ER120: 2 | ES120: 1 | ET120: 2 | EU120: 2 | EV120: 2 | EW120: 2 | EX120: 2 | EY120: 2 | EZ120: 2 | FA120: 2 | FB120: 2 | FC120: 2 | FD120: 2 | FE120: 2 | FF120: 2 | FG120: 2 | FH120: 2 | FI120: 2 | FJ120: 2 | FK120: 2 | FL120: 2 | FM120: 2 | FN120: 2 | FO120: 2 | FP120: 2 | FQ120: 2 | FR120: 2 | FS120: 1 | FT120: 2 | FU120: 2 | FV120: 2 | FW120: 2 | FX120: 2 | FY120: 2 | FZ120: 1 | GA120: 2 | GB120: 2 | GC120: 2 | GH120: Sci./Con. Spéc. (Astrophysique/Astronomie) + | GJ120: Ports commerciaux | GK120: Con. organisation (Ports commerciaux) * PN
D121: Sciences politiques : Langue au choix | J121: =IF(AND($E121<>" ",$E$101<>"Sciences politiques"),"ERREUR"," ") ->  | P121: Sci./Con. Spéc. (Psychologie) + | Q121: X | R121: INT | S121: INT | U121: -2 | V121: X | W121: X | Y121: -4 | AE121: 0 | AJ121: 0 | AP121: 0 | AQ121: 0 | AX121: 0 | AZ121: 0 | BG121: 0 | BI121: 0 | BP121: 0 | BR121: 0 | BY121: 0 | CA121: 0 | CB121: -4 | CC121: X | CE121: 0 | CG121: -4 | CH121: X | CI121: 0 | CJ121: 2 | CK121: 0 | CL121: 119 | CM121: -4 | CN121: X | CO121: 0 | CP121: 0 | CQ121: 0 | CS121: -4 | CT121: X | CU121: 0 | CV121: 2 | CW121: 0 | CX121: 119 | CY121: -4 | CZ121: X | DA121: 0 | DB121: 0 | DC121: 0 | DE121: -4 | DF121: X | DG121: 0 | DH121: 2 | DI121: 0 | DJ121: 119 | DK121: -4 | DL121: X | DM121: 0 | DN121: 0 | DO121: 0 | DQ121: -4 | DR121: X | DS121: 0 | DT121: 2 | DU121: 0 | DV121: 119 | DW121: -4 | DX121: X | DY121: 0 | DZ121: 0 | EB121: -4 | EC121: X | ED121: 0 | EE121: 1 | EF121: 0 | EG121: 119 | EH121: -4 | EI121: X | EJ121: 0 | ER121: 2 | ES121: 2 | ET121: 2 | EU121: 2 | EV121: 2 | EW121: 2 | EX121: 2 | EY121: 2 | EZ121: 2 | FA121: 2 | FB121: 2 | FC121: 2 | FD121: 2 | FE121: 1 | FF121: 2 | FG121: 2 | FH121: 2 | FI121: 2 | FJ121: 2 | FK121: 2 | FL121: 2 | FM121: 2 | FN121: 2 | FO121: 2 | FP121: 2 | FQ121: 1 | FR121: 1 | FS121: 2 | FT121: 2 | FU121: 2 | FV121: 2 | FW121: 2 | FX121: 2 | FY121: 2 | FZ121: 2 | GA121: 2 | GB121: 2 | GC121: 2 | GH121: Sci./Con. Spéc. (Biologie/Physiologie) + | GJ121: Veilleurs | GK121: Connaissance d'une organisation (Veilleurs) * PN
D122: Sciences politiques : Nation étrangère | J122: =IF(AND($E122<>" ",$E$101<>"Sciences politiques"),"ERREUR"," ") ->  | P122: Sci./Con. Spéc. (Sciences politiques) + | Q122: X | R122: INT | S122: INT | U122: -2 | V122: X | W122: X | Y122: -4 | AE122: 0 | AJ122: 0 | AP122: 0 | AQ122: 0 | AY122: 2 | AZ122: 0 | BH122: 2 | BI122: 0 | BQ122: 2 | BR122: 0 | BZ122: 2 | CA122: 0 | CB122: -4 | CC122: X | CE122: 0 | CG122: -4 | CH122: X | CI122: 0 | CJ122: 2 | CK122: 0 | CL122: 120 | CM122: -4 | CN122: X | CO122: 0 | CP122: 0 | CQ122: 0 | CS122: -4 | CT122: X | CU122: 0 | CV122: 2 | CW122: 0 | CX122: 120 | CY122: -4 | CZ122: X | DA122: 0 | DB122: 0 | DC122: 0 | DE122: -4 | DF122: X | DG122: 0 | DH122: 2 | DI122: 0 | DJ122: 120 | DK122: -4 | DL122: X | DM122: 0 | DN122: 0 | DO122: 0 | DQ122: -4 | DR122: X | DS122: 0 | DT122: 2 | DU122: 0 | DV122: 120 | DW122: -4 | DX122: X | DY122: 0 | DZ122: 0 | EB122: -4 | EC122: X | ED122: 0 | EE122: 1 | EF122: 0 | EG122: 120 | EH122: -4 | EI122: X | EJ122: 0 | ER122: 2 | ES122: 2 | ET122: 2 | EU122: 2 | EV122: 2 | EW122: 2 | EX122: 2 | EY122: 1 | EZ122: 2 | FA122: 2 | FB122: 2 | FC122: 2 | FD122: 2 | FE122: 2 | FF122: 2 | FG122: 2 | FH122: 2 | FI122: 2 | FJ122: 2 | FK122: 2 | FL122: 2 | FM122: 2 | FN122: 2 | FO122: 2 | FP122: 2 | FQ122: 1 | FR122: 2 | FS122: 2 | FT122: 2 | FU122: 2 | FV122: 2 | FW122: 2 | FX122: 2 | FY122: 2 | FZ122: 2 | GA122: 2 | GB122: 2 | GC122: 2 | GH122: Sci./Con. Spéc. (Botanique) + | GJ122: Autre organisation I | GK122: =GH111 -> Connaissance d'une organisation I (……….) * PN
D123: Sciences politiques : Nation étrangère 2 | J123: =IF(AND($E123<>" ",$E$101<>"Sciences politiques"),"ERREUR"," ") ->  | P123: Sci./Con. Spéc. (Sociologie) + | Q123: X | R123: INT | S123: INT | U123: -2 | V123: X | W123: X | Y123: -4 | AE123: 0 | AJ123: 0 | AP123: 0 | AQ123: 0 | AX123: =IF($P123=VLOOKUP($E$69,$GP$74:$GQ$95,2,),3,IF($P123=VLOOKUP($E$70,$GP$74:$GQ$95,2,),3,0)) -> 0 | AZ123: 0 | BG123: 0 | BI123: 0 | BP123: 0 | BR123: 0 | BY123: 0 | CA123: 0 | CB123: -4 | CC123: X | CE123: 0 | CG123: -4 | CH123: X | CI123: 0 | CJ123: 2 | CK123: 0 | CL123: 121 | CM123: -4 | CN123: X | CO123: 0 | CP123: 0 | CQ123: 0 | CS123: -4 | CT123: X | CU123: 0 | CV123: 2 | CW123: 0 | CX123: 121 | CY123: -4 | CZ123: X | DA123: 0 | DB123: 0 | DC123: 0 | DE123: -4 | DF123: X | DG123: 0 | DH123: 2 | DI123: 0 | DJ123: 121 | DK123: -4 | DL123: X | DM123: 0 | DN123: 0 | DO123: 0 | DQ123: -4 | DR123: X | DS123: 0 | DT123: 2 | DU123: 0 | DV123: 121 | DW123: -4 | DX123: X | DY123: 0 | DZ123: 0 | EB123: -4 | EC123: X | ED123: 0 | EE123: 1 | EF123: 0 | EG123: 121 | EH123: -4 | EI123: X | EJ123: 0 | ER123: 2 | ES123: 2 | ET123: 2 | EU123: 2 | EV123: 2 | EW123: 2 | EX123: 2 | EY123: 2 | EZ123: 1 | FA123: 2 | FB123: 2 | FC123: 2 | FD123: 2 | FE123: 2 | FF123: 2 | FG123: 2 | FH123: 2 | FI123: 2 | FJ123: 2 | FK123: 2 | FL123: 2 | FM123: 2 | FN123: 2 | FO123: 2 | FP123: 2 | FQ123: 2 | FR123: 2 | FS123: 2 | FT123: 2 | FU123: 2 | FV123: 2 | FW123: 2 | FX123: 2 | FY123: 2 | FZ123: 2 | GA123: 2 | GB123: 2 | GC123: 2 | GH123: Sci./Con. Spéc. (Connaissance des drogues) + | GJ123: Autre organisation II | GK123: =GH112 -> Connaissance d'une organisation II (……….) * PN
D124: Sciences politiques : Sciences | J124: =IF(AND($E124<>" ",$E$101<>"Sciences politiques"),"ERREUR"," ") ->  | P124: Sci./Con. Spéc. (Zoologie) + | Q124: X | R124: INT | S124: INT | U124: -2 | V124: X | W124: X | Y124: -4 | AE124: 0 | AJ124: 0 | AP124: 0 | AQ124: 0 | AX124: =IF($P124=VLOOKUP($E$69,$GP$74:$GQ$95,2,),3,IF($P124=VLOOKUP($E$70,$GP$74:$GQ$95,2,),3,0)) -> 0 | AZ124: 0 | BG124: 0 | BI124: 0 | BP124: 0 | BR124: 0 | BY124: 0 | CA124: 0 | CB124: -4 | CC124: X | CE124: 0 | CG124: -4 | CH124: X | CI124: 0 | CJ124: 2 | CK124: 0 | CL124: 122 | CM124: -4 | CN124: X | CO124: 0 | CP124: 0 | CQ124: 0 | CS124: -4 | CT124: X | CU124: 0 | CV124: 2 | CW124: 0 | CX124: 122 | CY124: -4 | CZ124: X | DA124: 0 | DB124: 0 | DC124: 0 | DE124: -4 | DF124: X | DG124: 0 | DH124: 2 | DI124: 0 | DJ124: 122 | DK124: -4 | DL124: X | DM124: 0 | DN124: 0 | DO124: 0 | DQ124: -4 | DR124: X | DS124: 0 | DT124: 2 | DU124: 0 | DV124: 122 | DW124: -4 | DX124: X | DY124: 0 | DZ124: 0 | EB124: -4 | EC124: X | ED124: 0 | EE124: 1 | EF124: 0 | EG124: 122 | EH124: -4 | EI124: X | EJ124: 0 | ER124: 2 | ES124: 2 | ET124: 2 | EU124: 2 | EV124: 2 | EW124: 2 | EX124: 1 | EY124: 2 | EZ124: 2 | FA124: 2 | FB124: 2 | FC124: 2 | FD124: 2 | FE124: 1 | FF124: 2 | FG124: 2 | FH124: 2 | FI124: 2 | FJ124: 2 | FK124: 2 | FL124: 2 | FM124: 2 | FN124: 2 | FO124: 2 | FP124: 2 | FQ124: 2 | FR124: 2 | FS124: 1 | FT124: 2 | FU124: 2 | FV124: 2 | FW124: 2 | FX124: 2 | FY124: 2 | FZ124: 2 | GA124: 2 | GB124: 2 | GC124: 2 | GH124: Sci./Con. Spéc. (Connaissance des poisons) +
P125: Sci./Con. Spéc. (……….) + | Q125: X | R125: INT | S125: INT | U125: -2 | V125: X | W125: X | Y125: -4 | AE125: 0 | AJ125: 0 | AP125: 0 | AQ125: 0 | AX125: =IF($P125=VLOOKUP($E$69,$GP$74:$GQ$95,2,),3,IF($P125=VLOOKUP($E$70,$GP$74:$GQ$95,2,),3,0)) -> 0 | AZ125: 0 | BG125: 0 | BI125: 0 | BP125: 0 | BR125: 0 | BY125: 0 | CA125: 0 | CB125: -4 | CC125: X | CE125: 0 | CG125: -4 | CH125: X | CI125: 0 | CJ125: 2 | CK125: 0 | CL125: 123 | CM125: -4 | CN125: X | CO125: 0 | CP125: 0 | CQ125: 0 | CS125: -4 | CT125: X | CU125: 0 | CV125: 2 | CW125: 0 | CX125: 123 | CY125: -4 | CZ125: X | DA125: 0 | DB125: 0 | DC125: 0 | DE125: -4 | DF125: X | DG125: 0 | DH125: 2 | DI125: 0 | DJ125: 123 | DK125: -4 | DL125: X | DM125: 0 | DN125: 0 | DO125: 0 | DQ125: -4 | DR125: X | DS125: 0 | DT125: 2 | DU125: 0 | DV125: 123 | DW125: -4 | DX125: X | DY125: 0 | DZ125: 0 | EB125: -4 | EC125: X | ED125: 0 | EE125: 1 | EF125: 0 | EG125: 123 | EH125: -4 | EI125: X | EJ125: 0 | ER125: 2 | ES125: 2 | ET125: 2 | EU125: 2 | EV125: 2 | EW125: 2 | EX125: 2 | EY125: 2 | EZ125: 2 | FA125: 2 | FB125: 2 | FC125: 2 | FD125: 2 | FE125: 2 | FF125: 2 | FG125: 2 | FH125: 2 | FI125: 2 | FJ125: 2 | FK125: 2 | FL125: 2 | FM125: 2 | FN125: 2 | FO125: 2 | FP125: 2 | FQ125: 2 | FR125: 2 | FS125: 1 | FT125: 2 | FU125: 2 | FV125: 2 | FW125: 2 | FX125: 2 | FY125: 2 | FZ125: 2 | GA125: 2 | GB125: 2 | GC125: 2 | GH125: Sci./Con. Spéc. (Criminalistique) +
C126: Etudes supérieures 4 | E126: Pas d'étude sup. | J126: =IF(E126="Pas d'étude sup.",0,1) -> 0 | P126: Stratégie + | Q126: -3 | R126: INT | S126: INT | U126: -2 | V126: -3 | W126: -5 | Y126: -3 | AE126: 0 | AJ126: 0 | AP126: 0 | AQ126: 0 | AU126: 1 | AZ126: 0 | BD126: 1 | BI126: 0 | BM126: 1 | BR126: 0 | BV126: 1 | CA126: 0 | CB126: -3 | CC126: -3 | CE126: 0 | CG126: -3 | CH126: -3 | CI126: 0 | CJ126: 2 | CK126: 0 | CL126: 124 | CM126: -3 | CN126: -3 | CO126: 0 | CP126: 0 | CQ126: 0 | CS126: -3 | CT126: -3 | CU126: 0 | CV126: 2 | CW126: 0 | CX126: 124 | CY126: -3 | CZ126: -3 | DA126: 0 | DB126: 0 | DC126: 0 | DE126: -3 | DF126: -3 | DG126: 0 | DH126: 2 | DI126: 0 | DJ126: 124 | DK126: -3 | DL126: -3 | DM126: 0 | DN126: 0 | DO126: 0 | DQ126: -3 | DR126: -3 | DS126: 0 | DT126: 2 | DU126: 0 | DV126: 124 | DW126: -3 | DX126: -3 | DY126: 0 | DZ126: 0 | EB126: -3 | EC126: -3 | ED126: 0 | EE126: 1 | EF126: 0 | EG126: 124 | EH126: -3 | EI126: -3 | EJ126: 0 | ER126: 2 | ES126: 2 | ET126: 2 | EU126: 2 | EV126: 2 | EW126: 2 | EX126: 2 | EY126: 2 | EZ126: 2 | FA126: 2 | FB126: 2 | FC126: 2 | FD126: 2 | FE126: 2 | FF126: 2 | FG126: 2 | FH126: 2 | FI126: 2 | FJ126: 2 | FK126: 2 | FL126: 2 | FM126: 2 | FN126: 2 | FO126: 2 | FP126: 2 | FQ126: 2 | FR126: 2 | FS126: 2 | FT126: 2 | FU126: 2 | FV126: 2 | FW126: 2 | FX126: 2 | FY126: 2 | FZ126: 2 | GA126: 2 | GB126: 2 | GC126: 2 | GH126: Sci./Con. Spéc. (Droit/Législations) +
D127: Commerce/Gestion : Commerce légal | J127: =IF(AND($E127<>" ",$E$126<>"Commerce/gestion"),"ERREUR"," ") ->  | P127: Tactique (combat naval) | Q127: -3 | R127: INT | S127: ADA | U127: -2 | V127: -3 | W127: -5 | Y127: -3 | AE127: 0 | AJ127: 0 | AP127: 0 | AQ127: 0 | AU127: =IF($E$65="Combat naval",2,) -> 0 | AZ127: 0 | BD127: =IF($E$90="Combat naval",2,) -> 0 | BI127: 0 | BM127: =IF($E$115="Combat naval",2,) -> 0 | BR127: 0 | BV127: =IF($E$140="Combat naval",2,) -> 0 | CA127: 0 | CB127: -3 | CC127: -3 | CE127: 0 | CG127: -3 | CH127: -3 | CI127: 0 | CJ127: 2 | CK127: 0 | CL127: 125 | CM127: -3 | CN127: -3 | CO127: 0 | CP127: 0 | CQ127: 0 | CS127: -3 | CT127: -3 | CU127: 0 | CV127: 2 | CW127: 0 | CX127: 125 | CY127: -3 | CZ127: -3 | DA127: 0 | DB127: 0 | DC127: 0 | DE127: -3 | DF127: -3 | DG127: 0 | DH127: 2 | DI127: 0 | DJ127: 125 | DK127: -3 | DL127: -3 | DM127: 0 | DN127: 0 | DO127: 0 | DQ127: -3 | DR127: -3 | DS127: 0 | DT127: 2 | DU127: 0 | DV127: 125 | DW127: -3 | DX127: -3 | DY127: 0 | DZ127: 0 | EB127: -3 | EC127: -3 | ED127: 0 | EE127: 1 | EF127: 0 | EG127: 125 | EH127: -3 | EI127: -3 | EJ127: 0 | ER127: 2 | ES127: 2 | ET127: 2 | EU127: 2 | EV127: 2 | EW127: 2 | EX127: 2 | EY127: 2 | EZ127: 2 | FA127: 2 | FB127: 2 | FC127: 2 | FD127: 2 | FE127: 2 | FF127: 2 | FG127: 2 | FH127: 1 | FI127: 2 | FJ127: 2 | FK127: 2 | FL127: 2 | FM127: 2 | FN127: 1 | FO127: 2 | FP127: 2 | FQ127: 2 | FR127: 2 | FS127: 2 | FT127: 2 | FU127: 2 | FV127: 2 | FW127: 2 | FX127: 2 | FY127: 2 | FZ127: 2 | GA127: 2 | GB127: 2 | GC127: 2 | GH127: Sci./Con. Spéc. (Economie) +
D128: Commerce/Gestion : Langue au choix | J128: =IF(AND($E128<>" ",$E$126<>"Commerce/gestion"),"ERREUR"," ") ->  | P128: Tactique (combat souterrain) | R128: INT | S128: ADA | U128: -2 | V128: 0 | W128: =IF(V128="X","X",U128+V128) -> -2 | Y128: 0 | AE128: =IF($AE$3=$AA$3,AA128,IF($AE$3=$AB$3,AB128,IF($AE$3=$AC$3,AC128,IF($AE$3=$AD$3,AD128,0)))) -> 0 | AJ128: =IF($AJ$3=$AF$3,AF128,IF($AJ$3=$AG$3,AG128,IF($AJ$3=$AH$3,AH128,IF($AJ$3=$AI$3,AI128,0)))) -> 0 | AP128: 0 | AQ128: =IF($AQ$3=$AK$3,AK128,IF($AQ$3=$AL$3,AL128,IF($AQ$3=$AM$3,AM128,IF($AQ$3=$AN$3,AN128,IF($AQ$3=$AO$3,AO128,IF($AQ$3=$AP$3,AP128,0)))))) -> 0 | AU128: =IF($E$65="Combat souterrain",2,) -> 0 | AZ128: =IF(AZ$3=AR$3,AR128,IF(AZ$3=AS$3,AS128,IF(AZ$3=AT$3,AT128,IF(AZ$3=AU$3,AU128,IF(AZ$3=AV$3,AV128,IF(AZ$3=AW$3,AW128,IF(AZ$3=AX$3,AX128,IF(AZ$3=AY$3,AY128,0)))))))) -> 0 | BD128: =IF($E$90="Combat souterrain",2,) -> 0 | BI128: =IF(BI$3=BA$3,BA128,IF(BI$3=BB$3,BB128,IF(BI$3=BC$3,BC128,IF(BI$3=BD$3,BD128,IF(BI$3=BE$3,BE128,IF(BI$3=BF$3,BF128,IF(BI$3=BG$3,BG128,IF(BI$3=BH$3,BH128,0)))))))) -> 0 | BM128: =IF($E$115="Combat souterrain",2,) -> 0 | BR128: =IF(BR$3=BJ$3,BJ128,IF(BR$3=BK$3,BK128,IF(BR$3=BL$3,BL128,IF(BR$3=BM$3,BM128,IF(BR$3=BN$3,BN128,IF(BR$3=BO$3,BO128,IF(BR$3=BP$3,BP128,IF(BR$3=BQ$3,BQ128,0)))))))) -> 0 | BV128: =IF($E$140="Combat souterrain",2,) -> 0 | CA128: =IF(CA$3=BS$3,BS128,IF(CA$3=BT$3,BT128,IF(CA$3=BU$3,BU128,IF(CA$3=BV$3,BV128,IF(CA$3=BW$3,BW128,IF(CA$3=BX$3,BX128,IF(CA$3=BY$3,BY128,IF(CA$3=BZ$3,BZ128,0)))))))) -> 0 | CB128: 0 | CC128: =IF(CB128=-4,"X",CB128) -> 0 | CE128: 0 | CG128: =CB128+CF128 -> 0 | CH128: =IF(CG128=-4,"X",CG128) -> 0 | CI128: 0 | CJ128: 2 | CK128: 0 | CL128: 126 | CM128: 0 | CN128: =IF(CM128=-4,"X",CM128) -> 0 | CO128: 0 | CP128: 0 | CQ128: 0 | CS128: 0 | CT128: =IF(CS128=-4,"X",CS128) -> 0 | CU128: 0 | CV128: 2 | CW128: 0 | CX128: 126 | CY128: 0 | CZ128: =IF(CY128=-4,"X",CY128) -> 0 | DA128: 0 | DB128: 0 | DC128: 0 | DE128: =CY128+DD128 -> 0 | DF128: =IF(DE128=-4,"X",DE128) -> 0 | DG128: 0 | DH128: 2 | DI128: 0 | DJ128: 126 | DK128: 0 | DL128: =IF(DK128=-4,"X",DK128) -> 0 | DM128: 0 | DN128: 0 | DO128: 0 | DQ128: =DK128+DP128 -> 0 | DR128: =IF(DQ128=-4,"X",DQ128) -> 0 | DS128: 0 | DT128: 2 | DU128: 0 | DV128: 126 | DW128: 0 | DX128: =IF(DW128=-4,"X",DW128) -> 0 | DY128: 0 | DZ128: 0 | EB128: 0 | EC128: 0 | ED128: 0 | EE128: 1 | EF128: 0 | EG128: 126 | EH128: 0 | EI128: 0 | EJ128: 0 | ER128: 2 | ES128: 2 | ET128: 2 | EU128: 2 | EV128: 2 | EW128: 2 | EX128: 2 | EY128: 2 | EZ128: 2 | FA128: 2 | FB128: 2 | FC128: 2 | FD128: 2 | FE128: 2 | FF128: 2 | FG128: 2 | FH128: 2 | FI128: 2 | FJ128: 2 | FK128: 1 | FL128: 2 | FM128: 2 | FN128: 2 | FO128: 2 | FP128: 2 | FQ128: 2 | FR128: 2 | FS128: 2 | FT128: 2 | FU128: 2 | FV128: 2 | FW128: 2 | FX128: 2 | FY128: 2 | FZ128: 2 | GA128: 2 | GB128: 2 | GC128: 2 | GH128: Sci./Con. Spéc. (Finances) +
D129: Commerce/Gestion : Nation étrangère | J129: =IF(AND($E129<>" ",$E$126<>"Commerce/gestion"),"ERREUR"," ") ->  | P129: Tactique (combat terrestre) | R129: INT | S129: ADA | U129: -2 | V129: 0 | W129: =IF(V129="X","X",U129+V129) -> -2 | Y129: 0 | AE129: =IF($AE$3=$AA$3,AA129,IF($AE$3=$AB$3,AB129,IF($AE$3=$AC$3,AC129,IF($AE$3=$AD$3,AD129,0)))) -> 0 | AJ129: =IF($AJ$3=$AF$3,AF129,IF($AJ$3=$AG$3,AG129,IF($AJ$3=$AH$3,AH129,IF($AJ$3=$AI$3,AI129,0)))) -> 0 | AP129: 0 | AQ129: =IF($AQ$3=$AK$3,AK129,IF($AQ$3=$AL$3,AL129,IF($AQ$3=$AM$3,AM129,IF($AQ$3=$AN$3,AN129,IF($AQ$3=$AO$3,AO129,IF($AQ$3=$AP$3,AP129,0)))))) -> 0 | AU129: =IF($E$65="Combat terrestre",2,) -> 0 | AZ129: =IF(AZ$3=AR$3,AR129,IF(AZ$3=AS$3,AS129,IF(AZ$3=AT$3,AT129,IF(AZ$3=AU$3,AU129,IF(AZ$3=AV$3,AV129,IF(AZ$3=AW$3,AW129,IF(AZ$3=AX$3,AX129,IF(AZ$3=AY$3,AY129,0)))))))) -> 0 | BD129: =IF($E$90="Combat terrestre",2,) -> 0 | BI129: =IF(BI$3=BA$3,BA129,IF(BI$3=BB$3,BB129,IF(BI$3=BC$3,BC129,IF(BI$3=BD$3,BD129,IF(BI$3=BE$3,BE129,IF(BI$3=BF$3,BF129,IF(BI$3=BG$3,BG129,IF(BI$3=BH$3,BH129,0)))))))) -> 0 | BM129: =IF($E$115="Combat terrestre",2,) -> 0 | BR129: =IF(BR$3=BJ$3,BJ129,IF(BR$3=BK$3,BK129,IF(BR$3=BL$3,BL129,IF(BR$3=BM$3,BM129,IF(BR$3=BN$3,BN129,IF(BR$3=BO$3,BO129,IF(BR$3=BP$3,BP129,IF(BR$3=BQ$3,BQ129,0)))))))) -> 0 | BV129: =IF($E$140="Combat terrestre",2,) -> 0 | CA129: =IF(CA$3=BS$3,BS129,IF(CA$3=BT$3,BT129,IF(CA$3=BU$3,BU129,IF(CA$3=BV$3,BV129,IF(CA$3=BW$3,BW129,IF(CA$3=BX$3,BX129,IF(CA$3=BY$3,BY129,IF(CA$3=BZ$3,BZ129,0)))))))) -> 0 | CB129: 0 | CC129: =IF(CB129=-4,"X",CB129) -> 0 | CE129: 0 | CG129: =CB129+CF129 -> 0 | CH129: =IF(CG129=-4,"X",CG129) -> 0 | CI129: 0 | CJ129: 2 | CK129: 0 | CL129: 127 | CM129: 0 | CN129: =IF(CM129=-4,"X",CM129) -> 0 | CO129: 0 | CP129: 0 | CQ129: 0 | CS129: 0 | CT129: =IF(CS129=-4,"X",CS129) -> 0 | CU129: 0 | CV129: 2 | CW129: 0 | CX129: 127 | CY129: 0 | CZ129: =IF(CY129=-4,"X",CY129) -> 0 | DA129: 0 | DB129: 0 | DC129: 0 | DE129: =CY129+DD129 -> 0 | DF129: =IF(DE129=-4,"X",DE129) -> 0 | DG129: 0 | DH129: 2 | DI129: 0 | DJ129: 127 | DK129: 0 | DL129: =IF(DK129=-4,"X",DK129) -> 0 | DM129: 0 | DN129: 0 | DO129: 0 | DQ129: =DK129+DP129 -> 0 | DR129: =IF(DQ129=-4,"X",DQ129) -> 0 | DS129: 0 | DT129: 2 | DU129: 0 | DV129: 127 | DW129: 0 | DX129: =IF(DW129=-4,"X",DW129) -> 0 | DY129: 0 | DZ129: 0 | EB129: 0 | EC129: 0 | ED129: 0 | EE129: 1 | EF129: 0 | EG129: 127 | EH129: 0 | EI129: 0 | EJ129: 0 | ER129: 2 | ES129: 2 | ET129: 2 | EU129: 2 | EV129: 2 | EW129: 2 | EX129: 2 | EY129: 2 | EZ129: 2 | FA129: 2 | FB129: 2 | FC129: 2 | FD129: 2 | FE129: 2 | FF129: 2 | FG129: 2 | FH129: 2 | FI129: 2 | FJ129: 1 | FK129: 2 | FL129: 2 | FM129: 1 | FN129: 2 | FO129: 2 | FP129: 2 | FQ129: 2 | FR129: 2 | FS129: 2 | FT129: 2 | FU129: 2 | FV129: 2 | FW129: 2 | FX129: 2 | FY129: 2 | FZ129: 2 | GA129: 2 | GB129: 2 | GC129: 2 | GH129: Sci./Con. Spéc. (Géologie) +
D130: Commerce/Gestion : Sciences | J130: =IF(AND($E130<>" ",$E$126<>"Commerce/gestion"),"ERREUR"," ") ->  | P130: Tactique (opérations commando) | R130: INT | S130: ADA | U130: -2 | V130: 0 | W130: =IF(V130="X","X",U130+V130) -> -2 | Y130: 0 | AE130: =IF($AE$3=$AA$3,AA130,IF($AE$3=$AB$3,AB130,IF($AE$3=$AC$3,AC130,IF($AE$3=$AD$3,AD130,0)))) -> 0 | AJ130: =IF($AJ$3=$AF$3,AF130,IF($AJ$3=$AG$3,AG130,IF($AJ$3=$AH$3,AH130,IF($AJ$3=$AI$3,AI130,0)))) -> 0 | AP130: 0 | AQ130: =IF($AQ$3=$AK$3,AK130,IF($AQ$3=$AL$3,AL130,IF($AQ$3=$AM$3,AM130,IF($AQ$3=$AN$3,AN130,IF($AQ$3=$AO$3,AO130,IF($AQ$3=$AP$3,AP130,0)))))) -> 0 | AU130: =IF($E$65="Opérations commando",2,) -> 0 | AZ130: =IF(AZ$3=AR$3,AR130,IF(AZ$3=AS$3,AS130,IF(AZ$3=AT$3,AT130,IF(AZ$3=AU$3,AU130,IF(AZ$3=AV$3,AV130,IF(AZ$3=AW$3,AW130,IF(AZ$3=AX$3,AX130,IF(AZ$3=AY$3,AY130,0)))))))) -> 0 | BD130: =IF($E$90="Opérations commando",2,) -> 0 | BI130: =IF(BI$3=BA$3,BA130,IF(BI$3=BB$3,BB130,IF(BI$3=BC$3,BC130,IF(BI$3=BD$3,BD130,IF(BI$3=BE$3,BE130,IF(BI$3=BF$3,BF130,IF(BI$3=BG$3,BG130,IF(BI$3=BH$3,BH130,0)))))))) -> 0 | BM130: =IF($E$115="Opérations commando",2,) -> 0 | BR130: =IF(BR$3=BJ$3,BJ130,IF(BR$3=BK$3,BK130,IF(BR$3=BL$3,BL130,IF(BR$3=BM$3,BM130,IF(BR$3=BN$3,BN130,IF(BR$3=BO$3,BO130,IF(BR$3=BP$3,BP130,IF(BR$3=BQ$3,BQ130,0)))))))) -> 0 | BV130: =IF($E$140="Opérations commando",2,) -> 0 | CA130: =IF(CA$3=BS$3,BS130,IF(CA$3=BT$3,BT130,IF(CA$3=BU$3,BU130,IF(CA$3=BV$3,BV130,IF(CA$3=BW$3,BW130,IF(CA$3=BX$3,BX130,IF(CA$3=BY$3,BY130,IF(CA$3=BZ$3,BZ130,0)))))))) -> 0 | CB130: 0 | CC130: =IF(CB130=-4,"X",CB130) -> 0 | CE130: 0 | CG130: =CB130+CF130 -> 0 | CH130: =IF(CG130=-4,"X",CG130) -> 0 | CI130: 0 | CJ130: 2 | CK130: 0 | CL130: 128 | CM130: 0 | CN130: =IF(CM130=-4,"X",CM130) -> 0 | CO130: 0 | CP130: 0 | CQ130: 0 | CS130: 0 | CT130: =IF(CS130=-4,"X",CS130) -> 0 | CU130: 0 | CV130: 2 | CW130: 0 | CX130: 128 | CY130: 0 | CZ130: =IF(CY130=-4,"X",CY130) -> 0 | DA130: 0 | DB130: 0 | DC130: 0 | DE130: =CY130+DD130 -> 0 | DF130: =IF(DE130=-4,"X",DE130) -> 0 | DG130: 0 | DH130: 2 | DI130: 0 | DJ130: 128 | DK130: 0 | DL130: =IF(DK130=-4,"X",DK130) -> 0 | DM130: 0 | DN130: 0 | DO130: 0 | DQ130: =DK130+DP130 -> 0 | DR130: =IF(DQ130=-4,"X",DQ130) -> 0 | DS130: 0 | DT130: 2 | DU130: 0 | DV130: 128 | DW130: 0 | DX130: =IF(DW130=-4,"X",DW130) -> 0 | DY130: 0 | DZ130: 0 | EB130: 0 | EC130: 0 | ED130: 0 | EE130: 1 | EF130: 0 | EG130: 128 | EH130: 0 | EI130: 0 | EJ130: 0 | ER130: 2 | ES130: 2 | ET130: 2 | EU130: 2 | EV130: 2 | EW130: 2 | EX130: 2 | EY130: 2 | EZ130: 2 | FA130: 2 | FB130: 1 | FC130: 2 | FD130: 2 | FE130: 2 | FF130: 1 | FG130: 2 | FH130: 2 | FI130: 1 | FJ130: 1 | FK130: 1 | FL130: 2 | FM130: 2 | FN130: 2 | FO130: 1 | FP130: 2 | FQ130: 2 | FR130: 2 | FS130: 2 | FT130: 1 | FU130: 1 | FV130: 1 | FW130: 1 | FX130: 1 | FY130: 2 | FZ130: 2 | GA130: 1 | GB130: 1 | GC130: 2 | GH130: Sci./Con. Spéc. (Géographie) +
D131: Droit : Langue au choix | J131: =IF(AND($E131<>" ",$E$126<>"Droit"),"ERREUR"," ") ->  | M131: Furtivité/Subterfuge | AP131: 0 | CB131: 0 | CI131: 0 | CK131: 0 | CL131: 129 | CO131: 0 | CP131: 0 | CU131: 0 | CW131: 0 | CX131: 129 | DA131: 0 | DB131: 0 | DG131: 0 | DI131: 0 | DJ131: 129 | DM131: 0 | DN131: 0 | DS131: 0 | DU131: 0 | DV131: 129 | DY131: 0 | DZ131: 0 | ED131: 0 | EE131: 1 | EF131: 0 | EG131: 129 | EJ131: 0 | GH131: Sci./Con. Spéc. (Histoire/Archéologie) +
